Workbook

Sheet Home
C41: DemDiv was created by the Health Policy Project (HPP), with support from USAID. It is available at no cost for use by anyone. All uses of DemDiv should credit HPP and USAID as the source of the model, using the citation below. HPP does not verify the results of applications performed independently, and results should be presented as estimates. HPP kindly requests that individuals, institutions, and programs using the model inform Futures Group of such use so that we better understand its reach and impact, by contacting policyinfo@futuresgroup.com. Users are also welcome to submit comments and suggestions to improve the model to the same address. Suggested citation: Health Policy Project and United States Agency for International Development (USAID). 2014. DemDiv Model. Washington, DC: Futures Group, Health Policy Project.

Sheet Control
A2: COUNTRY | B2: Kenya | C2: STEP 1: Select your country of analysis to load default data
C3: EDUCATION | H3: FAMILY PLANNING | L3: ECONOMIC POLICIES
A4: SCENARIO | B4: YEAR | C4: Expected Years (Female) | D4: Expected Years (Male) | E4: Mean Years (Female) | F4: Mean Years (Male) | G4: Mean Years (Both) | H4: CPR Modern (Married Women) | I4: CPR Traditional (Married Women) | J4: Postpartum Insusceptibility (Months) | K4: Sterility (Percent All Women 45-49) | L4: GCI 1A: Public Institutions | M4: GCI 6.14: Imports as a %GDP | N4: GCI 7A: Labor Market Flexibility | O4: GCI 8A: Financial Market Efficiency | P4: GCI 9B: ICT Use
B5: 2010 | C5: 10.65394 | D5: 11.31316 | E5: 5.84 | F5: 7.21 | G5: =AVERAGE(E5:F5) -> 6.525 | H5: 39.4 | I5: 6.1 | J5: 10.3 | K5: 0.7 | L5: 3.57 | M5: 45.49 | N5: 4.88 | O5: 3.91 | P5: 2.06857469 | Q5: STEP 2: Validate data and/or fill data gaps
A6: Base | B6: ='Base Scenario'!A42 -> 2050 | C6: 10.65394 | D6: 11.31316 | E6: 5.84 | F6: 7.21 | G6: =AVERAGE(E6:F6) -> 6.525 | H6: 39.4 | I6: 6.1 | J6: 10.3 | K6: 0.7 | L6: 3.57 | M6: 45.49 | N6: 4.88 | O6: 3.91 | P6: 2.06857469 | Q6: STEP 3: Define policy scenarios
A7: Econ Only | B7: ='Base Scenario'!A42 -> 2050 | C7: 10.65394 | D7: 11.31316 | E7: 5.84 | F7: 7.21 | G7: =AVERAGE(E7:F7) -> 6.525 | H7: 39.4 | I7: 6.1 | J7: 10.3 | K7: 0.7 | L7: 3.57 | M7: 45.49 | N7: 4.88 | O7: 3.91 | P7: 2.06857469 | Q7: STEP 3: Define policy scenarios
A8: Econ + Educ | B8: ='Base Scenario'!A42 -> 2050 | C8: 10.65394 | D8: 11.31316 | E8: 5.84 | F8: 7.21 | G8: =AVERAGE(E8:F8) -> 6.525 | H8: 39.4 | I8: 6.1 | J8: 10.3 | K8: 0.7 | L8: 3.57 | M8: 45.49 | N8: 4.88 | O8: 3.91 | P8: 2.06857469 | Q8: STEP 3: Define policy scenarios
A9: Econ + Ed + FP | B9: ='Base Scenario'!A42 -> 2050 | C9: 10.65394 | D9: 11.31316 | E9: 5.84 | F9: 7.21 | G9: =AVERAGE(E9:F9) -> 6.525 | H9: 39.4 | I9: 6.1 | J9: 10.3 | K9: 0.7 | L9: 3.57 | M9: 45.49 | N9: 4.88 | O9: 3.91 | P9: 2.06857469 | Q9: STEP 3: Define policy scenarios
C10: SOURCE: UNESCO UIS Database Latest Data Available 2005-2012 | E10: SOURCE: Barro & Lee Database 2014 2010 Data | H10: SOURCE: Demographic and Health Survey, STATcompiler Latest Data Available 2005-2013 | L10: SOURCE: World Economic Forum, Global Competitiveness Report 2014-2015 2014 Data
C12: HEALTH | L12: ECONOMY
B13: YEAR | C13: Percent Married (Female) | D13: Total Fertility Rate (Female) | E13: Percent Births at Risk | F13: Infant Mortality Rate (Age 0-1) | G13: Under-5 Mortality Rate (Ages 0-5) | H13: Maternal Mortality Ratio (deaths per 100,000 live births) | I13: Contraceptive Effectiveness Modern Methods | J13: Contraceptive Effectiveness Traditional Methods | K13: Female Life Expectancy at Birth | L13: Capital Formation per capita | M13: Initial Employment (Ages 15 and older) | N13: Initial Emp Growth Rate (Ages 15 and older) | O13: Gross Domestic Product per Capita (2010 Constant $US) | P13: Ratio of Capital Stock to Pop 15+ | Q13: Initial GDP Growth Rate | R13: Capital Stock Growth Rate
B14: 2010 | C14: 58.3 | D14: 4.6 | E14: 54.8 | F14: 59 | G14: 84 | H14: 400 | I14: 0.95 | J14: 0.5 | K14: 58.44 | L14: 159.9647371 | M14: 15146459.96 | N14: 0.03325534691 | O14: 632.6971 | P14: 2234.519445 | Q14: 0.04347250075 | R14: =(Capital_Formation_pop*Population!E4)/(inVar21*Population!J4*(1-Control!D18)) -> 0.129402013 | S14: STEP 2: Validate data and/or fill data gaps
C15: SOURCE: Demographic and Health Survey, STATcompiler Latest Data Available 2005-2013 | H15: SOURCE: WHO, UNICEF, UNFPA, World Bank and the UN Population Division Trends in Maternal Mortality: 1990 to 2013 2013 Data | I15: Assumptions | K15: SOURCE: UN Population Division 2012 2005-2010 Data | L15: SOURCE: World Bank, World Development Indicators & UN Population Division 2012 2010 Data | M15: SOURCE: ILO, Key Indicators of the Labor Market, 8th edition 2012 Data | N15: SOURCE: ILO, Key Indicators of the Labor Market, 8th edition 2008-2012 Data | O15: SOURCE: World Bank, World Development Indicators 2010 Data | P15: SOURCE: Berlemann and Wesselhöft 2012 & UN Population Division 2012 2010 Data | Q15: SOURCE: World Bank, World Development Indicators 2013 Data | R15: SOURCE: Calculated
B17: YEAR | C17: Female-Male Life Expectancy Difference | D17: Capital Stock Depreciation Rate | E17: Primary Education Costs (percentage of GDP per capita) | F17: Labor Force Participation Rate
B18: 2010 | C18: 2.43 | D18: 0.04 | F18: 1 | G18: STEP 2: Validate data and/or fill data gaps
C19: SOURCE: UN Population Division 2012 2005-2010 Data | D19: SOURCE: Berlemann and Wesselhöft 2012 Constant, not-country specific | E19: SOURCE: World Bank, World Development Indicators 2010 Data | F19: Constant
B22: YEAR | C22: Base Year Population (Optional)
B23: 2010 | C23: MALE | D23: FEMALE
B24: 0-4
B25: 5-9
B26: 10-14
B27: 15-19
B28: 20-24
B29: 25-29
B30: 30-34
B31: 35-39
B32: 40-44
B33: 45-49
B34: 50-54
B35: 55-59
B36: 60-64
B37: 65-69
B38: 70-74
B39: 75-79
B40: 80 +
C41: SOURCE:

Sheet Base Scenario
B1: Expected Yrs Education Female | C1: Expected Yrs Education Male | D1: Expected Yrs Both, Average | E1: Mean Yrs Education Female | F1: Mean Yrs Education Male | G1: Mean Yrs Education, Both | H1: CPR-M | I1: CPR-T | J1: PPI | K1: Sterility | L1: GCI 7A: Labor Market Flexibility | M1: GCI 9B: ICT Use | N1: GCI 8A: Financial Market Efficiency | O1: GCI 1A: Public Institutions | P1: GCI 6.14: Imports as a %GDP | Q1: Percent Married/ In-Union | R1: TFR | S1: Percent Births at Any Risk | T1: IMR | U1: U5MR | V1: MMR | W1: FemaleLife Expectancy | X1: Capital Formation per capita | Y1: Employment | Z1: Capital Stock | AA1: H | AB1: TFP | AC1: TFP 2 | AD1: GDP | AE1: GDP Growth Rate | AF1: GDP Per Capita | AG1: TFP Growth Rate | AH1: GDP/Pop Growth Rate | AI1: Employment Growth Rate | AJ1: Capital Stock Growth Rate | AK1: Annual Change in Employment | AL1: Annual Gap Pop15+ - Employment | AM1: Annual Gap Labor Force - Employment | AN1: Gap between Population and Employment Growth | AO1: Employment/Pop15+ | AP1: Primary Education Costs | AQ1: LE Index | AR1: Ed Index | AS1: Income Index | AT1: HDI | AV1: Country Comparison
A2: =Control!B5 -> 2010 | B2: =+Control!C5 -> 10.65394 | C2: =+Control!D5 -> 11.31316 | D2: =AVERAGE(B2:C2) -> 10.98355 | E2: =+Control!E5 -> 5.84 | F2: =+Control!F5 -> 7.21 | G2: =AVERAGE(E2:F2) -> 6.525 | H2: =+Control!H5 -> 39.4 | I2: =+Control!I5 -> 6.1 | J2: =+Control!J5 -> 10.3 | K2: =+Control!K5 -> 0.7 | L2: =Control!N6 -> 4.88 | M2: =inVar13 -> 2.06857469 | N2: =inVar12 -> 3.91 | O2: =inVar9 -> 3.57 | P2: =inVar10 -> 45.49 | Q2: =+EXP(LN(Control!C$14)-(-0.332*LN(B$2))+(-0.332*LN(B2))) -> 58.3 | R2: =Control!D$14/($Q$2/100*(20/(18.5+$J$2))*((7.63-0.11*$K$2/100)/7.3)*(1-1.08*(Control!$I$14*$H$2/100+Control!$J$14*$I$2/100)))*($Q2/100*(20/(18.5+$J2))*((7.63-0.11*$K2/100)/7.3)*(1-1.08*(0.95*$H2/100+0.5*I2/100))) -> 4.6 | S2: =+Control!E14 -> 54.8 | T2: =+Control!F14 -> 59 | U2: =+Control!G14 -> 84 | V2: =(Control!H$14/(EXP(4.7651*$S$2)))*(EXP(4.7651*S2)) -> 400 | W2: =+Control!K14 -> 58.44 | X2: =EXP(LN(Control!$L$14)-0.875*LN($AF$2)-0.77*LN(Population!$J$4/Population!$E$4)-0.352*LN($N$2)+0.875*LN(AF2)+0.77*LN(Population!J4/Population!E4)+0.352*LN(N2)) -> 159.9647371 | Y2: =Control!M14 -> 15146459.96 | Z2: =+Control!P14*Population!AD4 -> 5.556426439e+10 | AA2: =+MIN(Y2,Population!AD4)*EXP((0.14-G2*0.006)*G2) -> 29248055.38 | AB2: =EXP(LN(Control!$O$14*Population!$E$4/($Z$2^0.3*$AA$2^0.7))-0.623*LN(O$2)-1.187*LN(M$2)+0.219*LN(P$2)+0.623*LN(O2)+1.187*LN(M2)-0.219*LN(P2)) -> 96.93326774 | AC2: =+AB2 -> 96.93326774 | AD2: =+AC2*Z2^0.3*AA2^0.7 -> 2.730105449e+10 | AE2: =+Control!Q14 -> 0.04347250075 | AF2: =+AD2/Population!E4 -> 632.6971 | AL2: =Population!J4-'Base Scenario'!Y2 -> 9719855.039 | AM2: =+Population!AD4-Y2 -> 9719855.039 | AO2: =+Y2/Population!J4 -> 0.6091155831 | AP2: =inVar24*$AF$2*Population!AX4 -> 0 | AQ2: =+((W2+W2-Control!$W$10)/2-20)/(83.2-20) -> 0.6082278481 | AR2: =SQRT(G2/13.2*D2/20.6)/0.951 -> 0.5398343692 | AS2: =(LN(AF2)-LN(163))/(LN(108211)-LN(163)) -> 0.2087139433 | AT2: =(AQ2*AR2*AS2)^0.333333 -> 0.4092227973 | AV2: =VLOOKUP(AT2,HDI!A$2:B$170,2) -> Haiti | AW2: =VLOOKUP(AT2,HDI!A$2:C$170,3) -> 145
A3: =+A2+1 -> 2011 | B3: =+B$2+(Control!C$6-Control!C$5)*($A3-$A$2)/($A$42-$A$2) -> 10.65394 | C3: =+C$2+(Control!D$6-Control!D$5)*($A3-$A$2)/($A$42-$A$2) -> 11.31316 | D3: =AVERAGE(B3:C3) -> 10.98355 | E3: =+E$2+(Control!E$6-Control!E$5)*($A3-$A$2)/($A$42-$A$2)+((R3-R$2)/R$2)*(-0.79)*E$2 -> 5.84 | F3: =+F$2+(Control!F$6-Control!F$5)*($A3-$A$2)/($A$42-$A$2) -> 7.21 | G3: =AVERAGE(E3:F3) -> 6.525 | H3: =+H$2+(Control!H$6-Control!H$5)*($A3-$A$2)/($A$42-$A$2) -> 39.4 | I3: =+I$2+(Control!I$6-Control!I$5)*($A3-$A$2)/($A$42-$A$2) -> 6.1 | J3: =+J$2+(Control!J$6-Control!J$5)*($A3-$A$2)/($A$42-$A$2) -> 10.3 | K3: =+K$2+(Control!K$6-Control!K$5)*($A3-$A$2)/($A$42-$A$2) -> 0.7 | L3: =+L$2+(Control!$N$6-inVar11)*Interpolate!E6 -> 4.88 | M3: =+M$2+(Control!$P$6-inVar13)*Interpolate!E6 -> 2.06857469 | N3: =+N$2+(Control!$O$6-inVar12)*Interpolate!E6 -> 3.91 | O3: =+O$2+(Control!$L$6-inVar9)*Interpolate!E6 -> 3.57 | P3: =+P$2+(Control!$M$6-inVar10)*Interpolate!E6 -> 45.49 | Q3: =+EXP(LN(Control!C$14)-(-0.332*LN(B$2))+(-0.332*LN(B3))) -> 58.3 | R3: =Control!D$14/($Q$2/100*(20/(18.5+$J$2))*((7.63-0.11*$K$2/100)/7.3)*(1-1.08*(Control!$I$14*$H$2/100+Control!$J$14*$I$2/100)))*($Q3/100*(20/(18.5+$J3))*((7.63-0.11*$K3/100)/7.3)*(1-1.08*(0.95*$H3/100+0.5*I3/100))) -> 4.6 | S3: =S$2-(R$2-R3)*7.28/100 -> 54.8 | T3: =T$2-(S$2-S3)*1.49*100 -> 59 | U3: =IF(U$2-(S$2-S3)*3.13*100<T3,T3,U$2-(S$2-S3)*3.13*100) -> 84 | V3: =($V$2/(EXP(4.7651*$S$2)))*(EXP(4.7651*S3)) -> 400 | W3: =IF(U3>50.9,EXP(+LN(W2)-0.287*(LN(U3)-LN(U2))),EXP(+LN(W2)-0.059*(LN(U3)-LN(U2)))) -> 58.44 | X3: =EXP(LN(Control!$L$14)-0.875*LN($AF$2)-0.77*LN(Population!$J$4/Population!$E$4)-0.352*LN($N$2)+0.875*LN(AF3)+0.77*LN(Population!J5/Population!E5)+0.352*LN(N3)) -> 160.6538718 | Y3: =MIN((1+(EXP(LN(Control!$N$14)-0.682*LN(IF(Population!$AI$5>0,Population!AI$5,0.00001))-0.483*LN(IF(AE$2>0,AE$2,0.0001))-0.593*LN($L$4)+0.682*LN(IF(Population!AI5>0,Population!AI5,0.0001))+0.483*LN(IF(AE2>0,AE2,0.001))+0.593*LN(L3))))*Y2,Population!AD5) -> 15650160.74 | Z3: =+Z2*(1-Control!$D$18)+X2*Population!J4 -> 5.731942735e+10 | AA3: =+MIN(Y3,Population!AD5)*EXP((0.14-G3*0.006)*G3) -> 30220709.61 | AB3: =EXP(LN(Control!$O$14*Population!$E$4/($Z$2^0.3*$AA$2^0.7))-0.623*LN(O$2)-1.187*LN(M$2)+0.219*LN(P$2)+0.623*LN(O3)+1.187*LN(M3)-0.219*LN(P3)) -> 96.93326774 | AC3: =+(1+MAX((AB3-AB2)/AB2,($AE$2-0.7*Initial_Emp_Growth_Rate-0.3*Control!$R$14)))*AC2 -> 96.93326774 | AD3: =+AC3*Z3^0.3*AA3^0.7 -> 2.819529656e+10 | AE3: =+(AD3-AD2)/AD2 -> 0.03275485457 | AF3: =+AD3/Population!E5 -> 634.9778887 | AG3: =+(AB3-AB2)/AB2 -> 0 | AH3: =(AF3-AF2)/AF2 -> 0.003604866682 | AI3: =+(Y3-Y2)/Y2 -> 0.03325534691 | AJ3: =(Z3-Z2)/Z2 -> 0.03158798169 | AK3: =+Y3-Y2 -> 503700.7804 | AL3: =Population!J5-'Base Scenario'!Y3 -> 9976655.38 | AM3: =+Population!AD5-Y3 -> 9976655.38 | AN3: =+Population!AN5-AK3 -> 256800.3407 | AO3: =+Y3/Population!J5 -> 0.6106946984 | AP3: =inVar24*$AF$2*Population!AX5 -> 0 | AQ3: =+((W3+W3-Control!$W$10)/2-20)/(83.2-20) -> 0.6082278481 | AR3: 0.5398343692 | AS3: 0.2092677038 | AT3: =(AQ3*AR3*AS3)^0.333333 -> 0.4095843944 | AV3: =VLOOKUP(AT3,HDI!A$2:B$170,2) -> Haiti | AW3: =VLOOKUP(AT3,HDI!A$2:C$170,3) -> 145 | AY3: =+LN(AH3) -> -5.62547049
A4: 2012 | B4: =+B$2+(Control!C$6-Control!C$5)*($A4-$A$2)/($A$42-$A$2) -> 10.65394 | C4: =+C$2+(Control!D$6-Control!D$5)*($A4-$A$2)/($A$42-$A$2) -> 11.31316 | D4: 10.98355 | E4: =+E$2+(Control!E$6-Control!E$5)*($A4-$A$2)/($A$42-$A$2)+((R4-R$2)/R$2)*(-0.79)*E$2 -> 5.84 | F4: =+F$2+(Control!F$6-Control!F$5)*($A4-$A$2)/($A$42-$A$2) -> 7.21 | G4: 6.525 | H4: =+H$2+(Control!H$6-Control!H$5)*($A4-$A$2)/($A$42-$A$2) -> 39.4 | I4: =+I$2+(Control!I$6-Control!I$5)*($A4-$A$2)/($A$42-$A$2) -> 6.1 | J4: =+J$2+(Control!J$6-Control!J$5)*($A4-$A$2)/($A$42-$A$2) -> 10.3 | K4: =+K$2+(Control!K$6-Control!K$5)*($A4-$A$2)/($A$42-$A$2) -> 0.7 | L4: =+L$2+(Control!$N$6-inVar11)*Interpolate!E7 -> 4.88 | M4: =+M$2+(Control!$P$6-inVar13)*Interpolate!E7 -> 2.06857469 | N4: =+N$2+(Control!$O$6-inVar12)*Interpolate!E7 -> 3.91 | O4: =+O$2+(Control!$L$6-inVar9)*Interpolate!E7 -> 3.57 | P4: =+P$2+(Control!$M$6-inVar10)*Interpolate!E7 -> 45.49 | Q4: =+EXP(LN(Control!C$14)-(-0.332*LN(B$2))+(-0.332*LN(B4))) -> 58.3 | R4: =Control!D$14/($Q$2/100*(20/(18.5+$J$2))*((7.63-0.11*$K$2/100)/7.3)*(1-1.08*(Control!$I$14*$H$2/100+Control!$J$14*$I$2/100)))*($Q4/100*(20/(18.5+$J4))*((7.63-0.11*$K4/100)/7.3)*(1-1.08*(0.95*$H4/100+0.5*I4/100))) -> 4.6 | S4: =S$2-(R$2-R4)*7.28/100 -> 54.8 | T4: =T$2-(S$2-S4)*1.49*100 -> 59 | U4: =IF(U$2-(S$2-S4)*3.13*100<T4,T4,U$2-(S$2-S4)*3.13*100) -> 84 | V4: =($V$2/(EXP(4.7651*$S$2)))*(EXP(4.7651*S4)) -> 400 | W4: =IF(U4>50.9,EXP(+LN(W3)-0.287*(LN(U4)-LN(U3))),EXP(+LN(W3)-0.059*(LN(U4)-LN(U3)))) -> 58.44 | X4: =EXP(LN(Control!$L$14)-0.875*LN($AF$2)-0.77*LN(Population!$J$4/Population!$E$4)-0.352*LN($N$2)+0.875*LN(AF4)+0.77*LN(Population!J6/Population!E6)+0.352*LN(N4)) -> 160.9252698 | Y4: =MIN((1+(EXP(LN(Control!$N$14)-0.682*LN(IF(Population!$AI$5>0,Population!AI$5,0.00001))-0.483*LN(IF(AE$2>0,AE$2,0.0001))-0.593*LN($L$4)+0.682*LN(IF(Population!AI6>0,Population!AI6,0.0001))+0.483*LN(IF(AE3>0,AE3,0.001))+0.593*LN(L4))))*Y3,Population!AD6) -> 16104258.14 | Z4: =+Z3*(1-Control!$D$18)+X3*Population!J5 -> 5.914369749e+10 | AA4: =+MIN(Y4,Population!AD6)*EXP((0.14-G4*0.006)*G4) -> 31097578.91 | AB4: =EXP(LN(Control!$O$14*Population!$E$4/($Z$2^0.3*$AA$2^0.7))-0.623*LN(O$2)-1.187*LN(M$2)+0.219*LN(P$2)+0.623*LN(O4)+1.187*LN(M4)-0.219*LN(P4)) -> 96.93326774 | AC4: =+(1+MAX((AB4-AB3)/AB3,($AE$2-0.7*Initial_Emp_Growth_Rate-0.3*Control!$R$14)))*AC3 -> 96.93326774 | AD4: =+AC4*Z4^0.3*AA4^0.7 -> 2.903715081e+10 | AE4: =+(AD4-AD3)/AD3 -> 0.02985796748 | AF4: =+AD4/Population!E6 -> 635.4158199 | AG4: =+(AB4-AB3)/AB3 -> 0 | AH4: =(AF4-AF3)/AF3 -> 0.0006896795227 | AI4: 0.02901551012 | AJ4: 0.03182638456 | AK4: 454097.3973 | AL4: =Population!J6-'Base Scenario'!Y4 -> 10306710.32 | AM4: =+Population!AD6-Y4 -> 10306710.32 | AN4: =+Population!AN6-AK4 -> 330054.9386 | AO4: =+Y4/Population!J6 -> 0.6097564413 | AP4: =inVar24*$AF$2*Population!AX6 -> 0 | AQ4: =+((W4+W4-Control!$W$10)/2-20)/(83.2-20) -> 0.6082278481 | AR4: 0.5398343692 | AS4: 0.209373803 | AT4: 0.4096536027 | AV4: =VLOOKUP(AT4,HDI!A$2:B$170,2) -> Haiti | AW4: =VLOOKUP(AT4,HDI!A$2:C$170,3) -> 145
A5: 2013 | B5: =+B$2+(Control!C$6-Control!C$5)*($A5-$A$2)/($A$42-$A$2) -> 10.65394 | C5: =+C$2+(Control!D$6-Control!D$5)*($A5-$A$2)/($A$42-$A$2) -> 11.31316 | D5: 10.98355 | E5: =+E$2+(Control!E$6-Control!E$5)*($A5-$A$2)/($A$42-$A$2)+((R5-R$2)/R$2)*(-0.79)*E$2 -> 5.84 | F5: =+F$2+(Control!F$6-Control!F$5)*($A5-$A$2)/($A$42-$A$2) -> 7.21 | G5: 6.525 | H5: =+H$2+(Control!H$6-Control!H$5)*($A5-$A$2)/($A$42-$A$2) -> 39.4 | I5: =+I$2+(Control!I$6-Control!I$5)*($A5-$A$2)/($A$42-$A$2) -> 6.1 | J5: =+J$2+(Control!J$6-Control!J$5)*($A5-$A$2)/($A$42-$A$2) -> 10.3 | K5: =+K$2+(Control!K$6-Control!K$5)*($A5-$A$2)/($A$42-$A$2) -> 0.7 | L5: =+L$2+(Control!$N$6-inVar11)*Interpolate!E8 -> 4.88 | M5: =+M$2+(Control!$P$6-inVar13)*Interpolate!E8 -> 2.06857469 | N5: =+N$2+(Control!$O$6-inVar12)*Interpolate!E8 -> 3.91 | O5: =+O$2+(Control!$L$6-inVar9)*Interpolate!E8 -> 3.57 | P5: =+P$2+(Control!$M$6-inVar10)*Interpolate!E8 -> 45.49 | Q5: =+EXP(LN(Control!C$14)-(-0.332*LN(B$2))+(-0.332*LN(B5))) -> 58.3 | R5: =Control!D$14/($Q$2/100*(20/(18.5+$J$2))*((7.63-0.11*$K$2/100)/7.3)*(1-1.08*(Control!$I$14*$H$2/100+Control!$J$14*$I$2/100)))*($Q5/100*(20/(18.5+$J5))*((7.63-0.11*$K5/100)/7.3)*(1-1.08*(0.95*$H5/100+0.5*I5/100))) -> 4.6 | S5: 54.8 | T5: =T$2-(S$2-S5)*1.49*100 -> 59 | U5: =IF(U$2-(S$2-S5)*3.13*100<T5,T5,U$2-(S$2-S5)*3.13*100) -> 84 | V5: =($V$2/(EXP(4.7651*$S$2)))*(EXP(4.7651*S5)) -> 400 | W5: 58.44 | X5: =EXP(LN(Control!$L$14)-0.875*LN($AF$2)-0.77*LN(Population!$J$4/Population!$E$4)-0.352*LN($N$2)+0.875*LN(AF5)+0.77*LN(Population!J7/Population!E7)+0.352*LN(N5)) -> 161.0962645 | Y5: =MIN((1+(EXP(LN(Control!$N$14)-0.682*LN(IF(Population!$AI$5>0,Population!AI$5,0.00001))-0.483*LN(IF(AE$2>0,AE$2,0.0001))-0.593*LN($L$4)+0.682*LN(IF(Population!AI7>0,Population!AI7,0.0001))+0.483*LN(IF(AE4>0,AE4,0.001))+0.593*LN(L5))))*Y4,Population!AD7) -> 16552084.93 | Z5: =+Z4*(1-Control!$D$18)+X4*Population!J6 -> 6.102814182e+10 | AA5: =+MIN(Y5,Population!AD7)*EXP((0.14-G5*0.006)*G5) -> 31962339.58 | AB5: =EXP(LN(Control!$O$14*Population!$E$4/($Z$2^0.3*$AA$2^0.7))-0.623*LN(O$2)-1.187*LN(M$2)+0.219*LN(P$2)+0.623*LN(O5)+1.187*LN(M5)-0.219*LN(P5)) -> 96.93326774 | AC5: =+(1+MAX((AB5-AB4)/AB4,($AE$2-0.7*Initial_Emp_Growth_Rate-0.3*Control!$R$14)))*AC4 -> 96.93326774 | AD5: 2.987988286e+10 | AE5: 0.02902254628 | AF5: =+AD5/Population!E7 -> 635.3420041 | AG5: 0 | AH5: -0.0001161692774 | AI5: 0.02780797413 | AJ5: 0.0318621325 | AK5: 447826.7937 | AL5: =Population!J7-'Base Scenario'!Y5 -> 10669662.4 | AM5: =+Population!AD7-Y5 -> 10669662.4 | AN5: =+Population!AN7-AK5 -> 362952.0813 | AO5: =+Y5/Population!J7 -> 0.6080463804 | AP5: =inVar24*$AF$2*Population!AX7 -> 0 | AQ5: =+((W5+W5-Control!$W$10)/2-20)/(83.2-20) -> 0.6082278481 | AR5: 0.5398343692 | AS5: 0.2093559245 | AT5: 0.4096419423 | AV5: =VLOOKUP(AT5,HDI!A$2:B$170,2) -> Haiti | AW5: =VLOOKUP(AT5,HDI!A$2:C$170,3) -> 145
A6: 2014 | B6: =+B$2+(Control!C$6-Control!C$5)*($A6-$A$2)/($A$42-$A$2) -> 10.65394 | C6: =+C$2+(Control!D$6-Control!D$5)*($A6-$A$2)/($A$42-$A$2) -> 11.31316 | D6: 10.98355 | E6: =+E$2+(Control!E$6-Control!E$5)*($A6-$A$2)/($A$42-$A$2)+((R6-R$2)/R$2)*(-0.79)*E$2 -> 5.84 | F6: =+F$2+(Control!F$6-Control!F$5)*($A6-$A$2)/($A$42-$A$2) -> 7.21 | G6: 6.525 | H6: =+H$2+(Control!H$6-Control!H$5)*($A6-$A$2)/($A$42-$A$2) -> 39.4 | I6: =+I$2+(Control!I$6-Control!I$5)*($A6-$A$2)/($A$42-$A$2) -> 6.1 | J6: =+J$2+(Control!J$6-Control!J$5)*($A6-$A$2)/($A$42-$A$2) -> 10.3 | K6: =+K$2+(Control!K$6-Control!K$5)*($A6-$A$2)/($A$42-$A$2) -> 0.7 | L6: =+L$2+(Control!$N$6-inVar11)*Interpolate!E9 -> 4.88 | M6: =+M$2+(Control!$P$6-inVar13)*Interpolate!E9 -> 2.06857469 | N6: =+N$2+(Control!$O$6-inVar12)*Interpolate!E9 -> 3.91 | O6: =+O$2+(Control!$L$6-inVar9)*Interpolate!E9 -> 3.57 | P6: =+P$2+(Control!$M$6-inVar10)*Interpolate!E9 -> 45.49 | Q6: =+EXP(LN(Control!C$14)-(-0.332*LN(B$2))+(-0.332*LN(B6))) -> 58.3 | R6: =Control!D$14/($Q$2/100*(20/(18.5+$J$2))*((7.63-0.11*$K$2/100)/7.3)*(1-1.08*(Control!$I$14*$H$2/100+Control!$J$14*$I$2/100)))*($Q6/100*(20/(18.5+$J6))*((7.63-0.11*$K6/100)/7.3)*(1-1.08*(0.95*$H6/100+0.5*I6/100))) -> 4.6 | S6: 54.8 | T6: 59 | U6: 84 | V6: 400 | W6: 58.44 | X6: =EXP(LN(Control!$L$14)-0.875*LN($AF$2)-0.77*LN(Population!$J$4/Population!$E$4)-0.352*LN($N$2)+0.875*LN(AF6)+0.77*LN(Population!J8/Population!E8)+0.352*LN(N6)) -> 161.2911111 | Y6: =MIN((1+(EXP(LN(Control!$N$14)-0.682*LN(IF(Population!$AI$5>0,Population!AI$5,0.00001))-0.483*LN(IF(AE$2>0,AE$2,0.0001))-0.593*LN($L$4)+0.682*LN(IF(Population!AI8>0,Population!AI8,0.0001))+0.483*LN(IF(AE5>0,AE5,0.001))+0.593*LN(L6))))*Y5,Population!AD8) -> 17009106.78 | Z6: =+Z5*(1-Control!$D$18)+X5*Population!J7 -> 6.297233795e+10 | AA6: =+MIN(Y6,Population!AD8)*EXP((0.14-G6*0.006)*G6) -> 32844856.05 | AB6: =EXP(LN(Control!$O$14*Population!$E$4/($Z$2^0.3*$AA$2^0.7))-0.623*LN(O$2)-1.187*LN(M$2)+0.219*LN(P$2)+0.623*LN(O6)+1.187*LN(M6)-0.219*LN(P6)) -> 96.93326774 | AC6: =+(1+MAX((AB6-AB5)/AB5,($AE$2-0.7*Initial_Emp_Growth_Rate-0.3*Control!$R$14)))*AC5 -> 96.93326774 | AD6: 3.074290852e+10 | AE6: 0.02888316761 | AF6: =+AD6/Population!E8 -> 635.1984443 | AG6: 0 | AH6: -0.0002259568701 | AI6: 0.02761113492 | AJ6: 0.03185737067 | AK6: 457021.8503 | AL6: =Population!J8-'Base Scenario'!Y6 -> 11056439.56 | AM6: =+Population!AD8-Y6 -> 11056439.56 | AN6: =+Population!AN8-AK6 -> 386777.1575 | AO6: =+Y6/Population!J8 -> 0.6060493737 | AP6: =inVar24*$AF$2*Population!AX8 -> 0 | AQ6: =+((W6+W6-Control!$W$10)/2-20)/(83.2-20) -> 0.6082278481 | AR6: 0.5398343692 | AS6: 0.2093211478 | AT6: 0.4096192587 | AV6: =VLOOKUP(AT6,HDI!A$2:B$170,2) -> Haiti | AW6: =VLOOKUP(AT6,HDI!A$2:C$170,3) -> 145
A7: 2015 | B7: =+B$2+(Control!C$6-Control!C$5)*($A7-$A$2)/($A$42-$A$2) -> 10.65394 | C7: =+C$2+(Control!D$6-Control!D$5)*($A7-$A$2)/($A$42-$A$2) -> 11.31316 | D7: 10.98355 | E7: =+E$2+(Control!E$6-Control!E$5)*($A7-$A$2)/($A$42-$A$2)+((R7-R$2)/R$2)*(-0.79)*E$2 -> 5.84 | F7: =+F$2+(Control!F$6-Control!F$5)*($A7-$A$2)/($A$42-$A$2) -> 7.21 | G7: 6.525 | H7: =+H$2+(Control!H$6-Control!H$5)*($A7-$A$2)/($A$42-$A$2) -> 39.4 | I7: =+I$2+(Control!I$6-Control!I$5)*($A7-$A$2)/($A$42-$A$2) -> 6.1 | J7: =+J$2+(Control!J$6-Control!J$5)*($A7-$A$2)/($A$42-$A$2) -> 10.3 | K7: =+K$2+(Control!K$6-Control!K$5)*($A7-$A$2)/($A$42-$A$2) -> 0.7 | L7: =+L$2+(Control!$N$6-inVar11)*Interpolate!E10 -> 4.88 | M7: =+M$2+(Control!$P$6-inVar13)*Interpolate!E10 -> 2.06857469 | N7: =+N$2+(Control!$O$6-inVar12)*Interpolate!E10 -> 3.91 | O7: =+O$2+(Control!$L$6-inVar9)*Interpolate!E10 -> 3.57 | P7: =+P$2+(Control!$M$6-inVar10)*Interpolate!E10 -> 45.49 | Q7: =+EXP(LN(Control!C$14)-(-0.332*LN(B$2))+(-0.332*LN(B7))) -> 58.3 | R7: =Control!D$14/($Q$2/100*(20/(18.5+$J$2))*((7.63-0.11*$K$2/100)/7.3)*(1-1.08*(Control!$I$14*$H$2/100+Control!$J$14*$I$2/100)))*($Q7/100*(20/(18.5+$J7))*((7.63-0.11*$K7/100)/7.3)*(1-1.08*(0.95*$H7/100+0.5*I7/100))) -> 4.6 | S7: 54.8 | T7: 59 | U7: 84 | V7: 400 | W7: 58.44 | X7: =EXP(LN(Control!$L$14)-0.875*LN($AF$2)-0.77*LN(Population!$J$4/Population!$E$4)-0.352*LN($N$2)+0.875*LN(AF7)+0.77*LN(Population!J9/Population!E9)+0.352*LN(N7)) -> 161.5580397 | Y7: =MIN((1+(EXP(LN(Control!$N$14)-0.682*LN(IF(Population!$AI$5>0,Population!AI$5,0.00001))-0.483*LN(IF(AE$2>0,AE$2,0.0001))-0.593*LN($L$4)+0.682*LN(IF(Population!AI9>0,Population!AI9,0.0001))+0.483*LN(IF(AE6>0,AE6,0.001))+0.593*LN(L7))))*Y6,Population!AD9) -> 17481020.24 | Z7: =+Z6*(1-Control!$D$18)+X6*Population!J8 -> 6.498016759e+10 | AA7: =+MIN(Y7,Population!AD9)*EXP((0.14-G7*0.006)*G7) -> 33756128.45 | AB7: =EXP(LN(Control!$O$14*Population!$E$4/($Z$2^0.3*$AA$2^0.7))-0.623*LN(O$2)-1.187*LN(M$2)+0.219*LN(P$2)+0.623*LN(O7)+1.187*LN(M7)-0.219*LN(P7)) -> 96.93326774 | AC7: =+(1+MAX((AB7-AB6)/AB6,($AE$2-0.7*Initial_Emp_Growth_Rate-0.3*Control!$R$14)))*AC6 -> 96.93326774 | AD7: 3.163398783e+10 | AE7: 0.02898487327 | AF7: =+AD7/Population!E9 -> 635.1618166 | AG7: 0 | AH7: -5.766335858e-05 | AI7: 0.02774475222 | AJ7: 0.03188431144 | AK7: 471913.4532 | AL7: =Population!J9-'Base Scenario'!Y7 -> 11463652.55 | AM7: =+Population!AD9-Y7 -> 11463652.55 | AN7: =+Population!AN9-AK7 -> 407212.9961 | AO7: =+Y7/Population!J9 -> 0.6039460305 | AP7: =inVar24*$AF$2*Population!AX9 -> 0 | AQ7: =+((W7+W7-Control!$W$10)/2-20)/(83.2-20) -> 0.6082278481 | AR7: 0.5398343692 | AS7: 0.2093122736 | AT7: 0.4096134701 | AV7: =VLOOKUP(AT7,HDI!A$2:B$170,2) -> Haiti | AW7: =VLOOKUP(AT7,HDI!A$2:C$170,3) -> 145
A8: 2016 | B8: =+B$2+(Control!C$6-Control!C$5)*($A8-$A$2)/($A$42-$A$2) -> 10.65394 | C8: =+C$2+(Control!D$6-Control!D$5)*($A8-$A$2)/($A$42-$A$2) -> 11.31316 | D8: 10.98355 | E8: =+E$2+(Control!E$6-Control!E$5)*($A8-$A$2)/($A$42-$A$2)+((R8-R$2)/R$2)*(-0.79)*E$2 -> 5.84 | F8: =+F$2+(Control!F$6-Control!F$5)*($A8-$A$2)/($A$42-$A$2) -> 7.21 | G8: 6.525 | H8: =+H$2+(Control!H$6-Control!H$5)*($A8-$A$2)/($A$42-$A$2) -> 39.4 | I8: =+I$2+(Control!I$6-Control!I$5)*($A8-$A$2)/($A$42-$A$2) -> 6.1 | J8: =+J$2+(Control!J$6-Control!J$5)*($A8-$A$2)/($A$42-$A$2) -> 10.3 | K8: =+K$2+(Control!K$6-Control!K$5)*($A8-$A$2)/($A$42-$A$2) -> 0.7 | L8: =+L$2+(Control!$N$6-inVar11)*Interpolate!E11 -> 4.88 | M8: =+M$2+(Control!$P$6-inVar13)*Interpolate!E11 -> 2.06857469 | N8: =+N$2+(Control!$O$6-inVar12)*Interpolate!E11 -> 3.91 | O8: =+O$2+(Control!$L$6-inVar9)*Interpolate!E11 -> 3.57 | P8: =+P$2+(Control!$M$6-inVar10)*Interpolate!E11 -> 45.49 | Q8: =+EXP(LN(Control!C$14)-(-0.332*LN(B$2))+(-0.332*LN(B8))) -> 58.3 | R8: =Control!D$14/($Q$2/100*(20/(18.5+$J$2))*((7.63-0.11*$K$2/100)/7.3)*(1-1.08*(Control!$I$14*$H$2/100+Control!$J$14*$I$2/100)))*($Q8/100*(20/(18.5+$J8))*((7.63-0.11*$K8/100)/7.3)*(1-1.08*(0.95*$H8/100+0.5*I8/100))) -> 4.6 | S8: 54.8 | T8: 59 | U8: 84 | V8: 400 | W8: 58.44 | X8: =EXP(LN(Control!$L$14)-0.875*LN($AF$2)-0.77*LN(Population!$J$4/Population!$E$4)-0.352*LN($N$2)+0.875*LN(AF8)+0.77*LN(Population!J10/Population!E10)+0.352*LN(N8)) -> 161.8977706 | Y8: =MIN((1+(EXP(LN(Control!$N$14)-0.682*LN(IF(Population!$AI$5>0,Population!AI$5,0.00001))-0.483*LN(IF(AE$2>0,AE$2,0.0001))-0.593*LN($L$4)+0.682*LN(IF(Population!AI10>0,Population!AI10,0.0001))+0.483*LN(IF(AE7>0,AE7,0.001))+0.593*LN(L8))))*Y7,Population!AD10) -> 17970258.73 | Z8: =+Z7*(1-Control!$D$18)+X7*Population!J9 -> 6.705720548e+10 | AA8: =+MIN(Y8,Population!AD10)*EXP((0.14-G8*0.006)*G8) -> 34700855.77 | AB8: =EXP(LN(Control!$O$14*Population!$E$4/($Z$2^0.3*$AA$2^0.7))-0.623*LN(O$2)-1.187*LN(M$2)+0.219*LN(P$2)+0.623*LN(O8)+1.187*LN(M8)-0.219*LN(P8)) -> 96.93326774 | AC8: =+(1+MAX((AB8-AB7)/AB7,($AE$2-0.7*Initial_Emp_Growth_Rate-0.3*Control!$R$14)))*AC7 -> 96.93326774 | AD8: 3.255701791e+10 | AE8: 0.02917842936 | AF8: =+AD8/Population!E10 -> 635.2607206 | AG8: 0 | AH8: 0.0001557146539 | AI8: 0.02798683868 | AJ8: 0.03196418183 | AK8: 489238.4933 | AL8: =Population!J10-'Base Scenario'!Y8 -> 11890418.53 | AM8: =+Population!AD10-Y8 -> 11890418.53 | AN8: =+Population!AN10-AK8 -> 426765.9793 | AO8: =+Y8/Population!J10 -> 0.6018034545 | AP8: =inVar24*$AF$2*Population!AX10 -> 0 | AQ8: =+((W8+W8-Control!$W$10)/2-20)/(83.2-20) -> 0.6082278481 | AR8: 0.5398343692 | AS8: 0.2093362349 | AT8: 0.4096290998 | AV8: =VLOOKUP(AT8,HDI!A$2:B$170,2) -> Haiti | AW8: =VLOOKUP(AT8,HDI!A$2:C$170,3) -> 145
A9: 2017 | B9: =+B$2+(Control!C$6-Control!C$5)*($A9-$A$2)/($A$42-$A$2) -> 10.65394 | C9: =+C$2+(Control!D$6-Control!D$5)*($A9-$A$2)/($A$42-$A$2) -> 11.31316 | D9: 10.98355 | E9: =+E$2+(Control!E$6-Control!E$5)*($A9-$A$2)/($A$42-$A$2)+((R9-R$2)/R$2)*(-0.79)*E$2 -> 5.84 | F9: =+F$2+(Control!F$6-Control!F$5)*($A9-$A$2)/($A$42-$A$2) -> 7.21 | G9: 6.525 | H9: =+H$2+(Control!H$6-Control!H$5)*($A9-$A$2)/($A$42-$A$2) -> 39.4 | I9: =+I$2+(Control!I$6-Control!I$5)*($A9-$A$2)/($A$42-$A$2) -> 6.1 | J9: =+J$2+(Control!J$6-Control!J$5)*($A9-$A$2)/($A$42-$A$2) -> 10.3 | K9: =+K$2+(Control!K$6-Control!K$5)*($A9-$A$2)/($A$42-$A$2) -> 0.7 | L9: =+L$2+(Control!$N$6-inVar11)*Interpolate!E12 -> 4.88 | M9: =+M$2+(Control!$P$6-inVar13)*Interpolate!E12 -> 2.06857469 | N9: =+N$2+(Control!$O$6-inVar12)*Interpolate!E12 -> 3.91 | O9: =+O$2+(Control!$L$6-inVar9)*Interpolate!E12 -> 3.57 | P9: =+P$2+(Control!$M$6-inVar10)*Interpolate!E12 -> 45.49 | Q9: =+EXP(LN(Control!C$14)-(-0.332*LN(B$2))+(-0.332*LN(B9))) -> 58.3 | R9: =Control!D$14/($Q$2/100*(20/(18.5+$J$2))*((7.63-0.11*$K$2/100)/7.3)*(1-1.08*(Control!$I$14*$H$2/100+Control!$J$14*$I$2/100)))*($Q9/100*(20/(18.5+$J9))*((7.63-0.11*$K9/100)/7.3)*(1-1.08*(0.95*$H9/100+0.5*I9/100))) -> 4.6 | S9: 54.8 | T9: =T$2-(S$2-S9)*1.49*100 -> 59 | U9: 84 | V9: 400 | W9: 58.44 | X9: =EXP(LN(Control!$L$14)-0.875*LN($AF$2)-0.77*LN(Population!$J$4/Population!$E$4)-0.352*LN($N$2)+0.875*LN(AF9)+0.77*LN(Population!J11/Population!E11)+0.352*LN(N9)) -> 162.3040751 | Y9: =MIN((1+(EXP(LN(Control!$N$14)-0.682*LN(IF(Population!$AI$5>0,Population!AI$5,0.00001))-0.483*LN(IF(AE$2>0,AE$2,0.0001))-0.593*LN($L$4)+0.682*LN(IF(Population!AI11>0,Population!AI11,0.0001))+0.483*LN(IF(AE8>0,AE8,0.001))+0.593*LN(L9))))*Y8,Population!AD11) -> 18477526.23 | Z9: =+Z8*(1-Control!$D$18)+X8*Population!J10 -> 6.920929434e+10 | AA9: =+MIN(Y9,Population!AD11)*EXP((0.14-G9*0.006)*G9) -> 35680397.39 | AB9: =EXP(LN(Control!$O$14*Population!$E$4/($Z$2^0.3*$AA$2^0.7))-0.623*LN(O$2)-1.187*LN(M$2)+0.219*LN(P$2)+0.623*LN(O9)+1.187*LN(M9)-0.219*LN(P9)) -> 96.93326774 | AC9: =+(1+MAX((AB9-AB8)/AB8,($AE$2-0.7*Initial_Emp_Growth_Rate-0.3*Control!$R$14)))*AC8 -> 96.93326774 | AD9: 3.351374476e+10 | AE9: 0.02938619424 | AF9: =+AD9/Population!E11 -> 635.5043187 | AG9: 0 | AH9: 0.0003834616345 | AI9: 0.02822816903 | AJ9: 0.0320933275 | AK9: 507267.501 | AL9: =Population!J11-'Base Scenario'!Y9 -> 12335616.11 | AM9: =+Population!AD11-Y9 -> 12335616.11 | AN9: =+Population!AN11-AK9 -> 445197.5733 | AO9: =+Y9/Population!J11 -> 0.5996638067 | AP9: =inVar24*$AF$2*Population!AX11 -> 0 | AQ9: =+((W9+W9-Control!$W$10)/2-20)/(83.2-20) -> 0.6082278481 | AR9: 0.5398343692 | AS9: 0.209395235 | AT9: 0.40966758 | AV9: =VLOOKUP(AT9,HDI!A$2:B$170,2) -> Haiti | AW9: =VLOOKUP(AT9,HDI!A$2:C$170,3) -> 145
A10: 2018 | B10: =+B$2+(Control!C$6-Control!C$5)*($A10-$A$2)/($A$42-$A$2) -> 10.65394 | C10: =+C$2+(Control!D$6-Control!D$5)*($A10-$A$2)/($A$42-$A$2) -> 11.31316 | D10: 10.98355 | E10: =+E$2+(Control!E$6-Control!E$5)*($A10-$A$2)/($A$42-$A$2)+((R10-R$2)/R$2)*(-0.79)*E$2 -> 5.84 | F10: =+F$2+(Control!F$6-Control!F$5)*($A10-$A$2)/($A$42-$A$2) -> 7.21 | G10: 6.525 | H10: =+H$2+(Control!H$6-Control!H$5)*($A10-$A$2)/($A$42-$A$2) -> 39.4 | I10: =+I$2+(Control!I$6-Control!I$5)*($A10-$A$2)/($A$42-$A$2) -> 6.1 | J10: =+J$2+(Control!J$6-Control!J$5)*($A10-$A$2)/($A$42-$A$2) -> 10.3 | K10: =+K$2+(Control!K$6-Control!K$5)*($A10-$A$2)/($A$42-$A$2) -> 0.7 | L10: =+L$2+(Control!$N$6-inVar11)*Interpolate!E13 -> 4.88 | M10: =+M$2+(Control!$P$6-inVar13)*Interpolate!E13 -> 2.06857469 | N10: =+N$2+(Control!$O$6-inVar12)*Interpolate!E13 -> 3.91 | O10: =+O$2+(Control!$L$6-inVar9)*Interpolate!E13 -> 3.57 | P10: =+P$2+(Control!$M$6-inVar10)*Interpolate!E13 -> 45.49 | Q10: =+EXP(LN(Control!C$14)-(-0.332*LN(B$2))+(-0.332*LN(B10))) -> 58.3 | R10: =Control!D$14/($Q$2/100*(20/(18.5+$J$2))*((7.63-0.11*$K$2/100)/7.3)*(1-1.08*(Control!$I$14*$H$2/100+Control!$J$14*$I$2/100)))*($Q10/100*(20/(18.5+$J10))*((7.63-0.11*$K10/100)/7.3)*(1-1.08*(0.95*$H10/100+0.5*I10/100))) -> 4.6 | S10: 54.8 | T10: 59 | U10: 84 | V10: 400 | W10: 58.44 | X10: =EXP(LN(Control!$L$14)-0.875*LN($AF$2)-0.77*LN(Population!$J$4/Population!$E$4)-0.352*LN($N$2)+0.875*LN(AF10)+0.77*LN(Population!J12/Population!E12)+0.352*LN(N10)) -> 162.7667647 | Y10: =MIN((1+(EXP(LN(Control!$N$14)-0.682*LN(IF(Population!$AI$5>0,Population!AI$5,0.00001))-0.483*LN(IF(AE$2>0,AE$2,0.0001))-0.593*LN($L$4)+0.682*LN(IF(Population!AI12>0,Population!AI12,0.0001))+0.483*LN(IF(AE9>0,AE9,0.001))+0.593*LN(L10))))*Y9,Population!AD12) -> 19002893.23 | Z10: =+Z9*(1-Control!$D$18)+X9*Population!J11 -> 7.144202113e+10 | AA10: =+MIN(Y10,Population!AD12)*EXP((0.14-G10*0.006)*G10) -> 36694889.44 | AB10: =EXP(LN(Control!$O$14*Population!$E$4/($Z$2^0.3*$AA$2^0.7))-0.623*LN(O$2)-1.187*LN(M$2)+0.219*LN(P$2)+0.623*LN(O10)+1.187*LN(M10)-0.219*LN(P10)) -> 96.93326774 | AC10: =+(1+MAX((AB10-AB9)/AB9,($AE$2-0.7*Initial_Emp_Growth_Rate-0.3*Control!$R$14)))*AC9 -> 96.93326774 | AD10: 3.450506753e+10 | AE10: 0.02957958825 | AF10: =+AD10/Population!E12 -> 635.8840925 | AG10: 0 | AH10: 0.000597594344 | AI10: 0.02843275638 | AJ10: 0.03226050511 | AK10: 525367.0017 | AL10: =Population!J12-'Base Scenario'!Y10 -> 12798578.48 | AM10: =+Population!AD12-Y10 -> 12798578.48 | AN10: =+Population!AN12-AK10 -> 462962.3733 | AO10: =+Y10/Population!J12 -> 0.5975476042 | AP10: =inVar24*$AF$2*Population!AX12 -> 0 | AQ10: =+((W10+W10-Control!$W$10)/2-20)/(83.2-20) -> 0.6082278481 | AR10: 0.5398343692 | AS10: 0.2094871722 | AT10: 0.4097275274 | AV10: =VLOOKUP(AT10,HDI!A$2:B$170,2) -> Haiti | AW10: =VLOOKUP(AT10,HDI!A$2:C$170,3) -> 145
A11: 2019 | B11: =+B$2+(Control!C$6-Control!C$5)*($A11-$A$2)/($A$42-$A$2) -> 10.65394 | C11: =+C$2+(Control!D$6-Control!D$5)*($A11-$A$2)/($A$42-$A$2) -> 11.31316 | D11: 10.98355 | E11: =+E$2+(Control!E$6-Control!E$5)*($A11-$A$2)/($A$42-$A$2)+((R11-R$2)/R$2)*(-0.79)*E$2 -> 5.84 | F11: =+F$2+(Control!F$6-Control!F$5)*($A11-$A$2)/($A$42-$A$2) -> 7.21 | G11: 6.525 | H11: =+H$2+(Control!H$6-Control!H$5)*($A11-$A$2)/($A$42-$A$2) -> 39.4 | I11: =+I$2+(Control!I$6-Control!I$5)*($A11-$A$2)/($A$42-$A$2) -> 6.1 | J11: =+J$2+(Control!J$6-Control!J$5)*($A11-$A$2)/($A$42-$A$2) -> 10.3 | K11: =+K$2+(Control!K$6-Control!K$5)*($A11-$A$2)/($A$42-$A$2) -> 0.7 | L11: =+L$2+(Control!$N$6-inVar11)*Interpolate!E14 -> 4.88 | M11: =+M$2+(Control!$P$6-inVar13)*Interpolate!E14 -> 2.06857469 | N11: =+N$2+(Control!$O$6-inVar12)*Interpolate!E14 -> 3.91 | O11: =+O$2+(Control!$L$6-inVar9)*Interpolate!E14 -> 3.57 | P11: =+P$2+(Control!$M$6-inVar10)*Interpolate!E14 -> 45.49 | Q11: =+EXP(LN(Control!C$14)-(-0.332*LN(B$2))+(-0.332*LN(B11))) -> 58.3 | R11: =Control!D$14/($Q$2/100*(20/(18.5+$J$2))*((7.63-0.11*$K$2/100)/7.3)*(1-1.08*(Control!$I$14*$H$2/100+Control!$J$14*$I$2/100)))*($Q11/100*(20/(18.5+$J11))*((7.63-0.11*$K11/100)/7.3)*(1-1.08*(0.95*$H11/100+0.5*I11/100))) -> 4.6 | S11: 54.8 | T11: 59 | U11: 84 | V11: 400 | W11: 58.44 | X11: =EXP(LN(Control!$L$14)-0.875*LN($AF$2)-0.77*LN(Population!$J$4/Population!$E$4)-0.352*LN($N$2)+0.875*LN(AF11)+0.77*LN(Population!J13/Population!E13)+0.352*LN(N11)) -> 163.2682577 | Y11: =MIN((1+(EXP(LN(Control!$N$14)-0.682*LN(IF(Population!$AI$5>0,Population!AI$5,0.00001))-0.483*LN(IF(AE$2>0,AE$2,0.0001))-0.593*LN($L$4)+0.682*LN(IF(Population!AI13>0,Population!AI13,0.0001))+0.483*LN(IF(AE10>0,AE10,0.001))+0.593*LN(L11))))*Y10,Population!AD13) -> 19545945.45 | Z11: =+Z10*(1-Control!$D$18)+X10*Population!J12 -> 7.376056295e+10 | AA11: =+MIN(Y11,Population!AD13)*EXP((0.14-G11*0.006)*G11) -> 37743531.92 | AB11: =EXP(LN(Control!$O$14*Population!$E$4/($Z$2^0.3*$AA$2^0.7))-0.623*LN(O$2)-1.187*LN(M$2)+0.219*LN(P$2)+0.623*LN(O11)+1.187*LN(M11)-0.219*LN(P11)) -> 96.93326774 | AC11: =+(1+MAX((AB11-AB10)/AB10,($AE$2-0.7*Initial_Emp_Growth_Rate-0.3*Control!$R$14)))*AC10 -> 96.93326774 | AD11: 3.553120176e+10 | AE11: 0.02973865282 | AF11: =+AD11/Population!E13 -> 636.3730463 | AG11: 0 | AH11: 0.0007689354641 | AI11: 0.02857734414 | AJ11: 0.03245347461 | AK11: 543052.2195 | AL11: =Population!J13-'Base Scenario'!Y11 -> 13278408.07 | AM11: =+Population!AD13-Y11 -> 13278408.07 | AN11: =+Population!AN13-AK11 -> 479829.5891 | AO11: =+Y11/Population!J13 -> 0.5954708427 | AP11: =inVar24*$AF$2*Population!AX13 -> 0 | AQ11: =+((W11+W11-Control!$W$10)/2-20)/(83.2-20) -> 0.6082278481 | AR11: 0.5398343692 | AS11: 0.2096054593 | AT11: 0.4098046305 | AV11: =VLOOKUP(AT11,HDI!A$2:B$170,2) -> Haiti | AW11: =VLOOKUP(AT11,HDI!A$2:C$170,3) -> 145
A12: 2020 | B12: =+B$2+(Control!C$6-Control!C$5)*($A12-$A$2)/($A$42-$A$2) -> 10.65394 | C12: =+C$2+(Control!D$6-Control!D$5)*($A12-$A$2)/($A$42-$A$2) -> 11.31316 | D12: 10.98355 | E12: =+E$2+(Control!E$6-Control!E$5)*($A12-$A$2)/($A$42-$A$2)+((R12-R$2)/R$2)*(-0.79)*E$2 -> 5.84 | F12: =+F$2+(Control!F$6-Control!F$5)*($A12-$A$2)/($A$42-$A$2) -> 7.21 | G12: 6.525 | H12: =+H$2+(Control!H$6-Control!H$5)*($A12-$A$2)/($A$42-$A$2) -> 39.4 | I12: =+I$2+(Control!I$6-Control!I$5)*($A12-$A$2)/($A$42-$A$2) -> 6.1 | J12: =+J$2+(Control!J$6-Control!J$5)*($A12-$A$2)/($A$42-$A$2) -> 10.3 | K12: =+K$2+(Control!K$6-Control!K$5)*($A12-$A$2)/($A$42-$A$2) -> 0.7 | L12: =+L$2+(Control!$N$6-inVar11)*Interpolate!E15 -> 4.88 | M12: =+M$2+(Control!$P$6-inVar13)*Interpolate!E15 -> 2.06857469 | N12: =+N$2+(Control!$O$6-inVar12)*Interpolate!E15 -> 3.91 | O12: =+O$2+(Control!$L$6-inVar9)*Interpolate!E15 -> 3.57 | P12: =+P$2+(Control!$M$6-inVar10)*Interpolate!E15 -> 45.49 | Q12: =+EXP(LN(Control!C$14)-(-0.332*LN(B$2))+(-0.332*LN(B12))) -> 58.3 | R12: =Control!D$14/($Q$2/100*(20/(18.5+$J$2))*((7.63-0.11*$K$2/100)/7.3)*(1-1.08*(Control!$I$14*$H$2/100+Control!$J$14*$I$2/100)))*($Q12/100*(20/(18.5+$J12))*((7.63-0.11*$K12/100)/7.3)*(1-1.08*(0.95*$H12/100+0.5*I12/100))) -> 4.6 | S12: 54.8 | T12: 59 | U12: 84 | V12: 400 | W12: 58.44 | X12: =EXP(LN(Control!$L$14)-0.875*LN($AF$2)-0.77*LN(Population!$J$4/Population!$E$4)-0.352*LN($N$2)+0.875*LN(AF12)+0.77*LN(Population!J14/Population!E14)+0.352*LN(N12)) -> 163.7845358 | Y12: =MIN((1+(EXP(LN(Control!$N$14)-0.682*LN(IF(Population!$AI$5>0,Population!AI$5,0.00001))-0.483*LN(IF(AE$2>0,AE$2,0.0001))-0.593*LN($L$4)+0.682*LN(IF(Population!AI14>0,Population!AI14,0.0001))+0.483*LN(IF(AE11>0,AE11,0.001))+0.593*LN(L12))))*Y11,Population!AD14) -> 20105870.39 | Z12: =+Z11*(1-Control!$D$18)+X11*Population!J13 -> 7.616931544e+10 | AA12: =+MIN(Y12,Population!AD14)*EXP((0.14-G12*0.006)*G12) -> 38824755.9 | AB12: =EXP(LN(Control!$O$14*Population!$E$4/($Z$2^0.3*$AA$2^0.7))-0.623*LN(O$2)-1.187*LN(M$2)+0.219*LN(P$2)+0.623*LN(O12)+1.187*LN(M12)-0.219*LN(P12)) -> 96.93326774 | AC12: =+(1+MAX((AB12-AB11)/AB11,($AE$2-0.7*Initial_Emp_Growth_Rate-0.3*Control!$R$14)))*AC11 -> 96.93326774 | AD12: 3.65917334e+10 | AE12: 0.02984789664 | AF12: =+AD12/Population!E14 -> 636.9276129 | AG12: 0 | AH12: 0.000871448946 | AI12: 0.02864660311 | AJ12: 0.03265637349 | AK12: 559924.9417 | AL12: =Population!J14-'Base Scenario'!Y12 -> 13774002.77 | AM12: =+Population!AD14-Y12 -> 13774002.77 | AN12: =+Population!AN14-AK12 -> 495594.7067 | AO12: =+Y12/Population!J14 -> 0.5934458578 | AP12: =inVar24*$AF$2*Population!AX14 -> 0 | AQ12: =+((W12+W12-Control!$W$10)/2-20)/(83.2-20) -> 0.6082278481 | AR12: 0.5398343692 | AS12: 0.2097395094 | AT12: 0.4098919733 | AV12: =VLOOKUP(AT12,HDI!A$2:B$170,2) -> Haiti | AW12: =VLOOKUP(AT12,HDI!A$2:C$170,3) -> 145
A13: 2021 | B13: =+B$2+(Control!C$6-Control!C$5)*($A13-$A$2)/($A$42-$A$2) -> 10.65394 | C13: =+C$2+(Control!D$6-Control!D$5)*($A13-$A$2)/($A$42-$A$2) -> 11.31316 | D13: 10.98355 | E13: =+E$2+(Control!E$6-Control!E$5)*($A13-$A$2)/($A$42-$A$2)+((R13-R$2)/R$2)*(-0.79)*E$2 -> 5.84 | F13: =+F$2+(Control!F$6-Control!F$5)*($A13-$A$2)/($A$42-$A$2) -> 7.21 | G13: 6.525 | H13: =+H$2+(Control!H$6-Control!H$5)*($A13-$A$2)/($A$42-$A$2) -> 39.4 | I13: =+I$2+(Control!I$6-Control!I$5)*($A13-$A$2)/($A$42-$A$2) -> 6.1 | J13: =+J$2+(Control!J$6-Control!J$5)*($A13-$A$2)/($A$42-$A$2) -> 10.3 | K13: =+K$2+(Control!K$6-Control!K$5)*($A13-$A$2)/($A$42-$A$2) -> 0.7 | L13: =+L$2+(Control!$N$6-inVar11)*Interpolate!E16 -> 4.88 | M13: =+M$2+(Control!$P$6-inVar13)*Interpolate!E16 -> 2.06857469 | N13: =+N$2+(Control!$O$6-inVar12)*Interpolate!E16 -> 3.91 | O13: =+O$2+(Control!$L$6-inVar9)*Interpolate!E16 -> 3.57 | P13: =+P$2+(Control!$M$6-inVar10)*Interpolate!E16 -> 45.49 | Q13: =+EXP(LN(Control!C$14)-(-0.332*LN(B$2))+(-0.332*LN(B13))) -> 58.3 | R13: =Control!D$14/($Q$2/100*(20/(18.5+$J$2))*((7.63-0.11*$K$2/100)/7.3)*(1-1.08*(Control!$I$14*$H$2/100+Control!$J$14*$I$2/100)))*($Q13/100*(20/(18.5+$J13))*((7.63-0.11*$K13/100)/7.3)*(1-1.08*(0.95*$H13/100+0.5*I13/100))) -> 4.6 | S13: 54.8 | T13: 59 | U13: 84 | V13: 400 | W13: 58.44 | X13: =EXP(LN(Control!$L$14)-0.875*LN($AF$2)-0.77*LN(Population!$J$4/Population!$E$4)-0.352*LN($N$2)+0.875*LN(AF13)+0.77*LN(Population!J15/Population!E15)+0.352*LN(N13)) -> 164.2871166 | Y13: =MIN((1+(EXP(LN(Control!$N$14)-0.682*LN(IF(Population!$AI$5>0,Population!AI$5,0.00001))-0.483*LN(IF(AE$2>0,AE$2,0.0001))-0.593*LN($L$4)+0.682*LN(IF(Population!AI15>0,Population!AI15,0.0001))+0.483*LN(IF(AE12>0,AE12,0.001))+0.593*LN(L13))))*Y12,Population!AD15) -> 20681418.42 | Z13: =+Z12*(1-Control!$D$18)+X12*Population!J14 -> 7.867154213e+10 | AA13: =+MIN(Y13,Population!AD15)*EXP((0.14-G13*0.006)*G13) -> 39936148.31 | AB13: =EXP(LN(Control!$O$14*Population!$E$4/($Z$2^0.3*$AA$2^0.7))-0.623*LN(O$2)-1.187*LN(M$2)+0.219*LN(P$2)+0.623*LN(O13)+1.187*LN(M13)-0.219*LN(P13)) -> 96.93326774 | AC13: =+(1+MAX((AB13-AB12)/AB12,($AE$2-0.7*Initial_Emp_Growth_Rate-0.3*Control!$R$14)))*AC12 -> 96.93326774 | AD13: 3.768551687e+10 | AE13: 0.02989154574 | AF13: =+AD13/Population!E15 -> 637.4931011 | AG13: 0 | AH13: 0.0008878373568 | AI13: 0.02862586991 | AJ13: 0.03285084904 | AK13: 575548.0303 | AL13: =Population!J15-'Base Scenario'!Y13 -> 14283937.88 | AM13: =+Population!AD15-Y13 -> 14283937.88 | AN13: =+Population!AN15-AK13 -> 509935.1025 | AO13: =+Y13/Population!J15 -> 0.5914831311 | AP13: =inVar24*$AF$2*Population!AX15 -> 0 | AQ13: =+((W13+W13-Control!$W$10)/2-20)/(83.2-20) -> 0.6082278481 | AR13: 0.5398343692 | AS13: 0.2098760793 | AT13: 0.4099809197 | AV13: =VLOOKUP(AT13,HDI!A$2:B$170,2) -> Haiti | AW13: =VLOOKUP(AT13,HDI!A$2:C$170,3) -> 145
A14: 2022 | B14: =+B$2+(Control!C$6-Control!C$5)*($A14-$A$2)/($A$42-$A$2) -> 10.65394 | C14: =+C$2+(Control!D$6-Control!D$5)*($A14-$A$2)/($A$42-$A$2) -> 11.31316 | D14: 10.98355 | E14: =+E$2+(Control!E$6-Control!E$5)*($A14-$A$2)/($A$42-$A$2)+((R14-R$2)/R$2)*(-0.79)*E$2 -> 5.84 | F14: =+F$2+(Control!F$6-Control!F$5)*($A14-$A$2)/($A$42-$A$2) -> 7.21 | G14: 6.525 | H14: =+H$2+(Control!H$6-Control!H$5)*($A14-$A$2)/($A$42-$A$2) -> 39.4 | I14: =+I$2+(Control!I$6-Control!I$5)*($A14-$A$2)/($A$42-$A$2) -> 6.1 | J14: =+J$2+(Control!J$6-Control!J$5)*($A14-$A$2)/($A$42-$A$2) -> 10.3 | K14: =+K$2+(Control!K$6-Control!K$5)*($A14-$A$2)/($A$42-$A$2) -> 0.7 | L14: =+L$2+(Control!$N$6-inVar11)*Interpolate!E17 -> 4.88 | M14: =+M$2+(Control!$P$6-inVar13)*Interpolate!E17 -> 2.06857469 | N14: =+N$2+(Control!$O$6-inVar12)*Interpolate!E17 -> 3.91 | O14: =+O$2+(Control!$L$6-inVar9)*Interpolate!E17 -> 3.57 | P14: =+P$2+(Control!$M$6-inVar10)*Interpolate!E17 -> 45.49 | Q14: =+EXP(LN(Control!C$14)-(-0.332*LN(B$2))+(-0.332*LN(B14))) -> 58.3 | R14: =Control!D$14/($Q$2/100*(20/(18.5+$J$2))*((7.63-0.11*$K$2/100)/7.3)*(1-1.08*(Control!$I$14*$H$2/100+Control!$J$14*$I$2/100)))*($Q14/100*(20/(18.5+$J14))*((7.63-0.11*$K14/100)/7.3)*(1-1.08*(0.95*$H14/100+0.5*I14/100))) -> 4.6 | S14: 54.8 | T14: 59 | U14: 84 | V14: 400 | W14: 58.44 | X14: =EXP(LN(Control!$L$14)-0.875*LN($AF$2)-0.77*LN(Population!$J$4/Population!$E$4)-0.352*LN($N$2)+0.875*LN(AF14)+0.77*LN(Population!J16/Population!E16)+0.352*LN(N14)) -> 164.7431126 | Y14: =MIN((1+(EXP(LN(Control!$N$14)-0.682*LN(IF(Population!$AI$5>0,Population!AI$5,0.00001))-0.483*LN(IF(AE$2>0,AE$2,0.0001))-0.593*LN($L$4)+0.682*LN(IF(Population!AI16>0,Population!AI16,0.0001))+0.483*LN(IF(AE13>0,AE13,0.001))+0.593*LN(L14))))*Y13,Population!AD16) -> 21270764.2 | Z14: =+Z13*(1-Control!$D$18)+X13*Population!J15 -> 8.126903801e+10 | AA14: =+MIN(Y14,Population!AD16)*EXP((0.14-G14*0.006)*G14) -> 41074184.39 | AB14: =EXP(LN(Control!$O$14*Population!$E$4/($Z$2^0.3*$AA$2^0.7))-0.623*LN(O$2)-1.187*LN(M$2)+0.219*LN(P$2)+0.623*LN(O14)+1.187*LN(M14)-0.219*LN(P14)) -> 96.93326774 | AC14: =+(1+MAX((AB14-AB13)/AB13,($AE$2-0.7*Initial_Emp_Growth_Rate-0.3*Control!$R$14)))*AC13 -> 96.93326774 | AD14: 3.881044775e+10 | AE14: 0.02985048303 | AF14: =+AD14/Population!E16 -> 638.0048539 | AG14: 0 | AH14: 0.0008027582981 | AI14: 0.02849639055 | AJ14: 0.03301696918 | AK14: 589345.7765 | AL14: =Population!J16-'Base Scenario'!Y14 -> 14806280.16 | AM14: =+Population!AD16-Y14 -> 14806280.16 | AN14: =+Population!AN16-AK14 -> 522342.2821 | AO14: =+Y14/Population!J16 -> 0.5895927612 | AP14: =inVar24*$AF$2*Population!AX16 -> 0 | AQ14: =+((W14+W14-Control!$W$10)/2-20)/(83.2-20) -> 0.6082278481 | AR14: 0.5398343692 | AS14: 0.2099995674 | AT14: 0.4100613128 | AV14: =VLOOKUP(AT14,HDI!A$2:B$170,2) -> Haiti | AW14: =VLOOKUP(AT14,HDI!A$2:C$170,3) -> 145
A15: 2023 | B15: =+B$2+(Control!C$6-Control!C$5)*($A15-$A$2)/($A$42-$A$2) -> 10.65394 | C15: =+C$2+(Control!D$6-Control!D$5)*($A15-$A$2)/($A$42-$A$2) -> 11.31316 | D15: 10.98355 | E15: =+E$2+(Control!E$6-Control!E$5)*($A15-$A$2)/($A$42-$A$2)+((R15-R$2)/R$2)*(-0.79)*E$2 -> 5.84 | F15: =+F$2+(Control!F$6-Control!F$5)*($A15-$A$2)/($A$42-$A$2) -> 7.21 | G15: 6.525 | H15: =+H$2+(Control!H$6-Control!H$5)*($A15-$A$2)/($A$42-$A$2) -> 39.4 | I15: =+I$2+(Control!I$6-Control!I$5)*($A15-$A$2)/($A$42-$A$2) -> 6.1 | J15: =+J$2+(Control!J$6-Control!J$5)*($A15-$A$2)/($A$42-$A$2) -> 10.3 | K15: =+K$2+(Control!K$6-Control!K$5)*($A15-$A$2)/($A$42-$A$2) -> 0.7 | L15: =+L$2+(Control!$N$6-inVar11)*Interpolate!E18 -> 4.88 | M15: =+M$2+(Control!$P$6-inVar13)*Interpolate!E18 -> 2.06857469 | N15: =+N$2+(Control!$O$6-inVar12)*Interpolate!E18 -> 3.91 | O15: =+O$2+(Control!$L$6-inVar9)*Interpolate!E18 -> 3.57 | P15: =+P$2+(Control!$M$6-inVar10)*Interpolate!E18 -> 45.49 | Q15: =+EXP(LN(Control!C$14)-(-0.332*LN(B$2))+(-0.332*LN(B15))) -> 58.3 | R15: =Control!D$14/($Q$2/100*(20/(18.5+$J$2))*((7.63-0.11*$K$2/100)/7.3)*(1-1.08*(Control!$I$14*$H$2/100+Control!$J$14*$I$2/100)))*($Q15/100*(20/(18.5+$J15))*((7.63-0.11*$K15/100)/7.3)*(1-1.08*(0.95*$H15/100+0.5*I15/100))) -> 4.6 | S15: 54.8 | T15: 59 | U15: 84 | V15: 400 | W15: 58.44 | X15: =EXP(LN(Control!$L$14)-0.875*LN($AF$2)-0.77*LN(Population!$J$4/Population!$E$4)-0.352*LN($N$2)+0.875*LN(AF15)+0.77*LN(Population!J17/Population!E17)+0.352*LN(N15)) -> 165.1118866 | Y15: =MIN((1+(EXP(LN(Control!$N$14)-0.682*LN(IF(Population!$AI$5>0,Population!AI$5,0.00001))-0.483*LN(IF(AE$2>0,AE$2,0.0001))-0.593*LN($L$4)+0.682*LN(IF(Population!AI17>0,Population!AI17,0.0001))+0.483*LN(IF(AE14>0,AE14,0.001))+0.593*LN(L15))))*Y14,Population!AD17) -> 21871151.56 | Z15: =+Z14*(1-Control!$D$18)+X14*Population!J16 -> 8.396172107e+10 | AA15: =+MIN(Y15,Population!AD17)*EXP((0.14-G15*0.006)*G15) -> 42233541.94 | AB15: =EXP(LN(Control!$O$14*Population!$E$4/($Z$2^0.3*$AA$2^0.7))-0.623*LN(O$2)-1.187*LN(M$2)+0.219*LN(P$2)+0.623*LN(O15)+1.187*LN(M15)-0.219*LN(P15)) -> 96.93326774 | AC15: =+(1+MAX((AB15-AB14)/AB14,($AE$2-0.7*Initial_Emp_Growth_Rate-0.3*Control!$R$14)))*AC14 -> 96.93326774 | AD15: 3.9962947e+10 | AE15: 0.02969559261 | AF15: =+AD15/Population!E17 -> 638.3831649 | AG15: 0 | AH15: 0.0005929593769 | AI15: 0.02822594218 | AJ15: 0.03313295108 | AK15: 600387.3604 | AL15: =Population!J17-'Base Scenario'!Y15 -> 15338101.01 | AM15: =+Population!AD17-Y15 -> 15338101.01 | AN15: =+Population!AN17-AK15 -> 531820.8466 | AO15: =+Y15/Population!J17 -> 0.5877879842 | AP15: =inVar24*$AF$2*Population!AX17 -> 0 | AQ15: =+((W15+W15-Control!$W$10)/2-20)/(83.2-20) -> 0.6082278481 | AR15: 0.5398343692 | AS15: 0.2100907917 | AT15: 0.4101206814 | AV15: =VLOOKUP(AT15,HDI!A$2:B$170,2) -> Haiti | AW15: =VLOOKUP(AT15,HDI!A$2:C$170,3) -> 145
A16: 2024 | B16: =+B$2+(Control!C$6-Control!C$5)*($A16-$A$2)/($A$42-$A$2) -> 10.65394 | C16: =+C$2+(Control!D$6-Control!D$5)*($A16-$A$2)/($A$42-$A$2) -> 11.31316 | D16: 10.98355 | E16: =+E$2+(Control!E$6-Control!E$5)*($A16-$A$2)/($A$42-$A$2)+((R16-R$2)/R$2)*(-0.79)*E$2 -> 5.84 | F16: =+F$2+(Control!F$6-Control!F$5)*($A16-$A$2)/($A$42-$A$2) -> 7.21 | G16: 6.525 | H16: =+H$2+(Control!H$6-Control!H$5)*($A16-$A$2)/($A$42-$A$2) -> 39.4 | I16: =+I$2+(Control!I$6-Control!I$5)*($A16-$A$2)/($A$42-$A$2) -> 6.1 | J16: =+J$2+(Control!J$6-Control!J$5)*($A16-$A$2)/($A$42-$A$2) -> 10.3 | K16: =+K$2+(Control!K$6-Control!K$5)*($A16-$A$2)/($A$42-$A$2) -> 0.7 | L16: =+L$2+(Control!$N$6-inVar11)*Interpolate!E19 -> 4.88 | M16: =+M$2+(Control!$P$6-inVar13)*Interpolate!E19 -> 2.06857469 | N16: =+N$2+(Control!$O$6-inVar12)*Interpolate!E19 -> 3.91 | O16: =+O$2+(Control!$L$6-inVar9)*Interpolate!E19 -> 3.57 | P16: =+P$2+(Control!$M$6-inVar10)*Interpolate!E19 -> 45.49 | Q16: =+EXP(LN(Control!C$14)-(-0.332*LN(B$2))+(-0.332*LN(B16))) -> 58.3 | R16: =Control!D$14/($Q$2/100*(20/(18.5+$J$2))*((7.63-0.11*$K$2/100)/7.3)*(1-1.08*(Control!$I$14*$H$2/100+Control!$J$14*$I$2/100)))*($Q16/100*(20/(18.5+$J16))*((7.63-0.11*$K16/100)/7.3)*(1-1.08*(0.95*$H16/100+0.5*I16/100))) -> 4.6 | S16: 54.8 | T16: 59 | U16: 84 | V16: 400 | W16: 58.44 | X16: =EXP(LN(Control!$L$14)-0.875*LN($AF$2)-0.77*LN(Population!$J$4/Population!$E$4)-0.352*LN($N$2)+0.875*LN(AF16)+0.77*LN(Population!J18/Population!E18)+0.352*LN(N16)) -> 165.3226925 | Y16: =MIN((1+(EXP(LN(Control!$N$14)-0.682*LN(IF(Population!$AI$5>0,Population!AI$5,0.00001))-0.483*LN(IF(AE$2>0,AE$2,0.0001))-0.593*LN($L$4)+0.682*LN(IF(Population!AI18>0,Population!AI18,0.0001))+0.483*LN(IF(AE15>0,AE15,0.001))+0.593*LN(L16))))*Y15,Population!AD18) -> 22476996.55 | Z16: =+Z15*(1-Control!$D$18)+X15*Population!J17 -> 8.674694211e+10 | AA16: =+MIN(Y16,Population!AD18)*EXP((0.14-G16*0.006)*G16) -> 43403438.27 | AB16: =EXP(LN(Control!$O$14*Population!$E$4/($Z$2^0.3*$AA$2^0.7))-0.623*LN(O$2)-1.187*LN(M$2)+0.219*LN(P$2)+0.623*LN(O16)+1.187*LN(M16)-0.219*LN(P16)) -> 96.93326774 | AC16: =+(1+MAX((AB16-AB15)/AB15,($AE$2-0.7*Initial_Emp_Growth_Rate-0.3*Control!$R$14)))*AC15 -> 96.93326774 | AD16: 4.113542606e+10 | AE16: 0.0293391543 | AF16: =+AD16/Population!E18 -> 638.5000352 | AG16: 0 | AH16: 0.000183072338 | AI16: 0.02770064451 | AJ16: 0.03317251017 | AK16: 605844.9943 | AL16: =Population!J18-'Base Scenario'!Y16 -> 15872462.96 | AM16: =+Population!AD18-Y16 -> 15872462.96 | AN16: =+Population!AN18-AK16 -> 534361.9588 | AO16: =+Y16/Population!J18 -> 0.5861098653 | AP16: =inVar24*$AF$2*Population!AX18 -> 0 | AQ16: =+((W16+W16-Control!$W$10)/2-20)/(83.2-20) -> 0.6082278481 | AR16: 0.5398343692 | AS16: 0.2101189624 | AT16: 0.4101390113 | AV16: =VLOOKUP(AT16,HDI!A$2:B$170,2) -> Haiti | AW16: =VLOOKUP(AT16,HDI!A$2:C$170,3) -> 145
A17: 2025 | B17: =+B$2+(Control!C$6-Control!C$5)*($A17-$A$2)/($A$42-$A$2) -> 10.65394 | C17: =+C$2+(Control!D$6-Control!D$5)*($A17-$A$2)/($A$42-$A$2) -> 11.31316 | D17: 10.98355 | E17: =+E$2+(Control!E$6-Control!E$5)*($A17-$A$2)/($A$42-$A$2)+((R17-R$2)/R$2)*(-0.79)*E$2 -> 5.84 | F17: =+F$2+(Control!F$6-Control!F$5)*($A17-$A$2)/($A$42-$A$2) -> 7.21 | G17: 6.525 | H17: =+H$2+(Control!H$6-Control!H$5)*($A17-$A$2)/($A$42-$A$2) -> 39.4 | I17: =+I$2+(Control!I$6-Control!I$5)*($A17-$A$2)/($A$42-$A$2) -> 6.1 | J17: =+J$2+(Control!J$6-Control!J$5)*($A17-$A$2)/($A$42-$A$2) -> 10.3 | K17: =+K$2+(Control!K$6-Control!K$5)*($A17-$A$2)/($A$42-$A$2) -> 0.7 | L17: =+L$2+(Control!$N$6-inVar11)*Interpolate!E20 -> 4.88 | M17: =+M$2+(Control!$P$6-inVar13)*Interpolate!E20 -> 2.06857469 | N17: =+N$2+(Control!$O$6-inVar12)*Interpolate!E20 -> 3.91 | O17: =+O$2+(Control!$L$6-inVar9)*Interpolate!E20 -> 3.57 | P17: =+P$2+(Control!$M$6-inVar10)*Interpolate!E20 -> 45.49 | Q17: =+EXP(LN(Control!C$14)-(-0.332*LN(B$2))+(-0.332*LN(B17))) -> 58.3 | R17: =Control!D$14/($Q$2/100*(20/(18.5+$J$2))*((7.63-0.11*$K$2/100)/7.3)*(1-1.08*(Control!$I$14*$H$2/100+Control!$J$14*$I$2/100)))*($Q17/100*(20/(18.5+$J17))*((7.63-0.11*$K17/100)/7.3)*(1-1.08*(0.95*$H17/100+0.5*I17/100))) -> 4.6 | S17: 54.8 | T17: 59 | U17: 84 | V17: 400 | W17: 58.44 | X17: =EXP(LN(Control!$L$14)-0.875*LN($AF$2)-0.77*LN(Population!$J$4/Population!$E$4)-0.352*LN($N$2)+0.875*LN(AF17)+0.77*LN(Population!J19/Population!E19)+0.352*LN(N17)) -> 165.294568 | Y17: =MIN((1+(EXP(LN(Control!$N$14)-0.682*LN(IF(Population!$AI$5>0,Population!AI$5,0.00001))-0.483*LN(IF(AE$2>0,AE$2,0.0001))-0.593*LN($L$4)+0.682*LN(IF(Population!AI19>0,Population!AI19,0.0001))+0.483*LN(IF(AE16>0,AE16,0.001))+0.593*LN(L17))))*Y16,Population!AD19) -> 23080637.27 | Z17: =+Z16*(1-Control!$D$18)+X16*Population!J18 -> 8.961710033e+10 | AA17: =+MIN(Y17,Population!AD19)*EXP((0.14-G17*0.006)*G17) -> 44569078.12 | AB17: =EXP(LN(Control!$O$14*Population!$E$4/($Z$2^0.3*$AA$2^0.7))-0.623*LN(O$2)-1.187*LN(M$2)+0.219*LN(P$2)+0.623*LN(O17)+1.187*LN(M17)-0.219*LN(P17)) -> 96.93326774 | AC17: =+(1+MAX((AB17-AB16)/AB16,($AE$2-0.7*Initial_Emp_Growth_Rate-0.3*Control!$R$14)))*AC16 -> 96.93326774 | AD17: 4.231688348e+10 | AE17: 0.02872116637 | AF17: =+AD17/Population!E19 -> 638.1979383 | AG17: 0 | AH17: -0.0004731352435 | AI17: 0.02685593324 | AJ17: 0.03308656361 | AK17: 603640.719 | AL17: =Population!J19-'Base Scenario'!Y17 -> 16401444.98 | AM17: =+Population!AD19-Y17 -> 16401444.98 | AN17: =+Population!AN19-AK17 -> 528982.0154 | AO17: =+Y17/Population!J19 -> 0.5845851069 | AP17: =inVar24*$AF$2*Population!AX19 -> 0 | AQ17: =+((W17+W17-Control!$W$10)/2-20)/(83.2-20) -> 0.6082278481 | AR17: 0.5398343692 | AS17: 0.2100461337 | AT17: 0.4100916202 | AV17: =VLOOKUP(AT17,HDI!A$2:B$170,2) -> Haiti | AW17: =VLOOKUP(AT17,HDI!A$2:C$170,3) -> 145
A18: 2026 | B18: =+B$2+(Control!C$6-Control!C$5)*($A18-$A$2)/($A$42-$A$2) -> 10.65394 | C18: =+C$2+(Control!D$6-Control!D$5)*($A18-$A$2)/($A$42-$A$2) -> 11.31316 | D18: 10.98355 | E18: =+E$2+(Control!E$6-Control!E$5)*($A18-$A$2)/($A$42-$A$2)+((R18-R$2)/R$2)*(-0.79)*E$2 -> 5.84 | F18: =+F$2+(Control!F$6-Control!F$5)*($A18-$A$2)/($A$42-$A$2) -> 7.21 | G18: 6.525 | H18: =+H$2+(Control!H$6-Control!H$5)*($A18-$A$2)/($A$42-$A$2) -> 39.4 | I18: =+I$2+(Control!I$6-Control!I$5)*($A18-$A$2)/($A$42-$A$2) -> 6.1 | J18: =+J$2+(Control!J$6-Control!J$5)*($A18-$A$2)/($A$42-$A$2) -> 10.3 | K18: =+K$2+(Control!K$6-Control!K$5)*($A18-$A$2)/($A$42-$A$2) -> 0.7 | L18: =+L$2+(Control!$N$6-inVar11)*Interpolate!E21 -> 4.88 | M18: =+M$2+(Control!$P$6-inVar13)*Interpolate!E21 -> 2.06857469 | N18: =+N$2+(Control!$O$6-inVar12)*Interpolate!E21 -> 3.91 | O18: =+O$2+(Control!$L$6-inVar9)*Interpolate!E21 -> 3.57 | P18: =+P$2+(Control!$M$6-inVar10)*Interpolate!E21 -> 45.49 | Q18: =+EXP(LN(Control!C$14)-(-0.332*LN(B$2))+(-0.332*LN(B18))) -> 58.3 | R18: =Control!D$14/($Q$2/100*(20/(18.5+$J$2))*((7.63-0.11*$K$2/100)/7.3)*(1-1.08*(Control!$I$14*$H$2/100+Control!$J$14*$I$2/100)))*($Q18/100*(20/(18.5+$J18))*((7.63-0.11*$K18/100)/7.3)*(1-1.08*(0.95*$H18/100+0.5*I18/100))) -> 4.6 | S18: 54.8 | T18: 59 | U18: 84 | V18: 400 | W18: 58.44 | X18: =EXP(LN(Control!$L$14)-0.875*LN($AF$2)-0.77*LN(Population!$J$4/Population!$E$4)-0.352*LN($N$2)+0.875*LN(AF18)+0.77*LN(Population!J20/Population!E20)+0.352*LN(N18)) -> 165.2271367 | Y18: =MIN((1+(EXP(LN(Control!$N$14)-0.682*LN(IF(Population!$AI$5>0,Population!AI$5,0.00001))-0.483*LN(IF(AE$2>0,AE$2,0.0001))-0.593*LN($L$4)+0.682*LN(IF(Population!AI20>0,Population!AI20,0.0001))+0.483*LN(IF(AE17>0,AE17,0.001))+0.593*LN(L18))))*Y17,Population!AD20) -> 23695218.47 | Z18: =+Z17*(1-Control!$D$18)+X17*Population!J19 -> 9.255859005e+10 | AA18: =+MIN(Y18,Population!AD20)*EXP((0.14-G18*0.006)*G18) -> 45755844.2 | AB18: =EXP(LN(Control!$O$14*Population!$E$4/($Z$2^0.3*$AA$2^0.7))-0.623*LN(O$2)-1.187*LN(M$2)+0.219*LN(P$2)+0.623*LN(O18)+1.187*LN(M18)-0.219*LN(P18)) -> 96.93326774 | AC18: =+(1+MAX((AB18-AB17)/AB17,($AE$2-0.7*Initial_Emp_Growth_Rate-0.3*Control!$R$14)))*AC17 -> 96.93326774 | AD18: 4.352216323e+10 | AE18: 0.0284822428 | AF18: =+AD18/Population!E20 -> 637.7124894 | AG18: 0 | AH18: -0.0007606557659 | AI18: 0.02662756627 | AJ18: 0.032822862 | AK18: 614581.1984 | AL18: =Population!J20-'Base Scenario'!Y18 -> 16955921 | AM18: =+Population!AD20-Y18 -> 16955921 | AN18: =+Population!AN20-AK18 -> 554476.0242 | AO18: =+Y18/Population!J20 -> 0.5828918642 | AP18: =inVar24*$AF$2*Population!AX20 -> 0 | AQ18: =+((W18+W18-Control!$W$10)/2-20)/(83.2-20) -> 0.6082278481 | AR18: 0.5398343692 | AS18: 0.2099290308 | AT18: 0.410015396 | AV18: =VLOOKUP(AT18,HDI!A$2:B$170,2) -> Haiti | AW18: =VLOOKUP(AT18,HDI!A$2:C$170,3) -> 145
A19: 2027 | B19: =+B$2+(Control!C$6-Control!C$5)*($A19-$A$2)/($A$42-$A$2) -> 10.65394 | C19: =+C$2+(Control!D$6-Control!D$5)*($A19-$A$2)/($A$42-$A$2) -> 11.31316 | D19: 10.98355 | E19: =+E$2+(Control!E$6-Control!E$5)*($A19-$A$2)/($A$42-$A$2)+((R19-R$2)/R$2)*(-0.79)*E$2 -> 5.84 | F19: =+F$2+(Control!F$6-Control!F$5)*($A19-$A$2)/($A$42-$A$2) -> 7.21 | G19: 6.525 | H19: =+H$2+(Control!H$6-Control!H$5)*($A19-$A$2)/($A$42-$A$2) -> 39.4 | I19: =+I$2+(Control!I$6-Control!I$5)*($A19-$A$2)/($A$42-$A$2) -> 6.1 | J19: =+J$2+(Control!J$6-Control!J$5)*($A19-$A$2)/($A$42-$A$2) -> 10.3 | K19: =+K$2+(Control!K$6-Control!K$5)*($A19-$A$2)/($A$42-$A$2) -> 0.7 | L19: =+L$2+(Control!$N$6-inVar11)*Interpolate!E22 -> 4.88 | M19: =+M$2+(Control!$P$6-inVar13)*Interpolate!E22 -> 2.06857469 | N19: =+N$2+(Control!$O$6-inVar12)*Interpolate!E22 -> 3.91 | O19: =+O$2+(Control!$L$6-inVar9)*Interpolate!E22 -> 3.57 | P19: =+P$2+(Control!$M$6-inVar10)*Interpolate!E22 -> 45.49 | Q19: =+EXP(LN(Control!C$14)-(-0.332*LN(B$2))+(-0.332*LN(B19))) -> 58.3 | R19: =Control!D$14/($Q$2/100*(20/(18.5+$J$2))*((7.63-0.11*$K$2/100)/7.3)*(1-1.08*(Control!$I$14*$H$2/100+Control!$J$14*$I$2/100)))*($Q19/100*(20/(18.5+$J19))*((7.63-0.11*$K19/100)/7.3)*(1-1.08*(0.95*$H19/100+0.5*I19/100))) -> 4.6 | S19: 54.8 | T19: 59 | U19: 84 | V19: 400 | W19: 58.44 | X19: =EXP(LN(Control!$L$14)-0.875*LN($AF$2)-0.77*LN(Population!$J$4/Population!$E$4)-0.352*LN($N$2)+0.875*LN(AF19)+0.77*LN(Population!J21/Population!E21)+0.352*LN(N19)) -> 165.1199566 | Y19: =MIN((1+(EXP(LN(Control!$N$14)-0.682*LN(IF(Population!$AI$5>0,Population!AI$5,0.00001))-0.483*LN(IF(AE$2>0,AE$2,0.0001))-0.593*LN($L$4)+0.682*LN(IF(Population!AI21>0,Population!AI21,0.0001))+0.483*LN(IF(AE18>0,AE18,0.001))+0.593*LN(L19))))*Y18,Population!AD21) -> 24323577.03 | Z19: =+Z18*(1-Control!$D$18)+X18*Population!J20 -> 9.557291783e+10 | AA19: =+MIN(Y19,Population!AD21)*EXP((0.14-G19*0.006)*G19) -> 46969214.59 | AB19: =EXP(LN(Control!$O$14*Population!$E$4/($Z$2^0.3*$AA$2^0.7))-0.623*LN(O$2)-1.187*LN(M$2)+0.219*LN(P$2)+0.623*LN(O19)+1.187*LN(M19)-0.219*LN(P19)) -> 96.93326774 | AC19: =+(1+MAX((AB19-AB18)/AB18,($AE$2-0.7*Initial_Emp_Growth_Rate-0.3*Control!$R$14)))*AC18 -> 96.93326774 | AD19: 4.475510865e+10 | AE19: 0.02832913909 | AF19: =+AD19/Population!E21 -> 637.0906522 | AG19: 0 | AH19: -0.0009751058471 | AI19: 0.02651836964 | AJ19: 0.03256669937 | AK19: 628358.5622 | AL19: =Population!J21-'Base Scenario'!Y19 -> 17531103.64 | AM19: =+Population!AD21-Y19 -> 17531103.64 | AN19: =+Population!AN21-AK19 -> 575182.6332 | AO19: =+Y19/Population!J21 -> 0.5811435339 | AP19: =inVar24*$AF$2*Population!AX21 -> 0 | AQ19: =+((W19+W19-Control!$W$10)/2-20)/(83.2-20) -> 0.6082278481 | AR19: 0.5398343692 | AS19: 0.2097788971 | AT19: 0.40991763 | AV19: =VLOOKUP(AT19,HDI!A$2:B$170,2) -> Haiti | AW19: =VLOOKUP(AT19,HDI!A$2:C$170,3) -> 145
A20: 2028 | B20: =+B$2+(Control!C$6-Control!C$5)*($A20-$A$2)/($A$42-$A$2) -> 10.65394 | C20: =+C$2+(Control!D$6-Control!D$5)*($A20-$A$2)/($A$42-$A$2) -> 11.31316 | D20: 10.98355 | E20: =+E$2+(Control!E$6-Control!E$5)*($A20-$A$2)/($A$42-$A$2)+((R20-R$2)/R$2)*(-0.79)*E$2 -> 5.84 | F20: =+F$2+(Control!F$6-Control!F$5)*($A20-$A$2)/($A$42-$A$2) -> 7.21 | G20: 6.525 | H20: =+H$2+(Control!H$6-Control!H$5)*($A20-$A$2)/($A$42-$A$2) -> 39.4 | I20: =+I$2+(Control!I$6-Control!I$5)*($A20-$A$2)/($A$42-$A$2) -> 6.1 | J20: =+J$2+(Control!J$6-Control!J$5)*($A20-$A$2)/($A$42-$A$2) -> 10.3 | K20: =+K$2+(Control!K$6-Control!K$5)*($A20-$A$2)/($A$42-$A$2) -> 0.7 | L20: =+L$2+(Control!$N$6-inVar11)*Interpolate!E23 -> 4.88 | M20: =+M$2+(Control!$P$6-inVar13)*Interpolate!E23 -> 2.06857469 | N20: =+N$2+(Control!$O$6-inVar12)*Interpolate!E23 -> 3.91 | O20: =+O$2+(Control!$L$6-inVar9)*Interpolate!E23 -> 3.57 | P20: =+P$2+(Control!$M$6-inVar10)*Interpolate!E23 -> 45.49 | Q20: =+EXP(LN(Control!C$14)-(-0.332*LN(B$2))+(-0.332*LN(B20))) -> 58.3 | R20: =Control!D$14/($Q$2/100*(20/(18.5+$J$2))*((7.63-0.11*$K$2/100)/7.3)*(1-1.08*(Control!$I$14*$H$2/100+Control!$J$14*$I$2/100)))*($Q20/100*(20/(18.5+$J20))*((7.63-0.11*$K20/100)/7.3)*(1-1.08*(0.95*$H20/100+0.5*I20/100))) -> 4.6 | S20: 54.8 | T20: 59 | U20: 84 | V20: 400 | W20: 58.44 | X20: =EXP(LN(Control!$L$14)-0.875*LN($AF$2)-0.77*LN(Population!$J$4/Population!$E$4)-0.352*LN($N$2)+0.875*LN(AF20)+0.77*LN(Population!J22/Population!E22)+0.352*LN(N20)) -> 164.9677732 | Y20: =MIN((1+(EXP(LN(Control!$N$14)-0.682*LN(IF(Population!$AI$5>0,Population!AI$5,0.00001))-0.483*LN(IF(AE$2>0,AE$2,0.0001))-0.593*LN($L$4)+0.682*LN(IF(Population!AI22>0,Population!AI22,0.0001))+0.483*LN(IF(AE19>0,AE19,0.001))+0.593*LN(L20))))*Y19,Population!AD22) -> 24966254.26 | Z20: =+Z19*(1-Control!$D$18)+X19*Population!J21 -> 9.866104417e+10 | AA20: =+MIN(Y20,Population!AD22)*EXP((0.14-G20*0.006)*G20) -> 48210234.55 | AB20: =EXP(LN(Control!$O$14*Population!$E$4/($Z$2^0.3*$AA$2^0.7))-0.623*LN(O$2)-1.187*LN(M$2)+0.219*LN(P$2)+0.623*LN(O20)+1.187*LN(M20)-0.219*LN(P20)) -> 96.93326774 | AC20: =+(1+MAX((AB20-AB19)/AB19,($AE$2-0.7*Initial_Emp_Growth_Rate-0.3*Control!$R$14)))*AC19 -> 96.93326774 | AD20: 4.601654806e+10 | AE20: 0.02818537269 | AF20: =+AD20/Population!E22 -> 636.3351105 | AG20: 0 | AH20: -0.001185924974 | AI20: 0.02642198672 | AJ20: 0.03231173027 | AK20: 642677.2294 | AL20: =Population!J22-'Base Scenario'!Y20 -> 18125716 | AM20: =+Population!AD22-Y20 -> 18125716 | AN20: =+Population!AN22-AK20 -> 594612.3644 | AO20: =+Y20/Population!J22 -> 0.5793713796 | AP20: =inVar24*$AF$2*Population!AX22 -> 0 | AQ20: =+((W20+W20-Control!$W$10)/2-20)/(83.2-20) -> 0.6082278481 | AR20: 0.5398343692 | AS20: 0.2095962852 | AT20: 0.4097986515 | AV20: =VLOOKUP(AT20,HDI!A$2:B$170,2) -> Haiti | AW20: =VLOOKUP(AT20,HDI!A$2:C$170,3) -> 145
A21: 2029 | B21: =+B$2+(Control!C$6-Control!C$5)*($A21-$A$2)/($A$42-$A$2) -> 10.65394 | C21: =+C$2+(Control!D$6-Control!D$5)*($A21-$A$2)/($A$42-$A$2) -> 11.31316 | D21: 10.98355 | E21: =+E$2+(Control!E$6-Control!E$5)*($A21-$A$2)/($A$42-$A$2)+((R21-R$2)/R$2)*(-0.79)*E$2 -> 5.84 | F21: =+F$2+(Control!F$6-Control!F$5)*($A21-$A$2)/($A$42-$A$2) -> 7.21 | G21: 6.525 | H21: =+H$2+(Control!H$6-Control!H$5)*($A21-$A$2)/($A$42-$A$2) -> 39.4 | I21: =+I$2+(Control!I$6-Control!I$5)*($A21-$A$2)/($A$42-$A$2) -> 6.1 | J21: =+J$2+(Control!J$6-Control!J$5)*($A21-$A$2)/($A$42-$A$2) -> 10.3 | K21: =+K$2+(Control!K$6-Control!K$5)*($A21-$A$2)/($A$42-$A$2) -> 0.7 | L21: =+L$2+(Control!$N$6-inVar11)*Interpolate!E24 -> 4.88 | M21: =+M$2+(Control!$P$6-inVar13)*Interpolate!E24 -> 2.06857469 | N21: =+N$2+(Control!$O$6-inVar12)*Interpolate!E24 -> 3.91 | O21: =+O$2+(Control!$L$6-inVar9)*Interpolate!E24 -> 3.57 | P21: =+P$2+(Control!$M$6-inVar10)*Interpolate!E24 -> 45.49 | Q21: =+EXP(LN(Control!C$14)-(-0.332*LN(B$2))+(-0.332*LN(B21))) -> 58.3 | R21: =Control!D$14/($Q$2/100*(20/(18.5+$J$2))*((7.63-0.11*$K$2/100)/7.3)*(1-1.08*(Control!$I$14*$H$2/100+Control!$J$14*$I$2/100)))*($Q21/100*(20/(18.5+$J21))*((7.63-0.11*$K21/100)/7.3)*(1-1.08*(0.95*$H21/100+0.5*I21/100))) -> 4.6 | S21: 54.8 | T21: =T$2-(S$2-S21)*1.49*100 -> 59 | U21: 84 | V21: 400 | W21: 58.44 | X21: =EXP(LN(Control!$L$14)-0.875*LN($AF$2)-0.77*LN(Population!$J$4/Population!$E$4)-0.352*LN($N$2)+0.875*LN(AF21)+0.77*LN(Population!J23/Population!E23)+0.352*LN(N21)) -> 164.7698473 | Y21: =MIN((1+(EXP(LN(Control!$N$14)-0.682*LN(IF(Population!$AI$5>0,Population!AI$5,0.00001))-0.483*LN(IF(AE$2>0,AE$2,0.0001))-0.593*LN($L$4)+0.682*LN(IF(Population!AI23>0,Population!AI23,0.0001))+0.483*LN(IF(AE20>0,AE20,0.001))+0.593*LN(L21))))*Y20,Population!AD23) -> 25623363.86 | Z21: =+Z20*(1-Control!$D$18)+X20*Population!J22 -> 1.018233888e+11 | AA21: =+MIN(Y21,Population!AD23)*EXP((0.14-G21*0.006)*G21) -> 49479123.64 | AB21: =EXP(LN(Control!$O$14*Population!$E$4/($Z$2^0.3*$AA$2^0.7))-0.623*LN(O$2)-1.187*LN(M$2)+0.219*LN(P$2)+0.623*LN(O21)+1.187*LN(M21)-0.219*LN(P21)) -> 96.93326774 | AC21: =+(1+MAX((AB21-AB20)/AB20,($AE$2-0.7*Initial_Emp_Growth_Rate-0.3*Control!$R$14)))*AC20 -> 96.93326774 | AD21: 4.730668508e+10 | AE21: 0.02803637109 | AF21: =+AD21/Population!E23 -> 635.4474707 | AG21: 0 | AH21: -0.001394925034 | AI21: 0.02631991109 | AJ21: 0.03205261648 | AK21: 657109.5923 | AL21: =Population!J23-'Base Scenario'!Y21 -> 18739835 | AM21: =+Population!AD23-Y21 -> 18739835 | AN21: =+Population!AN23-AK21 -> 614119.0014 | AO21: =+Y21/Population!J23 -> 0.5775815206 | AP21: =inVar24*$AF$2*Population!AX23 -> 0 | AQ21: =+((W21+W21-Control!$W$10)/2-20)/(83.2-20) -> 0.6082278481 | AR21: 0.5398343692 | AS21: 0.2093814683 | AT21: 0.4096586019 | AV21: =VLOOKUP(AT21,HDI!A$2:B$170,2) -> Haiti | AW21: =VLOOKUP(AT21,HDI!A$2:C$170,3) -> 145
A22: 2030 | B22: =+B$2+(Control!C$6-Control!C$5)*($A22-$A$2)/($A$42-$A$2) -> 10.65394 | C22: =+C$2+(Control!D$6-Control!D$5)*($A22-$A$2)/($A$42-$A$2) -> 11.31316 | D22: 10.98355 | E22: =+E$2+(Control!E$6-Control!E$5)*($A22-$A$2)/($A$42-$A$2)+((R22-R$2)/R$2)*(-0.79)*E$2 -> 5.84 | F22: =+F$2+(Control!F$6-Control!F$5)*($A22-$A$2)/($A$42-$A$2) -> 7.21 | G22: 6.525 | H22: =+H$2+(Control!H$6-Control!H$5)*($A22-$A$2)/($A$42-$A$2) -> 39.4 | I22: =+I$2+(Control!I$6-Control!I$5)*($A22-$A$2)/($A$42-$A$2) -> 6.1 | J22: =+J$2+(Control!J$6-Control!J$5)*($A22-$A$2)/($A$42-$A$2) -> 10.3 | K22: =+K$2+(Control!K$6-Control!K$5)*($A22-$A$2)/($A$42-$A$2) -> 0.7 | L22: =+L$2+(Control!$N$6-inVar11)*Interpolate!E25 -> 4.88 | M22: =+M$2+(Control!$P$6-inVar13)*Interpolate!E25 -> 2.06857469 | N22: =+N$2+(Control!$O$6-inVar12)*Interpolate!E25 -> 3.91 | O22: =+O$2+(Control!$L$6-inVar9)*Interpolate!E25 -> 3.57 | P22: =+P$2+(Control!$M$6-inVar10)*Interpolate!E25 -> 45.49 | Q22: =+EXP(LN(Control!C$14)-(-0.332*LN(B$2))+(-0.332*LN(B22))) -> 58.3 | R22: =Control!D$14/($Q$2/100*(20/(18.5+$J$2))*((7.63-0.11*$K$2/100)/7.3)*(1-1.08*(Control!$I$14*$H$2/100+Control!$J$14*$I$2/100)))*($Q22/100*(20/(18.5+$J22))*((7.63-0.11*$K22/100)/7.3)*(1-1.08*(0.95*$H22/100+0.5*I22/100))) -> 4.6 | S22: 54.8 | T22: 59 | U22: 84 | V22: 400 | W22: 58.44 | X22: =EXP(LN(Control!$L$14)-0.875*LN($AF$2)-0.77*LN(Population!$J$4/Population!$E$4)-0.352*LN($N$2)+0.875*LN(AF22)+0.77*LN(Population!J24/Population!E24)+0.352*LN(N22)) -> 164.5322455 | Y22: =MIN((1+(EXP(LN(Control!$N$14)-0.682*LN(IF(Population!$AI$5>0,Population!AI$5,0.00001))-0.483*LN(IF(AE$2>0,AE$2,0.0001))-0.593*LN($L$4)+0.682*LN(IF(Population!AI24>0,Population!AI24,0.0001))+0.483*LN(IF(AE21>0,AE21,0.001))+0.593*LN(L22))))*Y21,Population!AD24) -> 26295089.57 | Z22: =+Z21*(1-Control!$D$18)+X21*Population!J23 -> 1.050601707e+11 | AA22: =+MIN(Y22,Population!AD24)*EXP((0.14-G22*0.006)*G22) -> 50776236.69 | AB22: =EXP(LN(Control!$O$14*Population!$E$4/($Z$2^0.3*$AA$2^0.7))-0.623*LN(O$2)-1.187*LN(M$2)+0.219*LN(P$2)+0.623*LN(O22)+1.187*LN(M22)-0.219*LN(P22)) -> 96.93326774 | AC22: =+(1+MAX((AB22-AB21)/AB21,($AE$2-0.7*Initial_Emp_Growth_Rate-0.3*Control!$R$14)))*AC21 -> 96.93326774 | AD22: 4.862578674e+10 | AE22: 0.02788404347 | AF22: =+AD22/Population!E24 -> 634.4412032 | AG22: 0 | AH22: -0.001583557389 | AI22: 0.02621536033 | AJ22: 0.03178819708 | AK22: 671725.7164 | AL22: =Population!J24-'Base Scenario'!Y22 -> 19374117.36 | AM22: =+Population!AD24-Y22 -> 19374117.36 | AN22: =+Population!AN24-AK22 -> 634282.354 | AO22: =+Y22/Population!J24 -> 0.5757728531 | AP22: =inVar24*$AF$2*Population!AX24 -> 0 | AQ22: =+((W22+W22-Control!$W$10)/2-20)/(83.2-20) -> 0.6082278481 | AR22: 0.5398343692 | AS22: 0.2091375793 | AT22: 0.4094994825 | AV22: =VLOOKUP(AT22,HDI!A$2:B$170,2) -> Haiti | AW22: =VLOOKUP(AT22,HDI!A$2:C$170,3) -> 145
A23: 2031 | B23: =+B$2+(Control!C$6-Control!C$5)*($A23-$A$2)/($A$42-$A$2) -> 10.65394 | C23: =+C$2+(Control!D$6-Control!D$5)*($A23-$A$2)/($A$42-$A$2) -> 11.31316 | D23: 10.98355 | E23: =+E$2+(Control!E$6-Control!E$5)*($A23-$A$2)/($A$42-$A$2)+((R23-R$2)/R$2)*(-0.79)*E$2 -> 5.84 | F23: =+F$2+(Control!F$6-Control!F$5)*($A23-$A$2)/($A$42-$A$2) -> 7.21 | G23: 6.525 | H23: =+H$2+(Control!H$6-Control!H$5)*($A23-$A$2)/($A$42-$A$2) -> 39.4 | I23: =+I$2+(Control!I$6-Control!I$5)*($A23-$A$2)/($A$42-$A$2) -> 6.1 | J23: =+J$2+(Control!J$6-Control!J$5)*($A23-$A$2)/($A$42-$A$2) -> 10.3 | K23: =+K$2+(Control!K$6-Control!K$5)*($A23-$A$2)/($A$42-$A$2) -> 0.7 | L23: =+L$2+(Control!$N$6-inVar11)*Interpolate!E26 -> 4.88 | M23: =+M$2+(Control!$P$6-inVar13)*Interpolate!E26 -> 2.06857469 | N23: =+N$2+(Control!$O$6-inVar12)*Interpolate!E26 -> 3.91 | O23: =+O$2+(Control!$L$6-inVar9)*Interpolate!E26 -> 3.57 | P23: =+P$2+(Control!$M$6-inVar10)*Interpolate!E26 -> 45.49 | Q23: =+EXP(LN(Control!C$14)-(-0.332*LN(B$2))+(-0.332*LN(B23))) -> 58.3 | R23: =Control!D$14/($Q$2/100*(20/(18.5+$J$2))*((7.63-0.11*$K$2/100)/7.3)*(1-1.08*(Control!$I$14*$H$2/100+Control!$J$14*$I$2/100)))*($Q23/100*(20/(18.5+$J23))*((7.63-0.11*$K23/100)/7.3)*(1-1.08*(0.95*$H23/100+0.5*I23/100))) -> 4.6 | S23: 54.8 | T23: 59 | U23: 84 | V23: 400 | W23: 58.44 | X23: =EXP(LN(Control!$L$14)-0.875*LN($AF$2)-0.77*LN(Population!$J$4/Population!$E$4)-0.352*LN($N$2)+0.875*LN(AF23)+0.77*LN(Population!J25/Population!E25)+0.352*LN(N23)) -> 164.2596182 | Y23: =MIN((1+(EXP(LN(Control!$N$14)-0.682*LN(IF(Population!$AI$5>0,Population!AI$5,0.00001))-0.483*LN(IF(AE$2>0,AE$2,0.0001))-0.593*LN($L$4)+0.682*LN(IF(Population!AI25>0,Population!AI25,0.0001))+0.483*LN(IF(AE22>0,AE22,0.001))+0.593*LN(L23))))*Y22,Population!AD25) -> 26981709.01 | Z23: =+Z22*(1-Control!$D$18)+X22*Population!J24 -> 1.083718211e+11 | AA23: =+MIN(Y23,Population!AD25)*EXP((0.14-G23*0.006)*G23) -> 52102109.75 | AB23: =EXP(LN(Control!$O$14*Population!$E$4/($Z$2^0.3*$AA$2^0.7))-0.623*LN(O$2)-1.187*LN(M$2)+0.219*LN(P$2)+0.623*LN(O23)+1.187*LN(M23)-0.219*LN(P23)) -> 96.93326774 | AC23: =+(1+MAX((AB23-AB22)/AB22,($AE$2-0.7*Initial_Emp_Growth_Rate-0.3*Control!$R$14)))*AC22 -> 96.93326774 | AD23: 4.997427261e+10 | AE23: 0.02773190837 | AF23: =+AD23/Population!E25 -> 633.3260954 | AG23: 0 | AH23: -0.001757621939 | AI23: 0.02611207811 | AJ23: 0.0315214635 | AK23: 686619.4329 | AL23: =Population!J25-'Base Scenario'!Y23 -> 20029361.49 | AM23: =+Population!AD25-Y23 -> 20029361.49 | AN23: =+Population!AN25-AK23 -> 655244.1375 | AO23: =+Y23/Population!J25 -> 0.5739437268 | AP23: =inVar24*$AF$2*Population!AX25 -> 0 | AQ23: =+((W23+W23-Control!$W$10)/2-20)/(83.2-20) -> 0.6082278481 | AR23: 0.5398343692 | AS23: 0.2088668583 | AT23: 0.4093227124 | AV23: =VLOOKUP(AT23,HDI!A$2:B$170,2) -> Haiti | AW23: =VLOOKUP(AT23,HDI!A$2:C$170,3) -> 145
A24: 2032 | B24: =+B$2+(Control!C$6-Control!C$5)*($A24-$A$2)/($A$42-$A$2) -> 10.65394 | C24: =+C$2+(Control!D$6-Control!D$5)*($A24-$A$2)/($A$42-$A$2) -> 11.31316 | D24: 10.98355 | E24: =+E$2+(Control!E$6-Control!E$5)*($A24-$A$2)/($A$42-$A$2)+((R24-R$2)/R$2)*(-0.79)*E$2 -> 5.84 | F24: =+F$2+(Control!F$6-Control!F$5)*($A24-$A$2)/($A$42-$A$2) -> 7.21 | G24: 6.525 | H24: =+H$2+(Control!H$6-Control!H$5)*($A24-$A$2)/($A$42-$A$2) -> 39.4 | I24: =+I$2+(Control!I$6-Control!I$5)*($A24-$A$2)/($A$42-$A$2) -> 6.1 | J24: =+J$2+(Control!J$6-Control!J$5)*($A24-$A$2)/($A$42-$A$2) -> 10.3 | K24: =+K$2+(Control!K$6-Control!K$5)*($A24-$A$2)/($A$42-$A$2) -> 0.7 | L24: =+L$2+(Control!$N$6-inVar11)*Interpolate!E27 -> 4.88 | M24: =+M$2+(Control!$P$6-inVar13)*Interpolate!E27 -> 2.06857469 | N24: =+N$2+(Control!$O$6-inVar12)*Interpolate!E27 -> 3.91 | O24: =+O$2+(Control!$L$6-inVar9)*Interpolate!E27 -> 3.57 | P24: =+P$2+(Control!$M$6-inVar10)*Interpolate!E27 -> 45.49 | Q24: =+EXP(LN(Control!C$14)-(-0.332*LN(B$2))+(-0.332*LN(B24))) -> 58.3 | R24: =Control!D$14/($Q$2/100*(20/(18.5+$J$2))*((7.63-0.11*$K$2/100)/7.3)*(1-1.08*(Control!$I$14*$H$2/100+Control!$J$14*$I$2/100)))*($Q24/100*(20/(18.5+$J24))*((7.63-0.11*$K24/100)/7.3)*(1-1.08*(0.95*$H24/100+0.5*I24/100))) -> 4.6 | S24: 54.8 | T24: 59 | U24: 84 | V24: 400 | W24: 58.44 | X24: =EXP(LN(Control!$L$14)-0.875*LN($AF$2)-0.77*LN(Population!$J$4/Population!$E$4)-0.352*LN($N$2)+0.875*LN(AF24)+0.77*LN(Population!J26/Population!E26)+0.352*LN(N24)) -> 163.9525179 | Y24: =MIN((1+(EXP(LN(Control!$N$14)-0.682*LN(IF(Population!$AI$5>0,Population!AI$5,0.00001))-0.483*LN(IF(AE$2>0,AE$2,0.0001))-0.593*LN($L$4)+0.682*LN(IF(Population!AI26>0,Population!AI26,0.0001))+0.483*LN(IF(AE23>0,AE23,0.001))+0.593*LN(L24))))*Y23,Population!AD26) -> 27683511.93 | Z24: =+Z23*(1-Control!$D$18)+X23*Population!J25 -> 1.117589687e+11 | AA24: =+MIN(Y24,Population!AD26)*EXP((0.14-G24*0.006)*G24) -> 53457302.37 | AB24: =EXP(LN(Control!$O$14*Population!$E$4/($Z$2^0.3*$AA$2^0.7))-0.623*LN(O$2)-1.187*LN(M$2)+0.219*LN(P$2)+0.623*LN(O24)+1.187*LN(M24)-0.219*LN(P24)) -> 96.93326774 | AC24: =+(1+MAX((AB24-AB23)/AB23,($AE$2-0.7*Initial_Emp_Growth_Rate-0.3*Control!$R$14)))*AC23 -> 96.93326774 | AD24: 5.135260705e+10 | AE24: 0.02758088062 | AF24: =+AD24/Population!E26 -> 632.1032247 | AG24: 0 | AH24: -0.001930870603 | AI24: 0.02601032148 | AJ24: 0.03125487433 | AK24: 701802.9254 | AL24: =Population!J26-'Base Scenario'!Y24 -> 20706295.32 | AM24: =+Population!AD26-Y24 -> 20706295.32 | AN24: =+Population!AN26-AK24 -> 676933.8246 | AO24: =+Y24/Population!J26 -> 0.5720938665 | AP24: =inVar24*$AF$2*Population!AX26 -> 0 | AQ24: =+((W24+W24-Control!$W$10)/2-20)/(83.2-20) -> 0.6082278481 | AR24: 0.5398343692 | AS24: 0.2085694267 | AT24: 0.409128325 | AV24: =VLOOKUP(AT24,HDI!A$2:B$170,2) -> Haiti | AW24: =VLOOKUP(AT24,HDI!A$2:C$170,3) -> 145
A25: 2033 | B25: =+B$2+(Control!C$6-Control!C$5)*($A25-$A$2)/($A$42-$A$2) -> 10.65394 | C25: =+C$2+(Control!D$6-Control!D$5)*($A25-$A$2)/($A$42-$A$2) -> 11.31316 | D25: 10.98355 | E25: =+E$2+(Control!E$6-Control!E$5)*($A25-$A$2)/($A$42-$A$2)+((R25-R$2)/R$2)*(-0.79)*E$2 -> 5.84 | F25: =+F$2+(Control!F$6-Control!F$5)*($A25-$A$2)/($A$42-$A$2) -> 7.21 | G25: 6.525 | H25: =+H$2+(Control!H$6-Control!H$5)*($A25-$A$2)/($A$42-$A$2) -> 39.4 | I25: =+I$2+(Control!I$6-Control!I$5)*($A25-$A$2)/($A$42-$A$2) -> 6.1 | J25: =+J$2+(Control!J$6-Control!J$5)*($A25-$A$2)/($A$42-$A$2) -> 10.3 | K25: =+K$2+(Control!K$6-Control!K$5)*($A25-$A$2)/($A$42-$A$2) -> 0.7 | L25: =+L$2+(Control!$N$6-inVar11)*Interpolate!E28 -> 4.88 | M25: =+M$2+(Control!$P$6-inVar13)*Interpolate!E28 -> 2.06857469 | N25: =+N$2+(Control!$O$6-inVar12)*Interpolate!E28 -> 3.91 | O25: =+O$2+(Control!$L$6-inVar9)*Interpolate!E28 -> 3.57 | P25: =+P$2+(Control!$M$6-inVar10)*Interpolate!E28 -> 45.49 | Q25: =+EXP(LN(Control!C$14)-(-0.332*LN(B$2))+(-0.332*LN(B25))) -> 58.3 | R25: =Control!D$14/($Q$2/100*(20/(18.5+$J$2))*((7.63-0.11*$K$2/100)/7.3)*(1-1.08*(Control!$I$14*$H$2/100+Control!$J$14*$I$2/100)))*($Q25/100*(20/(18.5+$J25))*((7.63-0.11*$K25/100)/7.3)*(1-1.08*(0.95*$H25/100+0.5*I25/100))) -> 4.6 | S25: 54.8 | T25: 59 | U25: 84 | V25: 400 | W25: 58.44 | X25: =EXP(LN(Control!$L$14)-0.875*LN($AF$2)-0.77*LN(Population!$J$4/Population!$E$4)-0.352*LN($N$2)+0.875*LN(AF25)+0.77*LN(Population!J27/Population!E27)+0.352*LN(N25)) -> 163.6129135 | Y25: =MIN((1+(EXP(LN(Control!$N$14)-0.682*LN(IF(Population!$AI$5>0,Population!AI$5,0.00001))-0.483*LN(IF(AE$2>0,AE$2,0.0001))-0.593*LN($L$4)+0.682*LN(IF(Population!AI27>0,Population!AI27,0.0001))+0.483*LN(IF(AE24>0,AE24,0.001))+0.593*LN(L25))))*Y24,Population!AD27) -> 28400858.67 | Z25: =+Z24*(1-Control!$D$18)+X24*Population!J26 -> 1.152222407e+11 | AA25: =+MIN(Y25,Population!AD27)*EXP((0.14-G25*0.006)*G25) -> 54842510.36 | AB25: =EXP(LN(Control!$O$14*Population!$E$4/($Z$2^0.3*$AA$2^0.7))-0.623*LN(O$2)-1.187*LN(M$2)+0.219*LN(P$2)+0.623*LN(O25)+1.187*LN(M25)-0.219*LN(P25)) -> 96.93326774 | AC25: =+(1+MAX((AB25-AB24)/AB24,($AE$2-0.7*Initial_Emp_Growth_Rate-0.3*Control!$R$14)))*AC24 -> 96.93326774 | AD25: 5.276134726e+10 | AE25: 0.02743269115 | AF25: =+AD25/Population!E27 -> 630.7765783 | AG25: 0 | AH25: -0.00209878121 | AI25: 0.02591241837 | AJ25: 0.03098876118 | AK25: 717346.743 | AL25: =Population!J27-'Base Scenario'!Y25 -> 21405764.05 | AM25: =+Population!AD27-Y25 -> 21405764.05 | AN25: =+Population!AN27-AK25 -> 699468.7258 | AO25: =+Y25/Population!J27 -> 0.5702225351 | AP25: =inVar24*$AF$2*Population!AX27 -> 0 | AQ25: =+((W25+W25-Control!$W$10)/2-20)/(83.2-20) -> 0.6082278481 | AR25: 0.5398343692 | AS25: 0.2082461029 | AT25: 0.4089168059 | AV25: =VLOOKUP(AT25,HDI!A$2:B$170,2) -> Haiti | AW25: =VLOOKUP(AT25,HDI!A$2:C$170,3) -> 145
A26: 2034 | B26: =+B$2+(Control!C$6-Control!C$5)*($A26-$A$2)/($A$42-$A$2) -> 10.65394 | C26: =+C$2+(Control!D$6-Control!D$5)*($A26-$A$2)/($A$42-$A$2) -> 11.31316 | D26: 10.98355 | E26: =+E$2+(Control!E$6-Control!E$5)*($A26-$A$2)/($A$42-$A$2)+((R26-R$2)/R$2)*(-0.79)*E$2 -> 5.84 | F26: =+F$2+(Control!F$6-Control!F$5)*($A26-$A$2)/($A$42-$A$2) -> 7.21 | G26: 6.525 | H26: =+H$2+(Control!H$6-Control!H$5)*($A26-$A$2)/($A$42-$A$2) -> 39.4 | I26: =+I$2+(Control!I$6-Control!I$5)*($A26-$A$2)/($A$42-$A$2) -> 6.1 | J26: =+J$2+(Control!J$6-Control!J$5)*($A26-$A$2)/($A$42-$A$2) -> 10.3 | K26: =+K$2+(Control!K$6-Control!K$5)*($A26-$A$2)/($A$42-$A$2) -> 0.7 | L26: =+L$2+(Control!$N$6-inVar11)*Interpolate!E29 -> 4.88 | M26: =+M$2+(Control!$P$6-inVar13)*Interpolate!E29 -> 2.06857469 | N26: =+N$2+(Control!$O$6-inVar12)*Interpolate!E29 -> 3.91 | O26: =+O$2+(Control!$L$6-inVar9)*Interpolate!E29 -> 3.57 | P26: =+P$2+(Control!$M$6-inVar10)*Interpolate!E29 -> 45.49 | Q26: =+EXP(LN(Control!C$14)-(-0.332*LN(B$2))+(-0.332*LN(B26))) -> 58.3 | R26: =Control!D$14/($Q$2/100*(20/(18.5+$J$2))*((7.63-0.11*$K$2/100)/7.3)*(1-1.08*(Control!$I$14*$H$2/100+Control!$J$14*$I$2/100)))*($Q26/100*(20/(18.5+$J26))*((7.63-0.11*$K26/100)/7.3)*(1-1.08*(0.95*$H26/100+0.5*I26/100))) -> 4.6 | S26: 54.8 | T26: 59 | U26: 84 | V26: 400 | W26: 58.44 | X26: =EXP(LN(Control!$L$14)-0.875*LN($AF$2)-0.77*LN(Population!$J$4/Population!$E$4)-0.352*LN($N$2)+0.875*LN(AF26)+0.77*LN(Population!J28/Population!E28)+0.352*LN(N26)) -> 163.2459756 | Y26: =MIN((1+(EXP(LN(Control!$N$14)-0.682*LN(IF(Population!$AI$5>0,Population!AI$5,0.00001))-0.483*LN(IF(AE$2>0,AE$2,0.0001))-0.593*LN($L$4)+0.682*LN(IF(Population!AI28>0,Population!AI28,0.0001))+0.483*LN(IF(AE25>0,AE25,0.001))+0.593*LN(L26))))*Y25,Population!AD28) -> 29134353.62 | Z26: =+Z25*(1-Control!$D$18)+X25*Population!J27 -> 1.187623577e+11 | AA26: =+MIN(Y26,Population!AD28)*EXP((0.14-G26*0.006)*G26) -> 56258900.78 | AB26: =EXP(LN(Control!$O$14*Population!$E$4/($Z$2^0.3*$AA$2^0.7))-0.623*LN(O$2)-1.187*LN(M$2)+0.219*LN(P$2)+0.623*LN(O26)+1.187*LN(M26)-0.219*LN(P26)) -> 96.93326774 | AC26: =+(1+MAX((AB26-AB25)/AB25,($AE$2-0.7*Initial_Emp_Growth_Rate-0.3*Control!$R$14)))*AC25 -> 96.93326774 | AD26: 5.42013828e+10 | AE26: 0.02729338075 | AF26: =+AD26/Population!E28 -> 629.3558886 | AG26: 0 | AH26: -0.002252286737 | AI26: 0.02582650599 | AJ26: 0.03072425085 | AK26: 733494.9466 | AL26: =Population!J28-'Base Scenario'!Y26 -> 22129031.44 | AM26: =+Population!AD28-Y26 -> 22129031.44 | AN26: =+Population!AN28-AK26 -> 723267.3971 | AO26: =+Y26/Population!J28 -> 0.5683267616 | AP26: =inVar24*$AF$2*Population!AX28 -> 0 | AQ26: =+((W26+W26-Control!$W$10)/2-20)/(83.2-20) -> 0.6082278481 | AR26: 0.5398343692 | AS26: 0.2078991043 | AT26: 0.4086895551 | AV26: =VLOOKUP(AT26,HDI!A$2:B$170,2) -> Haiti | AW26: =VLOOKUP(AT26,HDI!A$2:C$170,3) -> 145
A27: 2035 | B27: =+B$2+(Control!C$6-Control!C$5)*($A27-$A$2)/($A$42-$A$2) -> 10.65394 | C27: =+C$2+(Control!D$6-Control!D$5)*($A27-$A$2)/($A$42-$A$2) -> 11.31316 | D27: 10.98355 | E27: =+E$2+(Control!E$6-Control!E$5)*($A27-$A$2)/($A$42-$A$2)+((R27-R$2)/R$2)*(-0.79)*E$2 -> 5.84 | F27: =+F$2+(Control!F$6-Control!F$5)*($A27-$A$2)/($A$42-$A$2) -> 7.21 | G27: 6.525 | H27: =+H$2+(Control!H$6-Control!H$5)*($A27-$A$2)/($A$42-$A$2) -> 39.4 | I27: =+I$2+(Control!I$6-Control!I$5)*($A27-$A$2)/($A$42-$A$2) -> 6.1 | J27: =+J$2+(Control!J$6-Control!J$5)*($A27-$A$2)/($A$42-$A$2) -> 10.3 | K27: =+K$2+(Control!K$6-Control!K$5)*($A27-$A$2)/($A$42-$A$2) -> 0.7 | L27: =+L$2+(Control!$N$6-inVar11)*Interpolate!E30 -> 4.88 | M27: =+M$2+(Control!$P$6-inVar13)*Interpolate!E30 -> 2.06857469 | N27: =+N$2+(Control!$O$6-inVar12)*Interpolate!E30 -> 3.91 | O27: =+O$2+(Control!$L$6-inVar9)*Interpolate!E30 -> 3.57 | P27: =+P$2+(Control!$M$6-inVar10)*Interpolate!E30 -> 45.49 | Q27: =+EXP(LN(Control!C$14)-(-0.332*LN(B$2))+(-0.332*LN(B27))) -> 58.3 | R27: =Control!D$14/($Q$2/100*(20/(18.5+$J$2))*((7.63-0.11*$K$2/100)/7.3)*(1-1.08*(Control!$I$14*$H$2/100+Control!$J$14*$I$2/100)))*($Q27/100*(20/(18.5+$J27))*((7.63-0.11*$K27/100)/7.3)*(1-1.08*(0.95*$H27/100+0.5*I27/100))) -> 4.6 | S27: 54.8 | T27: 59 | U27: 84 | V27: 400 | W27: 58.44 | X27: =EXP(LN(Control!$L$14)-0.875*LN($AF$2)-0.77*LN(Population!$J$4/Population!$E$4)-0.352*LN($N$2)+0.875*LN(AF27)+0.77*LN(Population!J29/Population!E29)+0.352*LN(N27)) -> 162.8601736 | Y27: =MIN((1+(EXP(LN(Control!$N$14)-0.682*LN(IF(Population!$AI$5>0,Population!AI$5,0.00001))-0.483*LN(IF(AE$2>0,AE$2,0.0001))-0.593*LN($L$4)+0.682*LN(IF(Population!AI29>0,Population!AI29,0.0001))+0.483*LN(IF(AE26>0,AE26,0.001))+0.593*LN(L27))))*Y26,Population!AD29) -> 29884882.92 | Z27: =+Z26*(1-Control!$D$18)+X26*Population!J28 -> 1.223804047e+11 | AA27: =+MIN(Y27,Population!AD29)*EXP((0.14-G27*0.006)*G27) -> 57708184.81 | AB27: =EXP(LN(Control!$O$14*Population!$E$4/($Z$2^0.3*$AA$2^0.7))-0.623*LN(O$2)-1.187*LN(M$2)+0.219*LN(P$2)+0.623*LN(O27)+1.187*LN(M27)-0.219*LN(P27)) -> 96.93326774 | AC27: =+(1+MAX((AB27-AB26)/AB26,($AE$2-0.7*Initial_Emp_Growth_Rate-0.3*Control!$R$14)))*AC26 -> 96.93326774 | AD27: 5.567402356e+10 | AE27: 0.02716980049 | AF27: =+AD27/Population!E29 -> 627.8579009 | AG27: 0 | AH27: -0.002380191665 | AI27: 0.02576097306 | AJ27: 0.0304645939 | AK27: 750529.2987 | AL27: =Population!J29-'Base Scenario'!Y27 -> 22877693.01 | AM27: =+Population!AD29-Y27 -> 22877693.01 | AN27: =+Population!AN29-AK27 -> 748661.5685 | AO27: =+Y27/Population!J29 -> 0.5664030308 | AP27: =inVar24*$AF$2*Population!AX29 -> 0 | AQ27: =+((W27+W27-Control!$W$10)/2-20)/(83.2-20) -> 0.6082278481 | AR27: 0.5398343692 | AS27: 0.2075323766 | AT27: 0.4084491086 | AV27: =VLOOKUP(AT27,HDI!A$2:B$170,2) -> Haiti | AW27: =VLOOKUP(AT27,HDI!A$2:C$170,3) -> 145
A28: 2036 | B28: =+B$2+(Control!C$6-Control!C$5)*($A28-$A$2)/($A$42-$A$2) -> 10.65394 | C28: =+C$2+(Control!D$6-Control!D$5)*($A28-$A$2)/($A$42-$A$2) -> 11.31316 | D28: 10.98355 | E28: =+E$2+(Control!E$6-Control!E$5)*($A28-$A$2)/($A$42-$A$2)+((R28-R$2)/R$2)*(-0.79)*E$2 -> 5.84 | F28: =+F$2+(Control!F$6-Control!F$5)*($A28-$A$2)/($A$42-$A$2) -> 7.21 | G28: 6.525 | H28: =+H$2+(Control!H$6-Control!H$5)*($A28-$A$2)/($A$42-$A$2) -> 39.4 | I28: =+I$2+(Control!I$6-Control!I$5)*($A28-$A$2)/($A$42-$A$2) -> 6.1 | J28: =+J$2+(Control!J$6-Control!J$5)*($A28-$A$2)/($A$42-$A$2) -> 10.3 | K28: =+K$2+(Control!K$6-Control!K$5)*($A28-$A$2)/($A$42-$A$2) -> 0.7 | L28: =+L$2+(Control!$N$6-inVar11)*Interpolate!E31 -> 4.88 | M28: =+M$2+(Control!$P$6-inVar13)*Interpolate!E31 -> 2.06857469 | N28: =+N$2+(Control!$O$6-inVar12)*Interpolate!E31 -> 3.91 | O28: =+O$2+(Control!$L$6-inVar9)*Interpolate!E31 -> 3.57 | P28: =+P$2+(Control!$M$6-inVar10)*Interpolate!E31 -> 45.49 | Q28: =+EXP(LN(Control!C$14)-(-0.332*LN(B$2))+(-0.332*LN(B28))) -> 58.3 | R28: =Control!D$14/($Q$2/100*(20/(18.5+$J$2))*((7.63-0.11*$K$2/100)/7.3)*(1-1.08*(Control!$I$14*$H$2/100+Control!$J$14*$I$2/100)))*($Q28/100*(20/(18.5+$J28))*((7.63-0.11*$K28/100)/7.3)*(1-1.08*(0.95*$H28/100+0.5*I28/100))) -> 4.6 | S28: 54.8 | T28: 59 | U28: 84 | V28: 400 | W28: 58.44 | X28: =EXP(LN(Control!$L$14)-0.875*LN($AF$2)-0.77*LN(Population!$J$4/Population!$E$4)-0.352*LN($N$2)+0.875*LN(AF28)+0.77*LN(Population!J30/Population!E30)+0.352*LN(N28)) -> 162.4635091 | Y28: =MIN((1+(EXP(LN(Control!$N$14)-0.682*LN(IF(Population!$AI$5>0,Population!AI$5,0.00001))-0.483*LN(IF(AE$2>0,AE$2,0.0001))-0.593*LN($L$4)+0.682*LN(IF(Population!AI30>0,Population!AI30,0.0001))+0.483*LN(IF(AE27>0,AE27,0.001))+0.593*LN(L28))))*Y27,Population!AD30) -> 30653490.85 | Z28: =+Z27*(1-Control!$D$18)+X27*Population!J29 -> 1.260781108e+11 | AA28: =+MIN(Y28,Population!AD30)*EXP((0.14-G28*0.006)*G28) -> 59192378.95 | AB28: =EXP(LN(Control!$O$14*Population!$E$4/($Z$2^0.3*$AA$2^0.7))-0.623*LN(O$2)-1.187*LN(M$2)+0.219*LN(P$2)+0.623*LN(O28)+1.187*LN(M28)-0.219*LN(P28)) -> 96.93326774 | AC28: =+(1+MAX((AB28-AB27)/AB27,($AE$2-0.7*Initial_Emp_Growth_Rate-0.3*Control!$R$14)))*AC27 -> 96.93326774 | AD28: 5.718087775e+10 | AE28: 0.02706565996 | AF28: =+AD28/Population!E30 -> 626.2993239 | AG28: 0 | AH28: -0.002482372322 | AI28: 0.02571895391 | AJ28: 0.03021485421 | AK28: 768607.9265 | AL28: =Population!J30-'Base Scenario'!Y28 -> 23653385.91 | AM28: =+Population!AD30-Y28 -> 23653385.91 | AN28: =+Population!AN30-AK28 -> 775692.9017 | AO28: =+Y28/Population!J30 -> 0.564449526 | AP28: =inVar24*$AF$2*Population!AX30 -> 0 | AQ28: =+((W28+W28-Control!$W$10)/2-20)/(83.2-20) -> 0.6082278481 | AR28: 0.5398343692 | AS28: 0.2071498859 | AT28: 0.408198025 | AV28: =VLOOKUP(AT28,HDI!A$2:B$170,2) -> Haiti | AW28: =VLOOKUP(AT28,HDI!A$2:C$170,3) -> 145
A29: 2037 | B29: =+B$2+(Control!C$6-Control!C$5)*($A29-$A$2)/($A$42-$A$2) -> 10.65394 | C29: =+C$2+(Control!D$6-Control!D$5)*($A29-$A$2)/($A$42-$A$2) -> 11.31316 | D29: 10.98355 | E29: =+E$2+(Control!E$6-Control!E$5)*($A29-$A$2)/($A$42-$A$2)+((R29-R$2)/R$2)*(-0.79)*E$2 -> 5.84 | F29: =+F$2+(Control!F$6-Control!F$5)*($A29-$A$2)/($A$42-$A$2) -> 7.21 | G29: 6.525 | H29: =+H$2+(Control!H$6-Control!H$5)*($A29-$A$2)/($A$42-$A$2) -> 39.4 | I29: =+I$2+(Control!I$6-Control!I$5)*($A29-$A$2)/($A$42-$A$2) -> 6.1 | J29: =+J$2+(Control!J$6-Control!J$5)*($A29-$A$2)/($A$42-$A$2) -> 10.3 | K29: =+K$2+(Control!K$6-Control!K$5)*($A29-$A$2)/($A$42-$A$2) -> 0.7 | L29: =+L$2+(Control!$N$6-inVar11)*Interpolate!E32 -> 4.88 | M29: =+M$2+(Control!$P$6-inVar13)*Interpolate!E32 -> 2.06857469 | N29: =+N$2+(Control!$O$6-inVar12)*Interpolate!E32 -> 3.91 | O29: =+O$2+(Control!$L$6-inVar9)*Interpolate!E32 -> 3.57 | P29: =+P$2+(Control!$M$6-inVar10)*Interpolate!E32 -> 45.49 | Q29: =+EXP(LN(Control!C$14)-(-0.332*LN(B$2))+(-0.332*LN(B29))) -> 58.3 | R29: =Control!D$14/($Q$2/100*(20/(18.5+$J$2))*((7.63-0.11*$K$2/100)/7.3)*(1-1.08*(Control!$I$14*$H$2/100+Control!$J$14*$I$2/100)))*($Q29/100*(20/(18.5+$J29))*((7.63-0.11*$K29/100)/7.3)*(1-1.08*(0.95*$H29/100+0.5*I29/100))) -> 4.6 | S29: 54.8 | T29: 59 | U29: 84 | V29: 400 | W29: 58.44 | X29: =EXP(LN(Control!$L$14)-0.875*LN($AF$2)-0.77*LN(Population!$J$4/Population!$E$4)-0.352*LN($N$2)+0.875*LN(AF29)+0.77*LN(Population!J31/Population!E31)+0.352*LN(N29)) -> 162.061672 | Y29: =MIN((1+(EXP(LN(Control!$N$14)-0.682*LN(IF(Population!$AI$5>0,Population!AI$5,0.00001))-0.483*LN(IF(AE$2>0,AE$2,0.0001))-0.593*LN($L$4)+0.682*LN(IF(Population!AI31>0,Population!AI31,0.0001))+0.483*LN(IF(AE28>0,AE28,0.001))+0.593*LN(L29))))*Y28,Population!AD31) -> 31441240.33 | Z29: =+Z28*(1-Control!$D$18)+X28*Population!J30 -> 1.298578721e+11 | AA29: =+MIN(Y29,Population!AD31)*EXP((0.14-G29*0.006)*G29) -> 60713535.75 | AB29: =EXP(LN(Control!$O$14*Population!$E$4/($Z$2^0.3*$AA$2^0.7))-0.623*LN(O$2)-1.187*LN(M$2)+0.219*LN(P$2)+0.623*LN(O29)+1.187*LN(M29)-0.219*LN(P29)) -> 96.93326774 | AC29: =+(1+MAX((AB29-AB28)/AB28,($AE$2-0.7*Initial_Emp_Growth_Rate-0.3*Control!$R$14)))*AC28 -> 96.93326774 | AD29: 5.872367224e+10 | AE29: 0.02698095157 | AF29: =+AD29/Population!E31 -> 624.6931753 | AG29: 0 | AH29: -0.002564506324 | AI29: 0.02569852435 | AJ29: 0.02997952071 | AK29: 787749.481 | AL29: =Population!J31-'Base Scenario'!Y29 -> 24457610.11 | AM29: =+Population!AD31-Y29 -> 24457610.11 | AN29: =+Population!AN31-AK29 -> 804224.1987 | AO29: =+Y29/Population!J31 -> 0.5624666711 | AP29: =inVar24*$AF$2*Population!AX31 -> 0 | AQ29: =+((W29+W29-Control!$W$10)/2-20)/(83.2-20) -> 0.6082278481 | AR29: 0.5398343692 | AS29: 0.2067547235 | AT29: 0.4079382984 | AV29: =VLOOKUP(AT29,HDI!A$2:B$170,2) -> Haiti | AW29: =VLOOKUP(AT29,HDI!A$2:C$170,3) -> 145
A30: 2038 | B30: =+B$2+(Control!C$6-Control!C$5)*($A30-$A$2)/($A$42-$A$2) -> 10.65394 | C30: =+C$2+(Control!D$6-Control!D$5)*($A30-$A$2)/($A$42-$A$2) -> 11.31316 | D30: 10.98355 | E30: =+E$2+(Control!E$6-Control!E$5)*($A30-$A$2)/($A$42-$A$2)+((R30-R$2)/R$2)*(-0.79)*E$2 -> 5.84 | F30: =+F$2+(Control!F$6-Control!F$5)*($A30-$A$2)/($A$42-$A$2) -> 7.21 | G30: 6.525 | H30: =+H$2+(Control!H$6-Control!H$5)*($A30-$A$2)/($A$42-$A$2) -> 39.4 | I30: =+I$2+(Control!I$6-Control!I$5)*($A30-$A$2)/($A$42-$A$2) -> 6.1 | J30: =+J$2+(Control!J$6-Control!J$5)*($A30-$A$2)/($A$42-$A$2) -> 10.3 | K30: =+K$2+(Control!K$6-Control!K$5)*($A30-$A$2)/($A$42-$A$2) -> 0.7 | L30: =+L$2+(Control!$N$6-inVar11)*Interpolate!E33 -> 4.88 | M30: =+M$2+(Control!$P$6-inVar13)*Interpolate!E33 -> 2.06857469 | N30: =+N$2+(Control!$O$6-inVar12)*Interpolate!E33 -> 3.91 | O30: =+O$2+(Control!$L$6-inVar9)*Interpolate!E33 -> 3.57 | P30: =+P$2+(Control!$M$6-inVar10)*Interpolate!E33 -> 45.49 | Q30: =+EXP(LN(Control!C$14)-(-0.332*LN(B$2))+(-0.332*LN(B30))) -> 58.3 | R30: =Control!D$14/($Q$2/100*(20/(18.5+$J$2))*((7.63-0.11*$K$2/100)/7.3)*(1-1.08*(Control!$I$14*$H$2/100+Control!$J$14*$I$2/100)))*($Q30/100*(20/(18.5+$J30))*((7.63-0.11*$K30/100)/7.3)*(1-1.08*(0.95*$H30/100+0.5*I30/100))) -> 4.6 | S30: 54.8 | T30: 59 | U30: 84 | V30: 400 | W30: 58.44 | X30: =EXP(LN(Control!$L$14)-0.875*LN($AF$2)-0.77*LN(Population!$J$4/Population!$E$4)-0.352*LN($N$2)+0.875*LN(AF30)+0.77*LN(Population!J32/Population!E32)+0.352*LN(N30)) -> 161.6585092 | Y30: =MIN((1+(EXP(LN(Control!$N$14)-0.682*LN(IF(Population!$AI$5>0,Population!AI$5,0.00001))-0.483*LN(IF(AE$2>0,AE$2,0.0001))-0.593*LN($L$4)+0.682*LN(IF(Population!AI32>0,Population!AI32,0.0001))+0.483*LN(IF(AE29>0,AE29,0.001))+0.593*LN(L30))))*Y29,Population!AD32) -> 32249156.21 | Z30: =+Z29*(1-Control!$D$18)+X29*Population!J31 -> 1.337226184e+11 | AA30: =+MIN(Y30,Population!AD32)*EXP((0.14-G30*0.006)*G30) -> 62273634.18 | AB30: =EXP(LN(Control!$O$14*Population!$E$4/($Z$2^0.3*$AA$2^0.7))-0.623*LN(O$2)-1.187*LN(M$2)+0.219*LN(P$2)+0.623*LN(O30)+1.187*LN(M30)-0.219*LN(P30)) -> 96.93326774 | AC30: =+(1+MAX((AB30-AB29)/AB29,($AE$2-0.7*Initial_Emp_Growth_Rate-0.3*Control!$R$14)))*AC29 -> 96.93326774 | AD30: 6.030415869e+10 | AE30: 0.02691395802 | AF30: =+AD30/Population!E32 -> 623.0493978 | AG30: 0 | AH30: -0.002631335793 | AI30: 0.02569605635 | AJ30: 0.02976135536 | AK30: 807915.8833 | AL30: =Population!J32-'Base Scenario'!Y30 -> 25291746.22 | AM30: =+Population!AD32-Y30 -> 25291746.22 | AN30: =+Population!AN32-AK30 -> 834136.1089 | AO30: =+Y30/Population!J32 -> 0.560456212 | AP30: =inVar24*$AF$2*Population!AX32 -> 0 | AQ30: =+((W30+W30-Control!$W$10)/2-20)/(83.2-20) -> 0.6082278481 | AR30: 0.5398343692 | AS30: 0.2063492498 | AT30: 0.4076714503 | AV30: =VLOOKUP(AT30,HDI!A$2:B$170,2) -> Haiti | AW30: =VLOOKUP(AT30,HDI!A$2:C$170,3) -> 145
A31: 2039 | B31: =+B$2+(Control!C$6-Control!C$5)*($A31-$A$2)/($A$42-$A$2) -> 10.65394 | C31: =+C$2+(Control!D$6-Control!D$5)*($A31-$A$2)/($A$42-$A$2) -> 11.31316 | D31: 10.98355 | E31: =+E$2+(Control!E$6-Control!E$5)*($A31-$A$2)/($A$42-$A$2)+((R31-R$2)/R$2)*(-0.79)*E$2 -> 5.84 | F31: =+F$2+(Control!F$6-Control!F$5)*($A31-$A$2)/($A$42-$A$2) -> 7.21 | G31: 6.525 | H31: =+H$2+(Control!H$6-Control!H$5)*($A31-$A$2)/($A$42-$A$2) -> 39.4 | I31: =+I$2+(Control!I$6-Control!I$5)*($A31-$A$2)/($A$42-$A$2) -> 6.1 | J31: =+J$2+(Control!J$6-Control!J$5)*($A31-$A$2)/($A$42-$A$2) -> 10.3 | K31: =+K$2+(Control!K$6-Control!K$5)*($A31-$A$2)/($A$42-$A$2) -> 0.7 | L31: =+L$2+(Control!$N$6-inVar11)*Interpolate!E34 -> 4.88 | M31: =+M$2+(Control!$P$6-inVar13)*Interpolate!E34 -> 2.06857469 | N31: =+N$2+(Control!$O$6-inVar12)*Interpolate!E34 -> 3.91 | O31: =+O$2+(Control!$L$6-inVar9)*Interpolate!E34 -> 3.57 | P31: =+P$2+(Control!$M$6-inVar10)*Interpolate!E34 -> 45.49 | Q31: =+EXP(LN(Control!C$14)-(-0.332*LN(B$2))+(-0.332*LN(B31))) -> 58.3 | R31: =Control!D$14/($Q$2/100*(20/(18.5+$J$2))*((7.63-0.11*$K$2/100)/7.3)*(1-1.08*(Control!$I$14*$H$2/100+Control!$J$14*$I$2/100)))*($Q31/100*(20/(18.5+$J31))*((7.63-0.11*$K31/100)/7.3)*(1-1.08*(0.95*$H31/100+0.5*I31/100))) -> 4.6 | S31: 54.8 | T31: 59 | U31: 84 | V31: 400 | W31: 58.44 | X31: =EXP(LN(Control!$L$14)-0.875*LN($AF$2)-0.77*LN(Population!$J$4/Population!$E$4)-0.352*LN($N$2)+0.875*LN(AF31)+0.77*LN(Population!J33/Population!E33)+0.352*LN(N31)) -> 161.2552668 | Y31: =MIN((1+(EXP(LN(Control!$N$14)-0.682*LN(IF(Population!$AI$5>0,Population!AI$5,0.00001))-0.483*LN(IF(AE$2>0,AE$2,0.0001))-0.593*LN($L$4)+0.682*LN(IF(Population!AI33>0,Population!AI33,0.0001))+0.483*LN(IF(AE30>0,AE30,0.001))+0.593*LN(L31))))*Y30,Population!AD33) -> 33078130.69 | Z31: =+Z30*(1-Control!$D$18)+X30*Population!J32 -> 1.376756902e+11 | AA31: =+MIN(Y31,Population!AD33)*EXP((0.14-G31*0.006)*G31) -> 63874397.11 | AB31: =EXP(LN(Control!$O$14*Population!$E$4/($Z$2^0.3*$AA$2^0.7))-0.623*LN(O$2)-1.187*LN(M$2)+0.219*LN(P$2)+0.623*LN(O31)+1.187*LN(M31)-0.219*LN(P31)) -> 96.93326774 | AC31: =+(1+MAX((AB31-AB30)/AB30,($AE$2-0.7*Initial_Emp_Growth_Rate-0.3*Control!$R$14)))*AC30 -> 96.93326774 | AD31: 6.19239715e+10 | AE31: 0.02686071481 | AF31: =+AD31/Population!E33 -> 621.3733121 | AG31: 0 | AH31: -0.002690132858 | AI31: 0.0257053077 | AJ31: 0.02956172871 | AK31: 828974.4833 | AL31: =Population!J33-'Base Scenario'!Y31 -> 26156932.31 | AM31: =+Population!AD33-Y31 -> 26156932.31 | AN31: =+Population!AN33-AK31 -> 865186.087 | AO31: =+Y31/Population!J33 -> 0.5584214656 | AP31: =inVar24*$AF$2*Population!AX33 -> 0 | AQ31: =+((W31+W31-Control!$W$10)/2-20)/(83.2-20) -> 0.6082278481 | AR31: 0.5398343692 | AS31: 0.2059347036 | AT31: 0.4073982697 | AV31: =VLOOKUP(AT31,HDI!A$2:B$170,2) -> Haiti | AW31: =VLOOKUP(AT31,HDI!A$2:C$170,3) -> 145
A32: 2040 | B32: =+B$2+(Control!C$6-Control!C$5)*($A32-$A$2)/($A$42-$A$2) -> 10.65394 | C32: =+C$2+(Control!D$6-Control!D$5)*($A32-$A$2)/($A$42-$A$2) -> 11.31316 | D32: 10.98355 | E32: =+E$2+(Control!E$6-Control!E$5)*($A32-$A$2)/($A$42-$A$2)+((R32-R$2)/R$2)*(-0.79)*E$2 -> 5.84 | F32: =+F$2+(Control!F$6-Control!F$5)*($A32-$A$2)/($A$42-$A$2) -> 7.21 | G32: 6.525 | H32: =+H$2+(Control!H$6-Control!H$5)*($A32-$A$2)/($A$42-$A$2) -> 39.4 | I32: =+I$2+(Control!I$6-Control!I$5)*($A32-$A$2)/($A$42-$A$2) -> 6.1 | J32: =+J$2+(Control!J$6-Control!J$5)*($A32-$A$2)/($A$42-$A$2) -> 10.3 | K32: =+K$2+(Control!K$6-Control!K$5)*($A32-$A$2)/($A$42-$A$2) -> 0.7 | L32: =+L$2+(Control!$N$6-inVar11)*Interpolate!E35 -> 4.88 | M32: =+M$2+(Control!$P$6-inVar13)*Interpolate!E35 -> 2.06857469 | N32: =+N$2+(Control!$O$6-inVar12)*Interpolate!E35 -> 3.91 | O32: =+O$2+(Control!$L$6-inVar9)*Interpolate!E35 -> 3.57 | P32: =+P$2+(Control!$M$6-inVar10)*Interpolate!E35 -> 45.49 | Q32: =+EXP(LN(Control!C$14)-(-0.332*LN(B$2))+(-0.332*LN(B32))) -> 58.3 | R32: =Control!D$14/($Q$2/100*(20/(18.5+$J$2))*((7.63-0.11*$K$2/100)/7.3)*(1-1.08*(Control!$I$14*$H$2/100+Control!$J$14*$I$2/100)))*($Q32/100*(20/(18.5+$J32))*((7.63-0.11*$K32/100)/7.3)*(1-1.08*(0.95*$H32/100+0.5*I32/100))) -> 4.6 | S32: 54.8 | T32: 59 | U32: 84 | V32: 400 | W32: 58.44 | X32: =EXP(LN(Control!$L$14)-0.875*LN($AF$2)-0.77*LN(Population!$J$4/Population!$E$4)-0.352*LN($N$2)+0.875*LN(AF32)+0.77*LN(Population!J34/Population!E34)+0.352*LN(N32)) -> 160.8487109 | Y32: =MIN((1+(EXP(LN(Control!$N$14)-0.682*LN(IF(Population!$AI$5>0,Population!AI$5,0.00001))-0.483*LN(IF(AE$2>0,AE$2,0.0001))-0.593*LN($L$4)+0.682*LN(IF(Population!AI34>0,Population!AI34,0.0001))+0.483*LN(IF(AE31>0,AE31,0.001))+0.593*LN(L32))))*Y31,Population!AD34) -> 33928796.96 | Z32: =+Z31*(1-Control!$D$18)+X31*Population!J33 -> 1.417206285e+11 | AA32: =+MIN(Y32,Population!AD34)*EXP((0.14-G32*0.006)*G32) -> 65517047.21 | AB32: =EXP(LN(Control!$O$14*Population!$E$4/($Z$2^0.3*$AA$2^0.7))-0.623*LN(O$2)-1.187*LN(M$2)+0.219*LN(P$2)+0.623*LN(O32)+1.187*LN(M32)-0.219*LN(P32)) -> 96.93326774 | AC32: =+(1+MAX((AB32-AB31)/AB31,($AE$2-0.7*Initial_Emp_Growth_Rate-0.3*Control!$R$14)))*AC31 -> 96.93326774 | AD32: 6.358443193e+10 | AE32: 0.02681450162 | AF32: =+AD32/Population!E34 -> 619.6614395 | AG32: 0 | AH32: -0.002754982552 | AI32: 0.02571687837 | AJ32: 0.02938019249 | AK32: 850666.2638 | AL32: =Population!J34-'Base Scenario'!Y32 -> 27053907.73 | AM32: =+Population!AD34-Y32 -> 27053907.73 | AN32: =+Population!AN34-AK32 -> 896975.4237 | AO32: =+Y32/Population!J34 -> 0.5563675329 | AP32: =inVar24*$AF$2*Population!AX34 -> 0 | AQ32: =+((W32+W32-Control!$W$10)/2-20)/(83.2-20) -> 0.6082278481 | AR32: 0.5398343692 | AS32: 0.2055101503 | AT32: 0.4071181145 | AV32: =VLOOKUP(AT32,HDI!A$2:B$170,2) -> Haiti | AW32: =VLOOKUP(AT32,HDI!A$2:C$170,3) -> 145
A33: 2041 | B33: =+B$2+(Control!C$6-Control!C$5)*($A33-$A$2)/($A$42-$A$2) -> 10.65394 | C33: =+C$2+(Control!D$6-Control!D$5)*($A33-$A$2)/($A$42-$A$2) -> 11.31316 | D33: 10.98355 | E33: =+E$2+(Control!E$6-Control!E$5)*($A33-$A$2)/($A$42-$A$2)+((R33-R$2)/R$2)*(-0.79)*E$2 -> 5.84 | F33: =+F$2+(Control!F$6-Control!F$5)*($A33-$A$2)/($A$42-$A$2) -> 7.21 | G33: 6.525 | H33: =+H$2+(Control!H$6-Control!H$5)*($A33-$A$2)/($A$42-$A$2) -> 39.4 | I33: =+I$2+(Control!I$6-Control!I$5)*($A33-$A$2)/($A$42-$A$2) -> 6.1 | J33: =+J$2+(Control!J$6-Control!J$5)*($A33-$A$2)/($A$42-$A$2) -> 10.3 | K33: =+K$2+(Control!K$6-Control!K$5)*($A33-$A$2)/($A$42-$A$2) -> 0.7 | L33: =+L$2+(Control!$N$6-inVar11)*Interpolate!E36 -> 4.88 | M33: =+M$2+(Control!$P$6-inVar13)*Interpolate!E36 -> 2.06857469 | N33: =+N$2+(Control!$O$6-inVar12)*Interpolate!E36 -> 3.91 | O33: =+O$2+(Control!$L$6-inVar9)*Interpolate!E36 -> 3.57 | P33: =+P$2+(Control!$M$6-inVar10)*Interpolate!E36 -> 45.49 | Q33: =+EXP(LN(Control!C$14)-(-0.332*LN(B$2))+(-0.332*LN(B33))) -> 58.3 | R33: =Control!D$14/($Q$2/100*(20/(18.5+$J$2))*((7.63-0.11*$K$2/100)/7.3)*(1-1.08*(Control!$I$14*$H$2/100+Control!$J$14*$I$2/100)))*($Q33/100*(20/(18.5+$J33))*((7.63-0.11*$K33/100)/7.3)*(1-1.08*(0.95*$H33/100+0.5*I33/100))) -> 4.6 | S33: 54.8 | T33: 59 | U33: 84 | V33: 400 | W33: 58.44 | X33: =EXP(LN(Control!$L$14)-0.875*LN($AF$2)-0.77*LN(Population!$J$4/Population!$E$4)-0.352*LN($N$2)+0.875*LN(AF33)+0.77*LN(Population!J35/Population!E35)+0.352*LN(N33)) -> 160.4379353 | Y33: =MIN((1+(EXP(LN(Control!$N$14)-0.682*LN(IF(Population!$AI$5>0,Population!AI$5,0.00001))-0.483*LN(IF(AE$2>0,AE$2,0.0001))-0.593*LN($L$4)+0.682*LN(IF(Population!AI35>0,Population!AI35,0.0001))+0.483*LN(IF(AE32>0,AE32,0.001))+0.593*LN(L33))))*Y32,Population!AD35) -> 34801864 | Z33: =+Z32*(1-Control!$D$18)+X32*Population!J34 -> 1.458607928e+11 | AA33: =+MIN(Y33,Population!AD35)*EXP((0.14-G33*0.006)*G33) -> 67202953.57 | AB33: =EXP(LN(Control!$O$14*Population!$E$4/($Z$2^0.3*$AA$2^0.7))-0.623*LN(O$2)-1.187*LN(M$2)+0.219*LN(P$2)+0.623*LN(O33)+1.187*LN(M33)-0.219*LN(P33)) -> 96.93326774 | AC33: =+(1+MAX((AB33-AB32)/AB32,($AE$2-0.7*Initial_Emp_Growth_Rate-0.3*Control!$R$14)))*AC32 -> 96.93326774 | AD33: 6.528693448e+10 | AE33: 0.0267754621 | AF33: =+AD33/Population!E35 -> 617.9135782 | AG33: 0 | AH33: -0.002820671315 | AI33: 0.02573233119 | AJ33: 0.02921356153 | AK33: 873067.0402 | AL33: =Population!J35-'Base Scenario'!Y33 -> 27983826.77 | AM33: =+Population!AD35-Y33 -> 27983826.77 | AN33: =+Population!AN35-AK33 -> 929919.038 | AO33: =+Y33/Population!J35 -> 0.5542961075 | AP33: =inVar24*$AF$2*Population!AX35 -> 0 | AQ33: =+((W33+W33-Control!$W$10)/2-20)/(83.2-20) -> 0.6082278481 | AR33: 0.5398343692 | AS33: 0.2050754598 | AT33: 0.4068308698 | AV33: =VLOOKUP(AT33,HDI!A$2:B$170,2) -> Haiti | AW33: =VLOOKUP(AT33,HDI!A$2:C$170,3) -> 145
A34: 2042 | B34: =+B$2+(Control!C$6-Control!C$5)*($A34-$A$2)/($A$42-$A$2) -> 10.65394 | C34: =+C$2+(Control!D$6-Control!D$5)*($A34-$A$2)/($A$42-$A$2) -> 11.31316 | D34: 10.98355 | E34: =+E$2+(Control!E$6-Control!E$5)*($A34-$A$2)/($A$42-$A$2)+((R34-R$2)/R$2)*(-0.79)*E$2 -> 5.84 | F34: =+F$2+(Control!F$6-Control!F$5)*($A34-$A$2)/($A$42-$A$2) -> 7.21 | G34: 6.525 | H34: =+H$2+(Control!H$6-Control!H$5)*($A34-$A$2)/($A$42-$A$2) -> 39.4 | I34: =+I$2+(Control!I$6-Control!I$5)*($A34-$A$2)/($A$42-$A$2) -> 6.1 | J34: =+J$2+(Control!J$6-Control!J$5)*($A34-$A$2)/($A$42-$A$2) -> 10.3 | K34: =+K$2+(Control!K$6-Control!K$5)*($A34-$A$2)/($A$42-$A$2) -> 0.7 | L34: =+L$2+(Control!$N$6-inVar11)*Interpolate!E37 -> 4.88 | M34: =+M$2+(Control!$P$6-inVar13)*Interpolate!E37 -> 2.06857469 | N34: =+N$2+(Control!$O$6-inVar12)*Interpolate!E37 -> 3.91 | O34: =+O$2+(Control!$L$6-inVar9)*Interpolate!E37 -> 3.57 | P34: =+P$2+(Control!$M$6-inVar10)*Interpolate!E37 -> 45.49 | Q34: =+EXP(LN(Control!C$14)-(-0.332*LN(B$2))+(-0.332*LN(B34))) -> 58.3 | R34: =Control!D$14/($Q$2/100*(20/(18.5+$J$2))*((7.63-0.11*$K$2/100)/7.3)*(1-1.08*(Control!$I$14*$H$2/100+Control!$J$14*$I$2/100)))*($Q34/100*(20/(18.5+$J34))*((7.63-0.11*$K34/100)/7.3)*(1-1.08*(0.95*$H34/100+0.5*I34/100))) -> 4.6 | S34: 54.8 | T34: 59 | U34: 84 | V34: 400 | W34: 58.44 | X34: =EXP(LN(Control!$L$14)-0.875*LN($AF$2)-0.77*LN(Population!$J$4/Population!$E$4)-0.352*LN($N$2)+0.875*LN(AF34)+0.77*LN(Population!J36/Population!E36)+0.352*LN(N34)) -> 160.0257766 | Y34: =MIN((1+(EXP(LN(Control!$N$14)-0.682*LN(IF(Population!$AI$5>0,Population!AI$5,0.00001))-0.483*LN(IF(AE$2>0,AE$2,0.0001))-0.593*LN($L$4)+0.682*LN(IF(Population!AI36>0,Population!AI36,0.0001))+0.483*LN(IF(AE33>0,AE33,0.001))+0.593*LN(L34))))*Y33,Population!AD36) -> 35698295.93 | Z34: =+Z33*(1-Control!$D$18)+X33*Population!J35 -> 1.500995677e+11 | AA34: =+MIN(Y34,Population!AD36)*EXP((0.14-G34*0.006)*G34) -> 68933977.9 | AB34: =EXP(LN(Control!$O$14*Population!$E$4/($Z$2^0.3*$AA$2^0.7))-0.623*LN(O$2)-1.187*LN(M$2)+0.219*LN(P$2)+0.623*LN(O34)+1.187*LN(M34)-0.219*LN(P34)) -> 96.93326774 | AC34: =+(1+MAX((AB34-AB33)/AB33,($AE$2-0.7*Initial_Emp_Growth_Rate-0.3*Control!$R$14)))*AC33 -> 96.93326774 | AD34: 6.703321117e+10 | AE34: 0.02674772068 | AF34: =+AD34/Population!E36 -> 616.1364082 | AG34: 0 | AH34: -0.00287608187 | AI34: 0.02575815858 | AJ34: 0.02906041302 | AK34: 896431.9316 | AL34: =Population!J36-'Base Scenario'!Y34 -> 28948338.9 | AM34: =+Population!AD36-Y34 -> 28948338.9 | AN34: =+Population!AN36-AK34 -> 964512.1309 | AO34: =+Y34/Population!J36 -> 0.5522065615 | AP34: =inVar24*$AF$2*Population!AX36 -> 0 | AQ34: =+((W34+W34-Control!$W$10)/2-20)/(83.2-20) -> 0.6082278481 | AR34: 0.5398343692 | AS34: 0.2046322178 | AT34: 0.4065375559 | AV34: =VLOOKUP(AT34,HDI!A$2:B$170,2) -> Haiti | AW34: =VLOOKUP(AT34,HDI!A$2:C$170,3) -> 145
A35: 2043 | B35: =+B$2+(Control!C$6-Control!C$5)*($A35-$A$2)/($A$42-$A$2) -> 10.65394 | C35: =+C$2+(Control!D$6-Control!D$5)*($A35-$A$2)/($A$42-$A$2) -> 11.31316 | D35: 10.98355 | E35: =+E$2+(Control!E$6-Control!E$5)*($A35-$A$2)/($A$42-$A$2)+((R35-R$2)/R$2)*(-0.79)*E$2 -> 5.84 | F35: =+F$2+(Control!F$6-Control!F$5)*($A35-$A$2)/($A$42-$A$2) -> 7.21 | G35: 6.525 | H35: =+H$2+(Control!H$6-Control!H$5)*($A35-$A$2)/($A$42-$A$2) -> 39.4 | I35: =+I$2+(Control!I$6-Control!I$5)*($A35-$A$2)/($A$42-$A$2) -> 6.1 | J35: =+J$2+(Control!J$6-Control!J$5)*($A35-$A$2)/($A$42-$A$2) -> 10.3 | K35: =+K$2+(Control!K$6-Control!K$5)*($A35-$A$2)/($A$42-$A$2) -> 0.7 | L35: =+L$2+(Control!$N$6-inVar11)*Interpolate!E38 -> 4.88 | M35: =+M$2+(Control!$P$6-inVar13)*Interpolate!E38 -> 2.06857469 | N35: =+N$2+(Control!$O$6-inVar12)*Interpolate!E38 -> 3.91 | O35: =+O$2+(Control!$L$6-inVar9)*Interpolate!E38 -> 3.57 | P35: =+P$2+(Control!$M$6-inVar10)*Interpolate!E38 -> 45.49 | Q35: =+EXP(LN(Control!C$14)-(-0.332*LN(B$2))+(-0.332*LN(B35))) -> 58.3 | R35: =Control!D$14/($Q$2/100*(20/(18.5+$J$2))*((7.63-0.11*$K$2/100)/7.3)*(1-1.08*(Control!$I$14*$H$2/100+Control!$J$14*$I$2/100)))*($Q35/100*(20/(18.5+$J35))*((7.63-0.11*$K35/100)/7.3)*(1-1.08*(0.95*$H35/100+0.5*I35/100))) -> 4.6 | S35: 54.8 | T35: 59 | U35: 84 | V35: 400 | W35: 58.44 | X35: =EXP(LN(Control!$L$14)-0.875*LN($AF$2)-0.77*LN(Population!$J$4/Population!$E$4)-0.352*LN($N$2)+0.875*LN(AF35)+0.77*LN(Population!J37/Population!E37)+0.352*LN(N35)) -> 159.6098188 | Y35: =MIN((1+(EXP(LN(Control!$N$14)-0.682*LN(IF(Population!$AI$5>0,Population!AI$5,0.00001))-0.483*LN(IF(AE$2>0,AE$2,0.0001))-0.593*LN($L$4)+0.682*LN(IF(Population!AI37>0,Population!AI37,0.0001))+0.483*LN(IF(AE34>0,AE34,0.001))+0.593*LN(L35))))*Y34,Population!AD37) -> 36619000.21 | Z35: =+Z34*(1-Control!$D$18)+X34*Population!J36 -> 1.544407129e+11 | AA35: =+MIN(Y35,Population!AD37)*EXP((0.14-G35*0.006)*G35) -> 70711872.54 | AB35: =EXP(LN(Control!$O$14*Population!$E$4/($Z$2^0.3*$AA$2^0.7))-0.623*LN(O$2)-1.187*LN(M$2)+0.219*LN(P$2)+0.623*LN(O35)+1.187*LN(M35)-0.219*LN(P35)) -> 96.93326774 | AC35: =+(1+MAX((AB35-AB34)/AB34,($AE$2-0.7*Initial_Emp_Growth_Rate-0.3*Control!$R$14)))*AC34 -> 96.93326774 | AD35: 6.88249698e+10 | AE35: 0.02672941666 | AF35: =+AD35/Population!E37 -> 614.3261602 | AG35: 0 | AH35: -0.002938063691 | AI35: 0.02579126705 | AJ35: 0.02892177041 | AK35: 920704.2836 | AL35: =Population!J37-'Base Scenario'!Y35 -> 29948758.55 | AM35: =+Population!AD37-Y35 -> 29948758.55 | AN35: =+Population!AN37-AK35 -> 1000419.654 | AO35: =+Y35/Population!J37 -> 0.5501011434 | AP35: =inVar24*$AF$2*Population!AX37 -> 0 | AQ35: =+((W35+W35-Control!$W$10)/2-20)/(83.2-20) -> 0.6082278481 | AR35: 0.5398343692 | AS35: 0.2041794095 | AT35: 0.4062374739 | AV35: =VLOOKUP(AT35,HDI!A$2:B$170,2) -> Haiti | AW35: =VLOOKUP(AT35,HDI!A$2:C$170,3) -> 145
A36: 2044 | B36: =+B$2+(Control!C$6-Control!C$5)*($A36-$A$2)/($A$42-$A$2) -> 10.65394 | C36: =+C$2+(Control!D$6-Control!D$5)*($A36-$A$2)/($A$42-$A$2) -> 11.31316 | D36: 10.98355 | E36: =+E$2+(Control!E$6-Control!E$5)*($A36-$A$2)/($A$42-$A$2)+((R36-R$2)/R$2)*(-0.79)*E$2 -> 5.84 | F36: =+F$2+(Control!F$6-Control!F$5)*($A36-$A$2)/($A$42-$A$2) -> 7.21 | G36: 6.525 | H36: =+H$2+(Control!H$6-Control!H$5)*($A36-$A$2)/($A$42-$A$2) -> 39.4 | I36: =+I$2+(Control!I$6-Control!I$5)*($A36-$A$2)/($A$42-$A$2) -> 6.1 | J36: =+J$2+(Control!J$6-Control!J$5)*($A36-$A$2)/($A$42-$A$2) -> 10.3 | K36: =+K$2+(Control!K$6-Control!K$5)*($A36-$A$2)/($A$42-$A$2) -> 0.7 | L36: =+L$2+(Control!$N$6-inVar11)*Interpolate!E39 -> 4.88 | M36: =+M$2+(Control!$P$6-inVar13)*Interpolate!E39 -> 2.06857469 | N36: =+N$2+(Control!$O$6-inVar12)*Interpolate!E39 -> 3.91 | O36: =+O$2+(Control!$L$6-inVar9)*Interpolate!E39 -> 3.57 | P36: =+P$2+(Control!$M$6-inVar10)*Interpolate!E39 -> 45.49 | Q36: =+EXP(LN(Control!C$14)-(-0.332*LN(B$2))+(-0.332*LN(B36))) -> 58.3 | R36: =Control!D$14/($Q$2/100*(20/(18.5+$J$2))*((7.63-0.11*$K$2/100)/7.3)*(1-1.08*(Control!$I$14*$H$2/100+Control!$J$14*$I$2/100)))*($Q36/100*(20/(18.5+$J36))*((7.63-0.11*$K36/100)/7.3)*(1-1.08*(0.95*$H36/100+0.5*I36/100))) -> 4.6 | S36: 54.8 | T36: 59 | U36: 84 | V36: 400 | W36: 58.44 | X36: =EXP(LN(Control!$L$14)-0.875*LN($AF$2)-0.77*LN(Population!$J$4/Population!$E$4)-0.352*LN($N$2)+0.875*LN(AF36)+0.77*LN(Population!J38/Population!E38)+0.352*LN(N36)) -> 159.1814313 | Y36: =MIN((1+(EXP(LN(Control!$N$14)-0.682*LN(IF(Population!$AI$5>0,Population!AI$5,0.00001))-0.483*LN(IF(AE$2>0,AE$2,0.0001))-0.593*LN($L$4)+0.682*LN(IF(Population!AI38>0,Population!AI38,0.0001))+0.483*LN(IF(AE35>0,AE35,0.001))+0.593*LN(L36))))*Y35,Population!AD38) -> 37564585.91 | Z36: =+Z35*(1-Control!$D$18)+X35*Population!J37 -> 1.588879523e+11 | AA36: =+MIN(Y36,Population!AD38)*EXP((0.14-G36*0.006)*G36) -> 72537813.57 | AB36: =EXP(LN(Control!$O$14*Population!$E$4/($Z$2^0.3*$AA$2^0.7))-0.623*LN(O$2)-1.187*LN(M$2)+0.219*LN(P$2)+0.623*LN(O36)+1.187*LN(M36)-0.219*LN(P36)) -> 96.93326774 | AC36: =+(1+MAX((AB36-AB35)/AB35,($AE$2-0.7*Initial_Emp_Growth_Rate-0.3*Control!$R$14)))*AC35 -> 96.93326774 | AD36: 7.066351988e+10 | AE36: 0.02671341648 | AF36: =+AD36/Population!E38 -> 612.4665551 | AG36: 0 | AH36: -0.003027064801 | AI36: 0.02582226959 | AJ36: 0.02879577097 | AK36: 945585.6955 | AL36: =Population!J38-'Base Scenario'!Y36 -> 30985836.08 | AM36: =+Population!AD38-Y36 -> 30985836.08 | AN36: =+Population!AN38-AK36 -> 1037077.523 | AO36: =+Y36/Population!J38 -> 0.5479847508 | AP36: =inVar24*$AF$2*Population!AX38 -> 0 | AQ36: =+((W36+W36-Control!$W$10)/2-20)/(83.2-20) -> 0.6082278481 | AR36: 0.5398343692 | AS36: 0.2037128637 | AT36: 0.4059278234 | AV36: =VLOOKUP(AT36,HDI!A$2:B$170,2) -> Haiti | AW36: =VLOOKUP(AT36,HDI!A$2:C$170,3) -> 145
A37: 2045 | B37: =+B$2+(Control!C$6-Control!C$5)*($A37-$A$2)/($A$42-$A$2) -> 10.65394 | C37: =+C$2+(Control!D$6-Control!D$5)*($A37-$A$2)/($A$42-$A$2) -> 11.31316 | D37: 10.98355 | E37: =+E$2+(Control!E$6-Control!E$5)*($A37-$A$2)/($A$42-$A$2)+((R37-R$2)/R$2)*(-0.79)*E$2 -> 5.84 | F37: =+F$2+(Control!F$6-Control!F$5)*($A37-$A$2)/($A$42-$A$2) -> 7.21 | G37: 6.525 | H37: =+H$2+(Control!H$6-Control!H$5)*($A37-$A$2)/($A$42-$A$2) -> 39.4 | I37: =+I$2+(Control!I$6-Control!I$5)*($A37-$A$2)/($A$42-$A$2) -> 6.1 | J37: =+J$2+(Control!J$6-Control!J$5)*($A37-$A$2)/($A$42-$A$2) -> 10.3 | K37: =+K$2+(Control!K$6-Control!K$5)*($A37-$A$2)/($A$42-$A$2) -> 0.7 | L37: =+L$2+(Control!$N$6-inVar11)*Interpolate!E40 -> 4.88 | M37: =+M$2+(Control!$P$6-inVar13)*Interpolate!E40 -> 2.06857469 | N37: =+N$2+(Control!$O$6-inVar12)*Interpolate!E40 -> 3.91 | O37: =+O$2+(Control!$L$6-inVar9)*Interpolate!E40 -> 3.57 | P37: =+P$2+(Control!$M$6-inVar10)*Interpolate!E40 -> 45.49 | Q37: =+EXP(LN(Control!C$14)-(-0.332*LN(B$2))+(-0.332*LN(B37))) -> 58.3 | R37: =Control!D$14/($Q$2/100*(20/(18.5+$J$2))*((7.63-0.11*$K$2/100)/7.3)*(1-1.08*(Control!$I$14*$H$2/100+Control!$J$14*$I$2/100)))*($Q37/100*(20/(18.5+$J37))*((7.63-0.11*$K37/100)/7.3)*(1-1.08*(0.95*$H37/100+0.5*I37/100))) -> 4.6 | S37: 54.8 | T37: 59 | U37: 84 | V37: 400 | W37: 58.44 | X37: =EXP(LN(Control!$L$14)-0.875*LN($AF$2)-0.77*LN(Population!$J$4/Population!$E$4)-0.352*LN($N$2)+0.875*LN(AF37)+0.77*LN(Population!J39/Population!E39)+0.352*LN(N37)) -> 158.7402821 | Y37: =MIN((1+(EXP(LN(Control!$N$14)-0.682*LN(IF(Population!$AI$5>0,Population!AI$5,0.00001))-0.483*LN(IF(AE$2>0,AE$2,0.0001))-0.593*LN($L$4)+0.682*LN(IF(Population!AI39>0,Population!AI39,0.0001))+0.483*LN(IF(AE36>0,AE36,0.001))+0.593*LN(L37))))*Y36,Population!AD39) -> 38535154.13 | Z37: =+Z36*(1-Control!$D$18)+X36*Population!J38 -> 1.634443885e+11 | AA37: =+MIN(Y37,Population!AD39)*EXP((0.14-G37*0.006)*G37) -> 74411996.27 | AB37: =EXP(LN(Control!$O$14*Population!$E$4/($Z$2^0.3*$AA$2^0.7))-0.623*LN(O$2)-1.187*LN(M$2)+0.219*LN(P$2)+0.623*LN(O37)+1.187*LN(M37)-0.219*LN(P37)) -> 96.93326774 | AC37: =+(1+MAX((AB37-AB36)/AB36,($AE$2-0.7*Initial_Emp_Growth_Rate-0.3*Control!$R$14)))*AC36 -> 96.93326774 | AD37: 7.254941701e+10 | AE37: 0.02668841189 | AF37: =+AD37/Population!E39 -> 610.5625169 | AG37: 0 | AH37: -0.003108803564 | AI37: 0.0258373199 | AJ37: 0.0286770402 | AK37: 970568.2232 | AL37: =Population!J39-'Base Scenario'!Y37 -> 32059594.82 | AM37: =+Population!AD39-Y37 -> 32059594.82 | AN37: =+Population!AN39-AK37 -> 1073758.746 | AO37: =+Y37/Population!J39 -> 0.5458643129 | AP37: =inVar24*$AF$2*Population!AX39 -> 0 | AQ37: =+((W37+W37-Control!$W$10)/2-20)/(83.2-20) -> 0.6082278481 | AR37: 0.5398343692 | AS37: 0.2032337003 | AT37: 0.4056093061 | AV37: =VLOOKUP(AT37,HDI!A$2:B$170,2) -> Haiti | AW37: =VLOOKUP(AT37,HDI!A$2:C$170,3) -> 145
A38: 2046 | B38: =+B$2+(Control!C$6-Control!C$5)*($A38-$A$2)/($A$42-$A$2) -> 10.65394 | C38: =+C$2+(Control!D$6-Control!D$5)*($A38-$A$2)/($A$42-$A$2) -> 11.31316 | D38: 10.98355 | E38: =+E$2+(Control!E$6-Control!E$5)*($A38-$A$2)/($A$42-$A$2)+((R38-R$2)/R$2)*(-0.79)*E$2 -> 5.84 | F38: =+F$2+(Control!F$6-Control!F$5)*($A38-$A$2)/($A$42-$A$2) -> 7.21 | G38: 6.525 | H38: =+H$2+(Control!H$6-Control!H$5)*($A38-$A$2)/($A$42-$A$2) -> 39.4 | I38: =+I$2+(Control!I$6-Control!I$5)*($A38-$A$2)/($A$42-$A$2) -> 6.1 | J38: =+J$2+(Control!J$6-Control!J$5)*($A38-$A$2)/($A$42-$A$2) -> 10.3 | K38: =+K$2+(Control!K$6-Control!K$5)*($A38-$A$2)/($A$42-$A$2) -> 0.7 | L38: =+L$2+(Control!$N$6-inVar11)*Interpolate!E41 -> 4.88 | M38: =+M$2+(Control!$P$6-inVar13)*Interpolate!E41 -> 2.06857469 | N38: =+N$2+(Control!$O$6-inVar12)*Interpolate!E41 -> 3.91 | O38: =+O$2+(Control!$L$6-inVar9)*Interpolate!E41 -> 3.57 | P38: =+P$2+(Control!$M$6-inVar10)*Interpolate!E41 -> 45.49 | Q38: =+EXP(LN(Control!C$14)-(-0.332*LN(B$2))+(-0.332*LN(B38))) -> 58.3 | R38: =Control!D$14/($Q$2/100*(20/(18.5+$J$2))*((7.63-0.11*$K$2/100)/7.3)*(1-1.08*(Control!$I$14*$H$2/100+Control!$J$14*$I$2/100)))*($Q38/100*(20/(18.5+$J38))*((7.63-0.11*$K38/100)/7.3)*(1-1.08*(0.95*$H38/100+0.5*I38/100))) -> 4.6 | S38: 54.8 | T38: 59 | U38: 84 | V38: 400 | W38: 58.44 | X38: =EXP(LN(Control!$L$14)-0.875*LN($AF$2)-0.77*LN(Population!$J$4/Population!$E$4)-0.352*LN($N$2)+0.875*LN(AF38)+0.77*LN(Population!J40/Population!E40)+0.352*LN(N38)) -> 158.2860513 | Y38: =MIN((1+(EXP(LN(Control!$N$14)-0.682*LN(IF(Population!$AI$5>0,Population!AI$5,0.00001))-0.483*LN(IF(AE$2>0,AE$2,0.0001))-0.593*LN($L$4)+0.682*LN(IF(Population!AI40>0,Population!AI40,0.0001))+0.483*LN(IF(AE37>0,AE37,0.001))+0.593*LN(L38))))*Y37,Population!AD40) -> 39530870.4 | Z38: =+Z37*(1-Control!$D$18)+X37*Population!J39 -> 1.681128433e+11 | AA38: =+MIN(Y38,Population!AD40)*EXP((0.14-G38*0.006)*G38) -> 76334740.25 | AB38: =EXP(LN(Control!$O$14*Population!$E$4/($Z$2^0.3*$AA$2^0.7))-0.623*LN(O$2)-1.187*LN(M$2)+0.219*LN(P$2)+0.623*LN(O38)+1.187*LN(M38)-0.219*LN(P38)) -> 96.93326774 | AC38: =+(1+MAX((AB38-AB37)/AB37,($AE$2-0.7*Initial_Emp_Growth_Rate-0.3*Control!$R$14)))*AC37 -> 96.93326774 | AD38: 7.448326127e+10 | AE38: 0.02665554519 | AF38: =+AD38/Population!E40 -> 608.6155041 | AG38: 0 | AH38: -0.003188883617 | AI38: 0.02583916673 | AJ38: 0.0285629557 | AK38: 995716.2725 | AL38: =Population!J40-'Base Scenario'!Y38 -> 33170789.46 | AM38: =+Population!AD40-Y38 -> 33170789.46 | AN38: =+Population!AN40-AK38 -> 1111194.634 | AO38: =+Y38/Population!J40 -> 0.5437409611 | AP38: =inVar24*$AF$2*Population!AX40 -> 0 | AQ38: =+((W38+W38-Control!$W$10)/2-20)/(83.2-20) -> 0.6082278481 | AR38: 0.5398343692 | AS38: 0.2027421744 | AT38: 0.4052820502 | AV38: =VLOOKUP(AT38,HDI!A$2:B$170,2) -> Haiti | AW38: =VLOOKUP(AT38,HDI!A$2:C$170,3) -> 145
A39: 2047 | B39: =+B$2+(Control!C$6-Control!C$5)*($A39-$A$2)/($A$42-$A$2) -> 10.65394 | C39: =+C$2+(Control!D$6-Control!D$5)*($A39-$A$2)/($A$42-$A$2) -> 11.31316 | D39: 10.98355 | E39: =+E$2+(Control!E$6-Control!E$5)*($A39-$A$2)/($A$42-$A$2)+((R39-R$2)/R$2)*(-0.79)*E$2 -> 5.84 | F39: =+F$2+(Control!F$6-Control!F$5)*($A39-$A$2)/($A$42-$A$2) -> 7.21 | G39: 6.525 | H39: =+H$2+(Control!H$6-Control!H$5)*($A39-$A$2)/($A$42-$A$2) -> 39.4 | I39: =+I$2+(Control!I$6-Control!I$5)*($A39-$A$2)/($A$42-$A$2) -> 6.1 | J39: =+J$2+(Control!J$6-Control!J$5)*($A39-$A$2)/($A$42-$A$2) -> 10.3 | K39: =+K$2+(Control!K$6-Control!K$5)*($A39-$A$2)/($A$42-$A$2) -> 0.7 | L39: =+L$2+(Control!$N$6-inVar11)*Interpolate!E42 -> 4.88 | M39: =+M$2+(Control!$P$6-inVar13)*Interpolate!E42 -> 2.06857469 | N39: =+N$2+(Control!$O$6-inVar12)*Interpolate!E42 -> 3.91 | O39: =+O$2+(Control!$L$6-inVar9)*Interpolate!E42 -> 3.57 | P39: =+P$2+(Control!$M$6-inVar10)*Interpolate!E42 -> 45.49 | Q39: =+EXP(LN(Control!C$14)-(-0.332*LN(B$2))+(-0.332*LN(B39))) -> 58.3 | R39: =Control!D$14/($Q$2/100*(20/(18.5+$J$2))*((7.63-0.11*$K$2/100)/7.3)*(1-1.08*(Control!$I$14*$H$2/100+Control!$J$14*$I$2/100)))*($Q39/100*(20/(18.5+$J39))*((7.63-0.11*$K39/100)/7.3)*(1-1.08*(0.95*$H39/100+0.5*I39/100))) -> 4.6 | S39: 54.8 | T39: 59 | U39: 84 | V39: 400 | W39: 58.44 | X39: =EXP(LN(Control!$L$14)-0.875*LN($AF$2)-0.77*LN(Population!$J$4/Population!$E$4)-0.352*LN($N$2)+0.875*LN(AF39)+0.77*LN(Population!J41/Population!E41)+0.352*LN(N39)) -> 157.8227568 | Y39: =MIN((1+(EXP(LN(Control!$N$14)-0.682*LN(IF(Population!$AI$5>0,Population!AI$5,0.00001))-0.483*LN(IF(AE$2>0,AE$2,0.0001))-0.593*LN($L$4)+0.682*LN(IF(Population!AI41>0,Population!AI41,0.0001))+0.483*LN(IF(AE38>0,AE38,0.001))+0.593*LN(L39))))*Y38,Population!AD41) -> 40552285.38 | Z39: =+Z38*(1-Control!$D$18)+X38*Population!J40 -> 1.728959882e+11 | AA39: =+MIN(Y39,Population!AD41)*EXP((0.14-G39*0.006)*G39) -> 78307108.83 | AB39: =EXP(LN(Control!$O$14*Population!$E$4/($Z$2^0.3*$AA$2^0.7))-0.623*LN(O$2)-1.187*LN(M$2)+0.219*LN(P$2)+0.623*LN(O39)+1.187*LN(M39)-0.219*LN(P39)) -> 96.93326774 | AC39: =+(1+MAX((AB39-AB38)/AB38,($AE$2-0.7*Initial_Emp_Growth_Rate-0.3*Control!$R$14)))*AC38 -> 96.93326774 | AD39: 7.646613888e+10 | AE39: 0.02662178832 | AF39: =+AD39/Population!E41 -> 606.6343146 | AG39: 0 | AH39: -0.003255239848 | AI39: 0.02583841357 | AJ39: 0.02845198995 | AK39: 1021414.978 | AL39: =Population!J41-'Base Scenario'!Y39 -> 34320968.04 | AM39: =+Population!AD41-Y39 -> 34320968.04 | AN39: =+Population!AN41-AK39 -> 1150178.584 | AO39: =+Y39/Population!J41 -> 0.5416124387 | AP39: =inVar24*$AF$2*Population!AX41 -> 0 | AQ39: =+((W39+W39-Control!$W$10)/2-20)/(83.2-20) -> 0.6082278481 | AR39: 0.5398343692 | AS39: 0.2022404038 | AT39: 0.4049474275 | AV39: =VLOOKUP(AT39,HDI!A$2:B$170,2) -> Haiti | AW39: =VLOOKUP(AT39,HDI!A$2:C$170,3) -> 145
A40: 2048 | B40: =+B$2+(Control!C$6-Control!C$5)*($A40-$A$2)/($A$42-$A$2) -> 10.65394 | C40: =+C$2+(Control!D$6-Control!D$5)*($A40-$A$2)/($A$42-$A$2) -> 11.31316 | D40: 10.98355 | E40: =+E$2+(Control!E$6-Control!E$5)*($A40-$A$2)/($A$42-$A$2)+((R40-R$2)/R$2)*(-0.79)*E$2 -> 5.84 | F40: =+F$2+(Control!F$6-Control!F$5)*($A40-$A$2)/($A$42-$A$2) -> 7.21 | G40: 6.525 | H40: =+H$2+(Control!H$6-Control!H$5)*($A40-$A$2)/($A$42-$A$2) -> 39.4 | I40: =+I$2+(Control!I$6-Control!I$5)*($A40-$A$2)/($A$42-$A$2) -> 6.1 | J40: =+J$2+(Control!J$6-Control!J$5)*($A40-$A$2)/($A$42-$A$2) -> 10.3 | K40: =+K$2+(Control!K$6-Control!K$5)*($A40-$A$2)/($A$42-$A$2) -> 0.7 | L40: =+L$2+(Control!$N$6-inVar11)*Interpolate!E43 -> 4.88 | M40: =+M$2+(Control!$P$6-inVar13)*Interpolate!E43 -> 2.06857469 | N40: =+N$2+(Control!$O$6-inVar12)*Interpolate!E43 -> 3.91 | O40: =+O$2+(Control!$L$6-inVar9)*Interpolate!E43 -> 3.57 | P40: =+P$2+(Control!$M$6-inVar10)*Interpolate!E43 -> 45.49 | Q40: =+EXP(LN(Control!C$14)-(-0.332*LN(B$2))+(-0.332*LN(B40))) -> 58.3 | R40: =Control!D$14/($Q$2/100*(20/(18.5+$J$2))*((7.63-0.11*$K$2/100)/7.3)*(1-1.08*(Control!$I$14*$H$2/100+Control!$J$14*$I$2/100)))*($Q40/100*(20/(18.5+$J40))*((7.63-0.11*$K40/100)/7.3)*(1-1.08*(0.95*$H40/100+0.5*I40/100))) -> 4.6 | S40: 54.8 | T40: 59 | U40: 84 | V40: 400 | W40: 58.44 | X40: =EXP(LN(Control!$L$14)-0.875*LN($AF$2)-0.77*LN(Population!$J$4/Population!$E$4)-0.352*LN($N$2)+0.875*LN(AF40)+0.77*LN(Population!J42/Population!E42)+0.352*LN(N40)) -> 157.3539217 | Y40: =MIN((1+(EXP(LN(Control!$N$14)-0.682*LN(IF(Population!$AI$5>0,Population!AI$5,0.00001))-0.483*LN(IF(AE$2>0,AE$2,0.0001))-0.593*LN($L$4)+0.682*LN(IF(Population!AI42>0,Population!AI42,0.0001))+0.483*LN(IF(AE39>0,AE39,0.001))+0.593*LN(L40))))*Y39,Population!AD42) -> 41600038.7 | Z40: =+Z39*(1-Control!$D$18)+X39*Population!J41 -> 1.77796852e+11 | AA40: =+MIN(Y40,Population!AD42)*EXP((0.14-G40*0.006)*G40) -> 80330337.17 | AB40: =EXP(LN(Control!$O$14*Population!$E$4/($Z$2^0.3*$AA$2^0.7))-0.623*LN(O$2)-1.187*LN(M$2)+0.219*LN(P$2)+0.623*LN(O40)+1.187*LN(M40)-0.219*LN(P40)) -> 96.93326774 | AC40: =+(1+MAX((AB40-AB39)/AB39,($AE$2-0.7*Initial_Emp_Growth_Rate-0.3*Control!$R$14)))*AC39 -> 96.93326774 | AD40: 7.849930046e+10 | AE40: 0.02658904462 | AF40: =+AD40/Population!E42 -> 604.6276818 | AG40: 0 | AH40: -0.003307812973 | AI40: 0.02583709658 | AJ40: 0.02834573423 | AK40: 1047753.314 | AL40: =Population!J42-'Base Scenario'!Y40 -> 35511514.37 | AM40: =+Population!AD42-Y40 -> 35511514.37 | AN40: =+Population!AN42-AK40 -> 1190546.327 | AO40: =+Y40/Population!J42 -> 0.5394786779 | AP40: =inVar24*$AF$2*Population!AX42 -> 0 | AQ40: =+((W40+W40-Control!$W$10)/2-20)/(83.2-20) -> 0.6082278481 | AR40: 0.5398343692 | AS40: 0.201730516 | AT40: 0.4046068241 | AV40: =VLOOKUP(AT40,HDI!A$2:B$170,2) -> Haiti | AW40: =VLOOKUP(AT40,HDI!A$2:C$170,3) -> 145
A41: 2049 | B41: =+B$2+(Control!C$6-Control!C$5)*($A41-$A$2)/($A$42-$A$2) -> 10.65394 | C41: =+C$2+(Control!D$6-Control!D$5)*($A41-$A$2)/($A$42-$A$2) -> 11.31316 | D41: 10.98355 | E41: =+E$2+(Control!E$6-Control!E$5)*($A41-$A$2)/($A$42-$A$2)+((R41-R$2)/R$2)*(-0.79)*E$2 -> 5.84 | F41: =+F$2+(Control!F$6-Control!F$5)*($A41-$A$2)/($A$42-$A$2) -> 7.21 | G41: 6.525 | H41: =+H$2+(Control!H$6-Control!H$5)*($A41-$A$2)/($A$42-$A$2) -> 39.4 | I41: =+I$2+(Control!I$6-Control!I$5)*($A41-$A$2)/($A$42-$A$2) -> 6.1 | J41: =+J$2+(Control!J$6-Control!J$5)*($A41-$A$2)/($A$42-$A$2) -> 10.3 | K41: =+K$2+(Control!K$6-Control!K$5)*($A41-$A$2)/($A$42-$A$2) -> 0.7 | L41: =+L$2+(Control!$N$6-inVar11)*Interpolate!E44 -> 4.88 | M41: =+M$2+(Control!$P$6-inVar13)*Interpolate!E44 -> 2.06857469 | N41: =+N$2+(Control!$O$6-inVar12)*Interpolate!E44 -> 3.91 | O41: =+O$2+(Control!$L$6-inVar9)*Interpolate!E44 -> 3.57 | P41: =+P$2+(Control!$M$6-inVar10)*Interpolate!E44 -> 45.49 | Q41: =+EXP(LN(Control!C$14)-(-0.332*LN(B$2))+(-0.332*LN(B41))) -> 58.3 | R41: =Control!D$14/($Q$2/100*(20/(18.5+$J$2))*((7.63-0.11*$K$2/100)/7.3)*(1-1.08*(Control!$I$14*$H$2/100+Control!$J$14*$I$2/100)))*($Q41/100*(20/(18.5+$J41))*((7.63-0.11*$K41/100)/7.3)*(1-1.08*(0.95*$H41/100+0.5*I41/100))) -> 4.6 | S41: 54.8 | T41: 59 | U41: 84 | V41: 400 | W41: 58.44 | X41: =EXP(LN(Control!$L$14)-0.875*LN($AF$2)-0.77*LN(Population!$J$4/Population!$E$4)-0.352*LN($N$2)+0.875*LN(AF41)+0.77*LN(Population!J43/Population!E43)+0.352*LN(N41)) -> 156.8777919 | Y41: =MIN((1+(EXP(LN(Control!$N$14)-0.682*LN(IF(Population!$AI$5>0,Population!AI$5,0.00001))-0.483*LN(IF(AE$2>0,AE$2,0.0001))-0.593*LN($L$4)+0.682*LN(IF(Population!AI43>0,Population!AI43,0.0001))+0.483*LN(IF(AE40>0,AE40,0.001))+0.593*LN(L41))))*Y40,Population!AD43) -> 42674680.43 | Z41: =+Z40*(1-Control!$D$18)+X40*Population!J42 -> 1.828187832e+11 | AA41: =+MIN(Y41,Population!AD43)*EXP((0.14-G41*0.006)*G41) -> 82405487.46 | AB41: =EXP(LN(Control!$O$14*Population!$E$4/($Z$2^0.3*$AA$2^0.7))-0.623*LN(O$2)-1.187*LN(M$2)+0.219*LN(P$2)+0.623*LN(O41)+1.187*LN(M41)-0.219*LN(P41)) -> 96.93326774 | AC41: =+(1+MAX((AB41-AB40)/AB40,($AE$2-0.7*Initial_Emp_Growth_Rate-0.3*Control!$R$14)))*AC40 -> 96.93326774 | AD41: 8.058392017e+10 | AE41: 0.02655590168 | AF41: =+AD41/Population!E43 -> 602.5931945 | AG41: 0 | AH41: -0.003364859595 | AI41: 0.02583270988 | AJ41: 0.02824533252 | AK41: 1074641.731 | AL41: =Population!J43-'Base Scenario'!Y41 -> 36743520.92 | AM41: =+Population!AD43-Y41 -> 36743520.92 | AN41: =+Population!AN43-AK41 -> 1232006.551 | AO41: =+Y41/Population!J43 -> 0.537341311 | AP41: =inVar24*$AF$2*Population!AX43 -> 0 | AQ41: =+((W41+W41-Control!$W$10)/2-20)/(83.2-20) -> 0.6082278481 | AR41: 0.5398343692 | AS41: 0.2012118198 | AT41: 0.4042597473 | AV41: =VLOOKUP(AT41,HDI!A$2:B$170,2) -> Haiti | AW41: =VLOOKUP(AT41,HDI!A$2:C$170,3) -> 145
A42: 2050 | B42: =+Control!C6 -> 10.65394 | C42: =+Control!D6 -> 11.31316 | D42: 10.98355 | E42: =+E$2+(Control!E$6-Control!E$5)*($A42-$A$2)/($A$42-$A$2)+((R42-R$2)/R$2)*(-0.79)*E$2 -> 5.84 | F42: =+F$2+(Control!F$6-Control!F$5)*($A42-$A$2)/($A$42-$A$2) -> 7.21 | G42: 6.525 | H42: =+H$2+(Control!H$6-Control!H$5)*($A42-$A$2)/($A$42-$A$2) -> 39.4 | I42: =+I$2+(Control!I$6-Control!I$5)*($A42-$A$2)/($A$42-$A$2) -> 6.1 | J42: =+J$2+(Control!J$6-Control!J$5)*($A42-$A$2)/($A$42-$A$2) -> 10.3 | K42: =+K$2+(Control!K$6-Control!K$5)*($A42-$A$2)/($A$42-$A$2) -> 0.7 | L42: =+L$2+(Control!$N$6-inVar11)*Interpolate!E45 -> 4.88 | M42: =+M$2+(Control!$P$6-inVar13)*Interpolate!E45 -> 2.06857469 | N42: =+N$2+(Control!$O$6-inVar12)*Interpolate!E45 -> 3.91 | O42: =+O$2+(Control!$L$6-inVar9)*Interpolate!E45 -> 3.57 | P42: =+P$2+(Control!$M$6-inVar10)*Interpolate!E45 -> 45.49 | Q42: =+EXP(LN(Control!C$14)-(-0.332*LN(B$2))+(-0.332*LN(B42))) -> 58.3 | R42: =Control!D$14/($Q$2/100*(20/(18.5+$J$2))*((7.63-0.11*$K$2/100)/7.3)*(1-1.08*(Control!$I$14*$H$2/100+Control!$J$14*$I$2/100)))*($Q42/100*(20/(18.5+$J42))*((7.63-0.11*$K42/100)/7.3)*(1-1.08*(0.95*$H42/100+0.5*I42/100))) -> 4.6 | S42: 54.8 | T42: 59 | U42: 84 | V42: 400 | W42: 58.44 | X42: =EXP(LN(Control!$L$14)-0.875*LN($AF$2)-0.77*LN(Population!$J$4/Population!$E$4)-0.352*LN($N$2)+0.875*LN(AF42)+0.77*LN(Population!J44/Population!E44)+0.352*LN(N42)) -> 156.3948752 | Y42: =MIN((1+(EXP(LN(Control!$N$14)-0.682*LN(IF(Population!$AI$5>0,Population!AI$5,0.00001))-0.483*LN(IF(AE$2>0,AE$2,0.0001))-0.593*LN($L$4)+0.682*LN(IF(Population!AI44>0,Population!AI44,0.0001))+0.483*LN(IF(AE41>0,AE41,0.001))+0.593*LN(L42))))*Y41,Population!AD44) -> 43774618.05 | Z42: =+Z41*(1-Control!$D$18)+X41*Population!J43 -> 1.879649839e+11 | AA42: =+MIN(Y42,Population!AD44)*EXP((0.14-G42*0.006)*G42) -> 84529484.53 | AB42: =EXP(LN(Control!$O$14*Population!$E$4/($Z$2^0.3*$AA$2^0.7))-0.623*LN(O$2)-1.187*LN(M$2)+0.219*LN(P$2)+0.623*LN(O42)+1.187*LN(M42)-0.219*LN(P42)) -> 96.93326774 | AC42: =+(1+MAX((AB42-AB41)/AB41,($AE$2-0.7*Initial_Emp_Growth_Rate-0.3*Control!$R$14)))*AC41 -> 96.93326774 | AD42: 8.271831775e+10 | AE42: 0.02648664371 | AF42: =+AD42/Population!E44 -> 600.5469455 | AG42: 0 | AH42: -0.003395738611 | AI42: 0.02577494693 | AJ42: 0.02814919041 | AK42: 1099937.623 | AL42: =Population!J44-'Base Scenario'!Y42 -> 38013538.33 | AM42: =+Population!AD44-Y42 -> 38013538.33 | AN42: =+Population!AN44-AK42 -> 1270017.408 | AO42: =+Y42/Population!J44 -> 0.5352195231 | AP42: =inVar24*$AF$2*Population!AX44 -> 0 | AQ42: =+((W42+W42-Control!$W$10)/2-20)/(83.2-20) -> 0.6082278481 | AR42: 0.5398343692 | AS42: 0.2006883555 | AT42: 0.4039088748 | AV42: =VLOOKUP(AT42,HDI!A$2:B$170,2) -> Angola | AW42: =VLOOKUP(AT42,HDI!A$2:C$170,3) -> 146

Sheet PolicyScenario-1
B1: Expected Yrs Education Female | C1: Expected Yrs Education Male | D1: Expected Yrs Both, Average | E1: Mean Yrs Education Female | F1: Mean Yrs Education Male | G1: Mean Yrs Education, Both | H1: CPR-M | I1: CPR-T | J1: PPI | K1: Sterility | L1: GCI 7A: Labor Market Flexibility | M1: GCI 9B: ICT Use | N1: GCI 8A: Financial Market Efficiency | O1: GCI 1A: Public Institutions | P1: GCI 6.14: Imports as a %GDP | Q1: Percent Married/ In-Union | R1: TFR | S1: Percent Births at Any Risk | T1: IMR | U1: U5MR | V1: MMR | W1: FemaleLife Expectancy | X1: Capital Formation per capita | Y1: Employment | Z1: Capital Stock | AA1: H | AB1: TFP | AC1: TFP 2 | AD1: GDP | AE1: GDP Growth Rate | AF1: TFP Growth Rate | AG1: GDP Per Capita | AH1: GDP/Pop Growth Rate | AI1: Employment Growth Rate | AJ1: Capital Stock Growth Rate | AK1: Annual Change in Employment | AL1: Annual Gap Pop15+ - Employment | AM1: Annual Gap Labor Force - Employment | AN1: Gap between Population and Employment Growth | AO1: Employment/Pop15+ | AP1: Primary Education Costs | AQ1: LE Index | AR1: Ed Index | AS1: Income Index | AT1: HDI | AV1: Country Comparison
A2: =Control!B5 -> 2010 | B2: =+Control!C5 -> 10.65394 | C2: =+Control!D5 -> 11.31316 | D2: =AVERAGE(B2:C2) -> 10.98355 | E2: =+Control!E5 -> 5.84 | F2: =+Control!F5 -> 7.21 | G2: =AVERAGE(E2:F2) -> 6.525 | H2: =+Control!H5 -> 39.4 | I2: =+Control!I5 -> 6.1 | J2: =+Control!J5 -> 10.3 | K2: =+Control!K5 -> 0.7 | L2: =inVar11 -> 4.88 | M2: =inVar13 -> 2.06857469 | N2: =inVar12 -> 3.91 | O2: =inVar9 -> 3.57 | P2: =inVar10 -> 45.49 | Q2: =+EXP(LN(Control!C$14)-(-0.332*LN(B$2))+(-0.332*LN(B2))) -> 58.3 | R2: =Control!D$14/($Q$2/100*(20/(18.5+$J$2))*((7.63-0.11*$K$2/100)/7.3)*(1-1.08*(Control!$I$14*$H$2/100+Control!$J$14*$I$2/100)))*($Q2/100*(20/(18.5+$J2))*((7.63-0.11*$K2/100)/7.3)*(1-1.08*(0.95*$H2/100+0.5*I2/100))) -> 4.6 | S2: =+Control!E14 -> 54.8 | T2: =+Control!F14 -> 59 | U2: =+Control!G14 -> 84 | V2: =(Control!H$14/(EXP(4.7651*$S$2)))*(EXP(4.7651*S2)) -> 400 | W2: =+Control!K14 -> 58.44 | X2: =EXP(LN(Control!$L$14)-0.875*LN($AG$2)-0.77*LN(Population!$G$4/Population!$B$4)-0.352*LN($N$2)+0.875*LN(AG2)+0.77*LN(Population!G4/Population!B4)+0.352*LN(N2)) -> 159.9647371 | Y2: =Control!M14 -> 15146459.96 | Z2: =+Control!P14*Population!AD4 -> 5.556426439e+10 | AA2: =+MIN(Y2,Population!AA4)*EXP((0.14-G2*0.006)*G2) -> 29248055.38 | AB2: =EXP(LN(Control!$O$14*Population!$E$4/($Z$2^0.3*$AA$2^0.7))-0.623*LN(O$2)-1.187*LN(M$2)+0.219*LN(P$2)+0.623*LN(O2)+1.187*LN(M2)-0.219*LN(P2)) -> 96.93326774 | AC2: =+AB2 -> 96.93326774 | AD2: =+AC2*Z2^0.3*AA2^0.7 -> 2.730105449e+10 | AE2: =+Control!Q14 -> 0.04347250075 | AG2: =+GDP_pop -> 632.6971 | AL2: =Population!G4-'PolicyScenario-1'!Y2 -> 9719855.039 | AM2: =+Population!AA4-Y2 -> 9719855.039 | AO2: =+Y2/Population!G4 -> 0.6091155831 | AP2: =inVar24*$AG$2*Population!AU4 -> 0 | AQ2: =+((W2+W2-Control!$W$10)/2-20)/(83.2-20) -> 0.6082278481 | AR2: =SQRT(G2/13.2*D2/20.6)/0.951 -> 0.5398343692 | AS2: =(LN(AG2)-LN(163))/(LN(108211)-LN(163)) -> 0.2087139433 | AT2: =(AQ2*AR2*AS2)^0.333333 -> 0.4092227973 | AV2: =VLOOKUP(AT2,HDI!A$2:B$170,2) -> Haiti | AW2: =VLOOKUP(AT2,HDI!A$2:C$170,3) -> 145
A3: =+A2+1 -> 2011 | B3: =+B$2+(Control!C$7-Control!C$5)*($A3-$A$2)/($A$42-$A$2) -> 10.65394 | C3: =+C$2+(Control!D$7-Control!D$5)*($A3-$A$2)/($A$42-$A$2) -> 11.31316 | D3: =AVERAGE(B3:C3) -> 10.98355 | E3: =+E$2+(Control!E$7-Control!E$5)*($A3-$A$2)/($A$42-$A$2)+((R3-R$2)/R$2)*(-0.79)*E$2 -> 5.84 | F3: =+F$2+(Control!F$7-Control!F$5)*($A3-$A$2)/($A$42-$A$2) -> 7.21 | G3: =AVERAGE(E3:F3) -> 6.525 | H3: =+H$2+(Control!H$7-Control!H$5)*($A3-$A$2)/($A$42-$A$2) -> 39.4 | I3: =+I$2+(Control!I$7-Control!I$5)*($A3-$A$2)/($A$42-$A$2) -> 6.1 | J3: =+J$2+(Control!J$7-Control!J$5)*($A3-$A$2)/($A$42-$A$2) -> 10.3 | K3: =+K$2+(Control!K$7-Control!K$5)*($A3-$A$2)/($A$42-$A$2) -> 0.7 | L3: =+L$2+(Control!$N$7-inVar11)*Interpolate!E6 -> 4.88 | M3: =+M$2+(Control!$P$7-inVar13)*Interpolate!E6 -> 2.06857469 | N3: =+N$2+(Control!$O$7-inVar12)*Interpolate!E6 -> 3.91 | O3: =+O$2+(Control!$L$7-inVar9)*Interpolate!E6 -> 3.57 | P3: =+P$2+(Control!$M$7-inVar10)*Interpolate!E6 -> 45.49 | Q3: =+EXP(LN(Control!C$14)-(-0.332*LN(B$2))+(-0.332*LN(B3))) -> 58.3 | R3: =Control!D$14/($Q$2/100*(20/(18.5+$J$2))*((7.63-0.11*$K$2/100)/7.3)*(1-1.08*(Control!$I$14*$H$2/100+Control!$J$14*$I$2/100)))*($Q3/100*(20/(18.5+$J3))*((7.63-0.11*$K3/100)/7.3)*(1-1.08*(0.95*$H3/100+0.5*I3/100))) -> 4.6 | S3: =S$2-(R$2-R3)*7.28/100 -> 54.8 | T3: =T$2-(S$2-S3)*1.49*100 -> 59 | U3: =IF(U$2-(S$2-S3)*3.13*100<T3,T3,U$2-(S$2-S3)*3.13*100) -> 84 | V3: =($V$2/(EXP(4.7651*$S$2)))*(EXP(4.7651*S3)) -> 400 | W3: =IF(U3>50.9,EXP(+LN(W2)-0.287*(LN(U3)-LN(U2))),EXP(+LN(W2)-0.059*(LN(U3)-LN(U2)))) -> 58.44 | X3: =EXP(LN(Control!$L$14)-0.875*LN($AG$2)-0.77*LN(Population!$G$4/Population!$B$4)-0.352*LN($N$2)+0.875*LN(AG3)+0.77*LN(Population!G5/Population!B5)+0.352*LN(N3)) -> 160.6538718 | Y3: =+MIN((1+(EXP(LN(Control!$N$14)-0.682*LN(IF(Population!$AF$5>0,Population!AF$5,0.00001))-0.483*LN(IF(AE$2>0,AE$2,0.0001))-0.593*LN($L$4)+0.682*LN(IF(Population!AF5>0,Population!AF5,0.0001))+0.483*LN(IF(AE2>0,AE2,0.001))+0.593*LN(L3))))*Y2,Population!AA5) -> 15650160.74 | Z3: =+Z2*(1-Control!$D$18)+X2*Population!G4 -> 5.731942735e+10 | AA3: =+MIN(Y3,Population!AA5)*EXP((0.14-G3*0.006)*G3) -> 30220709.61 | AB3: =EXP(LN(Control!$O$14*Population!$E$4/($Z$2^0.3*$AA$2^0.7))-0.623*LN(O$2)-1.187*LN(M$2)+0.219*LN(P$2)+0.623*LN(O3)+1.187*LN(M3)-0.219*LN(P3)) -> 96.93326774 | AC3: =+(1+MAX((AB3-AB2)/AB2,($AE$2-0.7*Initial_Emp_Growth_Rate-0.3*Control!$R$14)))*AC2 -> 96.93326774 | AD3: =+AC3*Z3^0.3*AA3^0.7 -> 2.819529656e+10 | AE3: =+(AD3-AD2)/AD2 -> 0.03275485457 | AF3: =+(AA3-AA2)/AA2 -> 0.03325534691 | AG3: =+AD3/Population!B5 -> 634.9778887 | AH3: =(AD3-AD2)/AD2 -> 0.03275485457 | AI3: =+(Y3-Y2)/Y2 -> 0.03325534691 | AJ3: =(Z3-Z2)/Z2 -> 0.03158798169 | AK3: =+Y3-Y2 -> 503700.7804 | AL3: =Population!G5-'PolicyScenario-1'!Y3 -> 9976655.38 | AM3: =+Population!AA5-Y3 -> 9976655.38 | AN3: =+Population!AK5-AK3 -> 256800.3407 | AO3: =+Y3/Population!G5 -> 0.6106946984 | AP3: =inVar24*$AG$2*Population!AU5 -> 0 | AQ3: =+((W3+W3-Control!$W$10)/2-20)/(83.2-20) -> 0.6082278481 | AR3: 0.5398343692 | AS3: =(LN(AG3)-LN(163))/(LN(108211)-LN(163)) -> 0.2092677038 | AT3: =(AQ3*AR3*AS3)^0.333333 -> 0.4095843944 | AV3: =VLOOKUP(AT3,HDI!A$2:B$170,2) -> Haiti | AW3: =VLOOKUP(AT3,HDI!A$2:C$170,3) -> 145
A4: 2012 | B4: =+B$2+(Control!C$7-Control!C$5)*($A4-$A$2)/($A$42-$A$2) -> 10.65394 | C4: =+C$2+(Control!D$7-Control!D$5)*($A4-$A$2)/($A$42-$A$2) -> 11.31316 | D4: 10.98355 | E4: =+E$2+(Control!E$7-Control!E$5)*($A4-$A$2)/($A$42-$A$2)+((R4-R$2)/R$2)*(-0.79)*E$2 -> 5.84 | F4: =+F$2+(Control!F$7-Control!F$5)*($A4-$A$2)/($A$42-$A$2) -> 7.21 | G4: 6.525 | H4: =+H$2+(Control!H$7-Control!H$5)*($A4-$A$2)/($A$42-$A$2) -> 39.4 | I4: =+I$2+(Control!I$7-Control!I$5)*($A4-$A$2)/($A$42-$A$2) -> 6.1 | J4: =+J$2+(Control!J$7-Control!J$5)*($A4-$A$2)/($A$42-$A$2) -> 10.3 | K4: =+K$2+(Control!K$7-Control!K$5)*($A4-$A$2)/($A$42-$A$2) -> 0.7 | L4: =+L$2+(Control!$N$7-inVar11)*Interpolate!E7 -> 4.88 | M4: =+M$2+(Control!$P$7-inVar13)*Interpolate!E7 -> 2.06857469 | N4: =+N$2+(Control!$O$7-inVar12)*Interpolate!E7 -> 3.91 | O4: =+O$2+(Control!$L$7-inVar9)*Interpolate!E7 -> 3.57 | P4: =+P$2+(Control!$M$7-inVar10)*Interpolate!E7 -> 45.49 | Q4: =+EXP(LN(Control!C$14)-(-0.332*LN(B$2))+(-0.332*LN(B4))) -> 58.3 | R4: =Control!D$14/($Q$2/100*(20/(18.5+$J$2))*((7.63-0.11*$K$2/100)/7.3)*(1-1.08*(Control!$I$14*$H$2/100+Control!$J$14*$I$2/100)))*($Q4/100*(20/(18.5+$J4))*((7.63-0.11*$K4/100)/7.3)*(1-1.08*(0.95*$H4/100+0.5*I4/100))) -> 4.6 | S4: =S$2-(R$2-R4)*7.28/100 -> 54.8 | T4: =T$2-(S$2-S4)*1.49*100 -> 59 | U4: =IF(U$2-(S$2-S4)*3.13*100<T4,T4,U$2-(S$2-S4)*3.13*100) -> 84 | V4: =($V$2/(EXP(4.7651*$S$2)))*(EXP(4.7651*S4)) -> 400 | W4: =IF(U4>50.9,EXP(+LN(W3)-0.287*(LN(U4)-LN(U3))),EXP(+LN(W3)-0.059*(LN(U4)-LN(U3)))) -> 58.44 | X4: =EXP(LN(Control!$L$14)-0.875*LN($AG$2)-0.77*LN(Population!$G$4/Population!$B$4)-0.352*LN($N$2)+0.875*LN(AG4)+0.77*LN(Population!G6/Population!B6)+0.352*LN(N4)) -> 160.9252698 | Y4: =+MIN((1+(EXP(LN(Control!$N$14)-0.682*LN(IF(Population!$AF$5>0,Population!AF$5,0.00001))-0.483*LN(IF(AE$2>0,AE$2,0.0001))-0.593*LN($L$4)+0.682*LN(IF(Population!AF6>0,Population!AF6,0.0001))+0.483*LN(IF(AE3>0,AE3,0.001))+0.593*LN(L4))))*Y3,Population!AA6) -> 16104258.14 | Z4: =+Z3*(1-Control!$D$18)+X3*Population!G5 -> 5.914369749e+10 | AA4: =+MIN(Y4,Population!AA6)*EXP((0.14-G4*0.006)*G4) -> 31097578.91 | AB4: =EXP(LN(Control!$O$14*Population!$E$4/($Z$2^0.3*$AA$2^0.7))-0.623*LN(O$2)-1.187*LN(M$2)+0.219*LN(P$2)+0.623*LN(O4)+1.187*LN(M4)-0.219*LN(P4)) -> 96.93326774 | AC4: =+(1+MAX((AB4-AB3)/AB3,($AE$2-0.7*Initial_Emp_Growth_Rate-0.3*Control!$R$14)))*AC3 -> 96.93326774 | AD4: =+AC4*Z4^0.3*AA4^0.7 -> 2.903715081e+10 | AE4: =+(AD4-AD3)/AD3 -> 0.02985796748 | AF4: =+(AA4-AA3)/AA3 -> 0.02901551012 | AG4: =+AD4/Population!B6 -> 635.4158199 | AH4: =(AD4-AD3)/AD3 -> 0.02985796748 | AI4: =+(Y4-Y3)/Y3 -> 0.02901551012 | AJ4: =(Z4-Z3)/Z3 -> 0.03182638456 | AK4: =+Y4-Y3 -> 454097.3973 | AL4: =Population!G6-'PolicyScenario-1'!Y4 -> 10306710.32 | AM4: =+Population!AA6-Y4 -> 10306710.32 | AN4: =+Population!AK6-AK4 -> 330054.9386 | AO4: =+Y4/Population!G6 -> 0.6097564413 | AP4: =inVar24*$AG$2*Population!AU6 -> 0 | AQ4: =+((W4+W4-Control!$W$10)/2-20)/(83.2-20) -> 0.6082278481 | AR4: 0.5398343692 | AS4: 0.209373803 | AT4: 0.4096536027 | AV4: =VLOOKUP(AT4,HDI!A$2:B$170,2) -> Haiti | AW4: =VLOOKUP(AT4,HDI!A$2:C$170,3) -> 145
A5: 2013 | B5: =+B$2+(Control!C$7-Control!C$5)*($A5-$A$2)/($A$42-$A$2) -> 10.65394 | C5: =+C$2+(Control!D$7-Control!D$5)*($A5-$A$2)/($A$42-$A$2) -> 11.31316 | D5: 10.98355 | E5: =+E$2+(Control!E$7-Control!E$5)*($A5-$A$2)/($A$42-$A$2)+((R5-R$2)/R$2)*(-0.79)*E$2 -> 5.84 | F5: =+F$2+(Control!F$7-Control!F$5)*($A5-$A$2)/($A$42-$A$2) -> 7.21 | G5: 6.525 | H5: =+H$2+(Control!H$7-Control!H$5)*($A5-$A$2)/($A$42-$A$2) -> 39.4 | I5: =+I$2+(Control!I$7-Control!I$5)*($A5-$A$2)/($A$42-$A$2) -> 6.1 | J5: =+J$2+(Control!J$7-Control!J$5)*($A5-$A$2)/($A$42-$A$2) -> 10.3 | K5: =+K$2+(Control!K$7-Control!K$5)*($A5-$A$2)/($A$42-$A$2) -> 0.7 | L5: =+L$2+(Control!$N$7-inVar11)*Interpolate!E8 -> 4.88 | M5: =+M$2+(Control!$P$7-inVar13)*Interpolate!E8 -> 2.06857469 | N5: =+N$2+(Control!$O$7-inVar12)*Interpolate!E8 -> 3.91 | O5: =+O$2+(Control!$L$7-inVar9)*Interpolate!E8 -> 3.57 | P5: =+P$2+(Control!$M$7-inVar10)*Interpolate!E8 -> 45.49 | Q5: =+EXP(LN(Control!C$14)-(-0.332*LN(B$2))+(-0.332*LN(B5))) -> 58.3 | R5: =Control!D$14/($Q$2/100*(20/(18.5+$J$2))*((7.63-0.11*$K$2/100)/7.3)*(1-1.08*(Control!$I$14*$H$2/100+Control!$J$14*$I$2/100)))*($Q5/100*(20/(18.5+$J5))*((7.63-0.11*$K5/100)/7.3)*(1-1.08*(0.95*$H5/100+0.5*I5/100))) -> 4.6 | S5: 54.8 | T5: 59 | U5: 84 | V5: =($V$2/(EXP(4.7651*$S$2)))*(EXP(4.7651*S5)) -> 400 | W5: 58.44 | X5: =EXP(LN(Control!$L$14)-0.875*LN($AG$2)-0.77*LN(Population!$G$4/Population!$B$4)-0.352*LN($N$2)+0.875*LN(AG5)+0.77*LN(Population!G7/Population!B7)+0.352*LN(N5)) -> 161.0962645 | Y5: =+MIN((1+(EXP(LN(Control!$N$14)-0.682*LN(IF(Population!$AF$5>0,Population!AF$5,0.00001))-0.483*LN(IF(AE$2>0,AE$2,0.0001))-0.593*LN($L$4)+0.682*LN(IF(Population!AF7>0,Population!AF7,0.0001))+0.483*LN(IF(AE4>0,AE4,0.001))+0.593*LN(L5))))*Y4,Population!AA7) -> 16552084.93 | Z5: =+Z4*(1-Control!$D$18)+X4*Population!G6 -> 6.102814182e+10 | AA5: =+MIN(Y5,Population!AA7)*EXP((0.14-G5*0.006)*G5) -> 31962339.58 | AB5: =EXP(LN(Control!$O$14*Population!$E$4/($Z$2^0.3*$AA$2^0.7))-0.623*LN(O$2)-1.187*LN(M$2)+0.219*LN(P$2)+0.623*LN(O5)+1.187*LN(M5)-0.219*LN(P5)) -> 96.93326774 | AC5: =+(1+MAX((AB5-AB4)/AB4,($AE$2-0.7*Initial_Emp_Growth_Rate-0.3*Control!$R$14)))*AC4 -> 96.93326774 | AD5: 2.987988286e+10 | AE5: 0.02902254628 | AF5: 0.02780797413 | AG5: =+AD5/Population!B7 -> 635.3420041 | AH5: 0.02902254628 | AI5: 0.02780797413 | AJ5: 0.0318621325 | AK5: 447826.7937 | AL5: =Population!G7-'PolicyScenario-1'!Y5 -> 10669662.4 | AM5: =+Population!AA7-Y5 -> 10669662.4 | AN5: =+Population!AK7-AK5 -> 362952.0813 | AO5: =+Y5/Population!G7 -> 0.6080463804 | AP5: =inVar24*$AG$2*Population!AU7 -> 0 | AQ5: =+((W5+W5-Control!$W$10)/2-20)/(83.2-20) -> 0.6082278481 | AR5: 0.5398343692 | AS5: 0.2093559245 | AT5: 0.4096419423 | AV5: =VLOOKUP(AT5,HDI!A$2:B$170,2) -> Haiti | AW5: =VLOOKUP(AT5,HDI!A$2:C$170,3) -> 145
A6: 2014 | B6: =+B$2+(Control!C$7-Control!C$5)*($A6-$A$2)/($A$42-$A$2) -> 10.65394 | C6: =+C$2+(Control!D$7-Control!D$5)*($A6-$A$2)/($A$42-$A$2) -> 11.31316 | D6: 10.98355 | E6: =+E$2+(Control!E$7-Control!E$5)*($A6-$A$2)/($A$42-$A$2)+((R6-R$2)/R$2)*(-0.79)*E$2 -> 5.84 | F6: =+F$2+(Control!F$7-Control!F$5)*($A6-$A$2)/($A$42-$A$2) -> 7.21 | G6: 6.525 | H6: =+H$2+(Control!H$7-Control!H$5)*($A6-$A$2)/($A$42-$A$2) -> 39.4 | I6: =+I$2+(Control!I$7-Control!I$5)*($A6-$A$2)/($A$42-$A$2) -> 6.1 | J6: =+J$2+(Control!J$7-Control!J$5)*($A6-$A$2)/($A$42-$A$2) -> 10.3 | K6: =+K$2+(Control!K$7-Control!K$5)*($A6-$A$2)/($A$42-$A$2) -> 0.7 | L6: =+L$2+(Control!$N$7-inVar11)*Interpolate!E9 -> 4.88 | M6: =+M$2+(Control!$P$7-inVar13)*Interpolate!E9 -> 2.06857469 | N6: =+N$2+(Control!$O$7-inVar12)*Interpolate!E9 -> 3.91 | O6: =+O$2+(Control!$L$7-inVar9)*Interpolate!E9 -> 3.57 | P6: =+P$2+(Control!$M$7-inVar10)*Interpolate!E9 -> 45.49 | Q6: =+EXP(LN(Control!C$14)-(-0.332*LN(B$2))+(-0.332*LN(B6))) -> 58.3 | R6: =Control!D$14/($Q$2/100*(20/(18.5+$J$2))*((7.63-0.11*$K$2/100)/7.3)*(1-1.08*(Control!$I$14*$H$2/100+Control!$J$14*$I$2/100)))*($Q6/100*(20/(18.5+$J6))*((7.63-0.11*$K6/100)/7.3)*(1-1.08*(0.95*$H6/100+0.5*I6/100))) -> 4.6 | S6: 54.8 | T6: 59 | U6: 84 | V6: =($V$2/(EXP(4.7651*$S$2)))*(EXP(4.7651*S6)) -> 400 | W6: 58.44 | X6: =EXP(LN(Control!$L$14)-0.875*LN($AG$2)-0.77*LN(Population!$G$4/Population!$B$4)-0.352*LN($N$2)+0.875*LN(AG6)+0.77*LN(Population!G8/Population!B8)+0.352*LN(N6)) -> 161.2911111 | Y6: =+MIN((1+(EXP(LN(Control!$N$14)-0.682*LN(IF(Population!$AF$5>0,Population!AF$5,0.00001))-0.483*LN(IF(AE$2>0,AE$2,0.0001))-0.593*LN($L$4)+0.682*LN(IF(Population!AF8>0,Population!AF8,0.0001))+0.483*LN(IF(AE5>0,AE5,0.001))+0.593*LN(L6))))*Y5,Population!AA8) -> 17009106.78 | Z6: =+Z5*(1-Control!$D$18)+X5*Population!G7 -> 6.297233795e+10 | AA6: =+MIN(Y6,Population!AA8)*EXP((0.14-G6*0.006)*G6) -> 32844856.05 | AB6: =EXP(LN(Control!$O$14*Population!$E$4/($Z$2^0.3*$AA$2^0.7))-0.623*LN(O$2)-1.187*LN(M$2)+0.219*LN(P$2)+0.623*LN(O6)+1.187*LN(M6)-0.219*LN(P6)) -> 96.93326774 | AC6: =+(1+MAX((AB6-AB5)/AB5,($AE$2-0.7*Initial_Emp_Growth_Rate-0.3*Control!$R$14)))*AC5 -> 96.93326774 | AD6: 3.074290852e+10 | AE6: 0.02888316761 | AF6: 0.02761113492 | AG6: =+AD6/Population!B8 -> 635.1984443 | AH6: 0.02888316761 | AI6: 0.02761113492 | AJ6: 0.03185737067 | AK6: 457021.8503 | AL6: =Population!G8-'PolicyScenario-1'!Y6 -> 11056439.56 | AM6: =+Population!AA8-Y6 -> 11056439.56 | AN6: =+Population!AK8-AK6 -> 386777.1575 | AO6: =+Y6/Population!G8 -> 0.6060493737 | AP6: =inVar24*$AG$2*Population!AU8 -> 0 | AQ6: =+((W6+W6-Control!$W$10)/2-20)/(83.2-20) -> 0.6082278481 | AR6: 0.5398343692 | AS6: 0.2093211478 | AT6: 0.4096192587 | AV6: =VLOOKUP(AT6,HDI!A$2:B$170,2) -> Haiti | AW6: =VLOOKUP(AT6,HDI!A$2:C$170,3) -> 145
A7: 2015 | B7: =+B$2+(Control!C$7-Control!C$5)*($A7-$A$2)/($A$42-$A$2) -> 10.65394 | C7: =+C$2+(Control!D$7-Control!D$5)*($A7-$A$2)/($A$42-$A$2) -> 11.31316 | D7: 10.98355 | E7: =+E$2+(Control!E$7-Control!E$5)*($A7-$A$2)/($A$42-$A$2)+((R7-R$2)/R$2)*(-0.79)*E$2 -> 5.84 | F7: =+F$2+(Control!F$7-Control!F$5)*($A7-$A$2)/($A$42-$A$2) -> 7.21 | G7: 6.525 | H7: =+H$2+(Control!H$7-Control!H$5)*($A7-$A$2)/($A$42-$A$2) -> 39.4 | I7: =+I$2+(Control!I$7-Control!I$5)*($A7-$A$2)/($A$42-$A$2) -> 6.1 | J7: =+J$2+(Control!J$7-Control!J$5)*($A7-$A$2)/($A$42-$A$2) -> 10.3 | K7: =+K$2+(Control!K$7-Control!K$5)*($A7-$A$2)/($A$42-$A$2) -> 0.7 | L7: =+L$2+(Control!$N$7-inVar11)*Interpolate!E10 -> 4.88 | M7: =+M$2+(Control!$P$7-inVar13)*Interpolate!E10 -> 2.06857469 | N7: =+N$2+(Control!$O$7-inVar12)*Interpolate!E10 -> 3.91 | O7: =+O$2+(Control!$L$7-inVar9)*Interpolate!E10 -> 3.57 | P7: =+P$2+(Control!$M$7-inVar10)*Interpolate!E10 -> 45.49 | Q7: =+EXP(LN(Control!C$14)-(-0.332*LN(B$2))+(-0.332*LN(B7))) -> 58.3 | R7: =Control!D$14/($Q$2/100*(20/(18.5+$J$2))*((7.63-0.11*$K$2/100)/7.3)*(1-1.08*(Control!$I$14*$H$2/100+Control!$J$14*$I$2/100)))*($Q7/100*(20/(18.5+$J7))*((7.63-0.11*$K7/100)/7.3)*(1-1.08*(0.95*$H7/100+0.5*I7/100))) -> 4.6 | S7: 54.8 | T7: 59 | U7: 84 | V7: 400 | W7: 58.44 | X7: =EXP(LN(Control!$L$14)-0.875*LN($AG$2)-0.77*LN(Population!$G$4/Population!$B$4)-0.352*LN($N$2)+0.875*LN(AG7)+0.77*LN(Population!G9/Population!B9)+0.352*LN(N7)) -> 161.5580397 | Y7: =+MIN((1+(EXP(LN(Control!$N$14)-0.682*LN(IF(Population!$AF$5>0,Population!AF$5,0.00001))-0.483*LN(IF(AE$2>0,AE$2,0.0001))-0.593*LN($L$4)+0.682*LN(IF(Population!AF9>0,Population!AF9,0.0001))+0.483*LN(IF(AE6>0,AE6,0.001))+0.593*LN(L7))))*Y6,Population!AA9) -> 17481020.24 | Z7: =+Z6*(1-Control!$D$18)+X6*Population!G8 -> 6.498016759e+10 | AA7: =+MIN(Y7,Population!AA9)*EXP((0.14-G7*0.006)*G7) -> 33756128.45 | AB7: =EXP(LN(Control!$O$14*Population!$E$4/($Z$2^0.3*$AA$2^0.7))-0.623*LN(O$2)-1.187*LN(M$2)+0.219*LN(P$2)+0.623*LN(O7)+1.187*LN(M7)-0.219*LN(P7)) -> 96.93326774 | AC7: =+(1+MAX((AB7-AB6)/AB6,($AE$2-0.7*Initial_Emp_Growth_Rate-0.3*Control!$R$14)))*AC6 -> 96.93326774 | AD7: 3.163398783e+10 | AE7: 0.02898487327 | AF7: 0.02774475222 | AG7: =+AD7/Population!B9 -> 635.1618166 | AH7: 0.02898487327 | AI7: 0.02774475222 | AJ7: 0.03188431144 | AK7: 471913.4532 | AL7: =Population!G9-'PolicyScenario-1'!Y7 -> 11463652.55 | AM7: =+Population!AA9-Y7 -> 11463652.55 | AN7: =+Population!AK9-AK7 -> 407212.9961 | AO7: =+Y7/Population!G9 -> 0.6039460305 | AP7: =inVar24*$AG$2*Population!AU9 -> 0 | AQ7: =+((W7+W7-Control!$W$10)/2-20)/(83.2-20) -> 0.6082278481 | AR7: 0.5398343692 | AS7: 0.2093122736 | AT7: 0.4096134701 | AV7: =VLOOKUP(AT7,HDI!A$2:B$170,2) -> Haiti | AW7: =VLOOKUP(AT7,HDI!A$2:C$170,3) -> 145
A8: 2016 | B8: =+B$2+(Control!C$7-Control!C$5)*($A8-$A$2)/($A$42-$A$2) -> 10.65394 | C8: =+C$2+(Control!D$7-Control!D$5)*($A8-$A$2)/($A$42-$A$2) -> 11.31316 | D8: 10.98355 | E8: =+E$2+(Control!E$7-Control!E$5)*($A8-$A$2)/($A$42-$A$2)+((R8-R$2)/R$2)*(-0.79)*E$2 -> 5.84 | F8: =+F$2+(Control!F$7-Control!F$5)*($A8-$A$2)/($A$42-$A$2) -> 7.21 | G8: 6.525 | H8: =+H$2+(Control!H$7-Control!H$5)*($A8-$A$2)/($A$42-$A$2) -> 39.4 | I8: =+I$2+(Control!I$7-Control!I$5)*($A8-$A$2)/($A$42-$A$2) -> 6.1 | J8: =+J$2+(Control!J$7-Control!J$5)*($A8-$A$2)/($A$42-$A$2) -> 10.3 | K8: =+K$2+(Control!K$7-Control!K$5)*($A8-$A$2)/($A$42-$A$2) -> 0.7 | L8: =+L$2+(Control!$N$7-inVar11)*Interpolate!E11 -> 4.88 | M8: =+M$2+(Control!$P$7-inVar13)*Interpolate!E11 -> 2.06857469 | N8: =+N$2+(Control!$O$7-inVar12)*Interpolate!E11 -> 3.91 | O8: =+O$2+(Control!$L$7-inVar9)*Interpolate!E11 -> 3.57 | P8: =+P$2+(Control!$M$7-inVar10)*Interpolate!E11 -> 45.49 | Q8: =+EXP(LN(Control!C$14)-(-0.332*LN(B$2))+(-0.332*LN(B8))) -> 58.3 | R8: =Control!D$14/($Q$2/100*(20/(18.5+$J$2))*((7.63-0.11*$K$2/100)/7.3)*(1-1.08*(Control!$I$14*$H$2/100+Control!$J$14*$I$2/100)))*($Q8/100*(20/(18.5+$J8))*((7.63-0.11*$K8/100)/7.3)*(1-1.08*(0.95*$H8/100+0.5*I8/100))) -> 4.6 | S8: 54.8 | T8: 59 | U8: 84 | V8: =($V$2/(EXP(4.7651*$S$2)))*(EXP(4.7651*S8)) -> 400 | W8: 58.44 | X8: =EXP(LN(Control!$L$14)-0.875*LN($AG$2)-0.77*LN(Population!$G$4/Population!$B$4)-0.352*LN($N$2)+0.875*LN(AG8)+0.77*LN(Population!G10/Population!B10)+0.352*LN(N8)) -> 161.8977706 | Y8: =+MIN((1+(EXP(LN(Control!$N$14)-0.682*LN(IF(Population!$AF$5>0,Population!AF$5,0.00001))-0.483*LN(IF(AE$2>0,AE$2,0.0001))-0.593*LN($L$4)+0.682*LN(IF(Population!AF10>0,Population!AF10,0.0001))+0.483*LN(IF(AE7>0,AE7,0.001))+0.593*LN(L8))))*Y7,Population!AA10) -> 17970258.73 | Z8: =+Z7*(1-Control!$D$18)+X7*Population!G9 -> 6.705720548e+10 | AA8: =+MIN(Y8,Population!AA10)*EXP((0.14-G8*0.006)*G8) -> 34700855.77 | AB8: =EXP(LN(Control!$O$14*Population!$E$4/($Z$2^0.3*$AA$2^0.7))-0.623*LN(O$2)-1.187*LN(M$2)+0.219*LN(P$2)+0.623*LN(O8)+1.187*LN(M8)-0.219*LN(P8)) -> 96.93326774 | AC8: =+(1+MAX((AB8-AB7)/AB7,($AE$2-0.7*Initial_Emp_Growth_Rate-0.3*Control!$R$14)))*AC7 -> 96.93326774 | AD8: 3.255701791e+10 | AE8: 0.02917842936 | AF8: 0.02798683868 | AG8: =+AD8/Population!B10 -> 635.2607206 | AH8: 0.02917842936 | AI8: 0.02798683868 | AJ8: 0.03196418183 | AK8: 489238.4933 | AL8: =Population!G10-'PolicyScenario-1'!Y8 -> 11890418.53 | AM8: =+Population!AA10-Y8 -> 11890418.53 | AN8: =+Population!AK10-AK8 -> 426765.9793 | AO8: =+Y8/Population!G10 -> 0.6018034545 | AP8: =inVar24*$AG$2*Population!AU10 -> 0 | AQ8: =+((W8+W8-Control!$W$10)/2-20)/(83.2-20) -> 0.6082278481 | AR8: 0.5398343692 | AS8: 0.2093362349 | AT8: 0.4096290998 | AV8: =VLOOKUP(AT8,HDI!A$2:B$170,2) -> Haiti | AW8: =VLOOKUP(AT8,HDI!A$2:C$170,3) -> 145
A9: 2017 | B9: =+B$2+(Control!C$7-Control!C$5)*($A9-$A$2)/($A$42-$A$2) -> 10.65394 | C9: =+C$2+(Control!D$7-Control!D$5)*($A9-$A$2)/($A$42-$A$2) -> 11.31316 | D9: 10.98355 | E9: =+E$2+(Control!E$7-Control!E$5)*($A9-$A$2)/($A$42-$A$2)+((R9-R$2)/R$2)*(-0.79)*E$2 -> 5.84 | F9: =+F$2+(Control!F$7-Control!F$5)*($A9-$A$2)/($A$42-$A$2) -> 7.21 | G9: 6.525 | H9: =+H$2+(Control!H$7-Control!H$5)*($A9-$A$2)/($A$42-$A$2) -> 39.4 | I9: =+I$2+(Control!I$7-Control!I$5)*($A9-$A$2)/($A$42-$A$2) -> 6.1 | J9: =+J$2+(Control!J$7-Control!J$5)*($A9-$A$2)/($A$42-$A$2) -> 10.3 | K9: =+K$2+(Control!K$7-Control!K$5)*($A9-$A$2)/($A$42-$A$2) -> 0.7 | L9: =+L$2+(Control!$N$7-inVar11)*Interpolate!E12 -> 4.88 | M9: =+M$2+(Control!$P$7-inVar13)*Interpolate!E12 -> 2.06857469 | N9: =+N$2+(Control!$O$7-inVar12)*Interpolate!E12 -> 3.91 | O9: =+O$2+(Control!$L$7-inVar9)*Interpolate!E12 -> 3.57 | P9: =+P$2+(Control!$M$7-inVar10)*Interpolate!E12 -> 45.49 | Q9: =+EXP(LN(Control!C$14)-(-0.332*LN(B$2))+(-0.332*LN(B9))) -> 58.3 | R9: =Control!D$14/($Q$2/100*(20/(18.5+$J$2))*((7.63-0.11*$K$2/100)/7.3)*(1-1.08*(Control!$I$14*$H$2/100+Control!$J$14*$I$2/100)))*($Q9/100*(20/(18.5+$J9))*((7.63-0.11*$K9/100)/7.3)*(1-1.08*(0.95*$H9/100+0.5*I9/100))) -> 4.6 | S9: 54.8 | T9: 59 | U9: 84 | V9: 400 | W9: 58.44 | X9: =EXP(LN(Control!$L$14)-0.875*LN($AG$2)-0.77*LN(Population!$G$4/Population!$B$4)-0.352*LN($N$2)+0.875*LN(AG9)+0.77*LN(Population!G11/Population!B11)+0.352*LN(N9)) -> 162.3040751 | Y9: =+MIN((1+(EXP(LN(Control!$N$14)-0.682*LN(IF(Population!$AF$5>0,Population!AF$5,0.00001))-0.483*LN(IF(AE$2>0,AE$2,0.0001))-0.593*LN($L$4)+0.682*LN(IF(Population!AF11>0,Population!AF11,0.0001))+0.483*LN(IF(AE8>0,AE8,0.001))+0.593*LN(L9))))*Y8,Population!AA11) -> 18477526.23 | Z9: =+Z8*(1-Control!$D$18)+X8*Population!G10 -> 6.920929434e+10 | AA9: =+MIN(Y9,Population!AA11)*EXP((0.14-G9*0.006)*G9) -> 35680397.39 | AB9: =EXP(LN(Control!$O$14*Population!$E$4/($Z$2^0.3*$AA$2^0.7))-0.623*LN(O$2)-1.187*LN(M$2)+0.219*LN(P$2)+0.623*LN(O9)+1.187*LN(M9)-0.219*LN(P9)) -> 96.93326774 | AC9: =+(1+MAX((AB9-AB8)/AB8,($AE$2-0.7*Initial_Emp_Growth_Rate-0.3*Control!$R$14)))*AC8 -> 96.93326774 | AD9: 3.351374476e+10 | AE9: 0.02938619424 | AF9: 0.02822816903 | AG9: =+AD9/Population!B11 -> 635.5043187 | AH9: 0.02938619424 | AI9: 0.02822816903 | AJ9: 0.0320933275 | AK9: 507267.501 | AL9: =Population!G11-'PolicyScenario-1'!Y9 -> 12335616.11 | AM9: =+Population!AA11-Y9 -> 12335616.11 | AN9: =+Population!AK11-AK9 -> 445197.5733 | AO9: =+Y9/Population!G11 -> 0.5996638067 | AP9: =inVar24*$AG$2*Population!AU11 -> 0 | AQ9: =+((W9+W9-Control!$W$10)/2-20)/(83.2-20) -> 0.6082278481 | AR9: 0.5398343692 | AS9: 0.209395235 | AT9: 0.40966758 | AV9: =VLOOKUP(AT9,HDI!A$2:B$170,2) -> Haiti | AW9: =VLOOKUP(AT9,HDI!A$2:C$170,3) -> 145
A10: 2018 | B10: =+B$2+(Control!C$7-Control!C$5)*($A10-$A$2)/($A$42-$A$2) -> 10.65394 | C10: =+C$2+(Control!D$7-Control!D$5)*($A10-$A$2)/($A$42-$A$2) -> 11.31316 | D10: 10.98355 | E10: =+E$2+(Control!E$7-Control!E$5)*($A10-$A$2)/($A$42-$A$2)+((R10-R$2)/R$2)*(-0.79)*E$2 -> 5.84 | F10: =+F$2+(Control!F$7-Control!F$5)*($A10-$A$2)/($A$42-$A$2) -> 7.21 | G10: 6.525 | H10: =+H$2+(Control!H$7-Control!H$5)*($A10-$A$2)/($A$42-$A$2) -> 39.4 | I10: =+I$2+(Control!I$7-Control!I$5)*($A10-$A$2)/($A$42-$A$2) -> 6.1 | J10: =+J$2+(Control!J$7-Control!J$5)*($A10-$A$2)/($A$42-$A$2) -> 10.3 | K10: =+K$2+(Control!K$7-Control!K$5)*($A10-$A$2)/($A$42-$A$2) -> 0.7 | L10: =+L$2+(Control!$N$7-inVar11)*Interpolate!E13 -> 4.88 | M10: =+M$2+(Control!$P$7-inVar13)*Interpolate!E13 -> 2.06857469 | N10: =+N$2+(Control!$O$7-inVar12)*Interpolate!E13 -> 3.91 | O10: =+O$2+(Control!$L$7-inVar9)*Interpolate!E13 -> 3.57 | P10: =+P$2+(Control!$M$7-inVar10)*Interpolate!E13 -> 45.49 | Q10: =+EXP(LN(Control!C$14)-(-0.332*LN(B$2))+(-0.332*LN(B10))) -> 58.3 | R10: =Control!D$14/($Q$2/100*(20/(18.5+$J$2))*((7.63-0.11*$K$2/100)/7.3)*(1-1.08*(Control!$I$14*$H$2/100+Control!$J$14*$I$2/100)))*($Q10/100*(20/(18.5+$J10))*((7.63-0.11*$K10/100)/7.3)*(1-1.08*(0.95*$H10/100+0.5*I10/100))) -> 4.6 | S10: 54.8 | T10: 59 | U10: 84 | V10: 400 | W10: 58.44 | X10: =EXP(LN(Control!$L$14)-0.875*LN($AG$2)-0.77*LN(Population!$G$4/Population!$B$4)-0.352*LN($N$2)+0.875*LN(AG10)+0.77*LN(Population!G12/Population!B12)+0.352*LN(N10)) -> 162.7667647 | Y10: =+MIN((1+(EXP(LN(Control!$N$14)-0.682*LN(IF(Population!$AF$5>0,Population!AF$5,0.00001))-0.483*LN(IF(AE$2>0,AE$2,0.0001))-0.593*LN($L$4)+0.682*LN(IF(Population!AF12>0,Population!AF12,0.0001))+0.483*LN(IF(AE9>0,AE9,0.001))+0.593*LN(L10))))*Y9,Population!AA12) -> 19002893.23 | Z10: =+Z9*(1-Control!$D$18)+X9*Population!G11 -> 7.144202113e+10 | AA10: =+MIN(Y10,Population!AA12)*EXP((0.14-G10*0.006)*G10) -> 36694889.44 | AB10: =EXP(LN(Control!$O$14*Population!$E$4/($Z$2^0.3*$AA$2^0.7))-0.623*LN(O$2)-1.187*LN(M$2)+0.219*LN(P$2)+0.623*LN(O10)+1.187*LN(M10)-0.219*LN(P10)) -> 96.93326774 | AC10: =+(1+MAX((AB10-AB9)/AB9,($AE$2-0.7*Initial_Emp_Growth_Rate-0.3*Control!$R$14)))*AC9 -> 96.93326774 | AD10: 3.450506753e+10 | AE10: 0.02957958825 | AF10: 0.02843275638 | AG10: =+AD10/Population!B12 -> 635.8840925 | AH10: 0.02957958825 | AI10: 0.02843275638 | AJ10: 0.03226050511 | AK10: 525367.0017 | AL10: =Population!G12-'PolicyScenario-1'!Y10 -> 12798578.48 | AM10: =+Population!AA12-Y10 -> 12798578.48 | AN10: =+Population!AK12-AK10 -> 462962.3733 | AO10: =+Y10/Population!G12 -> 0.5975476042 | AP10: =inVar24*$AG$2*Population!AU12 -> 0 | AQ10: =+((W10+W10-Control!$W$10)/2-20)/(83.2-20) -> 0.6082278481 | AR10: 0.5398343692 | AS10: 0.2094871722 | AT10: 0.4097275274 | AV10: =VLOOKUP(AT10,HDI!A$2:B$170,2) -> Haiti | AW10: =VLOOKUP(AT10,HDI!A$2:C$170,3) -> 145
A11: 2019 | B11: =+B$2+(Control!C$7-Control!C$5)*($A11-$A$2)/($A$42-$A$2) -> 10.65394 | C11: =+C$2+(Control!D$7-Control!D$5)*($A11-$A$2)/($A$42-$A$2) -> 11.31316 | D11: 10.98355 | E11: =+E$2+(Control!E$7-Control!E$5)*($A11-$A$2)/($A$42-$A$2)+((R11-R$2)/R$2)*(-0.79)*E$2 -> 5.84 | F11: =+F$2+(Control!F$7-Control!F$5)*($A11-$A$2)/($A$42-$A$2) -> 7.21 | G11: 6.525 | H11: =+H$2+(Control!H$7-Control!H$5)*($A11-$A$2)/($A$42-$A$2) -> 39.4 | I11: =+I$2+(Control!I$7-Control!I$5)*($A11-$A$2)/($A$42-$A$2) -> 6.1 | J11: =+J$2+(Control!J$7-Control!J$5)*($A11-$A$2)/($A$42-$A$2) -> 10.3 | K11: =+K$2+(Control!K$7-Control!K$5)*($A11-$A$2)/($A$42-$A$2) -> 0.7 | L11: =+L$2+(Control!$N$7-inVar11)*Interpolate!E14 -> 4.88 | M11: =+M$2+(Control!$P$7-inVar13)*Interpolate!E14 -> 2.06857469 | N11: =+N$2+(Control!$O$7-inVar12)*Interpolate!E14 -> 3.91 | O11: =+O$2+(Control!$L$7-inVar9)*Interpolate!E14 -> 3.57 | P11: =+P$2+(Control!$M$7-inVar10)*Interpolate!E14 -> 45.49 | Q11: =+EXP(LN(Control!C$14)-(-0.332*LN(B$2))+(-0.332*LN(B11))) -> 58.3 | R11: =Control!D$14/($Q$2/100*(20/(18.5+$J$2))*((7.63-0.11*$K$2/100)/7.3)*(1-1.08*(Control!$I$14*$H$2/100+Control!$J$14*$I$2/100)))*($Q11/100*(20/(18.5+$J11))*((7.63-0.11*$K11/100)/7.3)*(1-1.08*(0.95*$H11/100+0.5*I11/100))) -> 4.6 | S11: 54.8 | T11: 59 | U11: 84 | V11: 400 | W11: 58.44 | X11: =EXP(LN(Control!$L$14)-0.875*LN($AG$2)-0.77*LN(Population!$G$4/Population!$B$4)-0.352*LN($N$2)+0.875*LN(AG11)+0.77*LN(Population!G13/Population!B13)+0.352*LN(N11)) -> 163.2682577 | Y11: =+MIN((1+(EXP(LN(Control!$N$14)-0.682*LN(IF(Population!$AF$5>0,Population!AF$5,0.00001))-0.483*LN(IF(AE$2>0,AE$2,0.0001))-0.593*LN($L$4)+0.682*LN(IF(Population!AF13>0,Population!AF13,0.0001))+0.483*LN(IF(AE10>0,AE10,0.001))+0.593*LN(L11))))*Y10,Population!AA13) -> 19545945.45 | Z11: =+Z10*(1-Control!$D$18)+X10*Population!G12 -> 7.376056295e+10 | AA11: =+MIN(Y11,Population!AA13)*EXP((0.14-G11*0.006)*G11) -> 37743531.92 | AB11: =EXP(LN(Control!$O$14*Population!$E$4/($Z$2^0.3*$AA$2^0.7))-0.623*LN(O$2)-1.187*LN(M$2)+0.219*LN(P$2)+0.623*LN(O11)+1.187*LN(M11)-0.219*LN(P11)) -> 96.93326774 | AC11: =+(1+MAX((AB11-AB10)/AB10,($AE$2-0.7*Initial_Emp_Growth_Rate-0.3*Control!$R$14)))*AC10 -> 96.93326774 | AD11: 3.553120176e+10 | AE11: 0.02973865282 | AF11: 0.02857734414 | AG11: =+AD11/Population!B13 -> 636.3730463 | AH11: 0.02973865282 | AI11: 0.02857734414 | AJ11: 0.03245347461 | AK11: 543052.2195 | AL11: =Population!G13-'PolicyScenario-1'!Y11 -> 13278408.07 | AM11: =+Population!AA13-Y11 -> 13278408.07 | AN11: =+Population!AK13-AK11 -> 479829.5891 | AO11: =+Y11/Population!G13 -> 0.5954708427 | AP11: =inVar24*$AG$2*Population!AU13 -> 0 | AQ11: =+((W11+W11-Control!$W$10)/2-20)/(83.2-20) -> 0.6082278481 | AR11: 0.5398343692 | AS11: 0.2096054593 | AT11: 0.4098046305 | AV11: =VLOOKUP(AT11,HDI!A$2:B$170,2) -> Haiti | AW11: =VLOOKUP(AT11,HDI!A$2:C$170,3) -> 145
A12: 2020 | B12: =+B$2+(Control!C$7-Control!C$5)*($A12-$A$2)/($A$42-$A$2) -> 10.65394 | C12: =+C$2+(Control!D$7-Control!D$5)*($A12-$A$2)/($A$42-$A$2) -> 11.31316 | D12: 10.98355 | E12: =+E$2+(Control!E$7-Control!E$5)*($A12-$A$2)/($A$42-$A$2)+((R12-R$2)/R$2)*(-0.79)*E$2 -> 5.84 | F12: =+F$2+(Control!F$7-Control!F$5)*($A12-$A$2)/($A$42-$A$2) -> 7.21 | G12: 6.525 | H12: =+H$2+(Control!H$7-Control!H$5)*($A12-$A$2)/($A$42-$A$2) -> 39.4 | I12: =+I$2+(Control!I$7-Control!I$5)*($A12-$A$2)/($A$42-$A$2) -> 6.1 | J12: =+J$2+(Control!J$7-Control!J$5)*($A12-$A$2)/($A$42-$A$2) -> 10.3 | K12: =+K$2+(Control!K$7-Control!K$5)*($A12-$A$2)/($A$42-$A$2) -> 0.7 | L12: =+L$2+(Control!$N$7-inVar11)*Interpolate!E15 -> 4.88 | M12: =+M$2+(Control!$P$7-inVar13)*Interpolate!E15 -> 2.06857469 | N12: =+N$2+(Control!$O$7-inVar12)*Interpolate!E15 -> 3.91 | O12: =+O$2+(Control!$L$7-inVar9)*Interpolate!E15 -> 3.57 | P12: =+P$2+(Control!$M$7-inVar10)*Interpolate!E15 -> 45.49 | Q12: =+EXP(LN(Control!C$14)-(-0.332*LN(B$2))+(-0.332*LN(B12))) -> 58.3 | R12: =Control!D$14/($Q$2/100*(20/(18.5+$J$2))*((7.63-0.11*$K$2/100)/7.3)*(1-1.08*(Control!$I$14*$H$2/100+Control!$J$14*$I$2/100)))*($Q12/100*(20/(18.5+$J12))*((7.63-0.11*$K12/100)/7.3)*(1-1.08*(0.95*$H12/100+0.5*I12/100))) -> 4.6 | S12: 54.8 | T12: 59 | U12: 84 | V12: 400 | W12: 58.44 | X12: =EXP(LN(Control!$L$14)-0.875*LN($AG$2)-0.77*LN(Population!$G$4/Population!$B$4)-0.352*LN($N$2)+0.875*LN(AG12)+0.77*LN(Population!G14/Population!B14)+0.352*LN(N12)) -> 163.7845358 | Y12: =+MIN((1+(EXP(LN(Control!$N$14)-0.682*LN(IF(Population!$AF$5>0,Population!AF$5,0.00001))-0.483*LN(IF(AE$2>0,AE$2,0.0001))-0.593*LN($L$4)+0.682*LN(IF(Population!AF14>0,Population!AF14,0.0001))+0.483*LN(IF(AE11>0,AE11,0.001))+0.593*LN(L12))))*Y11,Population!AA14) -> 20105870.39 | Z12: =+Z11*(1-Control!$D$18)+X11*Population!G13 -> 7.616931544e+10 | AA12: =+MIN(Y12,Population!AA14)*EXP((0.14-G12*0.006)*G12) -> 38824755.9 | AB12: =EXP(LN(Control!$O$14*Population!$E$4/($Z$2^0.3*$AA$2^0.7))-0.623*LN(O$2)-1.187*LN(M$2)+0.219*LN(P$2)+0.623*LN(O12)+1.187*LN(M12)-0.219*LN(P12)) -> 96.93326774 | AC12: =+(1+MAX((AB12-AB11)/AB11,($AE$2-0.7*Initial_Emp_Growth_Rate-0.3*Control!$R$14)))*AC11 -> 96.93326774 | AD12: 3.65917334e+10 | AE12: 0.02984789664 | AF12: 0.02864660311 | AG12: =+AD12/Population!B14 -> 636.9276129 | AH12: 0.02984789664 | AI12: 0.02864660311 | AJ12: 0.03265637349 | AK12: 559924.9417 | AL12: =Population!G14-'PolicyScenario-1'!Y12 -> 13774002.77 | AM12: =+Population!AA14-Y12 -> 13774002.77 | AN12: =+Population!AK14-AK12 -> 495594.7067 | AO12: =+Y12/Population!G14 -> 0.5934458578 | AP12: =inVar24*$AG$2*Population!AU14 -> 0 | AQ12: =+((W12+W12-Control!$W$10)/2-20)/(83.2-20) -> 0.6082278481 | AR12: 0.5398343692 | AS12: 0.2097395094 | AT12: 0.4098919733 | AV12: =VLOOKUP(AT12,HDI!A$2:B$170,2) -> Haiti | AW12: =VLOOKUP(AT12,HDI!A$2:C$170,3) -> 145
A13: 2021 | B13: =+B$2+(Control!C$7-Control!C$5)*($A13-$A$2)/($A$42-$A$2) -> 10.65394 | C13: =+C$2+(Control!D$7-Control!D$5)*($A13-$A$2)/($A$42-$A$2) -> 11.31316 | D13: 10.98355 | E13: =+E$2+(Control!E$7-Control!E$5)*($A13-$A$2)/($A$42-$A$2)+((R13-R$2)/R$2)*(-0.79)*E$2 -> 5.84 | F13: =+F$2+(Control!F$7-Control!F$5)*($A13-$A$2)/($A$42-$A$2) -> 7.21 | G13: 6.525 | H13: =+H$2+(Control!H$7-Control!H$5)*($A13-$A$2)/($A$42-$A$2) -> 39.4 | I13: =+I$2+(Control!I$7-Control!I$5)*($A13-$A$2)/($A$42-$A$2) -> 6.1 | J13: =+J$2+(Control!J$7-Control!J$5)*($A13-$A$2)/($A$42-$A$2) -> 10.3 | K13: =+K$2+(Control!K$7-Control!K$5)*($A13-$A$2)/($A$42-$A$2) -> 0.7 | L13: =+L$2+(Control!$N$7-inVar11)*Interpolate!E16 -> 4.88 | M13: =+M$2+(Control!$P$7-inVar13)*Interpolate!E16 -> 2.06857469 | N13: =+N$2+(Control!$O$7-inVar12)*Interpolate!E16 -> 3.91 | O13: =+O$2+(Control!$L$7-inVar9)*Interpolate!E16 -> 3.57 | P13: =+P$2+(Control!$M$7-inVar10)*Interpolate!E16 -> 45.49 | Q13: =+EXP(LN(Control!C$14)-(-0.332*LN(B$2))+(-0.332*LN(B13))) -> 58.3 | R13: =Control!D$14/($Q$2/100*(20/(18.5+$J$2))*((7.63-0.11*$K$2/100)/7.3)*(1-1.08*(Control!$I$14*$H$2/100+Control!$J$14*$I$2/100)))*($Q13/100*(20/(18.5+$J13))*((7.63-0.11*$K13/100)/7.3)*(1-1.08*(0.95*$H13/100+0.5*I13/100))) -> 4.6 | S13: 54.8 | T13: 59 | U13: 84 | V13: 400 | W13: 58.44 | X13: =EXP(LN(Control!$L$14)-0.875*LN($AG$2)-0.77*LN(Population!$G$4/Population!$B$4)-0.352*LN($N$2)+0.875*LN(AG13)+0.77*LN(Population!G15/Population!B15)+0.352*LN(N13)) -> 164.2871166 | Y13: =+MIN((1+(EXP(LN(Control!$N$14)-0.682*LN(IF(Population!$AF$5>0,Population!AF$5,0.00001))-0.483*LN(IF(AE$2>0,AE$2,0.0001))-0.593*LN($L$4)+0.682*LN(IF(Population!AF15>0,Population!AF15,0.0001))+0.483*LN(IF(AE12>0,AE12,0.001))+0.593*LN(L13))))*Y12,Population!AA15) -> 20681418.42 | Z13: =+Z12*(1-Control!$D$18)+X12*Population!G14 -> 7.867154213e+10 | AA13: =+MIN(Y13,Population!AA15)*EXP((0.14-G13*0.006)*G13) -> 39936148.31 | AB13: =EXP(LN(Control!$O$14*Population!$E$4/($Z$2^0.3*$AA$2^0.7))-0.623*LN(O$2)-1.187*LN(M$2)+0.219*LN(P$2)+0.623*LN(O13)+1.187*LN(M13)-0.219*LN(P13)) -> 96.93326774 | AC13: =+(1+MAX((AB13-AB12)/AB12,($AE$2-0.7*Initial_Emp_Growth_Rate-0.3*Control!$R$14)))*AC12 -> 96.93326774 | AD13: 3.768551687e+10 | AE13: 0.02989154574 | AF13: 0.02862586991 | AG13: =+AD13/Population!B15 -> 637.4931011 | AH13: 0.02989154574 | AI13: 0.02862586991 | AJ13: 0.03285084904 | AK13: 575548.0303 | AL13: =Population!G15-'PolicyScenario-1'!Y13 -> 14283937.88 | AM13: =+Population!AA15-Y13 -> 14283937.88 | AN13: =+Population!AK15-AK13 -> 509935.1025 | AO13: =+Y13/Population!G15 -> 0.5914831311 | AP13: =inVar24*$AG$2*Population!AU15 -> 0 | AQ13: =+((W13+W13-Control!$W$10)/2-20)/(83.2-20) -> 0.6082278481 | AR13: 0.5398343692 | AS13: 0.2098760793 | AT13: 0.4099809197 | AV13: =VLOOKUP(AT13,HDI!A$2:B$170,2) -> Haiti | AW13: =VLOOKUP(AT13,HDI!A$2:C$170,3) -> 145
A14: 2022 | B14: =+B$2+(Control!C$7-Control!C$5)*($A14-$A$2)/($A$42-$A$2) -> 10.65394 | C14: =+C$2+(Control!D$7-Control!D$5)*($A14-$A$2)/($A$42-$A$2) -> 11.31316 | D14: 10.98355 | E14: =+E$2+(Control!E$7-Control!E$5)*($A14-$A$2)/($A$42-$A$2)+((R14-R$2)/R$2)*(-0.79)*E$2 -> 5.84 | F14: =+F$2+(Control!F$7-Control!F$5)*($A14-$A$2)/($A$42-$A$2) -> 7.21 | G14: 6.525 | H14: =+H$2+(Control!H$7-Control!H$5)*($A14-$A$2)/($A$42-$A$2) -> 39.4 | I14: =+I$2+(Control!I$7-Control!I$5)*($A14-$A$2)/($A$42-$A$2) -> 6.1 | J14: =+J$2+(Control!J$7-Control!J$5)*($A14-$A$2)/($A$42-$A$2) -> 10.3 | K14: =+K$2+(Control!K$7-Control!K$5)*($A14-$A$2)/($A$42-$A$2) -> 0.7 | L14: =+L$2+(Control!$N$7-inVar11)*Interpolate!E17 -> 4.88 | M14: =+M$2+(Control!$P$7-inVar13)*Interpolate!E17 -> 2.06857469 | N14: =+N$2+(Control!$O$7-inVar12)*Interpolate!E17 -> 3.91 | O14: =+O$2+(Control!$L$7-inVar9)*Interpolate!E17 -> 3.57 | P14: =+P$2+(Control!$M$7-inVar10)*Interpolate!E17 -> 45.49 | Q14: =+EXP(LN(Control!C$14)-(-0.332*LN(B$2))+(-0.332*LN(B14))) -> 58.3 | R14: =Control!D$14/($Q$2/100*(20/(18.5+$J$2))*((7.63-0.11*$K$2/100)/7.3)*(1-1.08*(Control!$I$14*$H$2/100+Control!$J$14*$I$2/100)))*($Q14/100*(20/(18.5+$J14))*((7.63-0.11*$K14/100)/7.3)*(1-1.08*(0.95*$H14/100+0.5*I14/100))) -> 4.6 | S14: 54.8 | T14: 59 | U14: 84 | V14: 400 | W14: 58.44 | X14: =EXP(LN(Control!$L$14)-0.875*LN($AG$2)-0.77*LN(Population!$G$4/Population!$B$4)-0.352*LN($N$2)+0.875*LN(AG14)+0.77*LN(Population!G16/Population!B16)+0.352*LN(N14)) -> 164.7431126 | Y14: =+MIN((1+(EXP(LN(Control!$N$14)-0.682*LN(IF(Population!$AF$5>0,Population!AF$5,0.00001))-0.483*LN(IF(AE$2>0,AE$2,0.0001))-0.593*LN($L$4)+0.682*LN(IF(Population!AF16>0,Population!AF16,0.0001))+0.483*LN(IF(AE13>0,AE13,0.001))+0.593*LN(L14))))*Y13,Population!AA16) -> 21270764.2 | Z14: =+Z13*(1-Control!$D$18)+X13*Population!G15 -> 8.126903801e+10 | AA14: =+MIN(Y14,Population!AA16)*EXP((0.14-G14*0.006)*G14) -> 41074184.39 | AB14: =EXP(LN(Control!$O$14*Population!$E$4/($Z$2^0.3*$AA$2^0.7))-0.623*LN(O$2)-1.187*LN(M$2)+0.219*LN(P$2)+0.623*LN(O14)+1.187*LN(M14)-0.219*LN(P14)) -> 96.93326774 | AC14: =+(1+MAX((AB14-AB13)/AB13,($AE$2-0.7*Initial_Emp_Growth_Rate-0.3*Control!$R$14)))*AC13 -> 96.93326774 | AD14: 3.881044775e+10 | AE14: 0.02985048303 | AF14: 0.02849639055 | AG14: =+AD14/Population!B16 -> 638.0048539 | AH14: 0.02985048303 | AI14: 0.02849639055 | AJ14: 0.03301696918 | AK14: 589345.7765 | AL14: =Population!G16-'PolicyScenario-1'!Y14 -> 14806280.16 | AM14: =+Population!AA16-Y14 -> 14806280.16 | AN14: =+Population!AK16-AK14 -> 522342.2821 | AO14: =+Y14/Population!G16 -> 0.5895927612 | AP14: =inVar24*$AG$2*Population!AU16 -> 0 | AQ14: =+((W14+W14-Control!$W$10)/2-20)/(83.2-20) -> 0.6082278481 | AR14: 0.5398343692 | AS14: 0.2099995674 | AT14: 0.4100613128 | AV14: =VLOOKUP(AT14,HDI!A$2:B$170,2) -> Haiti | AW14: =VLOOKUP(AT14,HDI!A$2:C$170,3) -> 145
A15: 2023 | B15: =+B$2+(Control!C$7-Control!C$5)*($A15-$A$2)/($A$42-$A$2) -> 10.65394 | C15: =+C$2+(Control!D$7-Control!D$5)*($A15-$A$2)/($A$42-$A$2) -> 11.31316 | D15: 10.98355 | E15: =+E$2+(Control!E$7-Control!E$5)*($A15-$A$2)/($A$42-$A$2)+((R15-R$2)/R$2)*(-0.79)*E$2 -> 5.84 | F15: =+F$2+(Control!F$7-Control!F$5)*($A15-$A$2)/($A$42-$A$2) -> 7.21 | G15: 6.525 | H15: =+H$2+(Control!H$7-Control!H$5)*($A15-$A$2)/($A$42-$A$2) -> 39.4 | I15: =+I$2+(Control!I$7-Control!I$5)*($A15-$A$2)/($A$42-$A$2) -> 6.1 | J15: =+J$2+(Control!J$7-Control!J$5)*($A15-$A$2)/($A$42-$A$2) -> 10.3 | K15: =+K$2+(Control!K$7-Control!K$5)*($A15-$A$2)/($A$42-$A$2) -> 0.7 | L15: =+L$2+(Control!$N$7-inVar11)*Interpolate!E18 -> 4.88 | M15: =+M$2+(Control!$P$7-inVar13)*Interpolate!E18 -> 2.06857469 | N15: =+N$2+(Control!$O$7-inVar12)*Interpolate!E18 -> 3.91 | O15: =+O$2+(Control!$L$7-inVar9)*Interpolate!E18 -> 3.57 | P15: =+P$2+(Control!$M$7-inVar10)*Interpolate!E18 -> 45.49 | Q15: =+EXP(LN(Control!C$14)-(-0.332*LN(B$2))+(-0.332*LN(B15))) -> 58.3 | R15: =Control!D$14/($Q$2/100*(20/(18.5+$J$2))*((7.63-0.11*$K$2/100)/7.3)*(1-1.08*(Control!$I$14*$H$2/100+Control!$J$14*$I$2/100)))*($Q15/100*(20/(18.5+$J15))*((7.63-0.11*$K15/100)/7.3)*(1-1.08*(0.95*$H15/100+0.5*I15/100))) -> 4.6 | S15: 54.8 | T15: 59 | U15: 84 | V15: 400 | W15: 58.44 | X15: =EXP(LN(Control!$L$14)-0.875*LN($AG$2)-0.77*LN(Population!$G$4/Population!$B$4)-0.352*LN($N$2)+0.875*LN(AG15)+0.77*LN(Population!G17/Population!B17)+0.352*LN(N15)) -> 165.1118866 | Y15: =+MIN((1+(EXP(LN(Control!$N$14)-0.682*LN(IF(Population!$AF$5>0,Population!AF$5,0.00001))-0.483*LN(IF(AE$2>0,AE$2,0.0001))-0.593*LN($L$4)+0.682*LN(IF(Population!AF17>0,Population!AF17,0.0001))+0.483*LN(IF(AE14>0,AE14,0.001))+0.593*LN(L15))))*Y14,Population!AA17) -> 21871151.56 | Z15: =+Z14*(1-Control!$D$18)+X14*Population!G16 -> 8.396172107e+10 | AA15: =+MIN(Y15,Population!AA17)*EXP((0.14-G15*0.006)*G15) -> 42233541.94 | AB15: =EXP(LN(Control!$O$14*Population!$E$4/($Z$2^0.3*$AA$2^0.7))-0.623*LN(O$2)-1.187*LN(M$2)+0.219*LN(P$2)+0.623*LN(O15)+1.187*LN(M15)-0.219*LN(P15)) -> 96.93326774 | AC15: =+(1+MAX((AB15-AB14)/AB14,($AE$2-0.7*Initial_Emp_Growth_Rate-0.3*Control!$R$14)))*AC14 -> 96.93326774 | AD15: 3.9962947e+10 | AE15: 0.02969559261 | AF15: 0.02822594218 | AG15: =+AD15/Population!B17 -> 638.3831649 | AH15: 0.02969559261 | AI15: 0.02822594218 | AJ15: 0.03313295108 | AK15: 600387.3604 | AL15: =Population!G17-'PolicyScenario-1'!Y15 -> 15338101.01 | AM15: =+Population!AA17-Y15 -> 15338101.01 | AN15: =+Population!AK17-AK15 -> 531820.8466 | AO15: =+Y15/Population!G17 -> 0.5877879842 | AP15: =inVar24*$AG$2*Population!AU17 -> 0 | AQ15: =+((W15+W15-Control!$W$10)/2-20)/(83.2-20) -> 0.6082278481 | AR15: 0.5398343692 | AS15: 0.2100907917 | AT15: 0.4101206814 | AV15: =VLOOKUP(AT15,HDI!A$2:B$170,2) -> Haiti | AW15: =VLOOKUP(AT15,HDI!A$2:C$170,3) -> 145
A16: 2024 | B16: =+B$2+(Control!C$7-Control!C$5)*($A16-$A$2)/($A$42-$A$2) -> 10.65394 | C16: =+C$2+(Control!D$7-Control!D$5)*($A16-$A$2)/($A$42-$A$2) -> 11.31316 | D16: 10.98355 | E16: =+E$2+(Control!E$7-Control!E$5)*($A16-$A$2)/($A$42-$A$2)+((R16-R$2)/R$2)*(-0.79)*E$2 -> 5.84 | F16: =+F$2+(Control!F$7-Control!F$5)*($A16-$A$2)/($A$42-$A$2) -> 7.21 | G16: 6.525 | H16: =+H$2+(Control!H$7-Control!H$5)*($A16-$A$2)/($A$42-$A$2) -> 39.4 | I16: =+I$2+(Control!I$7-Control!I$5)*($A16-$A$2)/($A$42-$A$2) -> 6.1 | J16: =+J$2+(Control!J$7-Control!J$5)*($A16-$A$2)/($A$42-$A$2) -> 10.3 | K16: =+K$2+(Control!K$7-Control!K$5)*($A16-$A$2)/($A$42-$A$2) -> 0.7 | L16: =+L$2+(Control!$N$7-inVar11)*Interpolate!E19 -> 4.88 | M16: =+M$2+(Control!$P$7-inVar13)*Interpolate!E19 -> 2.06857469 | N16: =+N$2+(Control!$O$7-inVar12)*Interpolate!E19 -> 3.91 | O16: =+O$2+(Control!$L$7-inVar9)*Interpolate!E19 -> 3.57 | P16: =+P$2+(Control!$M$7-inVar10)*Interpolate!E19 -> 45.49 | Q16: =+EXP(LN(Control!C$14)-(-0.332*LN(B$2))+(-0.332*LN(B16))) -> 58.3 | R16: =Control!D$14/($Q$2/100*(20/(18.5+$J$2))*((7.63-0.11*$K$2/100)/7.3)*(1-1.08*(Control!$I$14*$H$2/100+Control!$J$14*$I$2/100)))*($Q16/100*(20/(18.5+$J16))*((7.63-0.11*$K16/100)/7.3)*(1-1.08*(0.95*$H16/100+0.5*I16/100))) -> 4.6 | S16: 54.8 | T16: 59 | U16: 84 | V16: 400 | W16: 58.44 | X16: =EXP(LN(Control!$L$14)-0.875*LN($AG$2)-0.77*LN(Population!$G$4/Population!$B$4)-0.352*LN($N$2)+0.875*LN(AG16)+0.77*LN(Population!G18/Population!B18)+0.352*LN(N16)) -> 165.3226925 | Y16: =+MIN((1+(EXP(LN(Control!$N$14)-0.682*LN(IF(Population!$AF$5>0,Population!AF$5,0.00001))-0.483*LN(IF(AE$2>0,AE$2,0.0001))-0.593*LN($L$4)+0.682*LN(IF(Population!AF18>0,Population!AF18,0.0001))+0.483*LN(IF(AE15>0,AE15,0.001))+0.593*LN(L16))))*Y15,Population!AA18) -> 22476996.55 | Z16: =+Z15*(1-Control!$D$18)+X15*Population!G17 -> 8.674694211e+10 | AA16: =+MIN(Y16,Population!AA18)*EXP((0.14-G16*0.006)*G16) -> 43403438.27 | AB16: =EXP(LN(Control!$O$14*Population!$E$4/($Z$2^0.3*$AA$2^0.7))-0.623*LN(O$2)-1.187*LN(M$2)+0.219*LN(P$2)+0.623*LN(O16)+1.187*LN(M16)-0.219*LN(P16)) -> 96.93326774 | AC16: =+(1+MAX((AB16-AB15)/AB15,($AE$2-0.7*Initial_Emp_Growth_Rate-0.3*Control!$R$14)))*AC15 -> 96.93326774 | AD16: 4.113542606e+10 | AE16: 0.0293391543 | AF16: 0.02770064451 | AG16: =+AD16/Population!B18 -> 638.5000352 | AH16: 0.0293391543 | AI16: 0.02770064451 | AJ16: 0.03317251017 | AK16: 605844.9943 | AL16: =Population!G18-'PolicyScenario-1'!Y16 -> 15872462.96 | AM16: =+Population!AA18-Y16 -> 15872462.96 | AN16: =+Population!AK18-AK16 -> 534361.9588 | AO16: =+Y16/Population!G18 -> 0.5861098653 | AP16: =inVar24*$AG$2*Population!AU18 -> 0 | AQ16: =+((W16+W16-Control!$W$10)/2-20)/(83.2-20) -> 0.6082278481 | AR16: 0.5398343692 | AS16: 0.2101189624 | AT16: 0.4101390113 | AV16: =VLOOKUP(AT16,HDI!A$2:B$170,2) -> Haiti | AW16: =VLOOKUP(AT16,HDI!A$2:C$170,3) -> 145
A17: 2025 | B17: =+B$2+(Control!C$7-Control!C$5)*($A17-$A$2)/($A$42-$A$2) -> 10.65394 | C17: =+C$2+(Control!D$7-Control!D$5)*($A17-$A$2)/($A$42-$A$2) -> 11.31316 | D17: 10.98355 | E17: =+E$2+(Control!E$7-Control!E$5)*($A17-$A$2)/($A$42-$A$2)+((R17-R$2)/R$2)*(-0.79)*E$2 -> 5.84 | F17: =+F$2+(Control!F$7-Control!F$5)*($A17-$A$2)/($A$42-$A$2) -> 7.21 | G17: 6.525 | H17: =+H$2+(Control!H$7-Control!H$5)*($A17-$A$2)/($A$42-$A$2) -> 39.4 | I17: =+I$2+(Control!I$7-Control!I$5)*($A17-$A$2)/($A$42-$A$2) -> 6.1 | J17: =+J$2+(Control!J$7-Control!J$5)*($A17-$A$2)/($A$42-$A$2) -> 10.3 | K17: =+K$2+(Control!K$7-Control!K$5)*($A17-$A$2)/($A$42-$A$2) -> 0.7 | L17: =+L$2+(Control!$N$7-inVar11)*Interpolate!E20 -> 4.88 | M17: =+M$2+(Control!$P$7-inVar13)*Interpolate!E20 -> 2.06857469 | N17: =+N$2+(Control!$O$7-inVar12)*Interpolate!E20 -> 3.91 | O17: =+O$2+(Control!$L$7-inVar9)*Interpolate!E20 -> 3.57 | P17: =+P$2+(Control!$M$7-inVar10)*Interpolate!E20 -> 45.49 | Q17: =+EXP(LN(Control!C$14)-(-0.332*LN(B$2))+(-0.332*LN(B17))) -> 58.3 | R17: =Control!D$14/($Q$2/100*(20/(18.5+$J$2))*((7.63-0.11*$K$2/100)/7.3)*(1-1.08*(Control!$I$14*$H$2/100+Control!$J$14*$I$2/100)))*($Q17/100*(20/(18.5+$J17))*((7.63-0.11*$K17/100)/7.3)*(1-1.08*(0.95*$H17/100+0.5*I17/100))) -> 4.6 | S17: 54.8 | T17: 59 | U17: 84 | V17: 400 | W17: 58.44 | X17: =EXP(LN(Control!$L$14)-0.875*LN($AG$2)-0.77*LN(Population!$G$4/Population!$B$4)-0.352*LN($N$2)+0.875*LN(AG17)+0.77*LN(Population!G19/Population!B19)+0.352*LN(N17)) -> 165.294568 | Y17: =+MIN((1+(EXP(LN(Control!$N$14)-0.682*LN(IF(Population!$AF$5>0,Population!AF$5,0.00001))-0.483*LN(IF(AE$2>0,AE$2,0.0001))-0.593*LN($L$4)+0.682*LN(IF(Population!AF19>0,Population!AF19,0.0001))+0.483*LN(IF(AE16>0,AE16,0.001))+0.593*LN(L17))))*Y16,Population!AA19) -> 23080637.27 | Z17: =+Z16*(1-Control!$D$18)+X16*Population!G18 -> 8.961710033e+10 | AA17: =+MIN(Y17,Population!AA19)*EXP((0.14-G17*0.006)*G17) -> 44569078.12 | AB17: =EXP(LN(Control!$O$14*Population!$E$4/($Z$2^0.3*$AA$2^0.7))-0.623*LN(O$2)-1.187*LN(M$2)+0.219*LN(P$2)+0.623*LN(O17)+1.187*LN(M17)-0.219*LN(P17)) -> 96.93326774 | AC17: =+(1+MAX((AB17-AB16)/AB16,($AE$2-0.7*Initial_Emp_Growth_Rate-0.3*Control!$R$14)))*AC16 -> 96.93326774 | AD17: 4.231688348e+10 | AE17: 0.02872116637 | AF17: 0.02685593324 | AG17: =+AD17/Population!B19 -> 638.1979383 | AH17: 0.02872116637 | AI17: 0.02685593324 | AJ17: 0.03308656361 | AK17: 603640.719 | AL17: =Population!G19-'PolicyScenario-1'!Y17 -> 16401444.98 | AM17: =+Population!AA19-Y17 -> 16401444.98 | AN17: =+Population!AK19-AK17 -> 528982.0154 | AO17: =+Y17/Population!G19 -> 0.5845851069 | AP17: =inVar24*$AG$2*Population!AU19 -> 0 | AQ17: =+((W17+W17-Control!$W$10)/2-20)/(83.2-20) -> 0.6082278481 | AR17: 0.5398343692 | AS17: 0.2100461337 | AT17: 0.4100916202 | AV17: =VLOOKUP(AT17,HDI!A$2:B$170,2) -> Haiti | AW17: =VLOOKUP(AT17,HDI!A$2:C$170,3) -> 145
A18: 2026 | B18: =+B$2+(Control!C$7-Control!C$5)*($A18-$A$2)/($A$42-$A$2) -> 10.65394 | C18: =+C$2+(Control!D$7-Control!D$5)*($A18-$A$2)/($A$42-$A$2) -> 11.31316 | D18: 10.98355 | E18: =+E$2+(Control!E$7-Control!E$5)*($A18-$A$2)/($A$42-$A$2)+((R18-R$2)/R$2)*(-0.79)*E$2 -> 5.84 | F18: =+F$2+(Control!F$7-Control!F$5)*($A18-$A$2)/($A$42-$A$2) -> 7.21 | G18: 6.525 | H18: =+H$2+(Control!H$7-Control!H$5)*($A18-$A$2)/($A$42-$A$2) -> 39.4 | I18: =+I$2+(Control!I$7-Control!I$5)*($A18-$A$2)/($A$42-$A$2) -> 6.1 | J18: =+J$2+(Control!J$7-Control!J$5)*($A18-$A$2)/($A$42-$A$2) -> 10.3 | K18: =+K$2+(Control!K$7-Control!K$5)*($A18-$A$2)/($A$42-$A$2) -> 0.7 | L18: =+L$2+(Control!$N$7-inVar11)*Interpolate!E21 -> 4.88 | M18: =+M$2+(Control!$P$7-inVar13)*Interpolate!E21 -> 2.06857469 | N18: =+N$2+(Control!$O$7-inVar12)*Interpolate!E21 -> 3.91 | O18: =+O$2+(Control!$L$7-inVar9)*Interpolate!E21 -> 3.57 | P18: =+P$2+(Control!$M$7-inVar10)*Interpolate!E21 -> 45.49 | Q18: =+EXP(LN(Control!C$14)-(-0.332*LN(B$2))+(-0.332*LN(B18))) -> 58.3 | R18: =Control!D$14/($Q$2/100*(20/(18.5+$J$2))*((7.63-0.11*$K$2/100)/7.3)*(1-1.08*(Control!$I$14*$H$2/100+Control!$J$14*$I$2/100)))*($Q18/100*(20/(18.5+$J18))*((7.63-0.11*$K18/100)/7.3)*(1-1.08*(0.95*$H18/100+0.5*I18/100))) -> 4.6 | S18: 54.8 | T18: 59 | U18: 84 | V18: 400 | W18: 58.44 | X18: =EXP(LN(Control!$L$14)-0.875*LN($AG$2)-0.77*LN(Population!$G$4/Population!$B$4)-0.352*LN($N$2)+0.875*LN(AG18)+0.77*LN(Population!G20/Population!B20)+0.352*LN(N18)) -> 165.2271367 | Y18: =+MIN((1+(EXP(LN(Control!$N$14)-0.682*LN(IF(Population!$AF$5>0,Population!AF$5,0.00001))-0.483*LN(IF(AE$2>0,AE$2,0.0001))-0.593*LN($L$4)+0.682*LN(IF(Population!AF20>0,Population!AF20,0.0001))+0.483*LN(IF(AE17>0,AE17,0.001))+0.593*LN(L18))))*Y17,Population!AA20) -> 23695218.47 | Z18: =+Z17*(1-Control!$D$18)+X17*Population!G19 -> 9.255859005e+10 | AA18: =+MIN(Y18,Population!AA20)*EXP((0.14-G18*0.006)*G18) -> 45755844.2 | AB18: =EXP(LN(Control!$O$14*Population!$E$4/($Z$2^0.3*$AA$2^0.7))-0.623*LN(O$2)-1.187*LN(M$2)+0.219*LN(P$2)+0.623*LN(O18)+1.187*LN(M18)-0.219*LN(P18)) -> 96.93326774 | AC18: =+(1+MAX((AB18-AB17)/AB17,($AE$2-0.7*Initial_Emp_Growth_Rate-0.3*Control!$R$14)))*AC17 -> 96.93326774 | AD18: 4.352216323e+10 | AE18: 0.0284822428 | AF18: 0.02662756627 | AG18: =+AD18/Population!B20 -> 637.7124894 | AH18: 0.0284822428 | AI18: 0.02662756627 | AJ18: 0.032822862 | AK18: 614581.1984 | AL18: =Population!G20-'PolicyScenario-1'!Y18 -> 16955921 | AM18: =+Population!AA20-Y18 -> 16955921 | AN18: =+Population!AK20-AK18 -> 554476.0242 | AO18: =+Y18/Population!G20 -> 0.5828918642 | AP18: =inVar24*$AG$2*Population!AU20 -> 0 | AQ18: =+((W18+W18-Control!$W$10)/2-20)/(83.2-20) -> 0.6082278481 | AR18: 0.5398343692 | AS18: 0.2099290308 | AT18: 0.410015396 | AV18: =VLOOKUP(AT18,HDI!A$2:B$170,2) -> Haiti | AW18: =VLOOKUP(AT18,HDI!A$2:C$170,3) -> 145
A19: 2027 | B19: =+B$2+(Control!C$7-Control!C$5)*($A19-$A$2)/($A$42-$A$2) -> 10.65394 | C19: =+C$2+(Control!D$7-Control!D$5)*($A19-$A$2)/($A$42-$A$2) -> 11.31316 | D19: 10.98355 | E19: =+E$2+(Control!E$7-Control!E$5)*($A19-$A$2)/($A$42-$A$2)+((R19-R$2)/R$2)*(-0.79)*E$2 -> 5.84 | F19: =+F$2+(Control!F$7-Control!F$5)*($A19-$A$2)/($A$42-$A$2) -> 7.21 | G19: 6.525 | H19: =+H$2+(Control!H$7-Control!H$5)*($A19-$A$2)/($A$42-$A$2) -> 39.4 | I19: =+I$2+(Control!I$7-Control!I$5)*($A19-$A$2)/($A$42-$A$2) -> 6.1 | J19: =+J$2+(Control!J$7-Control!J$5)*($A19-$A$2)/($A$42-$A$2) -> 10.3 | K19: =+K$2+(Control!K$7-Control!K$5)*($A19-$A$2)/($A$42-$A$2) -> 0.7 | L19: =+L$2+(Control!$N$7-inVar11)*Interpolate!E22 -> 4.88 | M19: =+M$2+(Control!$P$7-inVar13)*Interpolate!E22 -> 2.06857469 | N19: =+N$2+(Control!$O$7-inVar12)*Interpolate!E22 -> 3.91 | O19: =+O$2+(Control!$L$7-inVar9)*Interpolate!E22 -> 3.57 | P19: =+P$2+(Control!$M$7-inVar10)*Interpolate!E22 -> 45.49 | Q19: =+EXP(LN(Control!C$14)-(-0.332*LN(B$2))+(-0.332*LN(B19))) -> 58.3 | R19: =Control!D$14/($Q$2/100*(20/(18.5+$J$2))*((7.63-0.11*$K$2/100)/7.3)*(1-1.08*(Control!$I$14*$H$2/100+Control!$J$14*$I$2/100)))*($Q19/100*(20/(18.5+$J19))*((7.63-0.11*$K19/100)/7.3)*(1-1.08*(0.95*$H19/100+0.5*I19/100))) -> 4.6 | S19: 54.8 | T19: 59 | U19: 84 | V19: 400 | W19: 58.44 | X19: =EXP(LN(Control!$L$14)-0.875*LN($AG$2)-0.77*LN(Population!$G$4/Population!$B$4)-0.352*LN($N$2)+0.875*LN(AG19)+0.77*LN(Population!G21/Population!B21)+0.352*LN(N19)) -> 165.1199566 | Y19: =+MIN((1+(EXP(LN(Control!$N$14)-0.682*LN(IF(Population!$AF$5>0,Population!AF$5,0.00001))-0.483*LN(IF(AE$2>0,AE$2,0.0001))-0.593*LN($L$4)+0.682*LN(IF(Population!AF21>0,Population!AF21,0.0001))+0.483*LN(IF(AE18>0,AE18,0.001))+0.593*LN(L19))))*Y18,Population!AA21) -> 24323577.03 | Z19: =+Z18*(1-Control!$D$18)+X18*Population!G20 -> 9.557291783e+10 | AA19: =+MIN(Y19,Population!AA21)*EXP((0.14-G19*0.006)*G19) -> 46969214.59 | AB19: =EXP(LN(Control!$O$14*Population!$E$4/($Z$2^0.3*$AA$2^0.7))-0.623*LN(O$2)-1.187*LN(M$2)+0.219*LN(P$2)+0.623*LN(O19)+1.187*LN(M19)-0.219*LN(P19)) -> 96.93326774 | AC19: =+(1+MAX((AB19-AB18)/AB18,($AE$2-0.7*Initial_Emp_Growth_Rate-0.3*Control!$R$14)))*AC18 -> 96.93326774 | AD19: 4.475510865e+10 | AE19: 0.02832913909 | AF19: 0.02651836964 | AG19: =+AD19/Population!B21 -> 637.0906522 | AH19: 0.02832913909 | AI19: 0.02651836964 | AJ19: 0.03256669937 | AK19: 628358.5622 | AL19: =Population!G21-'PolicyScenario-1'!Y19 -> 17531103.64 | AM19: =+Population!AA21-Y19 -> 17531103.64 | AN19: =+Population!AK21-AK19 -> 575182.6332 | AO19: =+Y19/Population!G21 -> 0.5811435339 | AP19: =inVar24*$AG$2*Population!AU21 -> 0 | AQ19: =+((W19+W19-Control!$W$10)/2-20)/(83.2-20) -> 0.6082278481 | AR19: 0.5398343692 | AS19: 0.2097788971 | AT19: 0.40991763 | AV19: =VLOOKUP(AT19,HDI!A$2:B$170,2) -> Haiti | AW19: =VLOOKUP(AT19,HDI!A$2:C$170,3) -> 145
A20: 2028 | B20: =+B$2+(Control!C$7-Control!C$5)*($A20-$A$2)/($A$42-$A$2) -> 10.65394 | C20: =+C$2+(Control!D$7-Control!D$5)*($A20-$A$2)/($A$42-$A$2) -> 11.31316 | D20: 10.98355 | E20: =+E$2+(Control!E$7-Control!E$5)*($A20-$A$2)/($A$42-$A$2)+((R20-R$2)/R$2)*(-0.79)*E$2 -> 5.84 | F20: =+F$2+(Control!F$7-Control!F$5)*($A20-$A$2)/($A$42-$A$2) -> 7.21 | G20: 6.525 | H20: =+H$2+(Control!H$7-Control!H$5)*($A20-$A$2)/($A$42-$A$2) -> 39.4 | I20: =+I$2+(Control!I$7-Control!I$5)*($A20-$A$2)/($A$42-$A$2) -> 6.1 | J20: =+J$2+(Control!J$7-Control!J$5)*($A20-$A$2)/($A$42-$A$2) -> 10.3 | K20: =+K$2+(Control!K$7-Control!K$5)*($A20-$A$2)/($A$42-$A$2) -> 0.7 | L20: =+L$2+(Control!$N$7-inVar11)*Interpolate!E23 -> 4.88 | M20: =+M$2+(Control!$P$7-inVar13)*Interpolate!E23 -> 2.06857469 | N20: =+N$2+(Control!$O$7-inVar12)*Interpolate!E23 -> 3.91 | O20: =+O$2+(Control!$L$7-inVar9)*Interpolate!E23 -> 3.57 | P20: =+P$2+(Control!$M$7-inVar10)*Interpolate!E23 -> 45.49 | Q20: =+EXP(LN(Control!C$14)-(-0.332*LN(B$2))+(-0.332*LN(B20))) -> 58.3 | R20: =Control!D$14/($Q$2/100*(20/(18.5+$J$2))*((7.63-0.11*$K$2/100)/7.3)*(1-1.08*(Control!$I$14*$H$2/100+Control!$J$14*$I$2/100)))*($Q20/100*(20/(18.5+$J20))*((7.63-0.11*$K20/100)/7.3)*(1-1.08*(0.95*$H20/100+0.5*I20/100))) -> 4.6 | S20: 54.8 | T20: 59 | U20: 84 | V20: 400 | W20: 58.44 | X20: =EXP(LN(Control!$L$14)-0.875*LN($AG$2)-0.77*LN(Population!$G$4/Population!$B$4)-0.352*LN($N$2)+0.875*LN(AG20)+0.77*LN(Population!G22/Population!B22)+0.352*LN(N20)) -> 164.9677732 | Y20: =+MIN((1+(EXP(LN(Control!$N$14)-0.682*LN(IF(Population!$AF$5>0,Population!AF$5,0.00001))-0.483*LN(IF(AE$2>0,AE$2,0.0001))-0.593*LN($L$4)+0.682*LN(IF(Population!AF22>0,Population!AF22,0.0001))+0.483*LN(IF(AE19>0,AE19,0.001))+0.593*LN(L20))))*Y19,Population!AA22) -> 24966254.26 | Z20: =+Z19*(1-Control!$D$18)+X19*Population!G21 -> 9.866104417e+10 | AA20: =+MIN(Y20,Population!AA22)*EXP((0.14-G20*0.006)*G20) -> 48210234.55 | AB20: =EXP(LN(Control!$O$14*Population!$E$4/($Z$2^0.3*$AA$2^0.7))-0.623*LN(O$2)-1.187*LN(M$2)+0.219*LN(P$2)+0.623*LN(O20)+1.187*LN(M20)-0.219*LN(P20)) -> 96.93326774 | AC20: =+(1+MAX((AB20-AB19)/AB19,($AE$2-0.7*Initial_Emp_Growth_Rate-0.3*Control!$R$14)))*AC19 -> 96.93326774 | AD20: 4.601654806e+10 | AE20: 0.02818537269 | AF20: 0.02642198672 | AG20: =+AD20/Population!B22 -> 636.3351105 | AH20: 0.02818537269 | AI20: 0.02642198672 | AJ20: 0.03231173027 | AK20: 642677.2294 | AL20: =Population!G22-'PolicyScenario-1'!Y20 -> 18125716 | AM20: =+Population!AA22-Y20 -> 18125716 | AN20: =+Population!AK22-AK20 -> 594612.3644 | AO20: =+Y20/Population!G22 -> 0.5793713796 | AP20: =inVar24*$AG$2*Population!AU22 -> 0 | AQ20: =+((W20+W20-Control!$W$10)/2-20)/(83.2-20) -> 0.6082278481 | AR20: 0.5398343692 | AS20: 0.2095962852 | AT20: 0.4097986515 | AV20: =VLOOKUP(AT20,HDI!A$2:B$170,2) -> Haiti | AW20: =VLOOKUP(AT20,HDI!A$2:C$170,3) -> 145
A21: 2029 | B21: =+B$2+(Control!C$7-Control!C$5)*($A21-$A$2)/($A$42-$A$2) -> 10.65394 | C21: =+C$2+(Control!D$7-Control!D$5)*($A21-$A$2)/($A$42-$A$2) -> 11.31316 | D21: 10.98355 | E21: =+E$2+(Control!E$7-Control!E$5)*($A21-$A$2)/($A$42-$A$2)+((R21-R$2)/R$2)*(-0.79)*E$2 -> 5.84 | F21: =+F$2+(Control!F$7-Control!F$5)*($A21-$A$2)/($A$42-$A$2) -> 7.21 | G21: 6.525 | H21: =+H$2+(Control!H$7-Control!H$5)*($A21-$A$2)/($A$42-$A$2) -> 39.4 | I21: =+I$2+(Control!I$7-Control!I$5)*($A21-$A$2)/($A$42-$A$2) -> 6.1 | J21: =+J$2+(Control!J$7-Control!J$5)*($A21-$A$2)/($A$42-$A$2) -> 10.3 | K21: =+K$2+(Control!K$7-Control!K$5)*($A21-$A$2)/($A$42-$A$2) -> 0.7 | L21: =+L$2+(Control!$N$7-inVar11)*Interpolate!E24 -> 4.88 | M21: =+M$2+(Control!$P$7-inVar13)*Interpolate!E24 -> 2.06857469 | N21: =+N$2+(Control!$O$7-inVar12)*Interpolate!E24 -> 3.91 | O21: =+O$2+(Control!$L$7-inVar9)*Interpolate!E24 -> 3.57 | P21: =+P$2+(Control!$M$7-inVar10)*Interpolate!E24 -> 45.49 | Q21: =+EXP(LN(Control!C$14)-(-0.332*LN(B$2))+(-0.332*LN(B21))) -> 58.3 | R21: =Control!D$14/($Q$2/100*(20/(18.5+$J$2))*((7.63-0.11*$K$2/100)/7.3)*(1-1.08*(Control!$I$14*$H$2/100+Control!$J$14*$I$2/100)))*($Q21/100*(20/(18.5+$J21))*((7.63-0.11*$K21/100)/7.3)*(1-1.08*(0.95*$H21/100+0.5*I21/100))) -> 4.6 | S21: 54.8 | T21: 59 | U21: 84 | V21: 400 | W21: 58.44 | X21: =EXP(LN(Control!$L$14)-0.875*LN($AG$2)-0.77*LN(Population!$G$4/Population!$B$4)-0.352*LN($N$2)+0.875*LN(AG21)+0.77*LN(Population!G23/Population!B23)+0.352*LN(N21)) -> 164.7698473 | Y21: =+MIN((1+(EXP(LN(Control!$N$14)-0.682*LN(IF(Population!$AF$5>0,Population!AF$5,0.00001))-0.483*LN(IF(AE$2>0,AE$2,0.0001))-0.593*LN($L$4)+0.682*LN(IF(Population!AF23>0,Population!AF23,0.0001))+0.483*LN(IF(AE20>0,AE20,0.001))+0.593*LN(L21))))*Y20,Population!AA23) -> 25623363.86 | Z21: =+Z20*(1-Control!$D$18)+X20*Population!G22 -> 1.018233888e+11 | AA21: =+MIN(Y21,Population!AA23)*EXP((0.14-G21*0.006)*G21) -> 49479123.64 | AB21: =EXP(LN(Control!$O$14*Population!$E$4/($Z$2^0.3*$AA$2^0.7))-0.623*LN(O$2)-1.187*LN(M$2)+0.219*LN(P$2)+0.623*LN(O21)+1.187*LN(M21)-0.219*LN(P21)) -> 96.93326774 | AC21: =+(1+MAX((AB21-AB20)/AB20,($AE$2-0.7*Initial_Emp_Growth_Rate-0.3*Control!$R$14)))*AC20 -> 96.93326774 | AD21: 4.730668508e+10 | AE21: 0.02803637109 | AF21: 0.02631991109 | AG21: =+AD21/Population!B23 -> 635.4474707 | AH21: 0.02803637109 | AI21: 0.02631991109 | AJ21: 0.03205261648 | AK21: 657109.5923 | AL21: =Population!G23-'PolicyScenario-1'!Y21 -> 18739835 | AM21: =+Population!AA23-Y21 -> 18739835 | AN21: =+Population!AK23-AK21 -> 614119.0014 | AO21: =+Y21/Population!G23 -> 0.5775815206 | AP21: =inVar24*$AG$2*Population!AU23 -> 0 | AQ21: =+((W21+W21-Control!$W$10)/2-20)/(83.2-20) -> 0.6082278481 | AR21: 0.5398343692 | AS21: 0.2093814683 | AT21: 0.4096586019 | AV21: =VLOOKUP(AT21,HDI!A$2:B$170,2) -> Haiti | AW21: =VLOOKUP(AT21,HDI!A$2:C$170,3) -> 145
A22: 2030 | B22: =+B$2+(Control!C$7-Control!C$5)*($A22-$A$2)/($A$42-$A$2) -> 10.65394 | C22: =+C$2+(Control!D$7-Control!D$5)*($A22-$A$2)/($A$42-$A$2) -> 11.31316 | D22: 10.98355 | E22: =+E$2+(Control!E$7-Control!E$5)*($A22-$A$2)/($A$42-$A$2)+((R22-R$2)/R$2)*(-0.79)*E$2 -> 5.84 | F22: =+F$2+(Control!F$7-Control!F$5)*($A22-$A$2)/($A$42-$A$2) -> 7.21 | G22: 6.525 | H22: =+H$2+(Control!H$7-Control!H$5)*($A22-$A$2)/($A$42-$A$2) -> 39.4 | I22: =+I$2+(Control!I$7-Control!I$5)*($A22-$A$2)/($A$42-$A$2) -> 6.1 | J22: =+J$2+(Control!J$7-Control!J$5)*($A22-$A$2)/($A$42-$A$2) -> 10.3 | K22: =+K$2+(Control!K$7-Control!K$5)*($A22-$A$2)/($A$42-$A$2) -> 0.7 | L22: =+L$2+(Control!$N$7-inVar11)*Interpolate!E25 -> 4.88 | M22: =+M$2+(Control!$P$7-inVar13)*Interpolate!E25 -> 2.06857469 | N22: =+N$2+(Control!$O$7-inVar12)*Interpolate!E25 -> 3.91 | O22: =+O$2+(Control!$L$7-inVar9)*Interpolate!E25 -> 3.57 | P22: =+P$2+(Control!$M$7-inVar10)*Interpolate!E25 -> 45.49 | Q22: =+EXP(LN(Control!C$14)-(-0.332*LN(B$2))+(-0.332*LN(B22))) -> 58.3 | R22: =Control!D$14/($Q$2/100*(20/(18.5+$J$2))*((7.63-0.11*$K$2/100)/7.3)*(1-1.08*(Control!$I$14*$H$2/100+Control!$J$14*$I$2/100)))*($Q22/100*(20/(18.5+$J22))*((7.63-0.11*$K22/100)/7.3)*(1-1.08*(0.95*$H22/100+0.5*I22/100))) -> 4.6 | S22: 54.8 | T22: 59 | U22: 84 | V22: 400 | W22: 58.44 | X22: =EXP(LN(Control!$L$14)-0.875*LN($AG$2)-0.77*LN(Population!$G$4/Population!$B$4)-0.352*LN($N$2)+0.875*LN(AG22)+0.77*LN(Population!G24/Population!B24)+0.352*LN(N22)) -> 164.5322455 | Y22: =+MIN((1+(EXP(LN(Control!$N$14)-0.682*LN(IF(Population!$AF$5>0,Population!AF$5,0.00001))-0.483*LN(IF(AE$2>0,AE$2,0.0001))-0.593*LN($L$4)+0.682*LN(IF(Population!AF24>0,Population!AF24,0.0001))+0.483*LN(IF(AE21>0,AE21,0.001))+0.593*LN(L22))))*Y21,Population!AA24) -> 26295089.57 | Z22: =+Z21*(1-Control!$D$18)+X21*Population!G23 -> 1.050601707e+11 | AA22: =+MIN(Y22,Population!AA24)*EXP((0.14-G22*0.006)*G22) -> 50776236.69 | AB22: =EXP(LN(Control!$O$14*Population!$E$4/($Z$2^0.3*$AA$2^0.7))-0.623*LN(O$2)-1.187*LN(M$2)+0.219*LN(P$2)+0.623*LN(O22)+1.187*LN(M22)-0.219*LN(P22)) -> 96.93326774 | AC22: =+(1+MAX((AB22-AB21)/AB21,($AE$2-0.7*Initial_Emp_Growth_Rate-0.3*Control!$R$14)))*AC21 -> 96.93326774 | AD22: 4.862578674e+10 | AE22: 0.02788404347 | AF22: 0.02621536033 | AG22: =+AD22/Population!B24 -> 634.4412032 | AH22: 0.02788404347 | AI22: 0.02621536033 | AJ22: 0.03178819708 | AK22: 671725.7164 | AL22: =Population!G24-'PolicyScenario-1'!Y22 -> 19374117.36 | AM22: =+Population!AA24-Y22 -> 19374117.36 | AN22: =+Population!AK24-AK22 -> 634282.354 | AO22: =+Y22/Population!G24 -> 0.5757728531 | AP22: =inVar24*$AG$2*Population!AU24 -> 0 | AQ22: =+((W22+W22-Control!$W$10)/2-20)/(83.2-20) -> 0.6082278481 | AR22: 0.5398343692 | AS22: 0.2091375793 | AT22: 0.4094994825 | AV22: =VLOOKUP(AT22,HDI!A$2:B$170,2) -> Haiti | AW22: =VLOOKUP(AT22,HDI!A$2:C$170,3) -> 145
A23: 2031 | B23: =+B$2+(Control!C$7-Control!C$5)*($A23-$A$2)/($A$42-$A$2) -> 10.65394 | C23: =+C$2+(Control!D$7-Control!D$5)*($A23-$A$2)/($A$42-$A$2) -> 11.31316 | D23: 10.98355 | E23: =+E$2+(Control!E$7-Control!E$5)*($A23-$A$2)/($A$42-$A$2)+((R23-R$2)/R$2)*(-0.79)*E$2 -> 5.84 | F23: =+F$2+(Control!F$7-Control!F$5)*($A23-$A$2)/($A$42-$A$2) -> 7.21 | G23: 6.525 | H23: =+H$2+(Control!H$7-Control!H$5)*($A23-$A$2)/($A$42-$A$2) -> 39.4 | I23: =+I$2+(Control!I$7-Control!I$5)*($A23-$A$2)/($A$42-$A$2) -> 6.1 | J23: =+J$2+(Control!J$7-Control!J$5)*($A23-$A$2)/($A$42-$A$2) -> 10.3 | K23: =+K$2+(Control!K$7-Control!K$5)*($A23-$A$2)/($A$42-$A$2) -> 0.7 | L23: =+L$2+(Control!$N$7-inVar11)*Interpolate!E26 -> 4.88 | M23: =+M$2+(Control!$P$7-inVar13)*Interpolate!E26 -> 2.06857469 | N23: =+N$2+(Control!$O$7-inVar12)*Interpolate!E26 -> 3.91 | O23: =+O$2+(Control!$L$7-inVar9)*Interpolate!E26 -> 3.57 | P23: =+P$2+(Control!$M$7-inVar10)*Interpolate!E26 -> 45.49 | Q23: =+EXP(LN(Control!C$14)-(-0.332*LN(B$2))+(-0.332*LN(B23))) -> 58.3 | R23: =Control!D$14/($Q$2/100*(20/(18.5+$J$2))*((7.63-0.11*$K$2/100)/7.3)*(1-1.08*(Control!$I$14*$H$2/100+Control!$J$14*$I$2/100)))*($Q23/100*(20/(18.5+$J23))*((7.63-0.11*$K23/100)/7.3)*(1-1.08*(0.95*$H23/100+0.5*I23/100))) -> 4.6 | S23: 54.8 | T23: 59 | U23: 84 | V23: 400 | W23: 58.44 | X23: =EXP(LN(Control!$L$14)-0.875*LN($AG$2)-0.77*LN(Population!$G$4/Population!$B$4)-0.352*LN($N$2)+0.875*LN(AG23)+0.77*LN(Population!G25/Population!B25)+0.352*LN(N23)) -> 164.2596182 | Y23: =+MIN((1+(EXP(LN(Control!$N$14)-0.682*LN(IF(Population!$AF$5>0,Population!AF$5,0.00001))-0.483*LN(IF(AE$2>0,AE$2,0.0001))-0.593*LN($L$4)+0.682*LN(IF(Population!AF25>0,Population!AF25,0.0001))+0.483*LN(IF(AE22>0,AE22,0.001))+0.593*LN(L23))))*Y22,Population!AA25) -> 26981709.01 | Z23: =+Z22*(1-Control!$D$18)+X22*Population!G24 -> 1.083718211e+11 | AA23: =+MIN(Y23,Population!AA25)*EXP((0.14-G23*0.006)*G23) -> 52102109.75 | AB23: =EXP(LN(Control!$O$14*Population!$E$4/($Z$2^0.3*$AA$2^0.7))-0.623*LN(O$2)-1.187*LN(M$2)+0.219*LN(P$2)+0.623*LN(O23)+1.187*LN(M23)-0.219*LN(P23)) -> 96.93326774 | AC23: =+(1+MAX((AB23-AB22)/AB22,($AE$2-0.7*Initial_Emp_Growth_Rate-0.3*Control!$R$14)))*AC22 -> 96.93326774 | AD23: 4.997427261e+10 | AE23: 0.02773190837 | AF23: 0.02611207811 | AG23: =+AD23/Population!B25 -> 633.3260954 | AH23: 0.02773190837 | AI23: 0.02611207811 | AJ23: 0.0315214635 | AK23: 686619.4329 | AL23: =Population!G25-'PolicyScenario-1'!Y23 -> 20029361.49 | AM23: =+Population!AA25-Y23 -> 20029361.49 | AN23: =+Population!AK25-AK23 -> 655244.1375 | AO23: =+Y23/Population!G25 -> 0.5739437268 | AP23: =inVar24*$AG$2*Population!AU25 -> 0 | AQ23: =+((W23+W23-Control!$W$10)/2-20)/(83.2-20) -> 0.6082278481 | AR23: 0.5398343692 | AS23: 0.2088668583 | AT23: 0.4093227124 | AV23: =VLOOKUP(AT23,HDI!A$2:B$170,2) -> Haiti | AW23: =VLOOKUP(AT23,HDI!A$2:C$170,3) -> 145
A24: 2032 | B24: =+B$2+(Control!C$7-Control!C$5)*($A24-$A$2)/($A$42-$A$2) -> 10.65394 | C24: =+C$2+(Control!D$7-Control!D$5)*($A24-$A$2)/($A$42-$A$2) -> 11.31316 | D24: 10.98355 | E24: =+E$2+(Control!E$7-Control!E$5)*($A24-$A$2)/($A$42-$A$2)+((R24-R$2)/R$2)*(-0.79)*E$2 -> 5.84 | F24: =+F$2+(Control!F$7-Control!F$5)*($A24-$A$2)/($A$42-$A$2) -> 7.21 | G24: 6.525 | H24: =+H$2+(Control!H$7-Control!H$5)*($A24-$A$2)/($A$42-$A$2) -> 39.4 | I24: =+I$2+(Control!I$7-Control!I$5)*($A24-$A$2)/($A$42-$A$2) -> 6.1 | J24: =+J$2+(Control!J$7-Control!J$5)*($A24-$A$2)/($A$42-$A$2) -> 10.3 | K24: =+K$2+(Control!K$7-Control!K$5)*($A24-$A$2)/($A$42-$A$2) -> 0.7 | L24: =+L$2+(Control!$N$7-inVar11)*Interpolate!E27 -> 4.88 | M24: =+M$2+(Control!$P$7-inVar13)*Interpolate!E27 -> 2.06857469 | N24: =+N$2+(Control!$O$7-inVar12)*Interpolate!E27 -> 3.91 | O24: =+O$2+(Control!$L$7-inVar9)*Interpolate!E27 -> 3.57 | P24: =+P$2+(Control!$M$7-inVar10)*Interpolate!E27 -> 45.49 | Q24: =+EXP(LN(Control!C$14)-(-0.332*LN(B$2))+(-0.332*LN(B24))) -> 58.3 | R24: =Control!D$14/($Q$2/100*(20/(18.5+$J$2))*((7.63-0.11*$K$2/100)/7.3)*(1-1.08*(Control!$I$14*$H$2/100+Control!$J$14*$I$2/100)))*($Q24/100*(20/(18.5+$J24))*((7.63-0.11*$K24/100)/7.3)*(1-1.08*(0.95*$H24/100+0.5*I24/100))) -> 4.6 | S24: 54.8 | T24: 59 | U24: 84 | V24: 400 | W24: 58.44 | X24: =EXP(LN(Control!$L$14)-0.875*LN($AG$2)-0.77*LN(Population!$G$4/Population!$B$4)-0.352*LN($N$2)+0.875*LN(AG24)+0.77*LN(Population!G26/Population!B26)+0.352*LN(N24)) -> 163.9525179 | Y24: =+MIN((1+(EXP(LN(Control!$N$14)-0.682*LN(IF(Population!$AF$5>0,Population!AF$5,0.00001))-0.483*LN(IF(AE$2>0,AE$2,0.0001))-0.593*LN($L$4)+0.682*LN(IF(Population!AF26>0,Population!AF26,0.0001))+0.483*LN(IF(AE23>0,AE23,0.001))+0.593*LN(L24))))*Y23,Population!AA26) -> 27683511.93 | Z24: =+Z23*(1-Control!$D$18)+X23*Population!G25 -> 1.117589687e+11 | AA24: =+MIN(Y24,Population!AA26)*EXP((0.14-G24*0.006)*G24) -> 53457302.37 | AB24: =EXP(LN(Control!$O$14*Population!$E$4/($Z$2^0.3*$AA$2^0.7))-0.623*LN(O$2)-1.187*LN(M$2)+0.219*LN(P$2)+0.623*LN(O24)+1.187*LN(M24)-0.219*LN(P24)) -> 96.93326774 | AC24: =+(1+MAX((AB24-AB23)/AB23,($AE$2-0.7*Initial_Emp_Growth_Rate-0.3*Control!$R$14)))*AC23 -> 96.93326774 | AD24: 5.135260705e+10 | AE24: 0.02758088062 | AF24: 0.02601032148 | AG24: =+AD24/Population!B26 -> 632.1032247 | AH24: 0.02758088062 | AI24: 0.02601032148 | AJ24: 0.03125487433 | AK24: 701802.9254 | AL24: =Population!G26-'PolicyScenario-1'!Y24 -> 20706295.32 | AM24: =+Population!AA26-Y24 -> 20706295.32 | AN24: =+Population!AK26-AK24 -> 676933.8246 | AO24: =+Y24/Population!G26 -> 0.5720938665 | AP24: =inVar24*$AG$2*Population!AU26 -> 0 | AQ24: =+((W24+W24-Control!$W$10)/2-20)/(83.2-20) -> 0.6082278481 | AR24: 0.5398343692 | AS24: 0.2085694267 | AT24: 0.409128325 | AV24: =VLOOKUP(AT24,HDI!A$2:B$170,2) -> Haiti | AW24: =VLOOKUP(AT24,HDI!A$2:C$170,3) -> 145
A25: 2033 | B25: =+B$2+(Control!C$7-Control!C$5)*($A25-$A$2)/($A$42-$A$2) -> 10.65394 | C25: =+C$2+(Control!D$7-Control!D$5)*($A25-$A$2)/($A$42-$A$2) -> 11.31316 | D25: 10.98355 | E25: =+E$2+(Control!E$7-Control!E$5)*($A25-$A$2)/($A$42-$A$2)+((R25-R$2)/R$2)*(-0.79)*E$2 -> 5.84 | F25: =+F$2+(Control!F$7-Control!F$5)*($A25-$A$2)/($A$42-$A$2) -> 7.21 | G25: 6.525 | H25: =+H$2+(Control!H$7-Control!H$5)*($A25-$A$2)/($A$42-$A$2) -> 39.4 | I25: =+I$2+(Control!I$7-Control!I$5)*($A25-$A$2)/($A$42-$A$2) -> 6.1 | J25: =+J$2+(Control!J$7-Control!J$5)*($A25-$A$2)/($A$42-$A$2) -> 10.3 | K25: =+K$2+(Control!K$7-Control!K$5)*($A25-$A$2)/($A$42-$A$2) -> 0.7 | L25: =+L$2+(Control!$N$7-inVar11)*Interpolate!E28 -> 4.88 | M25: =+M$2+(Control!$P$7-inVar13)*Interpolate!E28 -> 2.06857469 | N25: =+N$2+(Control!$O$7-inVar12)*Interpolate!E28 -> 3.91 | O25: =+O$2+(Control!$L$7-inVar9)*Interpolate!E28 -> 3.57 | P25: =+P$2+(Control!$M$7-inVar10)*Interpolate!E28 -> 45.49 | Q25: =+EXP(LN(Control!C$14)-(-0.332*LN(B$2))+(-0.332*LN(B25))) -> 58.3 | R25: =Control!D$14/($Q$2/100*(20/(18.5+$J$2))*((7.63-0.11*$K$2/100)/7.3)*(1-1.08*(Control!$I$14*$H$2/100+Control!$J$14*$I$2/100)))*($Q25/100*(20/(18.5+$J25))*((7.63-0.11*$K25/100)/7.3)*(1-1.08*(0.95*$H25/100+0.5*I25/100))) -> 4.6 | S25: 54.8 | T25: 59 | U25: 84 | V25: 400 | W25: 58.44 | X25: =EXP(LN(Control!$L$14)-0.875*LN($AG$2)-0.77*LN(Population!$G$4/Population!$B$4)-0.352*LN($N$2)+0.875*LN(AG25)+0.77*LN(Population!G27/Population!B27)+0.352*LN(N25)) -> 163.6129135 | Y25: =+MIN((1+(EXP(LN(Control!$N$14)-0.682*LN(IF(Population!$AF$5>0,Population!AF$5,0.00001))-0.483*LN(IF(AE$2>0,AE$2,0.0001))-0.593*LN($L$4)+0.682*LN(IF(Population!AF27>0,Population!AF27,0.0001))+0.483*LN(IF(AE24>0,AE24,0.001))+0.593*LN(L25))))*Y24,Population!AA27) -> 28400858.67 | Z25: =+Z24*(1-Control!$D$18)+X24*Population!G26 -> 1.152222407e+11 | AA25: =+MIN(Y25,Population!AA27)*EXP((0.14-G25*0.006)*G25) -> 54842510.36 | AB25: =EXP(LN(Control!$O$14*Population!$E$4/($Z$2^0.3*$AA$2^0.7))-0.623*LN(O$2)-1.187*LN(M$2)+0.219*LN(P$2)+0.623*LN(O25)+1.187*LN(M25)-0.219*LN(P25)) -> 96.93326774 | AC25: =+(1+MAX((AB25-AB24)/AB24,($AE$2-0.7*Initial_Emp_Growth_Rate-0.3*Control!$R$14)))*AC24 -> 96.93326774 | AD25: 5.276134726e+10 | AE25: 0.02743269115 | AF25: 0.02591241837 | AG25: =+AD25/Population!B27 -> 630.7765783 | AH25: 0.02743269115 | AI25: 0.02591241837 | AJ25: 0.03098876118 | AK25: 717346.743 | AL25: =Population!G27-'PolicyScenario-1'!Y25 -> 21405764.05 | AM25: =+Population!AA27-Y25 -> 21405764.05 | AN25: =+Population!AK27-AK25 -> 699468.7258 | AO25: =+Y25/Population!G27 -> 0.5702225351 | AP25: =inVar24*$AG$2*Population!AU27 -> 0 | AQ25: =+((W25+W25-Control!$W$10)/2-20)/(83.2-20) -> 0.6082278481 | AR25: 0.5398343692 | AS25: 0.2082461029 | AT25: 0.4089168059 | AV25: =VLOOKUP(AT25,HDI!A$2:B$170,2) -> Haiti | AW25: =VLOOKUP(AT25,HDI!A$2:C$170,3) -> 145
A26: 2034 | B26: =+B$2+(Control!C$7-Control!C$5)*($A26-$A$2)/($A$42-$A$2) -> 10.65394 | C26: =+C$2+(Control!D$7-Control!D$5)*($A26-$A$2)/($A$42-$A$2) -> 11.31316 | D26: 10.98355 | E26: =+E$2+(Control!E$7-Control!E$5)*($A26-$A$2)/($A$42-$A$2)+((R26-R$2)/R$2)*(-0.79)*E$2 -> 5.84 | F26: =+F$2+(Control!F$7-Control!F$5)*($A26-$A$2)/($A$42-$A$2) -> 7.21 | G26: 6.525 | H26: =+H$2+(Control!H$7-Control!H$5)*($A26-$A$2)/($A$42-$A$2) -> 39.4 | I26: =+I$2+(Control!I$7-Control!I$5)*($A26-$A$2)/($A$42-$A$2) -> 6.1 | J26: =+J$2+(Control!J$7-Control!J$5)*($A26-$A$2)/($A$42-$A$2) -> 10.3 | K26: =+K$2+(Control!K$7-Control!K$5)*($A26-$A$2)/($A$42-$A$2) -> 0.7 | L26: =+L$2+(Control!$N$7-inVar11)*Interpolate!E29 -> 4.88 | M26: =+M$2+(Control!$P$7-inVar13)*Interpolate!E29 -> 2.06857469 | N26: =+N$2+(Control!$O$7-inVar12)*Interpolate!E29 -> 3.91 | O26: =+O$2+(Control!$L$7-inVar9)*Interpolate!E29 -> 3.57 | P26: =+P$2+(Control!$M$7-inVar10)*Interpolate!E29 -> 45.49 | Q26: =+EXP(LN(Control!C$14)-(-0.332*LN(B$2))+(-0.332*LN(B26))) -> 58.3 | R26: =Control!D$14/($Q$2/100*(20/(18.5+$J$2))*((7.63-0.11*$K$2/100)/7.3)*(1-1.08*(Control!$I$14*$H$2/100+Control!$J$14*$I$2/100)))*($Q26/100*(20/(18.5+$J26))*((7.63-0.11*$K26/100)/7.3)*(1-1.08*(0.95*$H26/100+0.5*I26/100))) -> 4.6 | S26: 54.8 | T26: 59 | U26: 84 | V26: 400 | W26: 58.44 | X26: =EXP(LN(Control!$L$14)-0.875*LN($AG$2)-0.77*LN(Population!$G$4/Population!$B$4)-0.352*LN($N$2)+0.875*LN(AG26)+0.77*LN(Population!G28/Population!B28)+0.352*LN(N26)) -> 163.2459756 | Y26: =+MIN((1+(EXP(LN(Control!$N$14)-0.682*LN(IF(Population!$AF$5>0,Population!AF$5,0.00001))-0.483*LN(IF(AE$2>0,AE$2,0.0001))-0.593*LN($L$4)+0.682*LN(IF(Population!AF28>0,Population!AF28,0.0001))+0.483*LN(IF(AE25>0,AE25,0.001))+0.593*LN(L26))))*Y25,Population!AA28) -> 29134353.62 | Z26: =+Z25*(1-Control!$D$18)+X25*Population!G27 -> 1.187623577e+11 | AA26: =+MIN(Y26,Population!AA28)*EXP((0.14-G26*0.006)*G26) -> 56258900.78 | AB26: =EXP(LN(Control!$O$14*Population!$E$4/($Z$2^0.3*$AA$2^0.7))-0.623*LN(O$2)-1.187*LN(M$2)+0.219*LN(P$2)+0.623*LN(O26)+1.187*LN(M26)-0.219*LN(P26)) -> 96.93326774 | AC26: =+(1+MAX((AB26-AB25)/AB25,($AE$2-0.7*Initial_Emp_Growth_Rate-0.3*Control!$R$14)))*AC25 -> 96.93326774 | AD26: 5.42013828e+10 | AE26: 0.02729338075 | AF26: 0.02582650599 | AG26: =+AD26/Population!B28 -> 629.3558886 | AH26: 0.02729338075 | AI26: 0.02582650599 | AJ26: 0.03072425085 | AK26: 733494.9466 | AL26: =Population!G28-'PolicyScenario-1'!Y26 -> 22129031.44 | AM26: =+Population!AA28-Y26 -> 22129031.44 | AN26: =+Population!AK28-AK26 -> 723267.3971 | AO26: =+Y26/Population!G28 -> 0.5683267616 | AP26: =inVar24*$AG$2*Population!AU28 -> 0 | AQ26: =+((W26+W26-Control!$W$10)/2-20)/(83.2-20) -> 0.6082278481 | AR26: 0.5398343692 | AS26: 0.2078991043 | AT26: 0.4086895551 | AV26: =VLOOKUP(AT26,HDI!A$2:B$170,2) -> Haiti | AW26: =VLOOKUP(AT26,HDI!A$2:C$170,3) -> 145
A27: 2035 | B27: =+B$2+(Control!C$7-Control!C$5)*($A27-$A$2)/($A$42-$A$2) -> 10.65394 | C27: =+C$2+(Control!D$7-Control!D$5)*($A27-$A$2)/($A$42-$A$2) -> 11.31316 | D27: 10.98355 | E27: =+E$2+(Control!E$7-Control!E$5)*($A27-$A$2)/($A$42-$A$2)+((R27-R$2)/R$2)*(-0.79)*E$2 -> 5.84 | F27: =+F$2+(Control!F$7-Control!F$5)*($A27-$A$2)/($A$42-$A$2) -> 7.21 | G27: 6.525 | H27: =+H$2+(Control!H$7-Control!H$5)*($A27-$A$2)/($A$42-$A$2) -> 39.4 | I27: =+I$2+(Control!I$7-Control!I$5)*($A27-$A$2)/($A$42-$A$2) -> 6.1 | J27: =+J$2+(Control!J$7-Control!J$5)*($A27-$A$2)/($A$42-$A$2) -> 10.3 | K27: =+K$2+(Control!K$7-Control!K$5)*($A27-$A$2)/($A$42-$A$2) -> 0.7 | L27: =+L$2+(Control!$N$7-inVar11)*Interpolate!E30 -> 4.88 | M27: =+M$2+(Control!$P$7-inVar13)*Interpolate!E30 -> 2.06857469 | N27: =+N$2+(Control!$O$7-inVar12)*Interpolate!E30 -> 3.91 | O27: =+O$2+(Control!$L$7-inVar9)*Interpolate!E30 -> 3.57 | P27: =+P$2+(Control!$M$7-inVar10)*Interpolate!E30 -> 45.49 | Q27: =+EXP(LN(Control!C$14)-(-0.332*LN(B$2))+(-0.332*LN(B27))) -> 58.3 | R27: =Control!D$14/($Q$2/100*(20/(18.5+$J$2))*((7.63-0.11*$K$2/100)/7.3)*(1-1.08*(Control!$I$14*$H$2/100+Control!$J$14*$I$2/100)))*($Q27/100*(20/(18.5+$J27))*((7.63-0.11*$K27/100)/7.3)*(1-1.08*(0.95*$H27/100+0.5*I27/100))) -> 4.6 | S27: 54.8 | T27: 59 | U27: 84 | V27: 400 | W27: 58.44 | X27: =EXP(LN(Control!$L$14)-0.875*LN($AG$2)-0.77*LN(Population!$G$4/Population!$B$4)-0.352*LN($N$2)+0.875*LN(AG27)+0.77*LN(Population!G29/Population!B29)+0.352*LN(N27)) -> 162.8601736 | Y27: =+MIN((1+(EXP(LN(Control!$N$14)-0.682*LN(IF(Population!$AF$5>0,Population!AF$5,0.00001))-0.483*LN(IF(AE$2>0,AE$2,0.0001))-0.593*LN($L$4)+0.682*LN(IF(Population!AF29>0,Population!AF29,0.0001))+0.483*LN(IF(AE26>0,AE26,0.001))+0.593*LN(L27))))*Y26,Population!AA29) -> 29884882.92 | Z27: =+Z26*(1-Control!$D$18)+X26*Population!G28 -> 1.223804047e+11 | AA27: =+MIN(Y27,Population!AA29)*EXP((0.14-G27*0.006)*G27) -> 57708184.81 | AB27: =EXP(LN(Control!$O$14*Population!$E$4/($Z$2^0.3*$AA$2^0.7))-0.623*LN(O$2)-1.187*LN(M$2)+0.219*LN(P$2)+0.623*LN(O27)+1.187*LN(M27)-0.219*LN(P27)) -> 96.93326774 | AC27: =+(1+MAX((AB27-AB26)/AB26,($AE$2-0.7*Initial_Emp_Growth_Rate-0.3*Control!$R$14)))*AC26 -> 96.93326774 | AD27: 5.567402356e+10 | AE27: 0.02716980049 | AF27: 0.02576097306 | AG27: =+AD27/Population!B29 -> 627.8579009 | AH27: 0.02716980049 | AI27: 0.02576097306 | AJ27: 0.0304645939 | AK27: 750529.2987 | AL27: =Population!G29-'PolicyScenario-1'!Y27 -> 22877693.01 | AM27: =+Population!AA29-Y27 -> 22877693.01 | AN27: =+Population!AK29-AK27 -> 748661.5685 | AO27: =+Y27/Population!G29 -> 0.5664030308 | AP27: =inVar24*$AG$2*Population!AU29 -> 0 | AQ27: =+((W27+W27-Control!$W$10)/2-20)/(83.2-20) -> 0.6082278481 | AR27: 0.5398343692 | AS27: 0.2075323766 | AT27: 0.4084491086 | AV27: =VLOOKUP(AT27,HDI!A$2:B$170,2) -> Haiti | AW27: =VLOOKUP(AT27,HDI!A$2:C$170,3) -> 145
A28: 2036 | B28: =+B$2+(Control!C$7-Control!C$5)*($A28-$A$2)/($A$42-$A$2) -> 10.65394 | C28: =+C$2+(Control!D$7-Control!D$5)*($A28-$A$2)/($A$42-$A$2) -> 11.31316 | D28: 10.98355 | E28: =+E$2+(Control!E$7-Control!E$5)*($A28-$A$2)/($A$42-$A$2)+((R28-R$2)/R$2)*(-0.79)*E$2 -> 5.84 | F28: =+F$2+(Control!F$7-Control!F$5)*($A28-$A$2)/($A$42-$A$2) -> 7.21 | G28: 6.525 | H28: =+H$2+(Control!H$7-Control!H$5)*($A28-$A$2)/($A$42-$A$2) -> 39.4 | I28: =+I$2+(Control!I$7-Control!I$5)*($A28-$A$2)/($A$42-$A$2) -> 6.1 | J28: =+J$2+(Control!J$7-Control!J$5)*($A28-$A$2)/($A$42-$A$2) -> 10.3 | K28: =+K$2+(Control!K$7-Control!K$5)*($A28-$A$2)/($A$42-$A$2) -> 0.7 | L28: =+L$2+(Control!$N$7-inVar11)*Interpolate!E31 -> 4.88 | M28: =+M$2+(Control!$P$7-inVar13)*Interpolate!E31 -> 2.06857469 | N28: =+N$2+(Control!$O$7-inVar12)*Interpolate!E31 -> 3.91 | O28: =+O$2+(Control!$L$7-inVar9)*Interpolate!E31 -> 3.57 | P28: =+P$2+(Control!$M$7-inVar10)*Interpolate!E31 -> 45.49 | Q28: =+EXP(LN(Control!C$14)-(-0.332*LN(B$2))+(-0.332*LN(B28))) -> 58.3 | R28: =Control!D$14/($Q$2/100*(20/(18.5+$J$2))*((7.63-0.11*$K$2/100)/7.3)*(1-1.08*(Control!$I$14*$H$2/100+Control!$J$14*$I$2/100)))*($Q28/100*(20/(18.5+$J28))*((7.63-0.11*$K28/100)/7.3)*(1-1.08*(0.95*$H28/100+0.5*I28/100))) -> 4.6 | S28: 54.8 | T28: 59 | U28: 84 | V28: 400 | W28: 58.44 | X28: =EXP(LN(Control!$L$14)-0.875*LN($AG$2)-0.77*LN(Population!$G$4/Population!$B$4)-0.352*LN($N$2)+0.875*LN(AG28)+0.77*LN(Population!G30/Population!B30)+0.352*LN(N28)) -> 162.4635091 | Y28: =+MIN((1+(EXP(LN(Control!$N$14)-0.682*LN(IF(Population!$AF$5>0,Population!AF$5,0.00001))-0.483*LN(IF(AE$2>0,AE$2,0.0001))-0.593*LN($L$4)+0.682*LN(IF(Population!AF30>0,Population!AF30,0.0001))+0.483*LN(IF(AE27>0,AE27,0.001))+0.593*LN(L28))))*Y27,Population!AA30) -> 30653490.85 | Z28: =+Z27*(1-Control!$D$18)+X27*Population!G29 -> 1.260781108e+11 | AA28: =+MIN(Y28,Population!AA30)*EXP((0.14-G28*0.006)*G28) -> 59192378.95 | AB28: =EXP(LN(Control!$O$14*Population!$E$4/($Z$2^0.3*$AA$2^0.7))-0.623*LN(O$2)-1.187*LN(M$2)+0.219*LN(P$2)+0.623*LN(O28)+1.187*LN(M28)-0.219*LN(P28)) -> 96.93326774 | AC28: =+(1+MAX((AB28-AB27)/AB27,($AE$2-0.7*Initial_Emp_Growth_Rate-0.3*Control!$R$14)))*AC27 -> 96.93326774 | AD28: 5.718087775e+10 | AE28: 0.02706565996 | AF28: 0.02571895391 | AG28: =+AD28/Population!B30 -> 626.2993239 | AH28: 0.02706565996 | AI28: 0.02571895391 | AJ28: 0.03021485421 | AK28: 768607.9265 | AL28: =Population!G30-'PolicyScenario-1'!Y28 -> 23653385.91 | AM28: =+Population!AA30-Y28 -> 23653385.91 | AN28: =+Population!AK30-AK28 -> 775692.9017 | AO28: =+Y28/Population!G30 -> 0.564449526 | AP28: =inVar24*$AG$2*Population!AU30 -> 0 | AQ28: =+((W28+W28-Control!$W$10)/2-20)/(83.2-20) -> 0.6082278481 | AR28: 0.5398343692 | AS28: 0.2071498859 | AT28: 0.408198025 | AV28: =VLOOKUP(AT28,HDI!A$2:B$170,2) -> Haiti | AW28: =VLOOKUP(AT28,HDI!A$2:C$170,3) -> 145
A29: 2037 | B29: =+B$2+(Control!C$7-Control!C$5)*($A29-$A$2)/($A$42-$A$2) -> 10.65394 | C29: =+C$2+(Control!D$7-Control!D$5)*($A29-$A$2)/($A$42-$A$2) -> 11.31316 | D29: 10.98355 | E29: =+E$2+(Control!E$7-Control!E$5)*($A29-$A$2)/($A$42-$A$2)+((R29-R$2)/R$2)*(-0.79)*E$2 -> 5.84 | F29: =+F$2+(Control!F$7-Control!F$5)*($A29-$A$2)/($A$42-$A$2) -> 7.21 | G29: 6.525 | H29: =+H$2+(Control!H$7-Control!H$5)*($A29-$A$2)/($A$42-$A$2) -> 39.4 | I29: =+I$2+(Control!I$7-Control!I$5)*($A29-$A$2)/($A$42-$A$2) -> 6.1 | J29: =+J$2+(Control!J$7-Control!J$5)*($A29-$A$2)/($A$42-$A$2) -> 10.3 | K29: =+K$2+(Control!K$7-Control!K$5)*($A29-$A$2)/($A$42-$A$2) -> 0.7 | L29: =+L$2+(Control!$N$7-inVar11)*Interpolate!E32 -> 4.88 | M29: =+M$2+(Control!$P$7-inVar13)*Interpolate!E32 -> 2.06857469 | N29: =+N$2+(Control!$O$7-inVar12)*Interpolate!E32 -> 3.91 | O29: =+O$2+(Control!$L$7-inVar9)*Interpolate!E32 -> 3.57 | P29: =+P$2+(Control!$M$7-inVar10)*Interpolate!E32 -> 45.49 | Q29: =+EXP(LN(Control!C$14)-(-0.332*LN(B$2))+(-0.332*LN(B29))) -> 58.3 | R29: =Control!D$14/($Q$2/100*(20/(18.5+$J$2))*((7.63-0.11*$K$2/100)/7.3)*(1-1.08*(Control!$I$14*$H$2/100+Control!$J$14*$I$2/100)))*($Q29/100*(20/(18.5+$J29))*((7.63-0.11*$K29/100)/7.3)*(1-1.08*(0.95*$H29/100+0.5*I29/100))) -> 4.6 | S29: 54.8 | T29: 59 | U29: 84 | V29: 400 | W29: 58.44 | X29: =EXP(LN(Control!$L$14)-0.875*LN($AG$2)-0.77*LN(Population!$G$4/Population!$B$4)-0.352*LN($N$2)+0.875*LN(AG29)+0.77*LN(Population!G31/Population!B31)+0.352*LN(N29)) -> 162.061672 | Y29: =+MIN((1+(EXP(LN(Control!$N$14)-0.682*LN(IF(Population!$AF$5>0,Population!AF$5,0.00001))-0.483*LN(IF(AE$2>0,AE$2,0.0001))-0.593*LN($L$4)+0.682*LN(IF(Population!AF31>0,Population!AF31,0.0001))+0.483*LN(IF(AE28>0,AE28,0.001))+0.593*LN(L29))))*Y28,Population!AA31) -> 31441240.33 | Z29: =+Z28*(1-Control!$D$18)+X28*Population!G30 -> 1.298578721e+11 | AA29: =+MIN(Y29,Population!AA31)*EXP((0.14-G29*0.006)*G29) -> 60713535.75 | AB29: =EXP(LN(Control!$O$14*Population!$E$4/($Z$2^0.3*$AA$2^0.7))-0.623*LN(O$2)-1.187*LN(M$2)+0.219*LN(P$2)+0.623*LN(O29)+1.187*LN(M29)-0.219*LN(P29)) -> 96.93326774 | AC29: =+(1+MAX((AB29-AB28)/AB28,($AE$2-0.7*Initial_Emp_Growth_Rate-0.3*Control!$R$14)))*AC28 -> 96.93326774 | AD29: 5.872367224e+10 | AE29: 0.02698095157 | AF29: 0.02569852435 | AG29: =+AD29/Population!B31 -> 624.6931753 | AH29: 0.02698095157 | AI29: 0.02569852435 | AJ29: 0.02997952071 | AK29: 787749.481 | AL29: =Population!G31-'PolicyScenario-1'!Y29 -> 24457610.11 | AM29: =+Population!AA31-Y29 -> 24457610.11 | AN29: =+Population!AK31-AK29 -> 804224.1987 | AO29: =+Y29/Population!G31 -> 0.5624666711 | AP29: =inVar24*$AG$2*Population!AU31 -> 0 | AQ29: =+((W29+W29-Control!$W$10)/2-20)/(83.2-20) -> 0.6082278481 | AR29: 0.5398343692 | AS29: 0.2067547235 | AT29: 0.4079382984 | AV29: =VLOOKUP(AT29,HDI!A$2:B$170,2) -> Haiti | AW29: =VLOOKUP(AT29,HDI!A$2:C$170,3) -> 145
A30: 2038 | B30: =+B$2+(Control!C$7-Control!C$5)*($A30-$A$2)/($A$42-$A$2) -> 10.65394 | C30: =+C$2+(Control!D$7-Control!D$5)*($A30-$A$2)/($A$42-$A$2) -> 11.31316 | D30: 10.98355 | E30: =+E$2+(Control!E$7-Control!E$5)*($A30-$A$2)/($A$42-$A$2)+((R30-R$2)/R$2)*(-0.79)*E$2 -> 5.84 | F30: =+F$2+(Control!F$7-Control!F$5)*($A30-$A$2)/($A$42-$A$2) -> 7.21 | G30: 6.525 | H30: =+H$2+(Control!H$7-Control!H$5)*($A30-$A$2)/($A$42-$A$2) -> 39.4 | I30: =+I$2+(Control!I$7-Control!I$5)*($A30-$A$2)/($A$42-$A$2) -> 6.1 | J30: =+J$2+(Control!J$7-Control!J$5)*($A30-$A$2)/($A$42-$A$2) -> 10.3 | K30: =+K$2+(Control!K$7-Control!K$5)*($A30-$A$2)/($A$42-$A$2) -> 0.7 | L30: =+L$2+(Control!$N$7-inVar11)*Interpolate!E33 -> 4.88 | M30: =+M$2+(Control!$P$7-inVar13)*Interpolate!E33 -> 2.06857469 | N30: =+N$2+(Control!$O$7-inVar12)*Interpolate!E33 -> 3.91 | O30: =+O$2+(Control!$L$7-inVar9)*Interpolate!E33 -> 3.57 | P30: =+P$2+(Control!$M$7-inVar10)*Interpolate!E33 -> 45.49 | Q30: =+EXP(LN(Control!C$14)-(-0.332*LN(B$2))+(-0.332*LN(B30))) -> 58.3 | R30: =Control!D$14/($Q$2/100*(20/(18.5+$J$2))*((7.63-0.11*$K$2/100)/7.3)*(1-1.08*(Control!$I$14*$H$2/100+Control!$J$14*$I$2/100)))*($Q30/100*(20/(18.5+$J30))*((7.63-0.11*$K30/100)/7.3)*(1-1.08*(0.95*$H30/100+0.5*I30/100))) -> 4.6 | S30: 54.8 | T30: 59 | U30: 84 | V30: 400 | W30: 58.44 | X30: =EXP(LN(Control!$L$14)-0.875*LN($AG$2)-0.77*LN(Population!$G$4/Population!$B$4)-0.352*LN($N$2)+0.875*LN(AG30)+0.77*LN(Population!G32/Population!B32)+0.352*LN(N30)) -> 161.6585092 | Y30: =+MIN((1+(EXP(LN(Control!$N$14)-0.682*LN(IF(Population!$AF$5>0,Population!AF$5,0.00001))-0.483*LN(IF(AE$2>0,AE$2,0.0001))-0.593*LN($L$4)+0.682*LN(IF(Population!AF32>0,Population!AF32,0.0001))+0.483*LN(IF(AE29>0,AE29,0.001))+0.593*LN(L30))))*Y29,Population!AA32) -> 32249156.21 | Z30: =+Z29*(1-Control!$D$18)+X29*Population!G31 -> 1.337226184e+11 | AA30: =+MIN(Y30,Population!AA32)*EXP((0.14-G30*0.006)*G30) -> 62273634.18 | AB30: =EXP(LN(Control!$O$14*Population!$E$4/($Z$2^0.3*$AA$2^0.7))-0.623*LN(O$2)-1.187*LN(M$2)+0.219*LN(P$2)+0.623*LN(O30)+1.187*LN(M30)-0.219*LN(P30)) -> 96.93326774 | AC30: =+(1+MAX((AB30-AB29)/AB29,($AE$2-0.7*Initial_Emp_Growth_Rate-0.3*Control!$R$14)))*AC29 -> 96.93326774 | AD30: 6.030415869e+10 | AE30: 0.02691395802 | AF30: 0.02569605635 | AG30: =+AD30/Population!B32 -> 623.0493978 | AH30: 0.02691395802 | AI30: 0.02569605635 | AJ30: 0.02976135536 | AK30: 807915.8833 | AL30: =Population!G32-'PolicyScenario-1'!Y30 -> 25291746.22 | AM30: =+Population!AA32-Y30 -> 25291746.22 | AN30: =+Population!AK32-AK30 -> 834136.1089 | AO30: =+Y30/Population!G32 -> 0.560456212 | AP30: =inVar24*$AG$2*Population!AU32 -> 0 | AQ30: =+((W30+W30-Control!$W$10)/2-20)/(83.2-20) -> 0.6082278481 | AR30: 0.5398343692 | AS30: 0.2063492498 | AT30: 0.4076714503 | AV30: =VLOOKUP(AT30,HDI!A$2:B$170,2) -> Haiti | AW30: =VLOOKUP(AT30,HDI!A$2:C$170,3) -> 145
A31: 2039 | B31: =+B$2+(Control!C$7-Control!C$5)*($A31-$A$2)/($A$42-$A$2) -> 10.65394 | C31: =+C$2+(Control!D$7-Control!D$5)*($A31-$A$2)/($A$42-$A$2) -> 11.31316 | D31: 10.98355 | E31: =+E$2+(Control!E$7-Control!E$5)*($A31-$A$2)/($A$42-$A$2)+((R31-R$2)/R$2)*(-0.79)*E$2 -> 5.84 | F31: =+F$2+(Control!F$7-Control!F$5)*($A31-$A$2)/($A$42-$A$2) -> 7.21 | G31: 6.525 | H31: =+H$2+(Control!H$7-Control!H$5)*($A31-$A$2)/($A$42-$A$2) -> 39.4 | I31: =+I$2+(Control!I$7-Control!I$5)*($A31-$A$2)/($A$42-$A$2) -> 6.1 | J31: =+J$2+(Control!J$7-Control!J$5)*($A31-$A$2)/($A$42-$A$2) -> 10.3 | K31: =+K$2+(Control!K$7-Control!K$5)*($A31-$A$2)/($A$42-$A$2) -> 0.7 | L31: =+L$2+(Control!$N$7-inVar11)*Interpolate!E34 -> 4.88 | M31: =+M$2+(Control!$P$7-inVar13)*Interpolate!E34 -> 2.06857469 | N31: =+N$2+(Control!$O$7-inVar12)*Interpolate!E34 -> 3.91 | O31: =+O$2+(Control!$L$7-inVar9)*Interpolate!E34 -> 3.57 | P31: =+P$2+(Control!$M$7-inVar10)*Interpolate!E34 -> 45.49 | Q31: =+EXP(LN(Control!C$14)-(-0.332*LN(B$2))+(-0.332*LN(B31))) -> 58.3 | R31: =Control!D$14/($Q$2/100*(20/(18.5+$J$2))*((7.63-0.11*$K$2/100)/7.3)*(1-1.08*(Control!$I$14*$H$2/100+Control!$J$14*$I$2/100)))*($Q31/100*(20/(18.5+$J31))*((7.63-0.11*$K31/100)/7.3)*(1-1.08*(0.95*$H31/100+0.5*I31/100))) -> 4.6 | S31: 54.8 | T31: 59 | U31: 84 | V31: 400 | W31: 58.44 | X31: =EXP(LN(Control!$L$14)-0.875*LN($AG$2)-0.77*LN(Population!$G$4/Population!$B$4)-0.352*LN($N$2)+0.875*LN(AG31)+0.77*LN(Population!G33/Population!B33)+0.352*LN(N31)) -> 161.2552668 | Y31: =+MIN((1+(EXP(LN(Control!$N$14)-0.682*LN(IF(Population!$AF$5>0,Population!AF$5,0.00001))-0.483*LN(IF(AE$2>0,AE$2,0.0001))-0.593*LN($L$4)+0.682*LN(IF(Population!AF33>0,Population!AF33,0.0001))+0.483*LN(IF(AE30>0,AE30,0.001))+0.593*LN(L31))))*Y30,Population!AA33) -> 33078130.69 | Z31: =+Z30*(1-Control!$D$18)+X30*Population!G32 -> 1.376756902e+11 | AA31: =+MIN(Y31,Population!AA33)*EXP((0.14-G31*0.006)*G31) -> 63874397.11 | AB31: =EXP(LN(Control!$O$14*Population!$E$4/($Z$2^0.3*$AA$2^0.7))-0.623*LN(O$2)-1.187*LN(M$2)+0.219*LN(P$2)+0.623*LN(O31)+1.187*LN(M31)-0.219*LN(P31)) -> 96.93326774 | AC31: =+(1+MAX((AB31-AB30)/AB30,($AE$2-0.7*Initial_Emp_Growth_Rate-0.3*Control!$R$14)))*AC30 -> 96.93326774 | AD31: 6.19239715e+10 | AE31: 0.02686071481 | AF31: 0.0257053077 | AG31: =+AD31/Population!B33 -> 621.3733121 | AH31: 0.02686071481 | AI31: 0.0257053077 | AJ31: 0.02956172871 | AK31: 828974.4833 | AL31: =Population!G33-'PolicyScenario-1'!Y31 -> 26156932.31 | AM31: =+Population!AA33-Y31 -> 26156932.31 | AN31: =+Population!AK33-AK31 -> 865186.087 | AO31: =+Y31/Population!G33 -> 0.5584214656 | AP31: =inVar24*$AG$2*Population!AU33 -> 0 | AQ31: =+((W31+W31-Control!$W$10)/2-20)/(83.2-20) -> 0.6082278481 | AR31: 0.5398343692 | AS31: 0.2059347036 | AT31: 0.4073982697 | AV31: =VLOOKUP(AT31,HDI!A$2:B$170,2) -> Haiti | AW31: =VLOOKUP(AT31,HDI!A$2:C$170,3) -> 145
A32: 2040 | B32: =+B$2+(Control!C$7-Control!C$5)*($A32-$A$2)/($A$42-$A$2) -> 10.65394 | C32: =+C$2+(Control!D$7-Control!D$5)*($A32-$A$2)/($A$42-$A$2) -> 11.31316 | D32: 10.98355 | E32: =+E$2+(Control!E$7-Control!E$5)*($A32-$A$2)/($A$42-$A$2)+((R32-R$2)/R$2)*(-0.79)*E$2 -> 5.84 | F32: =+F$2+(Control!F$7-Control!F$5)*($A32-$A$2)/($A$42-$A$2) -> 7.21 | G32: 6.525 | H32: =+H$2+(Control!H$7-Control!H$5)*($A32-$A$2)/($A$42-$A$2) -> 39.4 | I32: =+I$2+(Control!I$7-Control!I$5)*($A32-$A$2)/($A$42-$A$2) -> 6.1 | J32: =+J$2+(Control!J$7-Control!J$5)*($A32-$A$2)/($A$42-$A$2) -> 10.3 | K32: =+K$2+(Control!K$7-Control!K$5)*($A32-$A$2)/($A$42-$A$2) -> 0.7 | L32: =+L$2+(Control!$N$7-inVar11)*Interpolate!E35 -> 4.88 | M32: =+M$2+(Control!$P$7-inVar13)*Interpolate!E35 -> 2.06857469 | N32: =+N$2+(Control!$O$7-inVar12)*Interpolate!E35 -> 3.91 | O32: =+O$2+(Control!$L$7-inVar9)*Interpolate!E35 -> 3.57 | P32: =+P$2+(Control!$M$7-inVar10)*Interpolate!E35 -> 45.49 | Q32: =+EXP(LN(Control!C$14)-(-0.332*LN(B$2))+(-0.332*LN(B32))) -> 58.3 | R32: =Control!D$14/($Q$2/100*(20/(18.5+$J$2))*((7.63-0.11*$K$2/100)/7.3)*(1-1.08*(Control!$I$14*$H$2/100+Control!$J$14*$I$2/100)))*($Q32/100*(20/(18.5+$J32))*((7.63-0.11*$K32/100)/7.3)*(1-1.08*(0.95*$H32/100+0.5*I32/100))) -> 4.6 | S32: 54.8 | T32: 59 | U32: 84 | V32: 400 | W32: 58.44 | X32: =EXP(LN(Control!$L$14)-0.875*LN($AG$2)-0.77*LN(Population!$G$4/Population!$B$4)-0.352*LN($N$2)+0.875*LN(AG32)+0.77*LN(Population!G34/Population!B34)+0.352*LN(N32)) -> 160.8487109 | Y32: =+MIN((1+(EXP(LN(Control!$N$14)-0.682*LN(IF(Population!$AF$5>0,Population!AF$5,0.00001))-0.483*LN(IF(AE$2>0,AE$2,0.0001))-0.593*LN($L$4)+0.682*LN(IF(Population!AF34>0,Population!AF34,0.0001))+0.483*LN(IF(AE31>0,AE31,0.001))+0.593*LN(L32))))*Y31,Population!AA34) -> 33928796.96 | Z32: =+Z31*(1-Control!$D$18)+X31*Population!G33 -> 1.417206285e+11 | AA32: =+MIN(Y32,Population!AA34)*EXP((0.14-G32*0.006)*G32) -> 65517047.21 | AB32: =EXP(LN(Control!$O$14*Population!$E$4/($Z$2^0.3*$AA$2^0.7))-0.623*LN(O$2)-1.187*LN(M$2)+0.219*LN(P$2)+0.623*LN(O32)+1.187*LN(M32)-0.219*LN(P32)) -> 96.93326774 | AC32: =+(1+MAX((AB32-AB31)/AB31,($AE$2-0.7*Initial_Emp_Growth_Rate-0.3*Control!$R$14)))*AC31 -> 96.93326774 | AD32: 6.358443193e+10 | AE32: 0.02681450162 | AF32: 0.02571687837 | AG32: =+AD32/Population!B34 -> 619.6614395 | AH32: 0.02681450162 | AI32: 0.02571687837 | AJ32: 0.02938019249 | AK32: 850666.2638 | AL32: =Population!G34-'PolicyScenario-1'!Y32 -> 27053907.73 | AM32: =+Population!AA34-Y32 -> 27053907.73 | AN32: =+Population!AK34-AK32 -> 896975.4237 | AO32: =+Y32/Population!G34 -> 0.5563675329 | AP32: =inVar24*$AG$2*Population!AU34 -> 0 | AQ32: =+((W32+W32-Control!$W$10)/2-20)/(83.2-20) -> 0.6082278481 | AR32: 0.5398343692 | AS32: 0.2055101503 | AT32: 0.4071181145 | AV32: =VLOOKUP(AT32,HDI!A$2:B$170,2) -> Haiti | AW32: =VLOOKUP(AT32,HDI!A$2:C$170,3) -> 145
A33: 2041 | B33: =+B$2+(Control!C$7-Control!C$5)*($A33-$A$2)/($A$42-$A$2) -> 10.65394 | C33: =+C$2+(Control!D$7-Control!D$5)*($A33-$A$2)/($A$42-$A$2) -> 11.31316 | D33: 10.98355 | E33: =+E$2+(Control!E$7-Control!E$5)*($A33-$A$2)/($A$42-$A$2)+((R33-R$2)/R$2)*(-0.79)*E$2 -> 5.84 | F33: =+F$2+(Control!F$7-Control!F$5)*($A33-$A$2)/($A$42-$A$2) -> 7.21 | G33: 6.525 | H33: =+H$2+(Control!H$7-Control!H$5)*($A33-$A$2)/($A$42-$A$2) -> 39.4 | I33: =+I$2+(Control!I$7-Control!I$5)*($A33-$A$2)/($A$42-$A$2) -> 6.1 | J33: =+J$2+(Control!J$7-Control!J$5)*($A33-$A$2)/($A$42-$A$2) -> 10.3 | K33: =+K$2+(Control!K$7-Control!K$5)*($A33-$A$2)/($A$42-$A$2) -> 0.7 | L33: =+L$2+(Control!$N$7-inVar11)*Interpolate!E36 -> 4.88 | M33: =+M$2+(Control!$P$7-inVar13)*Interpolate!E36 -> 2.06857469 | N33: =+N$2+(Control!$O$7-inVar12)*Interpolate!E36 -> 3.91 | O33: =+O$2+(Control!$L$7-inVar9)*Interpolate!E36 -> 3.57 | P33: =+P$2+(Control!$M$7-inVar10)*Interpolate!E36 -> 45.49 | Q33: =+EXP(LN(Control!C$14)-(-0.332*LN(B$2))+(-0.332*LN(B33))) -> 58.3 | R33: =Control!D$14/($Q$2/100*(20/(18.5+$J$2))*((7.63-0.11*$K$2/100)/7.3)*(1-1.08*(Control!$I$14*$H$2/100+Control!$J$14*$I$2/100)))*($Q33/100*(20/(18.5+$J33))*((7.63-0.11*$K33/100)/7.3)*(1-1.08*(0.95*$H33/100+0.5*I33/100))) -> 4.6 | S33: 54.8 | T33: 59 | U33: 84 | V33: 400 | W33: 58.44 | X33: =EXP(LN(Control!$L$14)-0.875*LN($AG$2)-0.77*LN(Population!$G$4/Population!$B$4)-0.352*LN($N$2)+0.875*LN(AG33)+0.77*LN(Population!G35/Population!B35)+0.352*LN(N33)) -> 160.4379353 | Y33: =+MIN((1+(EXP(LN(Control!$N$14)-0.682*LN(IF(Population!$AF$5>0,Population!AF$5,0.00001))-0.483*LN(IF(AE$2>0,AE$2,0.0001))-0.593*LN($L$4)+0.682*LN(IF(Population!AF35>0,Population!AF35,0.0001))+0.483*LN(IF(AE32>0,AE32,0.001))+0.593*LN(L33))))*Y32,Population!AA35) -> 34801864 | Z33: =+Z32*(1-Control!$D$18)+X32*Population!G34 -> 1.458607928e+11 | AA33: =+MIN(Y33,Population!AA35)*EXP((0.14-G33*0.006)*G33) -> 67202953.57 | AB33: =EXP(LN(Control!$O$14*Population!$E$4/($Z$2^0.3*$AA$2^0.7))-0.623*LN(O$2)-1.187*LN(M$2)+0.219*LN(P$2)+0.623*LN(O33)+1.187*LN(M33)-0.219*LN(P33)) -> 96.93326774 | AC33: =+(1+MAX((AB33-AB32)/AB32,($AE$2-0.7*Initial_Emp_Growth_Rate-0.3*Control!$R$14)))*AC32 -> 96.93326774 | AD33: 6.528693448e+10 | AE33: 0.0267754621 | AF33: 0.02573233119 | AG33: =+AD33/Population!B35 -> 617.9135782 | AH33: 0.0267754621 | AI33: 0.02573233119 | AJ33: 0.02921356153 | AK33: 873067.0402 | AL33: =Population!G35-'PolicyScenario-1'!Y33 -> 27983826.77 | AM33: =+Population!AA35-Y33 -> 27983826.77 | AN33: =+Population!AK35-AK33 -> 929919.038 | AO33: =+Y33/Population!G35 -> 0.5542961075 | AP33: =inVar24*$AG$2*Population!AU35 -> 0 | AQ33: =+((W33+W33-Control!$W$10)/2-20)/(83.2-20) -> 0.6082278481 | AR33: 0.5398343692 | AS33: 0.2050754598 | AT33: 0.4068308698 | AV33: =VLOOKUP(AT33,HDI!A$2:B$170,2) -> Haiti | AW33: =VLOOKUP(AT33,HDI!A$2:C$170,3) -> 145
A34: 2042 | B34: =+B$2+(Control!C$7-Control!C$5)*($A34-$A$2)/($A$42-$A$2) -> 10.65394 | C34: =+C$2+(Control!D$7-Control!D$5)*($A34-$A$2)/($A$42-$A$2) -> 11.31316 | D34: 10.98355 | E34: =+E$2+(Control!E$7-Control!E$5)*($A34-$A$2)/($A$42-$A$2)+((R34-R$2)/R$2)*(-0.79)*E$2 -> 5.84 | F34: =+F$2+(Control!F$7-Control!F$5)*($A34-$A$2)/($A$42-$A$2) -> 7.21 | G34: 6.525 | H34: =+H$2+(Control!H$7-Control!H$5)*($A34-$A$2)/($A$42-$A$2) -> 39.4 | I34: =+I$2+(Control!I$7-Control!I$5)*($A34-$A$2)/($A$42-$A$2) -> 6.1 | J34: =+J$2+(Control!J$7-Control!J$5)*($A34-$A$2)/($A$42-$A$2) -> 10.3 | K34: =+K$2+(Control!K$7-Control!K$5)*($A34-$A$2)/($A$42-$A$2) -> 0.7 | L34: =+L$2+(Control!$N$7-inVar11)*Interpolate!E37 -> 4.88 | M34: =+M$2+(Control!$P$7-inVar13)*Interpolate!E37 -> 2.06857469 | N34: =+N$2+(Control!$O$7-inVar12)*Interpolate!E37 -> 3.91 | O34: =+O$2+(Control!$L$7-inVar9)*Interpolate!E37 -> 3.57 | P34: =+P$2+(Control!$M$7-inVar10)*Interpolate!E37 -> 45.49 | Q34: =+EXP(LN(Control!C$14)-(-0.332*LN(B$2))+(-0.332*LN(B34))) -> 58.3 | R34: =Control!D$14/($Q$2/100*(20/(18.5+$J$2))*((7.63-0.11*$K$2/100)/7.3)*(1-1.08*(Control!$I$14*$H$2/100+Control!$J$14*$I$2/100)))*($Q34/100*(20/(18.5+$J34))*((7.63-0.11*$K34/100)/7.3)*(1-1.08*(0.95*$H34/100+0.5*I34/100))) -> 4.6 | S34: 54.8 | T34: 59 | U34: 84 | V34: 400 | W34: 58.44 | X34: =EXP(LN(Control!$L$14)-0.875*LN($AG$2)-0.77*LN(Population!$G$4/Population!$B$4)-0.352*LN($N$2)+0.875*LN(AG34)+0.77*LN(Population!G36/Population!B36)+0.352*LN(N34)) -> 160.0257766 | Y34: =+MIN((1+(EXP(LN(Control!$N$14)-0.682*LN(IF(Population!$AF$5>0,Population!AF$5,0.00001))-0.483*LN(IF(AE$2>0,AE$2,0.0001))-0.593*LN($L$4)+0.682*LN(IF(Population!AF36>0,Population!AF36,0.0001))+0.483*LN(IF(AE33>0,AE33,0.001))+0.593*LN(L34))))*Y33,Population!AA36) -> 35698295.93 | Z34: =+Z33*(1-Control!$D$18)+X33*Population!G35 -> 1.500995677e+11 | AA34: =+MIN(Y34,Population!AA36)*EXP((0.14-G34*0.006)*G34) -> 68933977.9 | AB34: =EXP(LN(Control!$O$14*Population!$E$4/($Z$2^0.3*$AA$2^0.7))-0.623*LN(O$2)-1.187*LN(M$2)+0.219*LN(P$2)+0.623*LN(O34)+1.187*LN(M34)-0.219*LN(P34)) -> 96.93326774 | AC34: =+(1+MAX((AB34-AB33)/AB33,($AE$2-0.7*Initial_Emp_Growth_Rate-0.3*Control!$R$14)))*AC33 -> 96.93326774 | AD34: 6.703321117e+10 | AE34: 0.02674772068 | AF34: 0.02575815858 | AG34: =+AD34/Population!B36 -> 616.1364082 | AH34: 0.02674772068 | AI34: 0.02575815858 | AJ34: 0.02906041302 | AK34: 896431.9316 | AL34: =Population!G36-'PolicyScenario-1'!Y34 -> 28948338.9 | AM34: =+Population!AA36-Y34 -> 28948338.9 | AN34: =+Population!AK36-AK34 -> 964512.1309 | AO34: =+Y34/Population!G36 -> 0.5522065615 | AP34: =inVar24*$AG$2*Population!AU36 -> 0 | AQ34: =+((W34+W34-Control!$W$10)/2-20)/(83.2-20) -> 0.6082278481 | AR34: 0.5398343692 | AS34: 0.2046322178 | AT34: 0.4065375559 | AV34: =VLOOKUP(AT34,HDI!A$2:B$170,2) -> Haiti | AW34: =VLOOKUP(AT34,HDI!A$2:C$170,3) -> 145
A35: 2043 | B35: =+B$2+(Control!C$7-Control!C$5)*($A35-$A$2)/($A$42-$A$2) -> 10.65394 | C35: =+C$2+(Control!D$7-Control!D$5)*($A35-$A$2)/($A$42-$A$2) -> 11.31316 | D35: 10.98355 | E35: =+E$2+(Control!E$7-Control!E$5)*($A35-$A$2)/($A$42-$A$2)+((R35-R$2)/R$2)*(-0.79)*E$2 -> 5.84 | F35: =+F$2+(Control!F$7-Control!F$5)*($A35-$A$2)/($A$42-$A$2) -> 7.21 | G35: 6.525 | H35: =+H$2+(Control!H$7-Control!H$5)*($A35-$A$2)/($A$42-$A$2) -> 39.4 | I35: =+I$2+(Control!I$7-Control!I$5)*($A35-$A$2)/($A$42-$A$2) -> 6.1 | J35: =+J$2+(Control!J$7-Control!J$5)*($A35-$A$2)/($A$42-$A$2) -> 10.3 | K35: =+K$2+(Control!K$7-Control!K$5)*($A35-$A$2)/($A$42-$A$2) -> 0.7 | L35: =+L$2+(Control!$N$7-inVar11)*Interpolate!E38 -> 4.88 | M35: =+M$2+(Control!$P$7-inVar13)*Interpolate!E38 -> 2.06857469 | N35: =+N$2+(Control!$O$7-inVar12)*Interpolate!E38 -> 3.91 | O35: =+O$2+(Control!$L$7-inVar9)*Interpolate!E38 -> 3.57 | P35: =+P$2+(Control!$M$7-inVar10)*Interpolate!E38 -> 45.49 | Q35: =+EXP(LN(Control!C$14)-(-0.332*LN(B$2))+(-0.332*LN(B35))) -> 58.3 | R35: =Control!D$14/($Q$2/100*(20/(18.5+$J$2))*((7.63-0.11*$K$2/100)/7.3)*(1-1.08*(Control!$I$14*$H$2/100+Control!$J$14*$I$2/100)))*($Q35/100*(20/(18.5+$J35))*((7.63-0.11*$K35/100)/7.3)*(1-1.08*(0.95*$H35/100+0.5*I35/100))) -> 4.6 | S35: 54.8 | T35: 59 | U35: 84 | V35: 400 | W35: 58.44 | X35: =EXP(LN(Control!$L$14)-0.875*LN($AG$2)-0.77*LN(Population!$G$4/Population!$B$4)-0.352*LN($N$2)+0.875*LN(AG35)+0.77*LN(Population!G37/Population!B37)+0.352*LN(N35)) -> 159.6098188 | Y35: =+MIN((1+(EXP(LN(Control!$N$14)-0.682*LN(IF(Population!$AF$5>0,Population!AF$5,0.00001))-0.483*LN(IF(AE$2>0,AE$2,0.0001))-0.593*LN($L$4)+0.682*LN(IF(Population!AF37>0,Population!AF37,0.0001))+0.483*LN(IF(AE34>0,AE34,0.001))+0.593*LN(L35))))*Y34,Population!AA37) -> 36619000.21 | Z35: =+Z34*(1-Control!$D$18)+X34*Population!G36 -> 1.544407129e+11 | AA35: =+MIN(Y35,Population!AA37)*EXP((0.14-G35*0.006)*G35) -> 70711872.54 | AB35: =EXP(LN(Control!$O$14*Population!$E$4/($Z$2^0.3*$AA$2^0.7))-0.623*LN(O$2)-1.187*LN(M$2)+0.219*LN(P$2)+0.623*LN(O35)+1.187*LN(M35)-0.219*LN(P35)) -> 96.93326774 | AC35: =+(1+MAX((AB35-AB34)/AB34,($AE$2-0.7*Initial_Emp_Growth_Rate-0.3*Control!$R$14)))*AC34 -> 96.93326774 | AD35: 6.88249698e+10 | AE35: 0.02672941666 | AF35: 0.02579126705 | AG35: =+AD35/Population!B37 -> 614.3261602 | AH35: 0.02672941666 | AI35: 0.02579126705 | AJ35: 0.02892177041 | AK35: 920704.2836 | AL35: =Population!G37-'PolicyScenario-1'!Y35 -> 29948758.55 | AM35: =+Population!AA37-Y35 -> 29948758.55 | AN35: =+Population!AK37-AK35 -> 1000419.654 | AO35: =+Y35/Population!G37 -> 0.5501011434 | AP35: =inVar24*$AG$2*Population!AU37 -> 0 | AQ35: =+((W35+W35-Control!$W$10)/2-20)/(83.2-20) -> 0.6082278481 | AR35: 0.5398343692 | AS35: 0.2041794095 | AT35: 0.4062374739 | AV35: =VLOOKUP(AT35,HDI!A$2:B$170,2) -> Haiti | AW35: =VLOOKUP(AT35,HDI!A$2:C$170,3) -> 145
A36: 2044 | B36: =+B$2+(Control!C$7-Control!C$5)*($A36-$A$2)/($A$42-$A$2) -> 10.65394 | C36: =+C$2+(Control!D$7-Control!D$5)*($A36-$A$2)/($A$42-$A$2) -> 11.31316 | D36: 10.98355 | E36: =+E$2+(Control!E$7-Control!E$5)*($A36-$A$2)/($A$42-$A$2)+((R36-R$2)/R$2)*(-0.79)*E$2 -> 5.84 | F36: =+F$2+(Control!F$7-Control!F$5)*($A36-$A$2)/($A$42-$A$2) -> 7.21 | G36: 6.525 | H36: =+H$2+(Control!H$7-Control!H$5)*($A36-$A$2)/($A$42-$A$2) -> 39.4 | I36: =+I$2+(Control!I$7-Control!I$5)*($A36-$A$2)/($A$42-$A$2) -> 6.1 | J36: =+J$2+(Control!J$7-Control!J$5)*($A36-$A$2)/($A$42-$A$2) -> 10.3 | K36: =+K$2+(Control!K$7-Control!K$5)*($A36-$A$2)/($A$42-$A$2) -> 0.7 | L36: =+L$2+(Control!$N$7-inVar11)*Interpolate!E39 -> 4.88 | M36: =+M$2+(Control!$P$7-inVar13)*Interpolate!E39 -> 2.06857469 | N36: =+N$2+(Control!$O$7-inVar12)*Interpolate!E39 -> 3.91 | O36: =+O$2+(Control!$L$7-inVar9)*Interpolate!E39 -> 3.57 | P36: =+P$2+(Control!$M$7-inVar10)*Interpolate!E39 -> 45.49 | Q36: =+EXP(LN(Control!C$14)-(-0.332*LN(B$2))+(-0.332*LN(B36))) -> 58.3 | R36: =Control!D$14/($Q$2/100*(20/(18.5+$J$2))*((7.63-0.11*$K$2/100)/7.3)*(1-1.08*(Control!$I$14*$H$2/100+Control!$J$14*$I$2/100)))*($Q36/100*(20/(18.5+$J36))*((7.63-0.11*$K36/100)/7.3)*(1-1.08*(0.95*$H36/100+0.5*I36/100))) -> 4.6 | S36: 54.8 | T36: 59 | U36: 84 | V36: 400 | W36: 58.44 | X36: =EXP(LN(Control!$L$14)-0.875*LN($AG$2)-0.77*LN(Population!$G$4/Population!$B$4)-0.352*LN($N$2)+0.875*LN(AG36)+0.77*LN(Population!G38/Population!B38)+0.352*LN(N36)) -> 159.1814313 | Y36: =+MIN((1+(EXP(LN(Control!$N$14)-0.682*LN(IF(Population!$AF$5>0,Population!AF$5,0.00001))-0.483*LN(IF(AE$2>0,AE$2,0.0001))-0.593*LN($L$4)+0.682*LN(IF(Population!AF38>0,Population!AF38,0.0001))+0.483*LN(IF(AE35>0,AE35,0.001))+0.593*LN(L36))))*Y35,Population!AA38) -> 37564585.91 | Z36: =+Z35*(1-Control!$D$18)+X35*Population!G37 -> 1.588879523e+11 | AA36: =+MIN(Y36,Population!AA38)*EXP((0.14-G36*0.006)*G36) -> 72537813.57 | AB36: =EXP(LN(Control!$O$14*Population!$E$4/($Z$2^0.3*$AA$2^0.7))-0.623*LN(O$2)-1.187*LN(M$2)+0.219*LN(P$2)+0.623*LN(O36)+1.187*LN(M36)-0.219*LN(P36)) -> 96.93326774 | AC36: =+(1+MAX((AB36-AB35)/AB35,($AE$2-0.7*Initial_Emp_Growth_Rate-0.3*Control!$R$14)))*AC35 -> 96.93326774 | AD36: 7.066351988e+10 | AE36: 0.02671341648 | AF36: 0.02582226959 | AG36: =+AD36/Population!B38 -> 612.4665551 | AH36: 0.02671341648 | AI36: 0.02582226959 | AJ36: 0.02879577097 | AK36: 945585.6955 | AL36: =Population!G38-'PolicyScenario-1'!Y36 -> 30985836.08 | AM36: =+Population!AA38-Y36 -> 30985836.08 | AN36: =+Population!AK38-AK36 -> 1037077.523 | AO36: =+Y36/Population!G38 -> 0.5479847508 | AP36: =inVar24*$AG$2*Population!AU38 -> 0 | AQ36: =+((W36+W36-Control!$W$10)/2-20)/(83.2-20) -> 0.6082278481 | AR36: 0.5398343692 | AS36: 0.2037128637 | AT36: 0.4059278234 | AV36: =VLOOKUP(AT36,HDI!A$2:B$170,2) -> Haiti | AW36: =VLOOKUP(AT36,HDI!A$2:C$170,3) -> 145
A37: 2045 | B37: =+B$2+(Control!C$7-Control!C$5)*($A37-$A$2)/($A$42-$A$2) -> 10.65394 | C37: =+C$2+(Control!D$7-Control!D$5)*($A37-$A$2)/($A$42-$A$2) -> 11.31316 | D37: 10.98355 | E37: =+E$2+(Control!E$7-Control!E$5)*($A37-$A$2)/($A$42-$A$2)+((R37-R$2)/R$2)*(-0.79)*E$2 -> 5.84 | F37: =+F$2+(Control!F$7-Control!F$5)*($A37-$A$2)/($A$42-$A$2) -> 7.21 | G37: 6.525 | H37: =+H$2+(Control!H$7-Control!H$5)*($A37-$A$2)/($A$42-$A$2) -> 39.4 | I37: =+I$2+(Control!I$7-Control!I$5)*($A37-$A$2)/($A$42-$A$2) -> 6.1 | J37: =+J$2+(Control!J$7-Control!J$5)*($A37-$A$2)/($A$42-$A$2) -> 10.3 | K37: =+K$2+(Control!K$7-Control!K$5)*($A37-$A$2)/($A$42-$A$2) -> 0.7 | L37: =+L$2+(Control!$N$7-inVar11)*Interpolate!E40 -> 4.88 | M37: =+M$2+(Control!$P$7-inVar13)*Interpolate!E40 -> 2.06857469 | N37: =+N$2+(Control!$O$7-inVar12)*Interpolate!E40 -> 3.91 | O37: =+O$2+(Control!$L$7-inVar9)*Interpolate!E40 -> 3.57 | P37: =+P$2+(Control!$M$7-inVar10)*Interpolate!E40 -> 45.49 | Q37: =+EXP(LN(Control!C$14)-(-0.332*LN(B$2))+(-0.332*LN(B37))) -> 58.3 | R37: =Control!D$14/($Q$2/100*(20/(18.5+$J$2))*((7.63-0.11*$K$2/100)/7.3)*(1-1.08*(Control!$I$14*$H$2/100+Control!$J$14*$I$2/100)))*($Q37/100*(20/(18.5+$J37))*((7.63-0.11*$K37/100)/7.3)*(1-1.08*(0.95*$H37/100+0.5*I37/100))) -> 4.6 | S37: 54.8 | T37: 59 | U37: 84 | V37: 400 | W37: 58.44 | X37: =EXP(LN(Control!$L$14)-0.875*LN($AG$2)-0.77*LN(Population!$G$4/Population!$B$4)-0.352*LN($N$2)+0.875*LN(AG37)+0.77*LN(Population!G39/Population!B39)+0.352*LN(N37)) -> 158.7402821 | Y37: =+MIN((1+(EXP(LN(Control!$N$14)-0.682*LN(IF(Population!$AF$5>0,Population!AF$5,0.00001))-0.483*LN(IF(AE$2>0,AE$2,0.0001))-0.593*LN($L$4)+0.682*LN(IF(Population!AF39>0,Population!AF39,0.0001))+0.483*LN(IF(AE36>0,AE36,0.001))+0.593*LN(L37))))*Y36,Population!AA39) -> 38535154.13 | Z37: =+Z36*(1-Control!$D$18)+X36*Population!G38 -> 1.634443885e+11 | AA37: =+MIN(Y37,Population!AA39)*EXP((0.14-G37*0.006)*G37) -> 74411996.27 | AB37: =EXP(LN(Control!$O$14*Population!$E$4/($Z$2^0.3*$AA$2^0.7))-0.623*LN(O$2)-1.187*LN(M$2)+0.219*LN(P$2)+0.623*LN(O37)+1.187*LN(M37)-0.219*LN(P37)) -> 96.93326774 | AC37: =+(1+MAX((AB37-AB36)/AB36,($AE$2-0.7*Initial_Emp_Growth_Rate-0.3*Control!$R$14)))*AC36 -> 96.93326774 | AD37: 7.254941701e+10 | AE37: 0.02668841189 | AF37: 0.0258373199 | AG37: =+AD37/Population!B39 -> 610.5625169 | AH37: 0.02668841189 | AI37: 0.0258373199 | AJ37: 0.0286770402 | AK37: 970568.2232 | AL37: =Population!G39-'PolicyScenario-1'!Y37 -> 32059594.82 | AM37: =+Population!AA39-Y37 -> 32059594.82 | AN37: =+Population!AK39-AK37 -> 1073758.746 | AO37: =+Y37/Population!G39 -> 0.5458643129 | AP37: =inVar24*$AG$2*Population!AU39 -> 0 | AQ37: =+((W37+W37-Control!$W$10)/2-20)/(83.2-20) -> 0.6082278481 | AR37: 0.5398343692 | AS37: 0.2032337003 | AT37: 0.4056093061 | AV37: =VLOOKUP(AT37,HDI!A$2:B$170,2) -> Haiti | AW37: =VLOOKUP(AT37,HDI!A$2:C$170,3) -> 145
A38: 2046 | B38: =+B$2+(Control!C$7-Control!C$5)*($A38-$A$2)/($A$42-$A$2) -> 10.65394 | C38: =+C$2+(Control!D$7-Control!D$5)*($A38-$A$2)/($A$42-$A$2) -> 11.31316 | D38: 10.98355 | E38: =+E$2+(Control!E$7-Control!E$5)*($A38-$A$2)/($A$42-$A$2)+((R38-R$2)/R$2)*(-0.79)*E$2 -> 5.84 | F38: =+F$2+(Control!F$7-Control!F$5)*($A38-$A$2)/($A$42-$A$2) -> 7.21 | G38: 6.525 | H38: =+H$2+(Control!H$7-Control!H$5)*($A38-$A$2)/($A$42-$A$2) -> 39.4 | I38: =+I$2+(Control!I$7-Control!I$5)*($A38-$A$2)/($A$42-$A$2) -> 6.1 | J38: =+J$2+(Control!J$7-Control!J$5)*($A38-$A$2)/($A$42-$A$2) -> 10.3 | K38: =+K$2+(Control!K$7-Control!K$5)*($A38-$A$2)/($A$42-$A$2) -> 0.7 | L38: =+L$2+(Control!$N$7-inVar11)*Interpolate!E41 -> 4.88 | M38: =+M$2+(Control!$P$7-inVar13)*Interpolate!E41 -> 2.06857469 | N38: =+N$2+(Control!$O$7-inVar12)*Interpolate!E41 -> 3.91 | O38: =+O$2+(Control!$L$7-inVar9)*Interpolate!E41 -> 3.57 | P38: =+P$2+(Control!$M$7-inVar10)*Interpolate!E41 -> 45.49 | Q38: =+EXP(LN(Control!C$14)-(-0.332*LN(B$2))+(-0.332*LN(B38))) -> 58.3 | R38: =Control!D$14/($Q$2/100*(20/(18.5+$J$2))*((7.63-0.11*$K$2/100)/7.3)*(1-1.08*(Control!$I$14*$H$2/100+Control!$J$14*$I$2/100)))*($Q38/100*(20/(18.5+$J38))*((7.63-0.11*$K38/100)/7.3)*(1-1.08*(0.95*$H38/100+0.5*I38/100))) -> 4.6 | S38: 54.8 | T38: 59 | U38: 84 | V38: 400 | W38: 58.44 | X38: =EXP(LN(Control!$L$14)-0.875*LN($AG$2)-0.77*LN(Population!$G$4/Population!$B$4)-0.352*LN($N$2)+0.875*LN(AG38)+0.77*LN(Population!G40/Population!B40)+0.352*LN(N38)) -> 158.2860513 | Y38: =+MIN((1+(EXP(LN(Control!$N$14)-0.682*LN(IF(Population!$AF$5>0,Population!AF$5,0.00001))-0.483*LN(IF(AE$2>0,AE$2,0.0001))-0.593*LN($L$4)+0.682*LN(IF(Population!AF40>0,Population!AF40,0.0001))+0.483*LN(IF(AE37>0,AE37,0.001))+0.593*LN(L38))))*Y37,Population!AA40) -> 39530870.4 | Z38: =+Z37*(1-Control!$D$18)+X37*Population!G39 -> 1.681128433e+11 | AA38: =+MIN(Y38,Population!AA40)*EXP((0.14-G38*0.006)*G38) -> 76334740.25 | AB38: =EXP(LN(Control!$O$14*Population!$E$4/($Z$2^0.3*$AA$2^0.7))-0.623*LN(O$2)-1.187*LN(M$2)+0.219*LN(P$2)+0.623*LN(O38)+1.187*LN(M38)-0.219*LN(P38)) -> 96.93326774 | AC38: =+(1+MAX((AB38-AB37)/AB37,($AE$2-0.7*Initial_Emp_Growth_Rate-0.3*Control!$R$14)))*AC37 -> 96.93326774 | AD38: 7.448326127e+10 | AE38: 0.02665554519 | AF38: 0.02583916673 | AG38: =+AD38/Population!B40 -> 608.6155041 | AH38: 0.02665554519 | AI38: 0.02583916673 | AJ38: 0.0285629557 | AK38: 995716.2725 | AL38: =Population!G40-'PolicyScenario-1'!Y38 -> 33170789.46 | AM38: =+Population!AA40-Y38 -> 33170789.46 | AN38: =+Population!AK40-AK38 -> 1111194.634 | AO38: =+Y38/Population!G40 -> 0.5437409611 | AP38: =inVar24*$AG$2*Population!AU40 -> 0 | AQ38: =+((W38+W38-Control!$W$10)/2-20)/(83.2-20) -> 0.6082278481 | AR38: 0.5398343692 | AS38: 0.2027421744 | AT38: 0.4052820502 | AV38: =VLOOKUP(AT38,HDI!A$2:B$170,2) -> Haiti | AW38: =VLOOKUP(AT38,HDI!A$2:C$170,3) -> 145
A39: 2047 | B39: =+B$2+(Control!C$7-Control!C$5)*($A39-$A$2)/($A$42-$A$2) -> 10.65394 | C39: =+C$2+(Control!D$7-Control!D$5)*($A39-$A$2)/($A$42-$A$2) -> 11.31316 | D39: 10.98355 | E39: =+E$2+(Control!E$7-Control!E$5)*($A39-$A$2)/($A$42-$A$2)+((R39-R$2)/R$2)*(-0.79)*E$2 -> 5.84 | F39: =+F$2+(Control!F$7-Control!F$5)*($A39-$A$2)/($A$42-$A$2) -> 7.21 | G39: 6.525 | H39: =+H$2+(Control!H$7-Control!H$5)*($A39-$A$2)/($A$42-$A$2) -> 39.4 | I39: =+I$2+(Control!I$7-Control!I$5)*($A39-$A$2)/($A$42-$A$2) -> 6.1 | J39: =+J$2+(Control!J$7-Control!J$5)*($A39-$A$2)/($A$42-$A$2) -> 10.3 | K39: =+K$2+(Control!K$7-Control!K$5)*($A39-$A$2)/($A$42-$A$2) -> 0.7 | L39: =+L$2+(Control!$N$7-inVar11)*Interpolate!E42 -> 4.88 | M39: =+M$2+(Control!$P$7-inVar13)*Interpolate!E42 -> 2.06857469 | N39: =+N$2+(Control!$O$7-inVar12)*Interpolate!E42 -> 3.91 | O39: =+O$2+(Control!$L$7-inVar9)*Interpolate!E42 -> 3.57 | P39: =+P$2+(Control!$M$7-inVar10)*Interpolate!E42 -> 45.49 | Q39: =+EXP(LN(Control!C$14)-(-0.332*LN(B$2))+(-0.332*LN(B39))) -> 58.3 | R39: =Control!D$14/($Q$2/100*(20/(18.5+$J$2))*((7.63-0.11*$K$2/100)/7.3)*(1-1.08*(Control!$I$14*$H$2/100+Control!$J$14*$I$2/100)))*($Q39/100*(20/(18.5+$J39))*((7.63-0.11*$K39/100)/7.3)*(1-1.08*(0.95*$H39/100+0.5*I39/100))) -> 4.6 | S39: 54.8 | T39: 59 | U39: 84 | V39: 400 | W39: 58.44 | X39: =EXP(LN(Control!$L$14)-0.875*LN($AG$2)-0.77*LN(Population!$G$4/Population!$B$4)-0.352*LN($N$2)+0.875*LN(AG39)+0.77*LN(Population!G41/Population!B41)+0.352*LN(N39)) -> 157.8227568 | Y39: =+MIN((1+(EXP(LN(Control!$N$14)-0.682*LN(IF(Population!$AF$5>0,Population!AF$5,0.00001))-0.483*LN(IF(AE$2>0,AE$2,0.0001))-0.593*LN($L$4)+0.682*LN(IF(Population!AF41>0,Population!AF41,0.0001))+0.483*LN(IF(AE38>0,AE38,0.001))+0.593*LN(L39))))*Y38,Population!AA41) -> 40552285.38 | Z39: =+Z38*(1-Control!$D$18)+X38*Population!G40 -> 1.728959882e+11 | AA39: =+MIN(Y39,Population!AA41)*EXP((0.14-G39*0.006)*G39) -> 78307108.83 | AB39: =EXP(LN(Control!$O$14*Population!$E$4/($Z$2^0.3*$AA$2^0.7))-0.623*LN(O$2)-1.187*LN(M$2)+0.219*LN(P$2)+0.623*LN(O39)+1.187*LN(M39)-0.219*LN(P39)) -> 96.93326774 | AC39: =+(1+MAX((AB39-AB38)/AB38,($AE$2-0.7*Initial_Emp_Growth_Rate-0.3*Control!$R$14)))*AC38 -> 96.93326774 | AD39: 7.646613888e+10 | AE39: 0.02662178832 | AF39: 0.02583841357 | AG39: =+AD39/Population!B41 -> 606.6343146 | AH39: 0.02662178832 | AI39: 0.02583841357 | AJ39: 0.02845198995 | AK39: 1021414.978 | AL39: =Population!G41-'PolicyScenario-1'!Y39 -> 34320968.04 | AM39: =+Population!AA41-Y39 -> 34320968.04 | AN39: =+Population!AK41-AK39 -> 1150178.584 | AO39: =+Y39/Population!G41 -> 0.5416124387 | AP39: =inVar24*$AG$2*Population!AU41 -> 0 | AQ39: =+((W39+W39-Control!$W$10)/2-20)/(83.2-20) -> 0.6082278481 | AR39: 0.5398343692 | AS39: 0.2022404038 | AT39: 0.4049474275 | AV39: =VLOOKUP(AT39,HDI!A$2:B$170,2) -> Haiti | AW39: =VLOOKUP(AT39,HDI!A$2:C$170,3) -> 145
A40: 2048 | B40: =+B$2+(Control!C$7-Control!C$5)*($A40-$A$2)/($A$42-$A$2) -> 10.65394 | C40: =+C$2+(Control!D$7-Control!D$5)*($A40-$A$2)/($A$42-$A$2) -> 11.31316 | D40: 10.98355 | E40: =+E$2+(Control!E$7-Control!E$5)*($A40-$A$2)/($A$42-$A$2)+((R40-R$2)/R$2)*(-0.79)*E$2 -> 5.84 | F40: =+F$2+(Control!F$7-Control!F$5)*($A40-$A$2)/($A$42-$A$2) -> 7.21 | G40: 6.525 | H40: =+H$2+(Control!H$7-Control!H$5)*($A40-$A$2)/($A$42-$A$2) -> 39.4 | I40: =+I$2+(Control!I$7-Control!I$5)*($A40-$A$2)/($A$42-$A$2) -> 6.1 | J40: =+J$2+(Control!J$7-Control!J$5)*($A40-$A$2)/($A$42-$A$2) -> 10.3 | K40: =+K$2+(Control!K$7-Control!K$5)*($A40-$A$2)/($A$42-$A$2) -> 0.7 | L40: =+L$2+(Control!$N$7-inVar11)*Interpolate!E43 -> 4.88 | M40: =+M$2+(Control!$P$7-inVar13)*Interpolate!E43 -> 2.06857469 | N40: =+N$2+(Control!$O$7-inVar12)*Interpolate!E43 -> 3.91 | O40: =+O$2+(Control!$L$7-inVar9)*Interpolate!E43 -> 3.57 | P40: =+P$2+(Control!$M$7-inVar10)*Interpolate!E43 -> 45.49 | Q40: =+EXP(LN(Control!C$14)-(-0.332*LN(B$2))+(-0.332*LN(B40))) -> 58.3 | R40: =Control!D$14/($Q$2/100*(20/(18.5+$J$2))*((7.63-0.11*$K$2/100)/7.3)*(1-1.08*(Control!$I$14*$H$2/100+Control!$J$14*$I$2/100)))*($Q40/100*(20/(18.5+$J40))*((7.63-0.11*$K40/100)/7.3)*(1-1.08*(0.95*$H40/100+0.5*I40/100))) -> 4.6 | S40: 54.8 | T40: 59 | U40: 84 | V40: 400 | W40: 58.44 | X40: =EXP(LN(Control!$L$14)-0.875*LN($AG$2)-0.77*LN(Population!$G$4/Population!$B$4)-0.352*LN($N$2)+0.875*LN(AG40)+0.77*LN(Population!G42/Population!B42)+0.352*LN(N40)) -> 157.3539217 | Y40: =+MIN((1+(EXP(LN(Control!$N$14)-0.682*LN(IF(Population!$AF$5>0,Population!AF$5,0.00001))-0.483*LN(IF(AE$2>0,AE$2,0.0001))-0.593*LN($L$4)+0.682*LN(IF(Population!AF42>0,Population!AF42,0.0001))+0.483*LN(IF(AE39>0,AE39,0.001))+0.593*LN(L40))))*Y39,Population!AA42) -> 41600038.7 | Z40: =+Z39*(1-Control!$D$18)+X39*Population!G41 -> 1.77796852e+11 | AA40: =+MIN(Y40,Population!AA42)*EXP((0.14-G40*0.006)*G40) -> 80330337.17 | AB40: =EXP(LN(Control!$O$14*Population!$E$4/($Z$2^0.3*$AA$2^0.7))-0.623*LN(O$2)-1.187*LN(M$2)+0.219*LN(P$2)+0.623*LN(O40)+1.187*LN(M40)-0.219*LN(P40)) -> 96.93326774 | AC40: =+(1+MAX((AB40-AB39)/AB39,($AE$2-0.7*Initial_Emp_Growth_Rate-0.3*Control!$R$14)))*AC39 -> 96.93326774 | AD40: 7.849930046e+10 | AE40: 0.02658904462 | AF40: 0.02583709658 | AG40: =+AD40/Population!B42 -> 604.6276818 | AH40: 0.02658904462 | AI40: 0.02583709658 | AJ40: 0.02834573423 | AK40: 1047753.314 | AL40: =Population!G42-'PolicyScenario-1'!Y40 -> 35511514.37 | AM40: =+Population!AA42-Y40 -> 35511514.37 | AN40: =+Population!AK42-AK40 -> 1190546.327 | AO40: =+Y40/Population!G42 -> 0.5394786779 | AP40: =inVar24*$AG$2*Population!AU42 -> 0 | AQ40: =+((W40+W40-Control!$W$10)/2-20)/(83.2-20) -> 0.6082278481 | AR40: 0.5398343692 | AS40: 0.201730516 | AT40: 0.4046068241 | AV40: =VLOOKUP(AT40,HDI!A$2:B$170,2) -> Haiti | AW40: =VLOOKUP(AT40,HDI!A$2:C$170,3) -> 145
A41: 2049 | B41: =+B$2+(Control!C$7-Control!C$5)*($A41-$A$2)/($A$42-$A$2) -> 10.65394 | C41: =+C$2+(Control!D$7-Control!D$5)*($A41-$A$2)/($A$42-$A$2) -> 11.31316 | D41: 10.98355 | E41: =+E$2+(Control!E$7-Control!E$5)*($A41-$A$2)/($A$42-$A$2)+((R41-R$2)/R$2)*(-0.79)*E$2 -> 5.84 | F41: =+F$2+(Control!F$7-Control!F$5)*($A41-$A$2)/($A$42-$A$2) -> 7.21 | G41: 6.525 | H41: =+H$2+(Control!H$7-Control!H$5)*($A41-$A$2)/($A$42-$A$2) -> 39.4 | I41: =+I$2+(Control!I$7-Control!I$5)*($A41-$A$2)/($A$42-$A$2) -> 6.1 | J41: =+J$2+(Control!J$7-Control!J$5)*($A41-$A$2)/($A$42-$A$2) -> 10.3 | K41: =+K$2+(Control!K$7-Control!K$5)*($A41-$A$2)/($A$42-$A$2) -> 0.7 | L41: =+L$2+(Control!$N$7-inVar11)*Interpolate!E44 -> 4.88 | M41: =+M$2+(Control!$P$7-inVar13)*Interpolate!E44 -> 2.06857469 | N41: =+N$2+(Control!$O$7-inVar12)*Interpolate!E44 -> 3.91 | O41: =+O$2+(Control!$L$7-inVar9)*Interpolate!E44 -> 3.57 | P41: =+P$2+(Control!$M$7-inVar10)*Interpolate!E44 -> 45.49 | Q41: =+EXP(LN(Control!C$14)-(-0.332*LN(B$2))+(-0.332*LN(B41))) -> 58.3 | R41: =Control!D$14/($Q$2/100*(20/(18.5+$J$2))*((7.63-0.11*$K$2/100)/7.3)*(1-1.08*(Control!$I$14*$H$2/100+Control!$J$14*$I$2/100)))*($Q41/100*(20/(18.5+$J41))*((7.63-0.11*$K41/100)/7.3)*(1-1.08*(0.95*$H41/100+0.5*I41/100))) -> 4.6 | S41: 54.8 | T41: 59 | U41: 84 | V41: 400 | W41: 58.44 | X41: =EXP(LN(Control!$L$14)-0.875*LN($AG$2)-0.77*LN(Population!$G$4/Population!$B$4)-0.352*LN($N$2)+0.875*LN(AG41)+0.77*LN(Population!G43/Population!B43)+0.352*LN(N41)) -> 156.8777919 | Y41: =+MIN((1+(EXP(LN(Control!$N$14)-0.682*LN(IF(Population!$AF$5>0,Population!AF$5,0.00001))-0.483*LN(IF(AE$2>0,AE$2,0.0001))-0.593*LN($L$4)+0.682*LN(IF(Population!AF43>0,Population!AF43,0.0001))+0.483*LN(IF(AE40>0,AE40,0.001))+0.593*LN(L41))))*Y40,Population!AA43) -> 42674680.43 | Z41: =+Z40*(1-Control!$D$18)+X40*Population!G42 -> 1.828187832e+11 | AA41: =+MIN(Y41,Population!AA43)*EXP((0.14-G41*0.006)*G41) -> 82405487.46 | AB41: =EXP(LN(Control!$O$14*Population!$E$4/($Z$2^0.3*$AA$2^0.7))-0.623*LN(O$2)-1.187*LN(M$2)+0.219*LN(P$2)+0.623*LN(O41)+1.187*LN(M41)-0.219*LN(P41)) -> 96.93326774 | AC41: =+(1+MAX((AB41-AB40)/AB40,($AE$2-0.7*Initial_Emp_Growth_Rate-0.3*Control!$R$14)))*AC40 -> 96.93326774 | AD41: 8.058392017e+10 | AE41: 0.02655590168 | AF41: 0.02583270988 | AG41: =+AD41/Population!B43 -> 602.5931945 | AH41: 0.02655590168 | AI41: 0.02583270988 | AJ41: 0.02824533252 | AK41: 1074641.731 | AL41: =Population!G43-'PolicyScenario-1'!Y41 -> 36743520.92 | AM41: =+Population!AA43-Y41 -> 36743520.92 | AN41: =+Population!AK43-AK41 -> 1232006.551 | AO41: =+Y41/Population!G43 -> 0.537341311 | AP41: =inVar24*$AG$2*Population!AU43 -> 0 | AQ41: =+((W41+W41-Control!$W$10)/2-20)/(83.2-20) -> 0.6082278481 | AR41: 0.5398343692 | AS41: 0.2012118198 | AT41: 0.4042597473 | AV41: =VLOOKUP(AT41,HDI!A$2:B$170,2) -> Haiti | AW41: =VLOOKUP(AT41,HDI!A$2:C$170,3) -> 145
A42: 2050 | B42: =+B$2+(Control!C$7-Control!C$5)*($A42-$A$2)/($A$42-$A$2) -> 10.65394 | C42: =+C$2+(Control!D$7-Control!D$5)*($A42-$A$2)/($A$42-$A$2) -> 11.31316 | D42: 10.98355 | E42: =+E$2+(Control!E$7-Control!E$5)*($A42-$A$2)/($A$42-$A$2)+((R42-R$2)/R$2)*(-0.79)*E$2 -> 5.84 | F42: =+F$2+(Control!F$7-Control!F$5)*($A42-$A$2)/($A$42-$A$2) -> 7.21 | G42: 6.525 | H42: =+H$2+(Control!H$7-Control!H$5)*($A42-$A$2)/($A$42-$A$2) -> 39.4 | I42: =+I$2+(Control!I$7-Control!I$5)*($A42-$A$2)/($A$42-$A$2) -> 6.1 | J42: =+J$2+(Control!J$7-Control!J$5)*($A42-$A$2)/($A$42-$A$2) -> 10.3 | K42: =+K$2+(Control!K$7-Control!K$5)*($A42-$A$2)/($A$42-$A$2) -> 0.7 | L42: =+L$2+(Control!$N$7-inVar11)*Interpolate!E45 -> 4.88 | M42: =+M$2+(Control!$P$7-inVar13)*Interpolate!E45 -> 2.06857469 | N42: =+N$2+(Control!$O$7-inVar12)*Interpolate!E45 -> 3.91 | O42: =+O$2+(Control!$L$7-inVar9)*Interpolate!E45 -> 3.57 | P42: =+P$2+(Control!$M$7-inVar10)*Interpolate!E45 -> 45.49 | Q42: =+EXP(LN(Control!C$14)-(-0.332*LN(B$2))+(-0.332*LN(B42))) -> 58.3 | R42: =Control!D$14/($Q$2/100*(20/(18.5+$J$2))*((7.63-0.11*$K$2/100)/7.3)*(1-1.08*(Control!$I$14*$H$2/100+Control!$J$14*$I$2/100)))*($Q42/100*(20/(18.5+$J42))*((7.63-0.11*$K42/100)/7.3)*(1-1.08*(0.95*$H42/100+0.5*I42/100))) -> 4.6 | S42: 54.8 | T42: 59 | U42: 84 | V42: =($V$2/(EXP(4.7651*$S$2)))*(EXP(4.7651*S42)) -> 400 | W42: 58.44 | X42: =EXP(LN(Control!$L$14)-0.875*LN($AG$2)-0.77*LN(Population!$G$4/Population!$B$4)-0.352*LN($N$2)+0.875*LN(AG42)+0.77*LN(Population!G44/Population!B44)+0.352*LN(N42)) -> 156.3948752 | Y42: =+MIN((1+(EXP(LN(Control!$N$14)-0.682*LN(IF(Population!$AF$5>0,Population!AF$5,0.00001))-0.483*LN(IF(AE$2>0,AE$2,0.0001))-0.593*LN($L$4)+0.682*LN(IF(Population!AF44>0,Population!AF44,0.0001))+0.483*LN(IF(AE41>0,AE41,0.001))+0.593*LN(L42))))*Y41,Population!AA44) -> 43774618.05 | Z42: =+Z41*(1-Control!$D$18)+X41*Population!G43 -> 1.879649839e+11 | AA42: =+MIN(Y42,Population!AA44)*EXP((0.14-G42*0.006)*G42) -> 84529484.53 | AB42: =EXP(LN(Control!$O$14*Population!$E$4/($Z$2^0.3*$AA$2^0.7))-0.623*LN(O$2)-1.187*LN(M$2)+0.219*LN(P$2)+0.623*LN(O42)+1.187*LN(M42)-0.219*LN(P42)) -> 96.93326774 | AC42: =+(1+MAX((AB42-AB41)/AB41,($AE$2-0.7*Initial_Emp_Growth_Rate-0.3*Control!$R$14)))*AC41 -> 96.93326774 | AD42: 8.271831775e+10 | AE42: 0.02648664371 | AF42: 0.02577494693 | AG42: =+AD42/Population!B44 -> 600.5469455 | AH42: 0.02648664371 | AI42: 0.02577494693 | AJ42: 0.02814919041 | AK42: 1099937.623 | AL42: =Population!G44-'PolicyScenario-1'!Y42 -> 38013538.33 | AM42: =+Population!AA44-Y42 -> 38013538.33 | AN42: =+Population!AK44-AK42 -> 1270017.408 | AO42: =+Y42/Population!G44 -> 0.5352195231 | AP42: =inVar24*$AG$2*Population!AU44 -> 0 | AQ42: =+((W42+W42-Control!$W$10)/2-20)/(83.2-20) -> 0.6082278481 | AR42: 0.5398343692 | AS42: 0.2006883555 | AT42: 0.4039088748 | AV42: =VLOOKUP(AT42,HDI!A$2:B$170,2) -> Angola | AW42: =VLOOKUP(AT42,HDI!A$2:C$170,3) -> 146

Sheet PolicyScenario-2
B1: Expected Yrs Education Female | C1: Expected Yrs Education Male | D1: Expected Yrs Both, Average | E1: Mean Yrs Education Female | F1: Mean Yrs Education Male | G1: Mean Yrs Education, Both | H1: CPR-M | I1: CPR-T | J1: PPI | K1: Sterility | L1: GCI 7A: Labor Market Flexibility | M1: GCI 9B: ICT Use | N1: GCI 8A: Financial Market Efficiency | O1: GCI 1A: Public Institutions | P1: GCI 6.14: Imports as a %GDP | Q1: Percent Married/ In-Union | R1: TFR | S1: Percent Births at Any Risk | T1: IMR | U1: U5MR | V1: MMR | W1: FemaleLife Expectancy | X1: Capital Formation per capita | Y1: Employment | Z1: Capital Stock | AA1: H | AB1: TFP | AC1: TFP 2 | AD1: GDP | AE1: GDP Growth Rate | AF1: GDP Per Capita | AG1: TFP Growth Rate | AH1: GDP/Pop Growth Rate | AI1: Employment Growth Rate | AJ1: Capital Stock Growth Rate | AK1: Annual change in Employment | AL1: Annual Gap Pop15+ - Employment | AM1: Annual Gap Labor Force - Employment | AN1: Gap between Population and Employment Growth | AO1: Employment/Pop15+ | AP1: Primary Education Costs | AQ1: LE Index | AR1: Ed Index | AS1: Income Index | AT1: HDI | AV1: Country Comparison
A2: =Control!B5 -> 2010 | B2: =+Control!C5 -> 10.65394 | C2: =+Control!D5 -> 11.31316 | D2: =AVERAGE(B2:C2) -> 10.98355 | E2: =+Control!E5 -> 5.84 | F2: =+Control!F5 -> 7.21 | G2: =AVERAGE(E2:F2) -> 6.525 | H2: =+Control!H5 -> 39.4 | I2: =+Control!I5 -> 6.1 | J2: =+Control!J5 -> 10.3 | K2: =+Control!K5 -> 0.7 | L2: =inVar11 -> 4.88 | M2: =inVar13 -> 2.06857469 | N2: =inVar12 -> 3.91 | O2: =inVar9 -> 3.57 | P2: =inVar10 -> 45.49 | Q2: =+EXP(LN(Control!C$14)-(-0.332*LN(B$2))+(-0.332*LN(B2))) -> 58.3 | R2: =Control!D$14/($Q$2/100*(20/(18.5+$J$2))*((7.63-0.11*$K$2/100)/7.3)*(1-1.08*(Control!$I$14*$H$2/100+Control!$J$14*$I$2/100)))*($Q2/100*(20/(18.5+$J2))*((7.63-0.11*$K2/100)/7.3)*(1-1.08*(0.95*$H2/100+0.5*I2/100))) -> 4.6 | S2: =+Control!E14 -> 54.8 | T2: =+Control!F14 -> 59 | U2: =+Control!G14 -> 84 | V2: =(Control!H$14/(EXP(4.7651*$S$2)))*(EXP(4.7651*S2)) -> 400 | W2: =+Control!K14 -> 58.44 | X2: =EXP(LN(Control!$L$14)-0.875*LN($AF$2)-0.77*LN(Population!$H$4/Population!$C$4)-0.352*LN($N$2)+0.875*LN(AF2)+0.77*LN(Population!H4/Population!C4)+0.352*LN(N2)) -> 159.9647371 | Y2: =Control!M14 -> 15146459.96 | Z2: =+Control!P14*Population!AD4 -> 5.556426439e+10 | AA2: =+MIN(Y2,Population!AB4)*EXP((0.14-G2*0.006)*G2) -> 29248055.38 | AB2: =EXP(LN(Control!$O$14*Population!$E$4/($Z$2^0.3*$AA$2^0.7))-0.623*LN(O$2)-1.187*LN(M$2)+0.219*LN(P$2)+0.623*LN(O2)+1.187*LN(M2)-0.219*LN(P2)) -> 96.93326774 | AC2: =+AB2 -> 96.93326774 | AD2: =+AC2*Z2^0.3*AA2^0.7 -> 2.730105449e+10 | AE2: =+Control!Q14 -> 0.04347250075 | AF2: =+AD2/Population!C4 -> 632.6971 | AL2: =Population!H4-'PolicyScenario-2'!Y2 -> 9719855.039 | AM2: =+Population!AB4-Y2 -> 9719855.039 | AO2: =+Y2/Population!H4 -> 0.6091155831 | AP2: =inVar24*$AF$2*Population!AV4 -> 0 | AQ2: =+((W2+W2-Control!$W$10)/2-20)/(83.2-20) -> 0.6082278481 | AR2: =SQRT(G2/13.2*D2/20.6)/0.951 -> 0.5398343692 | AS2: =(LN(AF2)-LN(163))/(LN(108211)-LN(163)) -> 0.2087139433 | AT2: =(AQ2*AR2*AS2)^0.333333 -> 0.4092227973 | AV2: =VLOOKUP(AT2,HDI!A$2:B$170,2) -> Haiti | AW2: =VLOOKUP(AT2,HDI!A$2:C$170,3) -> 145
A3: =+A2+1 -> 2011 | B3: =+B$2+(Control!C$8-Control!C$5)*($A3-$A$2)/($A$42-$A$2) -> 10.65394 | C3: =+C$2+(Control!D$8-Control!D$5)*($A3-$A$2)/($A$42-$A$2) -> 11.31316 | D3: =AVERAGE(B3:C3) -> 10.98355 | E3: =+E$2+(Control!E$8-Control!E$5)*($A3-$A$2)/($A$42-$A$2)+((R3-R$2)/R$2)*(-0.79)*E$2 -> 5.84 | F3: =+F$2+(Control!F$8-Control!F$5)*($A3-$A$2)/($A$42-$A$2) -> 7.21 | G3: =AVERAGE(E3:F3) -> 6.525 | H3: =+H$2+(Control!H$8-Control!H$5)*($A3-$A$2)/($A$42-$A$2) -> 39.4 | I3: =+I$2+(Control!I$8-Control!I$5)*($A3-$A$2)/($A$42-$A$2) -> 6.1 | J3: =+J$2+(Control!J$8-Control!J$5)*($A3-$A$2)/($A$42-$A$2) -> 10.3 | K3: =+K$2+(Control!K$8-Control!K$5)*($A3-$A$2)/($A$42-$A$2) -> 0.7 | L3: =+L$2+(Control!$N$8-inVar11)*Interpolate!E6 -> 4.88 | M3: =+M$2+(Control!$P$8-inVar13)*Interpolate!E6 -> 2.06857469 | N3: =+N$2+(Control!$O$8-inVar12)*Interpolate!E6 -> 3.91 | O3: =+O$2+(Control!$L$8-inVar9)*Interpolate!E6 -> 3.57 | P3: =+P$2+(Control!$M$8-inVar10)*Interpolate!E6 -> 45.49 | Q3: =+EXP(LN(Control!C$14)-(-0.332*LN(B$2))+(-0.332*LN(B3))) -> 58.3 | R3: =Control!D$14/($Q$2/100*(20/(18.5+$J$2))*((7.63-0.11*$K$2/100)/7.3)*(1-1.08*(Control!$I$14*$H$2/100+Control!$J$14*$I$2/100)))*($Q3/100*(20/(18.5+$J3))*((7.63-0.11*$K3/100)/7.3)*(1-1.08*(0.95*$H3/100+0.5*I3/100))) -> 4.6 | S3: =S$2-(R$2-R3)*7.28/100 -> 54.8 | T3: =T$2-(S$2-S3)*1.49*100 -> 59 | U3: =IF(U$2-(S$2-S3)*3.13*100<T3,T3,U$2-(S$2-S3)*3.13*100) -> 84 | V3: =($V$2/(EXP(4.7651*$S$2)))*(EXP(4.7651*S3)) -> 400 | W3: =IF(U3>50.9,EXP(+LN(W2)-0.287*(LN(U3)-LN(U2))),EXP(+LN(W2)-0.059*(LN(U3)-LN(U2)))) -> 58.44 | X3: =EXP(LN(Control!$L$14)-0.875*LN($AF$2)-0.77*LN(Population!$H$4/Population!$C$4)-0.352*LN($N$2)+0.875*LN(AF3)+0.77*LN(Population!H5/Population!C5)+0.352*LN(N3)) -> 160.6538718 | Y3: =+MIN((1+(EXP(LN(Control!$N$14)-0.682*LN(IF(Population!$AG$5>0,Population!AG$5,0.00001))-0.483*LN(IF(AE$2>0,AE$2,0.0001))-0.593*LN($L$4)+0.682*LN(IF(Population!AG5>0,Population!AG5,0.0001))+0.483*LN(IF(AE2>0,AE2,0.001))+0.593*LN(L3))))*Y2,Population!AB5) -> 15650160.74 | Z3: =+Z2*(1-Control!$D$18)+X2*Population!H4 -> 5.731942735e+10 | AA3: =+MIN(Y3,Population!AB5)*EXP((0.14-G3*0.006)*G3) -> 30220709.61 | AB3: =EXP(LN(Control!$O$14*Population!$E$4/($Z$2^0.3*$AA$2^0.7))-0.623*LN(O$2)-1.187*LN(M$2)+0.219*LN(P$2)+0.623*LN(O3)+1.187*LN(M3)-0.219*LN(P3)) -> 96.93326774 | AC3: =+(1+MAX((AB3-AB2)/AB2,($AE$2-0.7*Initial_Emp_Growth_Rate-0.3*Control!$R$14)))*AC2 -> 96.93326774 | AD3: =+AC3*Z3^0.3*AA3^0.7 -> 2.819529656e+10 | AE3: =+(AD3-AD2)/AD2 -> 0.03275485457 | AF3: =+AD3/Population!C5 -> 634.9778887 | AG3: =(AF3-AF2)/AF2 -> 0.003604866682 | AH3: =+(AD3-AD2)/AD2 -> 0.03275485457 | AI3: =+(Y3-Y2)/Y2 -> 0.03325534691 | AJ3: =(Z3-Z2)/Z2 -> 0.03158798169 | AK3: =+Y3-Y2 -> 503700.7804 | AL3: =Population!H5-'PolicyScenario-2'!Y3 -> 9976655.38 | AM3: =+Population!AB5-Y3 -> 9976655.38 | AN3: =+Population!AL5-AK3 -> 256800.3407 | AO3: =+Y3/Population!H5 -> 0.6106946984 | AP3: =inVar24*$AF$2*Population!AV5 -> 0 | AQ3: =+((W3+W3-Control!$W$10)/2-20)/(83.2-20) -> 0.6082278481 | AR3: 0.5398343692 | AS3: 0.2092677038 | AT3: =(AQ3*AR3*AS3)^0.333333 -> 0.4095843944 | AV3: =VLOOKUP(AT3,HDI!A$2:B$170,2) -> Haiti | AW3: =VLOOKUP(AT3,HDI!A$2:C$170,3) -> 145
A4: 2012 | B4: =+B$2+(Control!C$8-Control!C$5)*($A4-$A$2)/($A$42-$A$2) -> 10.65394 | C4: =+C$2+(Control!D$8-Control!D$5)*($A4-$A$2)/($A$42-$A$2) -> 11.31316 | D4: 10.98355 | E4: =+E$2+(Control!E$8-Control!E$5)*($A4-$A$2)/($A$42-$A$2)+((R4-R$2)/R$2)*(-0.79)*E$2 -> 5.84 | F4: =+F$2+(Control!F$8-Control!F$5)*($A4-$A$2)/($A$42-$A$2) -> 7.21 | G4: 6.525 | H4: =+H$2+(Control!H$8-Control!H$5)*($A4-$A$2)/($A$42-$A$2) -> 39.4 | I4: =+I$2+(Control!I$8-Control!I$5)*($A4-$A$2)/($A$42-$A$2) -> 6.1 | J4: =+J$2+(Control!J$8-Control!J$5)*($A4-$A$2)/($A$42-$A$2) -> 10.3 | K4: =+K$2+(Control!K$8-Control!K$5)*($A4-$A$2)/($A$42-$A$2) -> 0.7 | L4: =+L$2+(Control!$N$8-inVar11)*Interpolate!E7 -> 4.88 | M4: =+M$2+(Control!$P$8-inVar13)*Interpolate!E7 -> 2.06857469 | N4: =+N$2+(Control!$O$8-inVar12)*Interpolate!E7 -> 3.91 | O4: =+O$2+(Control!$L$8-inVar9)*Interpolate!E7 -> 3.57 | P4: =+P$2+(Control!$M$8-inVar10)*Interpolate!E7 -> 45.49 | Q4: =+EXP(LN(Control!C$14)-(-0.332*LN(B$2))+(-0.332*LN(B4))) -> 58.3 | R4: =Control!D$14/($Q$2/100*(20/(18.5+$J$2))*((7.63-0.11*$K$2/100)/7.3)*(1-1.08*(Control!$I$14*$H$2/100+Control!$J$14*$I$2/100)))*($Q4/100*(20/(18.5+$J4))*((7.63-0.11*$K4/100)/7.3)*(1-1.08*(0.95*$H4/100+0.5*I4/100))) -> 4.6 | S4: =S$2-(R$2-R4)*7.28/100 -> 54.8 | T4: =T$2-(S$2-S4)*1.49*100 -> 59 | U4: =IF(U$2-(S$2-S4)*3.13*100<T4,T4,U$2-(S$2-S4)*3.13*100) -> 84 | V4: =($V$2/(EXP(4.7651*$S$2)))*(EXP(4.7651*S4)) -> 400 | W4: =IF(U4>50.9,EXP(+LN(W3)-0.287*(LN(U4)-LN(U3))),EXP(+LN(W3)-0.059*(LN(U4)-LN(U3)))) -> 58.44 | X4: =EXP(LN(Control!$L$14)-0.875*LN($AF$2)-0.77*LN(Population!$H$4/Population!$C$4)-0.352*LN($N$2)+0.875*LN(AF4)+0.77*LN(Population!H6/Population!C6)+0.352*LN(N4)) -> 160.9252698 | Y4: =+MIN((1+(EXP(LN(Control!$N$14)-0.682*LN(IF(Population!$AG$5>0,Population!AG$5,0.00001))-0.483*LN(IF(AE$2>0,AE$2,0.0001))-0.593*LN($L$4)+0.682*LN(IF(Population!AG6>0,Population!AG6,0.0001))+0.483*LN(IF(AE3>0,AE3,0.001))+0.593*LN(L4))))*Y3,Population!AB6) -> 16104258.14 | Z4: =+Z3*(1-Control!$D$18)+X3*Population!H5 -> 5.914369749e+10 | AA4: =+MIN(Y4,Population!AB6)*EXP((0.14-G4*0.006)*G4) -> 31097578.91 | AB4: =EXP(LN(Control!$O$14*Population!$E$4/($Z$2^0.3*$AA$2^0.7))-0.623*LN(O$2)-1.187*LN(M$2)+0.219*LN(P$2)+0.623*LN(O4)+1.187*LN(M4)-0.219*LN(P4)) -> 96.93326774 | AC4: =+(1+MAX((AB4-AB3)/AB3,($AE$2-0.7*Initial_Emp_Growth_Rate-0.3*Control!$R$14)))*AC3 -> 96.93326774 | AD4: =+AC4*Z4^0.3*AA4^0.7 -> 2.903715081e+10 | AE4: =+(AD4-AD3)/AD3 -> 0.02985796748 | AF4: =+AD4/Population!C6 -> 635.4158199 | AG4: =(AF4-AF3)/AF3 -> 0.0006896795227 | AH4: =+(AD4-AD3)/AD3 -> 0.02985796748 | AI4: 0.02901551012 | AJ4: 0.03182638456 | AK4: 454097.3973 | AL4: =Population!H6-'PolicyScenario-2'!Y4 -> 10306710.32 | AM4: =+Population!AB6-Y4 -> 10306710.32 | AN4: =+Population!AL6-AK4 -> 330054.9386 | AO4: =+Y4/Population!H6 -> 0.6097564413 | AP4: =inVar24*$AF$2*Population!AV6 -> 0 | AQ4: =+((W4+W4-Control!$W$10)/2-20)/(83.2-20) -> 0.6082278481 | AR4: 0.5398343692 | AS4: 0.209373803 | AT4: 0.4096536027 | AV4: =VLOOKUP(AT4,HDI!A$2:B$170,2) -> Haiti | AW4: =VLOOKUP(AT4,HDI!A$2:C$170,3) -> 145
A5: 2013 | B5: =+B$2+(Control!C$8-Control!C$5)*($A5-$A$2)/($A$42-$A$2) -> 10.65394 | C5: =+C$2+(Control!D$8-Control!D$5)*($A5-$A$2)/($A$42-$A$2) -> 11.31316 | D5: 10.98355 | E5: =+E$2+(Control!E$8-Control!E$5)*($A5-$A$2)/($A$42-$A$2)+((R5-R$2)/R$2)*(-0.79)*E$2 -> 5.84 | F5: =+F$2+(Control!F$8-Control!F$5)*($A5-$A$2)/($A$42-$A$2) -> 7.21 | G5: 6.525 | H5: =+H$2+(Control!H$8-Control!H$5)*($A5-$A$2)/($A$42-$A$2) -> 39.4 | I5: =+I$2+(Control!I$8-Control!I$5)*($A5-$A$2)/($A$42-$A$2) -> 6.1 | J5: =+J$2+(Control!J$8-Control!J$5)*($A5-$A$2)/($A$42-$A$2) -> 10.3 | K5: =+K$2+(Control!K$8-Control!K$5)*($A5-$A$2)/($A$42-$A$2) -> 0.7 | L5: =+L$2+(Control!$N$8-inVar11)*Interpolate!E8 -> 4.88 | M5: =+M$2+(Control!$P$8-inVar13)*Interpolate!E8 -> 2.06857469 | N5: =+N$2+(Control!$O$8-inVar12)*Interpolate!E8 -> 3.91 | O5: =+O$2+(Control!$L$8-inVar9)*Interpolate!E8 -> 3.57 | P5: =+P$2+(Control!$M$8-inVar10)*Interpolate!E8 -> 45.49 | Q5: =+EXP(LN(Control!C$14)-(-0.332*LN(B$2))+(-0.332*LN(B5))) -> 58.3 | R5: =Control!D$14/($Q$2/100*(20/(18.5+$J$2))*((7.63-0.11*$K$2/100)/7.3)*(1-1.08*(Control!$I$14*$H$2/100+Control!$J$14*$I$2/100)))*($Q5/100*(20/(18.5+$J5))*((7.63-0.11*$K5/100)/7.3)*(1-1.08*(0.95*$H5/100+0.5*I5/100))) -> 4.6 | S5: =S$2-(R$2-R5)*7.28/100 -> 54.8 | T5: 59 | U5: 84 | V5: =($V$2/(EXP(4.7651*$S$2)))*(EXP(4.7651*S5)) -> 400 | W5: 58.44 | X5: =EXP(LN(Control!$L$14)-0.875*LN($AF$2)-0.77*LN(Population!$H$4/Population!$C$4)-0.352*LN($N$2)+0.875*LN(AF5)+0.77*LN(Population!H7/Population!C7)+0.352*LN(N5)) -> 161.0962645 | Y5: =+MIN((1+(EXP(LN(Control!$N$14)-0.682*LN(IF(Population!$AG$5>0,Population!AG$5,0.00001))-0.483*LN(IF(AE$2>0,AE$2,0.0001))-0.593*LN($L$4)+0.682*LN(IF(Population!AG7>0,Population!AG7,0.0001))+0.483*LN(IF(AE4>0,AE4,0.001))+0.593*LN(L5))))*Y4,Population!AB7) -> 16552084.93 | Z5: =+Z4*(1-Control!$D$18)+X4*Population!H6 -> 6.102814182e+10 | AA5: =+MIN(Y5,Population!AB7)*EXP((0.14-G5*0.006)*G5) -> 31962339.58 | AB5: =EXP(LN(Control!$O$14*Population!$E$4/($Z$2^0.3*$AA$2^0.7))-0.623*LN(O$2)-1.187*LN(M$2)+0.219*LN(P$2)+0.623*LN(O5)+1.187*LN(M5)-0.219*LN(P5)) -> 96.93326774 | AC5: =+(1+MAX((AB5-AB4)/AB4,($AE$2-0.7*Initial_Emp_Growth_Rate-0.3*Control!$R$14)))*AC4 -> 96.93326774 | AD5: 2.987988286e+10 | AE5: =+(AD5-AD4)/AD4 -> 0.02902254628 | AF5: =+AD5/Population!C7 -> 635.3420041 | AG5: -0.0001161692774 | AH5: 0.02902254628 | AI5: 0.02780797413 | AJ5: 0.0318621325 | AK5: 447826.7937 | AL5: =Population!H7-'PolicyScenario-2'!Y5 -> 10669662.4 | AM5: =+Population!AB7-Y5 -> 10669662.4 | AN5: =+Population!AL7-AK5 -> 362952.0813 | AO5: =+Y5/Population!H7 -> 0.6080463804 | AP5: =inVar24*$AF$2*Population!AV7 -> 0 | AQ5: =+((W5+W5-Control!$W$10)/2-20)/(83.2-20) -> 0.6082278481 | AR5: 0.5398343692 | AS5: 0.2093559245 | AT5: 0.4096419423 | AV5: =VLOOKUP(AT5,HDI!A$2:B$170,2) -> Haiti | AW5: =VLOOKUP(AT5,HDI!A$2:C$170,3) -> 145
A6: 2014 | B6: =+B$2+(Control!C$8-Control!C$5)*($A6-$A$2)/($A$42-$A$2) -> 10.65394 | C6: =+C$2+(Control!D$8-Control!D$5)*($A6-$A$2)/($A$42-$A$2) -> 11.31316 | D6: 10.98355 | E6: =+E$2+(Control!E$8-Control!E$5)*($A6-$A$2)/($A$42-$A$2)+((R6-R$2)/R$2)*(-0.79)*E$2 -> 5.84 | F6: =+F$2+(Control!F$8-Control!F$5)*($A6-$A$2)/($A$42-$A$2) -> 7.21 | G6: 6.525 | H6: =+H$2+(Control!H$8-Control!H$5)*($A6-$A$2)/($A$42-$A$2) -> 39.4 | I6: =+I$2+(Control!I$8-Control!I$5)*($A6-$A$2)/($A$42-$A$2) -> 6.1 | J6: =+J$2+(Control!J$8-Control!J$5)*($A6-$A$2)/($A$42-$A$2) -> 10.3 | K6: =+K$2+(Control!K$8-Control!K$5)*($A6-$A$2)/($A$42-$A$2) -> 0.7 | L6: =+L$2+(Control!$N$8-inVar11)*Interpolate!E9 -> 4.88 | M6: =+M$2+(Control!$P$8-inVar13)*Interpolate!E9 -> 2.06857469 | N6: =+N$2+(Control!$O$8-inVar12)*Interpolate!E9 -> 3.91 | O6: =+O$2+(Control!$L$8-inVar9)*Interpolate!E9 -> 3.57 | P6: =+P$2+(Control!$M$8-inVar10)*Interpolate!E9 -> 45.49 | Q6: =+EXP(LN(Control!C$14)-(-0.332*LN(B$2))+(-0.332*LN(B6))) -> 58.3 | R6: =Control!D$14/($Q$2/100*(20/(18.5+$J$2))*((7.63-0.11*$K$2/100)/7.3)*(1-1.08*(Control!$I$14*$H$2/100+Control!$J$14*$I$2/100)))*($Q6/100*(20/(18.5+$J6))*((7.63-0.11*$K6/100)/7.3)*(1-1.08*(0.95*$H6/100+0.5*I6/100))) -> 4.6 | S6: =S$2-(R$2-R6)*7.28/100 -> 54.8 | T6: 59 | U6: =IF(U$2-(S$2-S6)*3.13*100<T6,T6,U$2-(S$2-S6)*3.13*100) -> 84 | V6: =($V$2/(EXP(4.7651*$S$2)))*(EXP(4.7651*S6)) -> 400 | W6: 58.44 | X6: =EXP(LN(Control!$L$14)-0.875*LN($AF$2)-0.77*LN(Population!$H$4/Population!$C$4)-0.352*LN($N$2)+0.875*LN(AF6)+0.77*LN(Population!H8/Population!C8)+0.352*LN(N6)) -> 161.2911111 | Y6: =+MIN((1+(EXP(LN(Control!$N$14)-0.682*LN(IF(Population!$AG$5>0,Population!AG$5,0.00001))-0.483*LN(IF(AE$2>0,AE$2,0.0001))-0.593*LN($L$4)+0.682*LN(IF(Population!AG8>0,Population!AG8,0.0001))+0.483*LN(IF(AE5>0,AE5,0.001))+0.593*LN(L6))))*Y5,Population!AB8) -> 17009106.78 | Z6: =+Z5*(1-Control!$D$18)+X5*Population!H7 -> 6.297233795e+10 | AA6: =+MIN(Y6,Population!AB8)*EXP((0.14-G6*0.006)*G6) -> 32844856.05 | AB6: =EXP(LN(Control!$O$14*Population!$E$4/($Z$2^0.3*$AA$2^0.7))-0.623*LN(O$2)-1.187*LN(M$2)+0.219*LN(P$2)+0.623*LN(O6)+1.187*LN(M6)-0.219*LN(P6)) -> 96.93326774 | AC6: =+(1+MAX((AB6-AB5)/AB5,($AE$2-0.7*Initial_Emp_Growth_Rate-0.3*Control!$R$14)))*AC5 -> 96.93326774 | AD6: 3.074290852e+10 | AE6: 0.02888316761 | AF6: =+AD6/Population!C8 -> 635.1984443 | AG6: -0.0002259568701 | AH6: 0.02888316761 | AI6: 0.02761113492 | AJ6: 0.03185737067 | AK6: 457021.8503 | AL6: =Population!H8-'PolicyScenario-2'!Y6 -> 11056439.56 | AM6: =+Population!AB8-Y6 -> 11056439.56 | AN6: =+Population!AL8-AK6 -> 386777.1575 | AO6: =+Y6/Population!H8 -> 0.6060493737 | AP6: =inVar24*$AF$2*Population!AV8 -> 0 | AQ6: =+((W6+W6-Control!$W$10)/2-20)/(83.2-20) -> 0.6082278481 | AR6: 0.5398343692 | AS6: 0.2093211478 | AT6: 0.4096192587 | AV6: =VLOOKUP(AT6,HDI!A$2:B$170,2) -> Haiti | AW6: =VLOOKUP(AT6,HDI!A$2:C$170,3) -> 145
A7: 2015 | B7: =+B$2+(Control!C$8-Control!C$5)*($A7-$A$2)/($A$42-$A$2) -> 10.65394 | C7: =+C$2+(Control!D$8-Control!D$5)*($A7-$A$2)/($A$42-$A$2) -> 11.31316 | D7: 10.98355 | E7: =+E$2+(Control!E$8-Control!E$5)*($A7-$A$2)/($A$42-$A$2)+((R7-R$2)/R$2)*(-0.79)*E$2 -> 5.84 | F7: =+F$2+(Control!F$8-Control!F$5)*($A7-$A$2)/($A$42-$A$2) -> 7.21 | G7: 6.525 | H7: =+H$2+(Control!H$8-Control!H$5)*($A7-$A$2)/($A$42-$A$2) -> 39.4 | I7: =+I$2+(Control!I$8-Control!I$5)*($A7-$A$2)/($A$42-$A$2) -> 6.1 | J7: =+J$2+(Control!J$8-Control!J$5)*($A7-$A$2)/($A$42-$A$2) -> 10.3 | K7: =+K$2+(Control!K$8-Control!K$5)*($A7-$A$2)/($A$42-$A$2) -> 0.7 | L7: =+L$2+(Control!$N$8-inVar11)*Interpolate!E10 -> 4.88 | M7: =+M$2+(Control!$P$8-inVar13)*Interpolate!E10 -> 2.06857469 | N7: =+N$2+(Control!$O$8-inVar12)*Interpolate!E10 -> 3.91 | O7: =+O$2+(Control!$L$8-inVar9)*Interpolate!E10 -> 3.57 | P7: =+P$2+(Control!$M$8-inVar10)*Interpolate!E10 -> 45.49 | Q7: =+EXP(LN(Control!C$14)-(-0.332*LN(B$2))+(-0.332*LN(B7))) -> 58.3 | R7: =Control!D$14/($Q$2/100*(20/(18.5+$J$2))*((7.63-0.11*$K$2/100)/7.3)*(1-1.08*(Control!$I$14*$H$2/100+Control!$J$14*$I$2/100)))*($Q7/100*(20/(18.5+$J7))*((7.63-0.11*$K7/100)/7.3)*(1-1.08*(0.95*$H7/100+0.5*I7/100))) -> 4.6 | S7: 54.8 | T7: 59 | U7: 84 | V7: =($V$2/(EXP(4.7651*$S$2)))*(EXP(4.7651*S7)) -> 400 | W7: 58.44 | X7: =EXP(LN(Control!$L$14)-0.875*LN($AF$2)-0.77*LN(Population!$H$4/Population!$C$4)-0.352*LN($N$2)+0.875*LN(AF7)+0.77*LN(Population!H9/Population!C9)+0.352*LN(N7)) -> 161.5580397 | Y7: =+MIN((1+(EXP(LN(Control!$N$14)-0.682*LN(IF(Population!$AG$5>0,Population!AG$5,0.00001))-0.483*LN(IF(AE$2>0,AE$2,0.0001))-0.593*LN($L$4)+0.682*LN(IF(Population!AG9>0,Population!AG9,0.0001))+0.483*LN(IF(AE6>0,AE6,0.001))+0.593*LN(L7))))*Y6,Population!AB9) -> 17481020.24 | Z7: =+Z6*(1-Control!$D$18)+X6*Population!H8 -> 6.498016759e+10 | AA7: =+MIN(Y7,Population!AB9)*EXP((0.14-G7*0.006)*G7) -> 33756128.45 | AB7: =EXP(LN(Control!$O$14*Population!$E$4/($Z$2^0.3*$AA$2^0.7))-0.623*LN(O$2)-1.187*LN(M$2)+0.219*LN(P$2)+0.623*LN(O7)+1.187*LN(M7)-0.219*LN(P7)) -> 96.93326774 | AC7: =+(1+MAX((AB7-AB6)/AB6,($AE$2-0.7*Initial_Emp_Growth_Rate-0.3*Control!$R$14)))*AC6 -> 96.93326774 | AD7: 3.163398783e+10 | AE7: 0.02898487327 | AF7: =+AD7/Population!C9 -> 635.1618166 | AG7: -5.766335858e-05 | AH7: 0.02898487327 | AI7: 0.02774475222 | AJ7: 0.03188431144 | AK7: 471913.4532 | AL7: =Population!H9-'PolicyScenario-2'!Y7 -> 11463652.55 | AM7: =+Population!AB9-Y7 -> 11463652.55 | AN7: =+Population!AL9-AK7 -> 407212.9961 | AO7: =+Y7/Population!H9 -> 0.6039460305 | AP7: =inVar24*$AF$2*Population!AV9 -> 0 | AQ7: =+((W7+W7-Control!$W$10)/2-20)/(83.2-20) -> 0.6082278481 | AR7: 0.5398343692 | AS7: 0.2093122736 | AT7: 0.4096134701 | AV7: =VLOOKUP(AT7,HDI!A$2:B$170,2) -> Haiti | AW7: =VLOOKUP(AT7,HDI!A$2:C$170,3) -> 145
A8: 2016 | B8: =+B$2+(Control!C$8-Control!C$5)*($A8-$A$2)/($A$42-$A$2) -> 10.65394 | C8: =+C$2+(Control!D$8-Control!D$5)*($A8-$A$2)/($A$42-$A$2) -> 11.31316 | D8: 10.98355 | E8: =+E$2+(Control!E$8-Control!E$5)*($A8-$A$2)/($A$42-$A$2)+((R8-R$2)/R$2)*(-0.79)*E$2 -> 5.84 | F8: =+F$2+(Control!F$8-Control!F$5)*($A8-$A$2)/($A$42-$A$2) -> 7.21 | G8: 6.525 | H8: =+H$2+(Control!H$8-Control!H$5)*($A8-$A$2)/($A$42-$A$2) -> 39.4 | I8: =+I$2+(Control!I$8-Control!I$5)*($A8-$A$2)/($A$42-$A$2) -> 6.1 | J8: =+J$2+(Control!J$8-Control!J$5)*($A8-$A$2)/($A$42-$A$2) -> 10.3 | K8: =+K$2+(Control!K$8-Control!K$5)*($A8-$A$2)/($A$42-$A$2) -> 0.7 | L8: =+L$2+(Control!$N$8-inVar11)*Interpolate!E11 -> 4.88 | M8: =+M$2+(Control!$P$8-inVar13)*Interpolate!E11 -> 2.06857469 | N8: =+N$2+(Control!$O$8-inVar12)*Interpolate!E11 -> 3.91 | O8: =+O$2+(Control!$L$8-inVar9)*Interpolate!E11 -> 3.57 | P8: =+P$2+(Control!$M$8-inVar10)*Interpolate!E11 -> 45.49 | Q8: =+EXP(LN(Control!C$14)-(-0.332*LN(B$2))+(-0.332*LN(B8))) -> 58.3 | R8: =Control!D$14/($Q$2/100*(20/(18.5+$J$2))*((7.63-0.11*$K$2/100)/7.3)*(1-1.08*(Control!$I$14*$H$2/100+Control!$J$14*$I$2/100)))*($Q8/100*(20/(18.5+$J8))*((7.63-0.11*$K8/100)/7.3)*(1-1.08*(0.95*$H8/100+0.5*I8/100))) -> 4.6 | S8: 54.8 | T8: 59 | U8: 84 | V8: 400 | W8: 58.44 | X8: =EXP(LN(Control!$L$14)-0.875*LN($AF$2)-0.77*LN(Population!$H$4/Population!$C$4)-0.352*LN($N$2)+0.875*LN(AF8)+0.77*LN(Population!H10/Population!C10)+0.352*LN(N8)) -> 161.8977706 | Y8: =+MIN((1+(EXP(LN(Control!$N$14)-0.682*LN(IF(Population!$AG$5>0,Population!AG$5,0.00001))-0.483*LN(IF(AE$2>0,AE$2,0.0001))-0.593*LN($L$4)+0.682*LN(IF(Population!AG10>0,Population!AG10,0.0001))+0.483*LN(IF(AE7>0,AE7,0.001))+0.593*LN(L8))))*Y7,Population!AB10) -> 17970258.73 | Z8: =+Z7*(1-Control!$D$18)+X7*Population!H9 -> 6.705720548e+10 | AA8: =+MIN(Y8,Population!AB10)*EXP((0.14-G8*0.006)*G8) -> 34700855.77 | AB8: =EXP(LN(Control!$O$14*Population!$E$4/($Z$2^0.3*$AA$2^0.7))-0.623*LN(O$2)-1.187*LN(M$2)+0.219*LN(P$2)+0.623*LN(O8)+1.187*LN(M8)-0.219*LN(P8)) -> 96.93326774 | AC8: =+(1+MAX((AB8-AB7)/AB7,($AE$2-0.7*Initial_Emp_Growth_Rate-0.3*Control!$R$14)))*AC7 -> 96.93326774 | AD8: 3.255701791e+10 | AE8: 0.02917842936 | AF8: =+AD8/Population!C10 -> 635.2607206 | AG8: 0.0001557146539 | AH8: 0.02917842936 | AI8: 0.02798683868 | AJ8: 0.03196418183 | AK8: 489238.4933 | AL8: =Population!H10-'PolicyScenario-2'!Y8 -> 11890418.53 | AM8: =+Population!AB10-Y8 -> 11890418.53 | AN8: =+Population!AL10-AK8 -> 426765.9793 | AO8: =+Y8/Population!H10 -> 0.6018034545 | AP8: =inVar24*$AF$2*Population!AV10 -> 0 | AQ8: =+((W8+W8-Control!$W$10)/2-20)/(83.2-20) -> 0.6082278481 | AR8: 0.5398343692 | AS8: 0.2093362349 | AT8: 0.4096290998 | AV8: =VLOOKUP(AT8,HDI!A$2:B$170,2) -> Haiti | AW8: =VLOOKUP(AT8,HDI!A$2:C$170,3) -> 145
A9: 2017 | B9: =+B$2+(Control!C$8-Control!C$5)*($A9-$A$2)/($A$42-$A$2) -> 10.65394 | C9: =+C$2+(Control!D$8-Control!D$5)*($A9-$A$2)/($A$42-$A$2) -> 11.31316 | D9: 10.98355 | E9: =+E$2+(Control!E$8-Control!E$5)*($A9-$A$2)/($A$42-$A$2)+((R9-R$2)/R$2)*(-0.79)*E$2 -> 5.84 | F9: =+F$2+(Control!F$8-Control!F$5)*($A9-$A$2)/($A$42-$A$2) -> 7.21 | G9: 6.525 | H9: =+H$2+(Control!H$8-Control!H$5)*($A9-$A$2)/($A$42-$A$2) -> 39.4 | I9: =+I$2+(Control!I$8-Control!I$5)*($A9-$A$2)/($A$42-$A$2) -> 6.1 | J9: =+J$2+(Control!J$8-Control!J$5)*($A9-$A$2)/($A$42-$A$2) -> 10.3 | K9: =+K$2+(Control!K$8-Control!K$5)*($A9-$A$2)/($A$42-$A$2) -> 0.7 | L9: =+L$2+(Control!$N$8-inVar11)*Interpolate!E12 -> 4.88 | M9: =+M$2+(Control!$P$8-inVar13)*Interpolate!E12 -> 2.06857469 | N9: =+N$2+(Control!$O$8-inVar12)*Interpolate!E12 -> 3.91 | O9: =+O$2+(Control!$L$8-inVar9)*Interpolate!E12 -> 3.57 | P9: =+P$2+(Control!$M$8-inVar10)*Interpolate!E12 -> 45.49 | Q9: =+EXP(LN(Control!C$14)-(-0.332*LN(B$2))+(-0.332*LN(B9))) -> 58.3 | R9: =Control!D$14/($Q$2/100*(20/(18.5+$J$2))*((7.63-0.11*$K$2/100)/7.3)*(1-1.08*(Control!$I$14*$H$2/100+Control!$J$14*$I$2/100)))*($Q9/100*(20/(18.5+$J9))*((7.63-0.11*$K9/100)/7.3)*(1-1.08*(0.95*$H9/100+0.5*I9/100))) -> 4.6 | S9: 54.8 | T9: 59 | U9: 84 | V9: 400 | W9: 58.44 | X9: =EXP(LN(Control!$L$14)-0.875*LN($AF$2)-0.77*LN(Population!$H$4/Population!$C$4)-0.352*LN($N$2)+0.875*LN(AF9)+0.77*LN(Population!H11/Population!C11)+0.352*LN(N9)) -> 162.3040751 | Y9: =+MIN((1+(EXP(LN(Control!$N$14)-0.682*LN(IF(Population!$AG$5>0,Population!AG$5,0.00001))-0.483*LN(IF(AE$2>0,AE$2,0.0001))-0.593*LN($L$4)+0.682*LN(IF(Population!AG11>0,Population!AG11,0.0001))+0.483*LN(IF(AE8>0,AE8,0.001))+0.593*LN(L9))))*Y8,Population!AB11) -> 18477526.23 | Z9: =+Z8*(1-Control!$D$18)+X8*Population!H10 -> 6.920929434e+10 | AA9: =+MIN(Y9,Population!AB11)*EXP((0.14-G9*0.006)*G9) -> 35680397.39 | AB9: =EXP(LN(Control!$O$14*Population!$E$4/($Z$2^0.3*$AA$2^0.7))-0.623*LN(O$2)-1.187*LN(M$2)+0.219*LN(P$2)+0.623*LN(O9)+1.187*LN(M9)-0.219*LN(P9)) -> 96.93326774 | AC9: =+(1+MAX((AB9-AB8)/AB8,($AE$2-0.7*Initial_Emp_Growth_Rate-0.3*Control!$R$14)))*AC8 -> 96.93326774 | AD9: 3.351374476e+10 | AE9: 0.02938619424 | AF9: =+AD9/Population!C11 -> 635.5043187 | AG9: 0.0003834616345 | AH9: 0.02938619424 | AI9: 0.02822816903 | AJ9: 0.0320933275 | AK9: 507267.501 | AL9: =Population!H11-'PolicyScenario-2'!Y9 -> 12335616.11 | AM9: =+Population!AB11-Y9 -> 12335616.11 | AN9: =+Population!AL11-AK9 -> 445197.5733 | AO9: =+Y9/Population!H11 -> 0.5996638067 | AP9: =inVar24*$AF$2*Population!AV11 -> 0 | AQ9: =+((W9+W9-Control!$W$10)/2-20)/(83.2-20) -> 0.6082278481 | AR9: 0.5398343692 | AS9: 0.209395235 | AT9: 0.40966758 | AV9: =VLOOKUP(AT9,HDI!A$2:B$170,2) -> Haiti | AW9: =VLOOKUP(AT9,HDI!A$2:C$170,3) -> 145
A10: 2018 | B10: =+B$2+(Control!C$8-Control!C$5)*($A10-$A$2)/($A$42-$A$2) -> 10.65394 | C10: =+C$2+(Control!D$8-Control!D$5)*($A10-$A$2)/($A$42-$A$2) -> 11.31316 | D10: 10.98355 | E10: =+E$2+(Control!E$8-Control!E$5)*($A10-$A$2)/($A$42-$A$2)+((R10-R$2)/R$2)*(-0.79)*E$2 -> 5.84 | F10: =+F$2+(Control!F$8-Control!F$5)*($A10-$A$2)/($A$42-$A$2) -> 7.21 | G10: 6.525 | H10: =+H$2+(Control!H$8-Control!H$5)*($A10-$A$2)/($A$42-$A$2) -> 39.4 | I10: =+I$2+(Control!I$8-Control!I$5)*($A10-$A$2)/($A$42-$A$2) -> 6.1 | J10: =+J$2+(Control!J$8-Control!J$5)*($A10-$A$2)/($A$42-$A$2) -> 10.3 | K10: =+K$2+(Control!K$8-Control!K$5)*($A10-$A$2)/($A$42-$A$2) -> 0.7 | L10: =+L$2+(Control!$N$8-inVar11)*Interpolate!E13 -> 4.88 | M10: =+M$2+(Control!$P$8-inVar13)*Interpolate!E13 -> 2.06857469 | N10: =+N$2+(Control!$O$8-inVar12)*Interpolate!E13 -> 3.91 | O10: =+O$2+(Control!$L$8-inVar9)*Interpolate!E13 -> 3.57 | P10: =+P$2+(Control!$M$8-inVar10)*Interpolate!E13 -> 45.49 | Q10: =+EXP(LN(Control!C$14)-(-0.332*LN(B$2))+(-0.332*LN(B10))) -> 58.3 | R10: =Control!D$14/($Q$2/100*(20/(18.5+$J$2))*((7.63-0.11*$K$2/100)/7.3)*(1-1.08*(Control!$I$14*$H$2/100+Control!$J$14*$I$2/100)))*($Q10/100*(20/(18.5+$J10))*((7.63-0.11*$K10/100)/7.3)*(1-1.08*(0.95*$H10/100+0.5*I10/100))) -> 4.6 | S10: 54.8 | T10: 59 | U10: 84 | V10: 400 | W10: 58.44 | X10: =EXP(LN(Control!$L$14)-0.875*LN($AF$2)-0.77*LN(Population!$H$4/Population!$C$4)-0.352*LN($N$2)+0.875*LN(AF10)+0.77*LN(Population!H12/Population!C12)+0.352*LN(N10)) -> 162.7667647 | Y10: =+MIN((1+(EXP(LN(Control!$N$14)-0.682*LN(IF(Population!$AG$5>0,Population!AG$5,0.00001))-0.483*LN(IF(AE$2>0,AE$2,0.0001))-0.593*LN($L$4)+0.682*LN(IF(Population!AG12>0,Population!AG12,0.0001))+0.483*LN(IF(AE9>0,AE9,0.001))+0.593*LN(L10))))*Y9,Population!AB12) -> 19002893.23 | Z10: =+Z9*(1-Control!$D$18)+X9*Population!H11 -> 7.144202113e+10 | AA10: =+MIN(Y10,Population!AB12)*EXP((0.14-G10*0.006)*G10) -> 36694889.44 | AB10: =EXP(LN(Control!$O$14*Population!$E$4/($Z$2^0.3*$AA$2^0.7))-0.623*LN(O$2)-1.187*LN(M$2)+0.219*LN(P$2)+0.623*LN(O10)+1.187*LN(M10)-0.219*LN(P10)) -> 96.93326774 | AC10: =+(1+MAX((AB10-AB9)/AB9,($AE$2-0.7*Initial_Emp_Growth_Rate-0.3*Control!$R$14)))*AC9 -> 96.93326774 | AD10: 3.450506753e+10 | AE10: 0.02957958825 | AF10: =+AD10/Population!C12 -> 635.8840925 | AG10: 0.000597594344 | AH10: 0.02957958825 | AI10: 0.02843275638 | AJ10: 0.03226050511 | AK10: 525367.0017 | AL10: =Population!H12-'PolicyScenario-2'!Y10 -> 12798578.48 | AM10: =+Population!AB12-Y10 -> 12798578.48 | AN10: =+Population!AL12-AK10 -> 462962.3733 | AO10: =+Y10/Population!H12 -> 0.5975476042 | AP10: =inVar24*$AF$2*Population!AV12 -> 0 | AQ10: =+((W10+W10-Control!$W$10)/2-20)/(83.2-20) -> 0.6082278481 | AR10: 0.5398343692 | AS10: 0.2094871722 | AT10: 0.4097275274 | AV10: =VLOOKUP(AT10,HDI!A$2:B$170,2) -> Haiti | AW10: =VLOOKUP(AT10,HDI!A$2:C$170,3) -> 145
A11: 2019 | B11: =+B$2+(Control!C$8-Control!C$5)*($A11-$A$2)/($A$42-$A$2) -> 10.65394 | C11: =+C$2+(Control!D$8-Control!D$5)*($A11-$A$2)/($A$42-$A$2) -> 11.31316 | D11: 10.98355 | E11: =+E$2+(Control!E$8-Control!E$5)*($A11-$A$2)/($A$42-$A$2)+((R11-R$2)/R$2)*(-0.79)*E$2 -> 5.84 | F11: =+F$2+(Control!F$8-Control!F$5)*($A11-$A$2)/($A$42-$A$2) -> 7.21 | G11: 6.525 | H11: =+H$2+(Control!H$8-Control!H$5)*($A11-$A$2)/($A$42-$A$2) -> 39.4 | I11: =+I$2+(Control!I$8-Control!I$5)*($A11-$A$2)/($A$42-$A$2) -> 6.1 | J11: =+J$2+(Control!J$8-Control!J$5)*($A11-$A$2)/($A$42-$A$2) -> 10.3 | K11: =+K$2+(Control!K$8-Control!K$5)*($A11-$A$2)/($A$42-$A$2) -> 0.7 | L11: =+L$2+(Control!$N$8-inVar11)*Interpolate!E14 -> 4.88 | M11: =+M$2+(Control!$P$8-inVar13)*Interpolate!E14 -> 2.06857469 | N11: =+N$2+(Control!$O$8-inVar12)*Interpolate!E14 -> 3.91 | O11: =+O$2+(Control!$L$8-inVar9)*Interpolate!E14 -> 3.57 | P11: =+P$2+(Control!$M$8-inVar10)*Interpolate!E14 -> 45.49 | Q11: =+EXP(LN(Control!C$14)-(-0.332*LN(B$2))+(-0.332*LN(B11))) -> 58.3 | R11: =Control!D$14/($Q$2/100*(20/(18.5+$J$2))*((7.63-0.11*$K$2/100)/7.3)*(1-1.08*(Control!$I$14*$H$2/100+Control!$J$14*$I$2/100)))*($Q11/100*(20/(18.5+$J11))*((7.63-0.11*$K11/100)/7.3)*(1-1.08*(0.95*$H11/100+0.5*I11/100))) -> 4.6 | S11: 54.8 | T11: 59 | U11: 84 | V11: 400 | W11: 58.44 | X11: =EXP(LN(Control!$L$14)-0.875*LN($AF$2)-0.77*LN(Population!$H$4/Population!$C$4)-0.352*LN($N$2)+0.875*LN(AF11)+0.77*LN(Population!H13/Population!C13)+0.352*LN(N11)) -> 163.2682577 | Y11: =+MIN((1+(EXP(LN(Control!$N$14)-0.682*LN(IF(Population!$AG$5>0,Population!AG$5,0.00001))-0.483*LN(IF(AE$2>0,AE$2,0.0001))-0.593*LN($L$4)+0.682*LN(IF(Population!AG13>0,Population!AG13,0.0001))+0.483*LN(IF(AE10>0,AE10,0.001))+0.593*LN(L11))))*Y10,Population!AB13) -> 19545945.45 | Z11: =+Z10*(1-Control!$D$18)+X10*Population!H12 -> 7.376056295e+10 | AA11: =+MIN(Y11,Population!AB13)*EXP((0.14-G11*0.006)*G11) -> 37743531.92 | AB11: =EXP(LN(Control!$O$14*Population!$E$4/($Z$2^0.3*$AA$2^0.7))-0.623*LN(O$2)-1.187*LN(M$2)+0.219*LN(P$2)+0.623*LN(O11)+1.187*LN(M11)-0.219*LN(P11)) -> 96.93326774 | AC11: =+(1+MAX((AB11-AB10)/AB10,($AE$2-0.7*Initial_Emp_Growth_Rate-0.3*Control!$R$14)))*AC10 -> 96.93326774 | AD11: 3.553120176e+10 | AE11: 0.02973865282 | AF11: =+AD11/Population!C13 -> 636.3730463 | AG11: 0.0007689354641 | AH11: 0.02973865282 | AI11: 0.02857734414 | AJ11: 0.03245347461 | AK11: 543052.2195 | AL11: =Population!H13-'PolicyScenario-2'!Y11 -> 13278408.07 | AM11: =+Population!AB13-Y11 -> 13278408.07 | AN11: =+Population!AL13-AK11 -> 479829.5891 | AO11: =+Y11/Population!H13 -> 0.5954708427 | AP11: =inVar24*$AF$2*Population!AV13 -> 0 | AQ11: =+((W11+W11-Control!$W$10)/2-20)/(83.2-20) -> 0.6082278481 | AR11: 0.5398343692 | AS11: 0.2096054593 | AT11: 0.4098046305 | AV11: =VLOOKUP(AT11,HDI!A$2:B$170,2) -> Haiti | AW11: =VLOOKUP(AT11,HDI!A$2:C$170,3) -> 145
A12: 2020 | B12: =+B$2+(Control!C$8-Control!C$5)*($A12-$A$2)/($A$42-$A$2) -> 10.65394 | C12: =+C$2+(Control!D$8-Control!D$5)*($A12-$A$2)/($A$42-$A$2) -> 11.31316 | D12: 10.98355 | E12: =+E$2+(Control!E$8-Control!E$5)*($A12-$A$2)/($A$42-$A$2)+((R12-R$2)/R$2)*(-0.79)*E$2 -> 5.84 | F12: =+F$2+(Control!F$8-Control!F$5)*($A12-$A$2)/($A$42-$A$2) -> 7.21 | G12: 6.525 | H12: =+H$2+(Control!H$8-Control!H$5)*($A12-$A$2)/($A$42-$A$2) -> 39.4 | I12: =+I$2+(Control!I$8-Control!I$5)*($A12-$A$2)/($A$42-$A$2) -> 6.1 | J12: =+J$2+(Control!J$8-Control!J$5)*($A12-$A$2)/($A$42-$A$2) -> 10.3 | K12: =+K$2+(Control!K$8-Control!K$5)*($A12-$A$2)/($A$42-$A$2) -> 0.7 | L12: =+L$2+(Control!$N$8-inVar11)*Interpolate!E15 -> 4.88 | M12: =+M$2+(Control!$P$8-inVar13)*Interpolate!E15 -> 2.06857469 | N12: =+N$2+(Control!$O$8-inVar12)*Interpolate!E15 -> 3.91 | O12: =+O$2+(Control!$L$8-inVar9)*Interpolate!E15 -> 3.57 | P12: =+P$2+(Control!$M$8-inVar10)*Interpolate!E15 -> 45.49 | Q12: =+EXP(LN(Control!C$14)-(-0.332*LN(B$2))+(-0.332*LN(B12))) -> 58.3 | R12: =Control!D$14/($Q$2/100*(20/(18.5+$J$2))*((7.63-0.11*$K$2/100)/7.3)*(1-1.08*(Control!$I$14*$H$2/100+Control!$J$14*$I$2/100)))*($Q12/100*(20/(18.5+$J12))*((7.63-0.11*$K12/100)/7.3)*(1-1.08*(0.95*$H12/100+0.5*I12/100))) -> 4.6 | S12: 54.8 | T12: 59 | U12: 84 | V12: 400 | W12: 58.44 | X12: =EXP(LN(Control!$L$14)-0.875*LN($AF$2)-0.77*LN(Population!$H$4/Population!$C$4)-0.352*LN($N$2)+0.875*LN(AF12)+0.77*LN(Population!H14/Population!C14)+0.352*LN(N12)) -> 163.7845358 | Y12: =+MIN((1+(EXP(LN(Control!$N$14)-0.682*LN(IF(Population!$AG$5>0,Population!AG$5,0.00001))-0.483*LN(IF(AE$2>0,AE$2,0.0001))-0.593*LN($L$4)+0.682*LN(IF(Population!AG14>0,Population!AG14,0.0001))+0.483*LN(IF(AE11>0,AE11,0.001))+0.593*LN(L12))))*Y11,Population!AB14) -> 20105870.39 | Z12: =+Z11*(1-Control!$D$18)+X11*Population!H13 -> 7.616931544e+10 | AA12: =+MIN(Y12,Population!AB14)*EXP((0.14-G12*0.006)*G12) -> 38824755.9 | AB12: =EXP(LN(Control!$O$14*Population!$E$4/($Z$2^0.3*$AA$2^0.7))-0.623*LN(O$2)-1.187*LN(M$2)+0.219*LN(P$2)+0.623*LN(O12)+1.187*LN(M12)-0.219*LN(P12)) -> 96.93326774 | AC12: =+(1+MAX((AB12-AB11)/AB11,($AE$2-0.7*Initial_Emp_Growth_Rate-0.3*Control!$R$14)))*AC11 -> 96.93326774 | AD12: 3.65917334e+10 | AE12: 0.02984789664 | AF12: =+AD12/Population!C14 -> 636.9276129 | AG12: 0.000871448946 | AH12: 0.02984789664 | AI12: 0.02864660311 | AJ12: 0.03265637349 | AK12: 559924.9417 | AL12: =Population!H14-'PolicyScenario-2'!Y12 -> 13774002.77 | AM12: =+Population!AB14-Y12 -> 13774002.77 | AN12: =+Population!AL14-AK12 -> 495594.7067 | AO12: =+Y12/Population!H14 -> 0.5934458578 | AP12: =inVar24*$AF$2*Population!AV14 -> 0 | AQ12: =+((W12+W12-Control!$W$10)/2-20)/(83.2-20) -> 0.6082278481 | AR12: 0.5398343692 | AS12: 0.2097395094 | AT12: 0.4098919733 | AV12: =VLOOKUP(AT12,HDI!A$2:B$170,2) -> Haiti | AW12: =VLOOKUP(AT12,HDI!A$2:C$170,3) -> 145
A13: 2021 | B13: =+B$2+(Control!C$8-Control!C$5)*($A13-$A$2)/($A$42-$A$2) -> 10.65394 | C13: =+C$2+(Control!D$8-Control!D$5)*($A13-$A$2)/($A$42-$A$2) -> 11.31316 | D13: 10.98355 | E13: =+E$2+(Control!E$8-Control!E$5)*($A13-$A$2)/($A$42-$A$2)+((R13-R$2)/R$2)*(-0.79)*E$2 -> 5.84 | F13: =+F$2+(Control!F$8-Control!F$5)*($A13-$A$2)/($A$42-$A$2) -> 7.21 | G13: 6.525 | H13: =+H$2+(Control!H$8-Control!H$5)*($A13-$A$2)/($A$42-$A$2) -> 39.4 | I13: =+I$2+(Control!I$8-Control!I$5)*($A13-$A$2)/($A$42-$A$2) -> 6.1 | J13: =+J$2+(Control!J$8-Control!J$5)*($A13-$A$2)/($A$42-$A$2) -> 10.3 | K13: =+K$2+(Control!K$8-Control!K$5)*($A13-$A$2)/($A$42-$A$2) -> 0.7 | L13: =+L$2+(Control!$N$8-inVar11)*Interpolate!E16 -> 4.88 | M13: =+M$2+(Control!$P$8-inVar13)*Interpolate!E16 -> 2.06857469 | N13: =+N$2+(Control!$O$8-inVar12)*Interpolate!E16 -> 3.91 | O13: =+O$2+(Control!$L$8-inVar9)*Interpolate!E16 -> 3.57 | P13: =+P$2+(Control!$M$8-inVar10)*Interpolate!E16 -> 45.49 | Q13: =+EXP(LN(Control!C$14)-(-0.332*LN(B$2))+(-0.332*LN(B13))) -> 58.3 | R13: =Control!D$14/($Q$2/100*(20/(18.5+$J$2))*((7.63-0.11*$K$2/100)/7.3)*(1-1.08*(Control!$I$14*$H$2/100+Control!$J$14*$I$2/100)))*($Q13/100*(20/(18.5+$J13))*((7.63-0.11*$K13/100)/7.3)*(1-1.08*(0.95*$H13/100+0.5*I13/100))) -> 4.6 | S13: 54.8 | T13: 59 | U13: 84 | V13: 400 | W13: 58.44 | X13: =EXP(LN(Control!$L$14)-0.875*LN($AF$2)-0.77*LN(Population!$H$4/Population!$C$4)-0.352*LN($N$2)+0.875*LN(AF13)+0.77*LN(Population!H15/Population!C15)+0.352*LN(N13)) -> 164.2871166 | Y13: =+MIN((1+(EXP(LN(Control!$N$14)-0.682*LN(IF(Population!$AG$5>0,Population!AG$5,0.00001))-0.483*LN(IF(AE$2>0,AE$2,0.0001))-0.593*LN($L$4)+0.682*LN(IF(Population!AG15>0,Population!AG15,0.0001))+0.483*LN(IF(AE12>0,AE12,0.001))+0.593*LN(L13))))*Y12,Population!AB15) -> 20681418.42 | Z13: =+Z12*(1-Control!$D$18)+X12*Population!H14 -> 7.867154213e+10 | AA13: =+MIN(Y13,Population!AB15)*EXP((0.14-G13*0.006)*G13) -> 39936148.31 | AB13: =EXP(LN(Control!$O$14*Population!$E$4/($Z$2^0.3*$AA$2^0.7))-0.623*LN(O$2)-1.187*LN(M$2)+0.219*LN(P$2)+0.623*LN(O13)+1.187*LN(M13)-0.219*LN(P13)) -> 96.93326774 | AC13: =+(1+MAX((AB13-AB12)/AB12,($AE$2-0.7*Initial_Emp_Growth_Rate-0.3*Control!$R$14)))*AC12 -> 96.93326774 | AD13: 3.768551687e+10 | AE13: 0.02989154574 | AF13: =+AD13/Population!C15 -> 637.4931011 | AG13: 0.0008878373568 | AH13: 0.02989154574 | AI13: 0.02862586991 | AJ13: 0.03285084904 | AK13: 575548.0303 | AL13: =Population!H15-'PolicyScenario-2'!Y13 -> 14283937.88 | AM13: =+Population!AB15-Y13 -> 14283937.88 | AN13: =+Population!AL15-AK13 -> 509935.1025 | AO13: =+Y13/Population!H15 -> 0.5914831311 | AP13: =inVar24*$AF$2*Population!AV15 -> 0 | AQ13: =+((W13+W13-Control!$W$10)/2-20)/(83.2-20) -> 0.6082278481 | AR13: 0.5398343692 | AS13: 0.2098760793 | AT13: 0.4099809197 | AV13: =VLOOKUP(AT13,HDI!A$2:B$170,2) -> Haiti | AW13: =VLOOKUP(AT13,HDI!A$2:C$170,3) -> 145
A14: 2022 | B14: =+B$2+(Control!C$8-Control!C$5)*($A14-$A$2)/($A$42-$A$2) -> 10.65394 | C14: =+C$2+(Control!D$8-Control!D$5)*($A14-$A$2)/($A$42-$A$2) -> 11.31316 | D14: 10.98355 | E14: =+E$2+(Control!E$8-Control!E$5)*($A14-$A$2)/($A$42-$A$2)+((R14-R$2)/R$2)*(-0.79)*E$2 -> 5.84 | F14: =+F$2+(Control!F$8-Control!F$5)*($A14-$A$2)/($A$42-$A$2) -> 7.21 | G14: 6.525 | H14: =+H$2+(Control!H$8-Control!H$5)*($A14-$A$2)/($A$42-$A$2) -> 39.4 | I14: =+I$2+(Control!I$8-Control!I$5)*($A14-$A$2)/($A$42-$A$2) -> 6.1 | J14: =+J$2+(Control!J$8-Control!J$5)*($A14-$A$2)/($A$42-$A$2) -> 10.3 | K14: =+K$2+(Control!K$8-Control!K$5)*($A14-$A$2)/($A$42-$A$2) -> 0.7 | L14: =+L$2+(Control!$N$8-inVar11)*Interpolate!E17 -> 4.88 | M14: =+M$2+(Control!$P$8-inVar13)*Interpolate!E17 -> 2.06857469 | N14: =+N$2+(Control!$O$8-inVar12)*Interpolate!E17 -> 3.91 | O14: =+O$2+(Control!$L$8-inVar9)*Interpolate!E17 -> 3.57 | P14: =+P$2+(Control!$M$8-inVar10)*Interpolate!E17 -> 45.49 | Q14: =+EXP(LN(Control!C$14)-(-0.332*LN(B$2))+(-0.332*LN(B14))) -> 58.3 | R14: =Control!D$14/($Q$2/100*(20/(18.5+$J$2))*((7.63-0.11*$K$2/100)/7.3)*(1-1.08*(Control!$I$14*$H$2/100+Control!$J$14*$I$2/100)))*($Q14/100*(20/(18.5+$J14))*((7.63-0.11*$K14/100)/7.3)*(1-1.08*(0.95*$H14/100+0.5*I14/100))) -> 4.6 | S14: 54.8 | T14: 59 | U14: 84 | V14: 400 | W14: 58.44 | X14: =EXP(LN(Control!$L$14)-0.875*LN($AF$2)-0.77*LN(Population!$H$4/Population!$C$4)-0.352*LN($N$2)+0.875*LN(AF14)+0.77*LN(Population!H16/Population!C16)+0.352*LN(N14)) -> 164.7431126 | Y14: =+MIN((1+(EXP(LN(Control!$N$14)-0.682*LN(IF(Population!$AG$5>0,Population!AG$5,0.00001))-0.483*LN(IF(AE$2>0,AE$2,0.0001))-0.593*LN($L$4)+0.682*LN(IF(Population!AG16>0,Population!AG16,0.0001))+0.483*LN(IF(AE13>0,AE13,0.001))+0.593*LN(L14))))*Y13,Population!AB16) -> 21270764.2 | Z14: =+Z13*(1-Control!$D$18)+X13*Population!H15 -> 8.126903801e+10 | AA14: =+MIN(Y14,Population!AB16)*EXP((0.14-G14*0.006)*G14) -> 41074184.39 | AB14: =EXP(LN(Control!$O$14*Population!$E$4/($Z$2^0.3*$AA$2^0.7))-0.623*LN(O$2)-1.187*LN(M$2)+0.219*LN(P$2)+0.623*LN(O14)+1.187*LN(M14)-0.219*LN(P14)) -> 96.93326774 | AC14: =+(1+MAX((AB14-AB13)/AB13,($AE$2-0.7*Initial_Emp_Growth_Rate-0.3*Control!$R$14)))*AC13 -> 96.93326774 | AD14: 3.881044775e+10 | AE14: 0.02985048303 | AF14: =+AD14/Population!C16 -> 638.0048539 | AG14: 0.0008027582981 | AH14: 0.02985048303 | AI14: 0.02849639055 | AJ14: 0.03301696918 | AK14: 589345.7765 | AL14: =Population!H16-'PolicyScenario-2'!Y14 -> 14806280.16 | AM14: =+Population!AB16-Y14 -> 14806280.16 | AN14: =+Population!AL16-AK14 -> 522342.2821 | AO14: =+Y14/Population!H16 -> 0.5895927612 | AP14: =inVar24*$AF$2*Population!AV16 -> 0 | AQ14: =+((W14+W14-Control!$W$10)/2-20)/(83.2-20) -> 0.6082278481 | AR14: 0.5398343692 | AS14: 0.2099995674 | AT14: 0.4100613128 | AV14: =VLOOKUP(AT14,HDI!A$2:B$170,2) -> Haiti | AW14: =VLOOKUP(AT14,HDI!A$2:C$170,3) -> 145
A15: 2023 | B15: =+B$2+(Control!C$8-Control!C$5)*($A15-$A$2)/($A$42-$A$2) -> 10.65394 | C15: =+C$2+(Control!D$8-Control!D$5)*($A15-$A$2)/($A$42-$A$2) -> 11.31316 | D15: 10.98355 | E15: =+E$2+(Control!E$8-Control!E$5)*($A15-$A$2)/($A$42-$A$2)+((R15-R$2)/R$2)*(-0.79)*E$2 -> 5.84 | F15: =+F$2+(Control!F$8-Control!F$5)*($A15-$A$2)/($A$42-$A$2) -> 7.21 | G15: 6.525 | H15: =+H$2+(Control!H$8-Control!H$5)*($A15-$A$2)/($A$42-$A$2) -> 39.4 | I15: =+I$2+(Control!I$8-Control!I$5)*($A15-$A$2)/($A$42-$A$2) -> 6.1 | J15: =+J$2+(Control!J$8-Control!J$5)*($A15-$A$2)/($A$42-$A$2) -> 10.3 | K15: =+K$2+(Control!K$8-Control!K$5)*($A15-$A$2)/($A$42-$A$2) -> 0.7 | L15: =+L$2+(Control!$N$8-inVar11)*Interpolate!E18 -> 4.88 | M15: =+M$2+(Control!$P$8-inVar13)*Interpolate!E18 -> 2.06857469 | N15: =+N$2+(Control!$O$8-inVar12)*Interpolate!E18 -> 3.91 | O15: =+O$2+(Control!$L$8-inVar9)*Interpolate!E18 -> 3.57 | P15: =+P$2+(Control!$M$8-inVar10)*Interpolate!E18 -> 45.49 | Q15: =+EXP(LN(Control!C$14)-(-0.332*LN(B$2))+(-0.332*LN(B15))) -> 58.3 | R15: =Control!D$14/($Q$2/100*(20/(18.5+$J$2))*((7.63-0.11*$K$2/100)/7.3)*(1-1.08*(Control!$I$14*$H$2/100+Control!$J$14*$I$2/100)))*($Q15/100*(20/(18.5+$J15))*((7.63-0.11*$K15/100)/7.3)*(1-1.08*(0.95*$H15/100+0.5*I15/100))) -> 4.6 | S15: 54.8 | T15: 59 | U15: 84 | V15: 400 | W15: 58.44 | X15: =EXP(LN(Control!$L$14)-0.875*LN($AF$2)-0.77*LN(Population!$H$4/Population!$C$4)-0.352*LN($N$2)+0.875*LN(AF15)+0.77*LN(Population!H17/Population!C17)+0.352*LN(N15)) -> 165.1118866 | Y15: =+MIN((1+(EXP(LN(Control!$N$14)-0.682*LN(IF(Population!$AG$5>0,Population!AG$5,0.00001))-0.483*LN(IF(AE$2>0,AE$2,0.0001))-0.593*LN($L$4)+0.682*LN(IF(Population!AG17>0,Population!AG17,0.0001))+0.483*LN(IF(AE14>0,AE14,0.001))+0.593*LN(L15))))*Y14,Population!AB17) -> 21871151.56 | Z15: =+Z14*(1-Control!$D$18)+X14*Population!H16 -> 8.396172107e+10 | AA15: =+MIN(Y15,Population!AB17)*EXP((0.14-G15*0.006)*G15) -> 42233541.94 | AB15: =EXP(LN(Control!$O$14*Population!$E$4/($Z$2^0.3*$AA$2^0.7))-0.623*LN(O$2)-1.187*LN(M$2)+0.219*LN(P$2)+0.623*LN(O15)+1.187*LN(M15)-0.219*LN(P15)) -> 96.93326774 | AC15: =+(1+MAX((AB15-AB14)/AB14,($AE$2-0.7*Initial_Emp_Growth_Rate-0.3*Control!$R$14)))*AC14 -> 96.93326774 | AD15: 3.9962947e+10 | AE15: 0.02969559261 | AF15: =+AD15/Population!C17 -> 638.3831649 | AG15: 0.0005929593769 | AH15: 0.02969559261 | AI15: 0.02822594218 | AJ15: 0.03313295108 | AK15: 600387.3604 | AL15: =Population!H17-'PolicyScenario-2'!Y15 -> 15338101.01 | AM15: =+Population!AB17-Y15 -> 15338101.01 | AN15: =+Population!AL17-AK15 -> 531820.8466 | AO15: =+Y15/Population!H17 -> 0.5877879842 | AP15: =inVar24*$AF$2*Population!AV17 -> 0 | AQ15: =+((W15+W15-Control!$W$10)/2-20)/(83.2-20) -> 0.6082278481 | AR15: 0.5398343692 | AS15: 0.2100907917 | AT15: 0.4101206814 | AV15: =VLOOKUP(AT15,HDI!A$2:B$170,2) -> Haiti | AW15: =VLOOKUP(AT15,HDI!A$2:C$170,3) -> 145
A16: 2024 | B16: =+B$2+(Control!C$8-Control!C$5)*($A16-$A$2)/($A$42-$A$2) -> 10.65394 | C16: =+C$2+(Control!D$8-Control!D$5)*($A16-$A$2)/($A$42-$A$2) -> 11.31316 | D16: 10.98355 | E16: =+E$2+(Control!E$8-Control!E$5)*($A16-$A$2)/($A$42-$A$2)+((R16-R$2)/R$2)*(-0.79)*E$2 -> 5.84 | F16: =+F$2+(Control!F$8-Control!F$5)*($A16-$A$2)/($A$42-$A$2) -> 7.21 | G16: 6.525 | H16: =+H$2+(Control!H$8-Control!H$5)*($A16-$A$2)/($A$42-$A$2) -> 39.4 | I16: =+I$2+(Control!I$8-Control!I$5)*($A16-$A$2)/($A$42-$A$2) -> 6.1 | J16: =+J$2+(Control!J$8-Control!J$5)*($A16-$A$2)/($A$42-$A$2) -> 10.3 | K16: =+K$2+(Control!K$8-Control!K$5)*($A16-$A$2)/($A$42-$A$2) -> 0.7 | L16: =+L$2+(Control!$N$8-inVar11)*Interpolate!E19 -> 4.88 | M16: =+M$2+(Control!$P$8-inVar13)*Interpolate!E19 -> 2.06857469 | N16: =+N$2+(Control!$O$8-inVar12)*Interpolate!E19 -> 3.91 | O16: =+O$2+(Control!$L$8-inVar9)*Interpolate!E19 -> 3.57 | P16: =+P$2+(Control!$M$8-inVar10)*Interpolate!E19 -> 45.49 | Q16: =+EXP(LN(Control!C$14)-(-0.332*LN(B$2))+(-0.332*LN(B16))) -> 58.3 | R16: =Control!D$14/($Q$2/100*(20/(18.5+$J$2))*((7.63-0.11*$K$2/100)/7.3)*(1-1.08*(Control!$I$14*$H$2/100+Control!$J$14*$I$2/100)))*($Q16/100*(20/(18.5+$J16))*((7.63-0.11*$K16/100)/7.3)*(1-1.08*(0.95*$H16/100+0.5*I16/100))) -> 4.6 | S16: 54.8 | T16: 59 | U16: 84 | V16: 400 | W16: 58.44 | X16: =EXP(LN(Control!$L$14)-0.875*LN($AF$2)-0.77*LN(Population!$H$4/Population!$C$4)-0.352*LN($N$2)+0.875*LN(AF16)+0.77*LN(Population!H18/Population!C18)+0.352*LN(N16)) -> 165.3226925 | Y16: =+MIN((1+(EXP(LN(Control!$N$14)-0.682*LN(IF(Population!$AG$5>0,Population!AG$5,0.00001))-0.483*LN(IF(AE$2>0,AE$2,0.0001))-0.593*LN($L$4)+0.682*LN(IF(Population!AG18>0,Population!AG18,0.0001))+0.483*LN(IF(AE15>0,AE15,0.001))+0.593*LN(L16))))*Y15,Population!AB18) -> 22476996.55 | Z16: =+Z15*(1-Control!$D$18)+X15*Population!H17 -> 8.674694211e+10 | AA16: =+MIN(Y16,Population!AB18)*EXP((0.14-G16*0.006)*G16) -> 43403438.27 | AB16: =EXP(LN(Control!$O$14*Population!$E$4/($Z$2^0.3*$AA$2^0.7))-0.623*LN(O$2)-1.187*LN(M$2)+0.219*LN(P$2)+0.623*LN(O16)+1.187*LN(M16)-0.219*LN(P16)) -> 96.93326774 | AC16: =+(1+MAX((AB16-AB15)/AB15,($AE$2-0.7*Initial_Emp_Growth_Rate-0.3*Control!$R$14)))*AC15 -> 96.93326774 | AD16: 4.113542606e+10 | AE16: 0.0293391543 | AF16: =+AD16/Population!C18 -> 638.5000352 | AG16: 0.000183072338 | AH16: 0.0293391543 | AI16: 0.02770064451 | AJ16: 0.03317251017 | AK16: 605844.9943 | AL16: =Population!H18-'PolicyScenario-2'!Y16 -> 15872462.96 | AM16: =+Population!AB18-Y16 -> 15872462.96 | AN16: =+Population!AL18-AK16 -> 534361.9588 | AO16: =+Y16/Population!H18 -> 0.5861098653 | AP16: =inVar24*$AF$2*Population!AV18 -> 0 | AQ16: =+((W16+W16-Control!$W$10)/2-20)/(83.2-20) -> 0.6082278481 | AR16: 0.5398343692 | AS16: 0.2101189624 | AT16: 0.4101390113 | AV16: =VLOOKUP(AT16,HDI!A$2:B$170,2) -> Haiti | AW16: =VLOOKUP(AT16,HDI!A$2:C$170,3) -> 145
A17: 2025 | B17: =+B$2+(Control!C$8-Control!C$5)*($A17-$A$2)/($A$42-$A$2) -> 10.65394 | C17: =+C$2+(Control!D$8-Control!D$5)*($A17-$A$2)/($A$42-$A$2) -> 11.31316 | D17: 10.98355 | E17: =+E$2+(Control!E$8-Control!E$5)*($A17-$A$2)/($A$42-$A$2)+((R17-R$2)/R$2)*(-0.79)*E$2 -> 5.84 | F17: =+F$2+(Control!F$8-Control!F$5)*($A17-$A$2)/($A$42-$A$2) -> 7.21 | G17: 6.525 | H17: =+H$2+(Control!H$8-Control!H$5)*($A17-$A$2)/($A$42-$A$2) -> 39.4 | I17: =+I$2+(Control!I$8-Control!I$5)*($A17-$A$2)/($A$42-$A$2) -> 6.1 | J17: =+J$2+(Control!J$8-Control!J$5)*($A17-$A$2)/($A$42-$A$2) -> 10.3 | K17: =+K$2+(Control!K$8-Control!K$5)*($A17-$A$2)/($A$42-$A$2) -> 0.7 | L17: =+L$2+(Control!$N$8-inVar11)*Interpolate!E20 -> 4.88 | M17: =+M$2+(Control!$P$8-inVar13)*Interpolate!E20 -> 2.06857469 | N17: =+N$2+(Control!$O$8-inVar12)*Interpolate!E20 -> 3.91 | O17: =+O$2+(Control!$L$8-inVar9)*Interpolate!E20 -> 3.57 | P17: =+P$2+(Control!$M$8-inVar10)*Interpolate!E20 -> 45.49 | Q17: =+EXP(LN(Control!C$14)-(-0.332*LN(B$2))+(-0.332*LN(B17))) -> 58.3 | R17: =Control!D$14/($Q$2/100*(20/(18.5+$J$2))*((7.63-0.11*$K$2/100)/7.3)*(1-1.08*(Control!$I$14*$H$2/100+Control!$J$14*$I$2/100)))*($Q17/100*(20/(18.5+$J17))*((7.63-0.11*$K17/100)/7.3)*(1-1.08*(0.95*$H17/100+0.5*I17/100))) -> 4.6 | S17: 54.8 | T17: 59 | U17: 84 | V17: 400 | W17: 58.44 | X17: =EXP(LN(Control!$L$14)-0.875*LN($AF$2)-0.77*LN(Population!$H$4/Population!$C$4)-0.352*LN($N$2)+0.875*LN(AF17)+0.77*LN(Population!H19/Population!C19)+0.352*LN(N17)) -> 165.294568 | Y17: =+MIN((1+(EXP(LN(Control!$N$14)-0.682*LN(IF(Population!$AG$5>0,Population!AG$5,0.00001))-0.483*LN(IF(AE$2>0,AE$2,0.0001))-0.593*LN($L$4)+0.682*LN(IF(Population!AG19>0,Population!AG19,0.0001))+0.483*LN(IF(AE16>0,AE16,0.001))+0.593*LN(L17))))*Y16,Population!AB19) -> 23080637.27 | Z17: =+Z16*(1-Control!$D$18)+X16*Population!H18 -> 8.961710033e+10 | AA17: =+MIN(Y17,Population!AB19)*EXP((0.14-G17*0.006)*G17) -> 44569078.12 | AB17: =EXP(LN(Control!$O$14*Population!$E$4/($Z$2^0.3*$AA$2^0.7))-0.623*LN(O$2)-1.187*LN(M$2)+0.219*LN(P$2)+0.623*LN(O17)+1.187*LN(M17)-0.219*LN(P17)) -> 96.93326774 | AC17: =+(1+MAX((AB17-AB16)/AB16,($AE$2-0.7*Initial_Emp_Growth_Rate-0.3*Control!$R$14)))*AC16 -> 96.93326774 | AD17: 4.231688348e+10 | AE17: 0.02872116637 | AF17: =+AD17/Population!C19 -> 638.1979383 | AG17: -0.0004731352435 | AH17: 0.02872116637 | AI17: 0.02685593324 | AJ17: 0.03308656361 | AK17: 603640.719 | AL17: =Population!H19-'PolicyScenario-2'!Y17 -> 16401444.98 | AM17: =+Population!AB19-Y17 -> 16401444.98 | AN17: =+Population!AL19-AK17 -> 528982.0154 | AO17: =+Y17/Population!H19 -> 0.5845851069 | AP17: =inVar24*$AF$2*Population!AV19 -> 0 | AQ17: =+((W17+W17-Control!$W$10)/2-20)/(83.2-20) -> 0.6082278481 | AR17: 0.5398343692 | AS17: 0.2100461337 | AT17: 0.4100916202 | AV17: =VLOOKUP(AT17,HDI!A$2:B$170,2) -> Haiti | AW17: =VLOOKUP(AT17,HDI!A$2:C$170,3) -> 145
A18: 2026 | B18: =+B$2+(Control!C$8-Control!C$5)*($A18-$A$2)/($A$42-$A$2) -> 10.65394 | C18: =+C$2+(Control!D$8-Control!D$5)*($A18-$A$2)/($A$42-$A$2) -> 11.31316 | D18: 10.98355 | E18: =+E$2+(Control!E$8-Control!E$5)*($A18-$A$2)/($A$42-$A$2)+((R18-R$2)/R$2)*(-0.79)*E$2 -> 5.84 | F18: =+F$2+(Control!F$8-Control!F$5)*($A18-$A$2)/($A$42-$A$2) -> 7.21 | G18: 6.525 | H18: =+H$2+(Control!H$8-Control!H$5)*($A18-$A$2)/($A$42-$A$2) -> 39.4 | I18: =+I$2+(Control!I$8-Control!I$5)*($A18-$A$2)/($A$42-$A$2) -> 6.1 | J18: =+J$2+(Control!J$8-Control!J$5)*($A18-$A$2)/($A$42-$A$2) -> 10.3 | K18: =+K$2+(Control!K$8-Control!K$5)*($A18-$A$2)/($A$42-$A$2) -> 0.7 | L18: =+L$2+(Control!$N$8-inVar11)*Interpolate!E21 -> 4.88 | M18: =+M$2+(Control!$P$8-inVar13)*Interpolate!E21 -> 2.06857469 | N18: =+N$2+(Control!$O$8-inVar12)*Interpolate!E21 -> 3.91 | O18: =+O$2+(Control!$L$8-inVar9)*Interpolate!E21 -> 3.57 | P18: =+P$2+(Control!$M$8-inVar10)*Interpolate!E21 -> 45.49 | Q18: =+EXP(LN(Control!C$14)-(-0.332*LN(B$2))+(-0.332*LN(B18))) -> 58.3 | R18: =Control!D$14/($Q$2/100*(20/(18.5+$J$2))*((7.63-0.11*$K$2/100)/7.3)*(1-1.08*(Control!$I$14*$H$2/100+Control!$J$14*$I$2/100)))*($Q18/100*(20/(18.5+$J18))*((7.63-0.11*$K18/100)/7.3)*(1-1.08*(0.95*$H18/100+0.5*I18/100))) -> 4.6 | S18: 54.8 | T18: 59 | U18: 84 | V18: 400 | W18: 58.44 | X18: =EXP(LN(Control!$L$14)-0.875*LN($AF$2)-0.77*LN(Population!$H$4/Population!$C$4)-0.352*LN($N$2)+0.875*LN(AF18)+0.77*LN(Population!H20/Population!C20)+0.352*LN(N18)) -> 165.2271367 | Y18: =+MIN((1+(EXP(LN(Control!$N$14)-0.682*LN(IF(Population!$AG$5>0,Population!AG$5,0.00001))-0.483*LN(IF(AE$2>0,AE$2,0.0001))-0.593*LN($L$4)+0.682*LN(IF(Population!AG20>0,Population!AG20,0.0001))+0.483*LN(IF(AE17>0,AE17,0.001))+0.593*LN(L18))))*Y17,Population!AB20) -> 23695218.47 | Z18: =+Z17*(1-Control!$D$18)+X17*Population!H19 -> 9.255859005e+10 | AA18: =+MIN(Y18,Population!AB20)*EXP((0.14-G18*0.006)*G18) -> 45755844.2 | AB18: =EXP(LN(Control!$O$14*Population!$E$4/($Z$2^0.3*$AA$2^0.7))-0.623*LN(O$2)-1.187*LN(M$2)+0.219*LN(P$2)+0.623*LN(O18)+1.187*LN(M18)-0.219*LN(P18)) -> 96.93326774 | AC18: =+(1+MAX((AB18-AB17)/AB17,($AE$2-0.7*Initial_Emp_Growth_Rate-0.3*Control!$R$14)))*AC17 -> 96.93326774 | AD18: 4.352216323e+10 | AE18: 0.0284822428 | AF18: =+AD18/Population!C20 -> 637.7124894 | AG18: -0.0007606557659 | AH18: 0.0284822428 | AI18: 0.02662756627 | AJ18: 0.032822862 | AK18: 614581.1984 | AL18: =Population!H20-'PolicyScenario-2'!Y18 -> 16955921 | AM18: =+Population!AB20-Y18 -> 16955921 | AN18: =+Population!AL20-AK18 -> 554476.0242 | AO18: =+Y18/Population!H20 -> 0.5828918642 | AP18: =inVar24*$AF$2*Population!AV20 -> 0 | AQ18: =+((W18+W18-Control!$W$10)/2-20)/(83.2-20) -> 0.6082278481 | AR18: 0.5398343692 | AS18: 0.2099290308 | AT18: 0.410015396 | AV18: =VLOOKUP(AT18,HDI!A$2:B$170,2) -> Haiti | AW18: =VLOOKUP(AT18,HDI!A$2:C$170,3) -> 145
A19: 2027 | B19: =+B$2+(Control!C$8-Control!C$5)*($A19-$A$2)/($A$42-$A$2) -> 10.65394 | C19: =+C$2+(Control!D$8-Control!D$5)*($A19-$A$2)/($A$42-$A$2) -> 11.31316 | D19: 10.98355 | E19: =+E$2+(Control!E$8-Control!E$5)*($A19-$A$2)/($A$42-$A$2)+((R19-R$2)/R$2)*(-0.79)*E$2 -> 5.84 | F19: =+F$2+(Control!F$8-Control!F$5)*($A19-$A$2)/($A$42-$A$2) -> 7.21 | G19: 6.525 | H19: =+H$2+(Control!H$8-Control!H$5)*($A19-$A$2)/($A$42-$A$2) -> 39.4 | I19: =+I$2+(Control!I$8-Control!I$5)*($A19-$A$2)/($A$42-$A$2) -> 6.1 | J19: =+J$2+(Control!J$8-Control!J$5)*($A19-$A$2)/($A$42-$A$2) -> 10.3 | K19: =+K$2+(Control!K$8-Control!K$5)*($A19-$A$2)/($A$42-$A$2) -> 0.7 | L19: =+L$2+(Control!$N$8-inVar11)*Interpolate!E22 -> 4.88 | M19: =+M$2+(Control!$P$8-inVar13)*Interpolate!E22 -> 2.06857469 | N19: =+N$2+(Control!$O$8-inVar12)*Interpolate!E22 -> 3.91 | O19: =+O$2+(Control!$L$8-inVar9)*Interpolate!E22 -> 3.57 | P19: =+P$2+(Control!$M$8-inVar10)*Interpolate!E22 -> 45.49 | Q19: =+EXP(LN(Control!C$14)-(-0.332*LN(B$2))+(-0.332*LN(B19))) -> 58.3 | R19: =Control!D$14/($Q$2/100*(20/(18.5+$J$2))*((7.63-0.11*$K$2/100)/7.3)*(1-1.08*(Control!$I$14*$H$2/100+Control!$J$14*$I$2/100)))*($Q19/100*(20/(18.5+$J19))*((7.63-0.11*$K19/100)/7.3)*(1-1.08*(0.95*$H19/100+0.5*I19/100))) -> 4.6 | S19: 54.8 | T19: 59 | U19: 84 | V19: 400 | W19: 58.44 | X19: =EXP(LN(Control!$L$14)-0.875*LN($AF$2)-0.77*LN(Population!$H$4/Population!$C$4)-0.352*LN($N$2)+0.875*LN(AF19)+0.77*LN(Population!H21/Population!C21)+0.352*LN(N19)) -> 165.1199566 | Y19: =+MIN((1+(EXP(LN(Control!$N$14)-0.682*LN(IF(Population!$AG$5>0,Population!AG$5,0.00001))-0.483*LN(IF(AE$2>0,AE$2,0.0001))-0.593*LN($L$4)+0.682*LN(IF(Population!AG21>0,Population!AG21,0.0001))+0.483*LN(IF(AE18>0,AE18,0.001))+0.593*LN(L19))))*Y18,Population!AB21) -> 24323577.03 | Z19: =+Z18*(1-Control!$D$18)+X18*Population!H20 -> 9.557291783e+10 | AA19: =+MIN(Y19,Population!AB21)*EXP((0.14-G19*0.006)*G19) -> 46969214.59 | AB19: =EXP(LN(Control!$O$14*Population!$E$4/($Z$2^0.3*$AA$2^0.7))-0.623*LN(O$2)-1.187*LN(M$2)+0.219*LN(P$2)+0.623*LN(O19)+1.187*LN(M19)-0.219*LN(P19)) -> 96.93326774 | AC19: =+(1+MAX((AB19-AB18)/AB18,($AE$2-0.7*Initial_Emp_Growth_Rate-0.3*Control!$R$14)))*AC18 -> 96.93326774 | AD19: 4.475510865e+10 | AE19: 0.02832913909 | AF19: =+AD19/Population!C21 -> 637.0906522 | AG19: -0.0009751058471 | AH19: 0.02832913909 | AI19: 0.02651836964 | AJ19: 0.03256669937 | AK19: 628358.5622 | AL19: =Population!H21-'PolicyScenario-2'!Y19 -> 17531103.64 | AM19: =+Population!AB21-Y19 -> 17531103.64 | AN19: =+Population!AL21-AK19 -> 575182.6332 | AO19: =+Y19/Population!H21 -> 0.5811435339 | AP19: =inVar24*$AF$2*Population!AV21 -> 0 | AQ19: =+((W19+W19-Control!$W$10)/2-20)/(83.2-20) -> 0.6082278481 | AR19: 0.5398343692 | AS19: 0.2097788971 | AT19: 0.40991763 | AV19: =VLOOKUP(AT19,HDI!A$2:B$170,2) -> Haiti | AW19: =VLOOKUP(AT19,HDI!A$2:C$170,3) -> 145
A20: 2028 | B20: =+B$2+(Control!C$8-Control!C$5)*($A20-$A$2)/($A$42-$A$2) -> 10.65394 | C20: =+C$2+(Control!D$8-Control!D$5)*($A20-$A$2)/($A$42-$A$2) -> 11.31316 | D20: 10.98355 | E20: =+E$2+(Control!E$8-Control!E$5)*($A20-$A$2)/($A$42-$A$2)+((R20-R$2)/R$2)*(-0.79)*E$2 -> 5.84 | F20: =+F$2+(Control!F$8-Control!F$5)*($A20-$A$2)/($A$42-$A$2) -> 7.21 | G20: 6.525 | H20: =+H$2+(Control!H$8-Control!H$5)*($A20-$A$2)/($A$42-$A$2) -> 39.4 | I20: =+I$2+(Control!I$8-Control!I$5)*($A20-$A$2)/($A$42-$A$2) -> 6.1 | J20: =+J$2+(Control!J$8-Control!J$5)*($A20-$A$2)/($A$42-$A$2) -> 10.3 | K20: =+K$2+(Control!K$8-Control!K$5)*($A20-$A$2)/($A$42-$A$2) -> 0.7 | L20: =+L$2+(Control!$N$8-inVar11)*Interpolate!E23 -> 4.88 | M20: =+M$2+(Control!$P$8-inVar13)*Interpolate!E23 -> 2.06857469 | N20: =+N$2+(Control!$O$8-inVar12)*Interpolate!E23 -> 3.91 | O20: =+O$2+(Control!$L$8-inVar9)*Interpolate!E23 -> 3.57 | P20: =+P$2+(Control!$M$8-inVar10)*Interpolate!E23 -> 45.49 | Q20: =+EXP(LN(Control!C$14)-(-0.332*LN(B$2))+(-0.332*LN(B20))) -> 58.3 | R20: =Control!D$14/($Q$2/100*(20/(18.5+$J$2))*((7.63-0.11*$K$2/100)/7.3)*(1-1.08*(Control!$I$14*$H$2/100+Control!$J$14*$I$2/100)))*($Q20/100*(20/(18.5+$J20))*((7.63-0.11*$K20/100)/7.3)*(1-1.08*(0.95*$H20/100+0.5*I20/100))) -> 4.6 | S20: 54.8 | T20: 59 | U20: 84 | V20: 400 | W20: 58.44 | X20: =EXP(LN(Control!$L$14)-0.875*LN($AF$2)-0.77*LN(Population!$H$4/Population!$C$4)-0.352*LN($N$2)+0.875*LN(AF20)+0.77*LN(Population!H22/Population!C22)+0.352*LN(N20)) -> 164.9677732 | Y20: =+MIN((1+(EXP(LN(Control!$N$14)-0.682*LN(IF(Population!$AG$5>0,Population!AG$5,0.00001))-0.483*LN(IF(AE$2>0,AE$2,0.0001))-0.593*LN($L$4)+0.682*LN(IF(Population!AG22>0,Population!AG22,0.0001))+0.483*LN(IF(AE19>0,AE19,0.001))+0.593*LN(L20))))*Y19,Population!AB22) -> 24966254.26 | Z20: =+Z19*(1-Control!$D$18)+X19*Population!H21 -> 9.866104417e+10 | AA20: =+MIN(Y20,Population!AB22)*EXP((0.14-G20*0.006)*G20) -> 48210234.55 | AB20: =EXP(LN(Control!$O$14*Population!$E$4/($Z$2^0.3*$AA$2^0.7))-0.623*LN(O$2)-1.187*LN(M$2)+0.219*LN(P$2)+0.623*LN(O20)+1.187*LN(M20)-0.219*LN(P20)) -> 96.93326774 | AC20: =+(1+MAX((AB20-AB19)/AB19,($AE$2-0.7*Initial_Emp_Growth_Rate-0.3*Control!$R$14)))*AC19 -> 96.93326774 | AD20: 4.601654806e+10 | AE20: 0.02818537269 | AF20: =+AD20/Population!C22 -> 636.3351105 | AG20: -0.001185924974 | AH20: 0.02818537269 | AI20: 0.02642198672 | AJ20: 0.03231173027 | AK20: 642677.2294 | AL20: =Population!H22-'PolicyScenario-2'!Y20 -> 18125716 | AM20: =+Population!AB22-Y20 -> 18125716 | AN20: =+Population!AL22-AK20 -> 594612.3644 | AO20: =+Y20/Population!H22 -> 0.5793713796 | AP20: =inVar24*$AF$2*Population!AV22 -> 0 | AQ20: =+((W20+W20-Control!$W$10)/2-20)/(83.2-20) -> 0.6082278481 | AR20: 0.5398343692 | AS20: 0.2095962852 | AT20: 0.4097986515 | AV20: =VLOOKUP(AT20,HDI!A$2:B$170,2) -> Haiti | AW20: =VLOOKUP(AT20,HDI!A$2:C$170,3) -> 145
